Workbook

Sheet Cover
A1: RIIO Price Control Financial Model (PCFM)
B2: Electricity Distribution
C3: =MID(CELL("filename"),SEARCH("[",CELL("filename"))+1,SEARCH("]",CELL("filename"))-SEARCH("[",CELL("filename"))-1) -> LiMo ED C1.93b_WPD_DNO East Mids.xlsm
C4: RIIO ED1 Price Control Financial Model for the Annual Iteration Process that will take place by 30 November 2015-16
C6: DISCLAIMER: The purpose of this model is used to calculate Base Revenue (PU) at Final Proposals and MOD terms in subsequent years for Licensees on the basis of Financial Handbook and Licence conditions of the relevant Network Operator
C8: Note: Calculations of the regulatory financial position in financial statements are done on a notional basis, in line with the assumptions in this model and in Final Proposals. These may be different from the financial position stated in operator's accounts.
B10: Model key
E12: Sample | G12: Information and interface
E13: Sample | G13: Fixed input value
E14: Sample | G14: Annual update input
E15: Sample | G15: Input linked from annual update
E16: Sample | G16: Notes and instructions
E17: Sample | G17: Sheet or calculation included in FP Model
B19: Contents
E21: INTERFACE >
E22: Cover | G22: Model key and content directory
E23: UserInterface | G23: Model operation
E24: TaxTrigger | G24: Tax trigger calculations
E25: MOD | G25: MOD Summary
E26: INPUT SELECTION >
E27: Input | G27: Inputs for selected licensee
E28: CALCULATION >
E29: Totex | G29: Totex allowance and actuals
E30: TIM | G30: Totex Incentive Mechanism and capitalisation
E31: DARTs | G31: Direct Allowance Revenue Terms
E32: Depn | G32: Gas distribution regulatory depreciation
E33: Return&RAV | G33: RAV and return calculations
E34: TaxPools | G34: Tax pools and capital allowances
E35: Finance&Tax | G35: Net debt, equity issuance, financing costs and tax
E36: Revenue | G36: Revenue and MOD
E37: Revenue Profiling | G37: Revenue Profiling tool
E38: OUTPUT >
E39: LiveResults | G39: Results for selected company
E40: SavedResults | G40: Saved results for all companies
E41: FinancialStatements | G41: Financial statements for selected company
E42: FinancialRatios | G42: Financial ratios for selected company
E43: Bill impact | G43: Bill impact for all companies
E44: RoRE | G44: Return on Regulatory Equity calculations for selected company
E45: COMPANY SPECIFIC INPUT SHEETS >
E46: ENWL
E47: NPgN
E48: NPgY
E49: WMID
E50: EMID
E51: SWALES
E52: SWEST
E53: LPN
E54: SPN
E55: EPN
E56: SPD
E57: SPMW
E58: SSEH
E59: SSES

Sheet UserInterface
A1: User Interface
B3: Model operation
C5: Scenario
E7: Scenario selection
E9: Selected Scenario: | G9: =INDEX(E79:E90,E91) -> OWN_Best (M1a)
C12: PCFM year t
C13: Instruction: Use the following drop-down list to identify year t in the model. Year t is identified here by its end date.
E15: Year t selection:
E17: Year t selected: | G17: =EOMONTH(42094,E75*12) -> 2016-03-31
C19: Active company
C20: Instruction: Use the following drop-down list to select the active company in the model.
E22: Company selection:
E24: Selected company: | G24: =INDEX(E49:E62, E63) -> WMID
C26: Model state
C27: Below shows the state of the model selected in the Tax Trigger sheet
E29: Selected model status: | G29: =INDEX(TaxTrigger!E30:E31,m_tax_trigger_state,1) -> Licence Model
C31: Run model for all licensees
C32: Instruction: Click on the left button to save results for the selected company only. Click the right button to save results for all.
C33: Note: Annual iterations must have been completed for all prior years before running the model to generate MOD.
C34: The macros save results and values required for future years which cannot be recreated once inputs are revised.
C35: Running the macro saves the output from year t's iteration for use in future iterations.
C36: Results for the selected company can be found on the "LiveResults" sheet and also on the "SavedResults" sheet once saved by a macro.
B42: User selection lists
B43: Note: The lists below drive the drop-down lists above.
B44: Using the drop-down lists above returns an integer in the "cell link" positioned below their "source list."
B45: The number returned in the cell link corresponds to the position of the selected item in the source list.
B46: The company selection output is set as a "named range." This gives a stable anchor point for the "RunForAll" macro to change the company.
E48: ="Source for ''"&C19&"'' drop-down list" -> Source for ''Active company'' drop-down list
E49: ENWL
E50: NPgN
E51: NPgY
E52: WMID
E53: EMID
E54: SWALES
E55: SWEST
E56: LPN
E57: SPN
E58: EPN
E59: SPD
E60: SPMW
E61: SSEH
E62: SSES
E63: 4
E64: Adjacent named range: m_identity
E66: ="Source for ''"&C12&"'' drop-down list" -> Source for ''PCFM year t'' drop-down list
E67: 2016-03-31
E68: 2017-03-31
E69: 2018-03-31
E70: 2019-03-31
E71: 2020-03-31
E72: 2021-03-31
E73: 2022-03-31
E74: 2023-03-31
E75: 1
E76: Adjacent named range: m_PCFM_year_t
E78: ="Source for ''"&C5&"'' drop-down list" -> Source for ''Scenario'' drop-down list
E79: OWN_Best (M1a)
E80: OWN_Base (M1b)
E81: OWN_SM1 - DECC Scenario 3 equiv
E82: OWN_SM2 - DECC Scenario 1 equiv
E83: OWN_SM3 - DECC Scenario 2 equiv
E84: OWN_SM4 - DNO Scenario 4 equiv
E85: REFERENCE_Best (M1a)
E86: REFERENCE_Base (M1b)
E87: REFERENCE_SM1 - DECC Scenario 3 equiv
E88: REFERENCE_SM2 - DECC Scenario 1 equiv
E89: REFERENCE_SM3 - DECC Scenario 2 equiv
E90: REFERENCE_SM4 - DNO Scenario 4 equiv
E91: 1

Sheet Change Control
B1: Details of change | D1: Links to changes in model
B208: Changes since previous model isssue
B209: Update of 12/13 RPI
U222: =U203-U4 -> 0
B224: Removal of superfluous 'GD group ratio'
B227: Increase of scenarios to pick up the Base/Best as well as OWN and REFERENCE
B230: With all the scenarios in the model, the model will have only one set of tax pool allocations rather than one for each scenario
B233: Inclusion of load related re-opener as a new blue box entry
B236: Removal of two of the directly remenerated services. For the two replacements (Element of connection that is Sole Use funded and Connection projects UMC) the income has been set to equal the costs
B239: Update of licencee view of totex figure for the purposes of additional income

Sheet TaxTrigger
A1: Tax Trigger
B2: =UserInterface!G24 -> WMID | AJ2: Done
E7: Parameter | G7: Units | I7: Constant | AJ7: Annual values
E8: PCFM year ending | I8: =UserInterface!$G$17 -> 2016-03-31 | K8: 1991-03-31 | L8: 1992-03-31 | M8: 1993-03-31 | N8: 1994-03-31 | O8: 1995-03-31 | P8: 1996-03-31 | Q8: 1997-03-31 | R8: 1998-03-31 | S8: 1999-03-31 | T8: 2000-03-31 | U8: 2001-03-31 | V8: 2002-03-31 | W8: 2003-03-31 | X8: 2004-03-31 | Y8: 2005-03-31 | Z8: 2006-03-31 | AA8: 2007-03-31 | AB8: 2008-03-31 | AC8: 2009-03-31 | AD8: 2010-03-31 | AE8: 2011-03-31 | AF8: 2012-03-31 | AG8: 2013-03-31 | AH8: 2014-03-31 | AI8: 2015-03-31 | AJ8: 2016-03-31 | AK8: 2017-03-31 | AL8: 2018-03-31 | AM8: 2019-03-31 | AN8: 2020-03-31 | AO8: 2021-03-31 | AP8: 2022-03-31 | AQ8: 2023-03-31
B10: Tax trigger calculation
C12: Test operation
C13: Instruction: To run the model as the Tax Trigger Tool, The model state selected below should be Tax Trigger Calculation
C14: Clicking the macro button below runs the "TaxTrigger" macro, performing the Tax Trigger adjustment calculation for the selected licensee for year t.
C15: The output generated by the macro can be replicated manually using the following steps:
C16: 1. Clear any values from previous tests in the "Test state output" section below (named range "m_saved_original_results")
C17: 2. Set testing state to "Licence Model"
C18: 3. Copy the cells marked as the "m_calculated_tax" named range and paste them at the named range "m_saved_original_test."
C19: 4. Set testing state to "Tax Trigger Calculation"
C20: Note: The Tax Trigger Tool is disabled if the "Model state" below reads "Licence Model."
E26: State selection
E29: State options
E30: Licence Model
E31: Tax Trigger Calculation
E32: 1
E33: Adjacent named range: m_tax_trigger_state
E38: Run macro
C44: Tax calculation
E46: Tax Allowance when tax losses are not taken into account
E48: Profits attributable to corporation tax | G48: £m 12/13 prices | AJ48: ='Finance&Tax'!AJ169 * Input!$AG$54 / Input!AJ$54 -> 72.16409122 | AK48: ='Finance&Tax'!AK169 * Input!$AG$54 / Input!AK$54 -> 73.16466616 | AL48: ='Finance&Tax'!AL169 * Input!$AG$54 / Input!AL$54 -> 72.25892929 | AM48: ='Finance&Tax'!AM169 * Input!$AG$54 / Input!AM$54 -> 73.32349854 | AN48: ='Finance&Tax'!AN169 * Input!$AG$54 / Input!AN$54 -> 73.207955 | AO48: ='Finance&Tax'!AO169 * Input!$AG$54 / Input!AO$54 -> 73.3034873 | AP48: ='Finance&Tax'!AP169 * Input!$AG$54 / Input!AP$54 -> 56.84461716 | AQ48: ='Finance&Tax'!AQ169 * Input!$AG$54 / Input!AQ$54 -> 54.8518149
E49: Corporation tax rate | AJ49: ='Finance&Tax'!AJ186 -> 0.2 | AK49: ='Finance&Tax'!AK186 -> 0.2 | AL49: ='Finance&Tax'!AL186 -> 0.2 | AM49: ='Finance&Tax'!AM186 -> 0.2 | AN49: ='Finance&Tax'!AN186 -> 0.2 | AO49: ='Finance&Tax'!AO186 -> 0.2 | AP49: ='Finance&Tax'!AP186 -> 0.2 | AQ49: ='Finance&Tax'!AQ186 -> 0.2
E50: Corporation tax charge beforre losses | AJ50: =AJ49*AJ48 -> 14.43281824 | AK50: =AK49*AK48 -> 14.63293323 | AL50: 14.45178586 | AM50: 14.66469971 | AN50: 14.641591 | AO50: 14.66069746 | AP50: 11.36892343 | AQ50: 10.97036298
E54: Tax allowance without taking into account losses | AJ54: =AJ50 -> 14.43281824 | AK54: =AK50 -> 14.63293323 | AL54: 14.45178586 | AM54: 14.66469971 | AN54: 14.641591 | AO54: 14.66069746 | AP54: 11.36892343 | AQ54: 10.97036298
I56: Instruction
E57: Tax allowance before tax trigger | G57: £m 12/13 prices | AJ57: =AJ54 -> 14.43281824 | AK57: =AK54 -> 14.63293323 | AL57: 14.45178586 | AM57: 14.66469971 | AN57: 14.641591 | AO57: 14.66069746 | AP57: 11.36892343 | AQ57: 10.97036298
E58: B event value | G58: £m 12/13 prices | AJ58: =AJ136 -> 0 | AK58: =AK136 -> 0 | AL58: 0 | AM58: 0 | AN58: 0 | AO58: 0 | AP58: 0 | AQ58: 0
E59: Threshold value adjustment | G59: £m 12/13 prices | AJ59: =AJ87 -> 0 | AK59: =AK87 -> 0 | AL59: 0 | AM59: 0 | AN59: 0 | AO59: 0 | AP59: 0 | AQ59: 0
E60: Tax allowance | G60: £m 12/13 prices | I60: =IF(m_tax_trigger_state = 1, "Copy cells -->", "-") -> Copy cells --> | AJ60: =SUM(AJ57:AJ59) -> 14.43281824 | AK60: 14.63293323 | AL60: 14.45178586 | AM60: 14.66469971 | AN60: 14.641591 | AO60: 14.66069746 | AP60: 11.36892343 | AQ60: 10.97036298
AJ61: Adjacent named range: m_calculated_tax
C62: Test state output
C63: Note: The formula determines whether the recalculated tax is above or below the threshold and sets the adjustment accordingly
I65: Instruction
E66: Value with original settings | G66: £m 12/13 prices | I66: =IF( m_tax_trigger_state = 1, "Paste cells -->","-") -> Paste cells --> | AI66: m_tax_trigger_results
AJ67: Named ranges above: m_saved_original_test
E68: Value with new settings and threshold adjustment | G68: £m 12/13 prices | AJ68: =AJ60 -> 14.43281824 | AK68: =AK60 -> 14.63293323 | AL68: 14.45178586 | AM68: 14.66469971 | AN68: 14.641591 | AO68: 14.66069746 | AP68: 11.36892343 | AQ68: 10.97036298
C70: Result and output
C71: Note: Once the test is complete, the "Tax Trigger adjustment" below can be taken from below and inputted to the PCFM set to run as the Licence Model, rather than the Tax Trigger Tool.
E73: Tax trigger adjustment | G73: £m 12/13 prices | AJ73: =IF(m_tax_trigger_state=2,IF(ABS(AJ68-AJ66)> ABS(AJ87), AJ68 - AJ66, 0),0) -> 0 | AK73: 0 | AL73: 0 | AM73: 0 | AN73: 0 | AO73: 0 | AP73: 0 | AQ73: 0
B75: Tax trigger parameters
B76: Instruction: Enter values in the yellow cells below for use in the Tax Trigger test.
B77: Note: Flags are used throughout to indicate whether the original or Tax Trigger value is being used. The live values below are exported for use throughout the model.
C79: Active policy
E81: Tax trigger tax settings are used | G81: flag | AJ81: =IF(AND(AJ$8 <= $I8, m_tax_trigger_state = 2), TRUE, FALSE) -> FALSE | AK81: FALSE | AL81: FALSE | AM81: FALSE | AN81: FALSE | AO81: FALSE | AP81: FALSE | AQ81: FALSE
C83: Threshold
E85: Threshold value | G85: £m 12/13 prices
E87: Threshold value applied | G87: £m 12/13 prices | AJ87: =IF(OR(AJ57 = AJ66, AJ66 = ""), 0, IF(AJ66 < AJ57, -AJ85, +AJ85)) -> 0 | AK87: =IF(OR(AK57 = AK66, AK66 = ""), 0, IF(AK66 < AK57, -AK85, +AK85)) -> 0 | AL87: 0 | AM87: 0 | AN87: 0 | AO87: 0 | AP87: 0 | AQ87: 0
C89: Corporation tax rate
E91: Active | G91: text | AJ91: =AJ$81 = FALSE() -> TRUE | AK91: TRUE | AL91: TRUE | AM91: TRUE | AN91: TRUE | AO91: TRUE | AP91: TRUE | AQ91: TRUE
E92: RIIO | G92: % | J92: > | AJ92: =Input!AJ312 -> 0.2 | AK92: =Input!AK312 -> 0.2 | AL92: =Input!AL312 -> 0.2 | AM92: =Input!AM312 -> 0.2 | AN92: =Input!AN312 -> 0.2 | AO92: =Input!AO312 -> 0.2 | AP92: =Input!AP312 -> 0.2 | AQ92: =Input!AQ312 -> 0.2
E94: Active | G94: text | AJ94: =AJ$81 -> FALSE | AK94: FALSE | AL94: FALSE | AM94: FALSE | AN94: FALSE | AO94: FALSE | AP94: FALSE | AQ94: FALSE
E95: Tax trigger | G95: % | AJ95: =AJ92 -> 0.2 | AK95: 0.2 | AL95: 0.2 | AM95: 0.2 | AN95: 0.2 | AO95: 0.2 | AP95: 0.2 | AQ95: 0.2
E97: Applied | G97: % | J97: > | AJ97: =(AJ91 * AJ92) + (AJ94 * AJ95) -> 0.2 | AK97: =(AK91 * AK92) + (AK94 * AK95) -> 0.2 | AL97: 0.2 | AM97: 0.2 | AN97: 0.2 | AO97: 0.2 | AP97: 0.2 | AQ97: 0.2
C99: Capital allowance rate
D101: General pool
E103: Active | G103: text | AJ103: =AJ$81 = FALSE() -> TRUE | AK103: TRUE | AL103: TRUE | AM103: TRUE | AN103: TRUE | AO103: TRUE | AP103: TRUE | AQ103: TRUE
E104: RIIO | G104: % | AJ104: =Input!AJ314 -> 0.18 | AK104: =Input!AK314 -> 0.18 | AL104: =Input!AL314 -> 0.18 | AM104: =Input!AM314 -> 0.18 | AN104: =Input!AN314 -> 0.18 | AO104: =Input!AO314 -> 0.18 | AP104: =Input!AP314 -> 0.18 | AQ104: =Input!AQ314 -> 0.18
E106: Active | G106: text | AJ106: =AJ$81 -> FALSE | AK106: FALSE | AL106: FALSE | AM106: FALSE | AN106: FALSE | AO106: FALSE | AP106: FALSE | AQ106: FALSE
E107: Tax trigger | G107: % | AJ107: =AJ104 -> 0.18 | AK107: =AK104 -> 0.18 | AL107: 0.18 | AM107: 0.18 | AN107: 0.18 | AO107: 0.18 | AP107: 0.18 | AQ107: 0.18
E109: Applied | G109: % | AJ109: =(AJ103 * AJ104) + (AJ106 * AJ107) -> 0.18 | AK109: 0.18 | AL109: 0.18 | AM109: 0.18 | AN109: 0.18 | AO109: 0.18 | AP109: 0.18 | AQ109: 0.18
D111: Special Rate pool
E113: Active | G113: text | AJ113: =AJ$81 = FALSE() -> TRUE | AK113: TRUE | AL113: TRUE | AM113: TRUE | AN113: TRUE | AO113: TRUE | AP113: TRUE | AQ113: TRUE
E114: RIIO | G114: % | J114: > | AJ114: =Input!AJ315 -> 0.08 | AK114: =Input!AK315 -> 0.08 | AL114: =Input!AL315 -> 0.08 | AM114: =Input!AM315 -> 0.08 | AN114: =Input!AN315 -> 0.08 | AO114: =Input!AO315 -> 0.08 | AP114: =Input!AP315 -> 0.08 | AQ114: =Input!AQ315 -> 0.08
E116: Active | G116: text | AJ116: =AJ$81 -> FALSE | AK116: FALSE | AL116: FALSE | AM116: FALSE | AN116: FALSE | AO116: FALSE | AP116: FALSE | AQ116: FALSE
E117: Tax trigger | G117: % | AJ117: =AJ114 -> 0.08 | AK117: =AK114 -> 0.08 | AL117: 0.08 | AM117: 0.08 | AN117: 0.08 | AO117: 0.08 | AP117: 0.08 | AQ117: 0.08
E119: Applied | G119: % | J119: > | AJ119: =(AJ113 * AJ114) + (AJ116 * AJ117) -> 0.08 | AK119: 0.08 | AL119: 0.08 | AM119: 0.08 | AN119: 0.08 | AO119: 0.08 | AP119: 0.08 | AQ119: 0.08
D121: Deferred revenue writing down allowance rate
E123: Active | G123: text | AJ123: =AJ$81 = FALSE() -> TRUE | AK123: TRUE | AL123: TRUE | AM123: TRUE | AN123: TRUE | AO123: TRUE | AP123: TRUE | AQ123: TRUE
E124: RIIO | G124: % | J124: > | AJ124: =Input!AJ316 -> 0.0222 | AK124: =Input!AK316 -> 0.0222 | AL124: =Input!AL316 -> 0.0222 | AM124: =Input!AM316 -> 0.0222 | AN124: =Input!AN316 -> 0.0222 | AO124: =Input!AO316 -> 0.0222 | AP124: =Input!AP316 -> 0.0222 | AQ124: =Input!AQ316 -> 0.0222
E126: Active | G126: text | AJ126: =AJ$81 -> FALSE | AK126: FALSE | AL126: FALSE | AM126: FALSE | AN126: FALSE | AO126: FALSE | AP126: FALSE | AQ126: FALSE
E127: Tax trigger | G127: % | AJ127: =AJ124 -> 0.0222 | AK127: =AK124 -> 0.0222 | AL127: 0.0222 | AM127: 0.0222 | AN127: 0.0222 | AO127: 0.0222 | AP127: 0.0222 | AQ127: 0.0222
E129: Applied | G129: % | J129: > | AJ129: =(AJ123 * AJ124) + (AJ126 * AJ127) -> 0.0222 | AK129: 0.0222 | AL129: 0.0222 | AM129: 0.0222 | AN129: 0.0222 | AO129: 0.0222 | AP129: 0.0222 | AQ129: 0.0222
C131: B event value
E133: Active | G133: text | AJ133: =AJ$81 -> FALSE | AK133: FALSE | AL133: FALSE | AM133: FALSE | AN133: FALSE | AO133: FALSE | AP133: FALSE | AQ133: FALSE
E134: Tax trigger | G134: £m 12/13 prices | AJ134: 0 | AK134: 0 | AL134: 0 | AM134: 0 | AN134: 0 | AO134: 0 | AP134: 0 | AQ134: 0
E136: Applied | G136: £m 12/13 prices | AJ136: =AJ133 * AJ134 -> 0 | AK136: =AK133 * AK134 -> 0 | AL136: 0 | AM136: 0 | AN136: 0 | AO136: 0 | AP136: 0 | AQ136: 0
B138: End of sheet

Sheet MOD
A1: MOD
B2: =UserInterface!G24 -> WMID | AJ2: Done
E6: Parameter | G6: Units | I6: Constant | AJ6: Annual values
E7: PCFM year ending | I7: =UserInterface!$G$17 -> 2016-03-31 | K7: 1991-03-31 | L7: 1992-03-31 | M7: 1993-03-31 | N7: 1994-03-31 | O7: 1995-03-31 | P7: 1996-03-31 | Q7: 1997-03-31 | R7: 1998-03-31 | S7: 1999-03-31 | T7: 2000-03-31 | U7: 2001-03-31 | V7: 2002-03-31 | W7: 2003-03-31 | X7: 2004-03-31 | Y7: 2005-03-31 | Z7: 2006-03-31 | AA7: 2007-03-31 | AB7: 2008-03-31 | AC7: 2009-03-31 | AD7: 2010-03-31 | AE7: 2011-03-31 | AF7: 2012-03-31 | AG7: 2013-03-31 | AH7: 2014-03-31 | AI7: 2015-03-31 | AJ7: 2016-03-31 | AK7: 2017-03-31 | AL7: 2018-03-31 | AM7: 2019-03-31 | AN7: 2020-03-31 | AO7: 2021-03-31 | AP7: 2022-03-31 | AQ7: 2023-03-31
E9: =UserInterface!E17 -> Year t selected: | G9: =UserInterface!G17 -> 2016-03-31
E11: =Revenue!E67 -> Final Proposals base revenue | AJ11: =Revenue!AJ67 -> 392.9601798 | AK11: =Revenue!AK67 -> 398.95589 | AL11: =Revenue!AL67 -> 403.2815178 | AM11: =Revenue!AM67 -> 412.6241498 | AN11: =Revenue!AN67 -> 423.0888053 | AO11: =Revenue!AO67 -> 427.984576 | AP11: =Revenue!AP67 -> 409.1079531 | AQ11: =Revenue!AQ67 -> 411.1151768
E12: =Revenue!E68 -> MOD | AK12: =Revenue!AK68 -> 0 | AL12: =Revenue!AL68 -> 0 | AM12: =Revenue!AM68 -> 0 | AN12: =Revenue!AN68 -> 0 | AO12: =Revenue!AO68 -> 0 | AP12: =Revenue!AP68 -> 0 | AQ12: =Revenue!AQ68 -> 0
E13: =Revenue!E69 -> Base revenue | AJ13: =Revenue!AJ69 -> 392.9601798 | AK13: =Revenue!AK69 -> 398.95589 | AL13: =Revenue!AL69 -> 403.2815178 | AM13: =Revenue!AM69 -> 412.6241498 | AN13: =Revenue!AN69 -> 423.0888053 | AO13: =Revenue!AO69 -> 427.984576 | AP13: =Revenue!AP69 -> 409.1079531 | AQ13: =Revenue!AQ69 -> 411.1151768

Sheet Input
A1: Input
B2: =UserInterface!G24 -> WMID | AJ2: Done
E6: Parameter | F6: Licence condition | G6: Units | H6: Term | I6: Constant | AJ6: Annual values
E7: PCFM year ending | F7: =Cover!C3 -> LiMo ED C1.93b_WPD_DNO East Mids.xlsm | I7: =UserInterface!$G$17 -> 2016-03-31 | K7: 1991-03-31 | L7: 1992-03-31 | M7: 1993-03-31 | N7: 1994-03-31 | O7: 1995-03-31 | P7: 1996-03-31 | Q7: 1997-03-31 | R7: 1998-03-31 | S7: 1999-03-31 | T7: 2000-03-31 | U7: 2001-03-31 | V7: 2002-03-31 | W7: 2003-03-31 | X7: 2004-03-31 | Y7: 2005-03-31 | Z7: 2006-03-31 | AA7: 2007-03-31 | AB7: 2008-03-31 | AC7: 2009-03-31 | AD7: 2010-03-31 | AE7: 2011-03-31 | AF7: 2012-03-31 | AG7: 2013-03-31 | AH7: 2014-03-31 | AI7: 2015-03-31 | AJ7: 2016-03-31 | AK7: 2017-03-31 | AL7: 2018-03-31 | AM7: 2019-03-31 | AN7: 2020-03-31 | AO7: 2021-03-31 | AP7: 2022-03-31 | AQ7: 2023-03-31
B9: PCFM Variable Values Table
E11: Allowed percentage cost of debt | F11: XX | G11: annual real % | H11: YY | AJ11: =CHOOSE(m_identity,ENWL!AJ11, NPgN!AJ11, NPgY!AJ11, WMID!AJ11, EMID!AJ11, SWALES!AJ11, SWEST!AJ11, LPN!AJ11,SPN!AJ11,EPN!AJ11,SPD!AJ11,SPMW!AJ11,SSEH!AJ11,SSES!AJ11) -> 0.0292 | AK11: =CHOOSE(m_identity,ENWL!AK11, NPgN!AK11, NPgY!AK11, WMID!AK11, EMID!AK11, SWALES!AK11, SWEST!AK11, LPN!AK11,SPN!AK11,EPN!AK11,SPD!AK11,SPMW!AK11,SSEH!AK11,SSES!AK11) -> 0.0292 | AL11: =CHOOSE(m_identity,ENWL!AL11, NPgN!AL11, NPgY!AL11, WMID!AL11, EMID!AL11, SWALES!AL11, SWEST!AL11, LPN!AL11,SPN!AL11,EPN!AL11,SPD!AL11,SPMW!AL11,SSEH!AL11,SSES!AL11) -> 0.0292 | AM11: =CHOOSE(m_identity,ENWL!AM11, NPgN!AM11, NPgY!AM11, WMID!AM11, EMID!AM11, SWALES!AM11, SWEST!AM11, LPN!AM11,SPN!AM11,EPN!AM11,SPD!AM11,SPMW!AM11,SSEH!AM11,SSES!AM11) -> 0.0292 | AN11: =CHOOSE(m_identity,ENWL!AN11, NPgN!AN11, NPgY!AN11, WMID!AN11, EMID!AN11, SWALES!AN11, SWEST!AN11, LPN!AN11,SPN!AN11,EPN!AN11,SPD!AN11,SPMW!AN11,SSEH!AN11,SSES!AN11) -> 0.0292 | AO11: =CHOOSE(m_identity,ENWL!AO11, NPgN!AO11, NPgY!AO11, WMID!AO11, EMID!AO11, SWALES!AO11, SWEST!AO11, LPN!AO11,SPN!AO11,EPN!AO11,SPD!AO11,SPMW!AO11,SSEH!AO11,SSES!AO11) -> 0.0292 | AP11: =CHOOSE(m_identity,ENWL!AP11, NPgN!AP11, NPgY!AP11, WMID!AP11, EMID!AP11, SWALES!AP11, SWEST!AP11, LPN!AP11,SPN!AP11,EPN!AP11,SPD!AP11,SPMW!AP11,SSEH!AP11,SSES!AP11) -> 0.0292 | AQ11: =CHOOSE(m_identity,ENWL!AQ11, NPgN!AQ11, NPgY!AQ11, WMID!AQ11, EMID!AQ11, SWALES!AQ11, SWEST!AQ11, LPN!AQ11,SPN!AQ11,EPN!AQ11,SPD!AQ11,SPMW!AQ11,SSEH!AQ11,SSES!AQ11) -> 0.0292
E12: Actual load related capex | F12: XX | G12: £m 12/13 prices | H12: YY | AJ12: =CHOOSE(m_identity,ENWL!AJ12, NPgN!AJ12, NPgY!AJ12, WMID!AJ12, EMID!AJ12, SWALES!AJ12, SWEST!AJ12, LPN!AJ12,SPN!AJ12,EPN!AJ12,SPD!AJ12,SPMW!AJ12,SSEH!AJ12,SSES!AJ12) -> 0 | AK12: =CHOOSE(m_identity,ENWL!AK12, NPgN!AK12, NPgY!AK12, WMID!AK12, EMID!AK12, SWALES!AK12, SWEST!AK12, LPN!AK12,SPN!AK12,EPN!AK12,SPD!AK12,SPMW!AK12,SSEH!AK12,SSES!AK12) -> 0 | AL12: =CHOOSE(m_identity,ENWL!AL12, NPgN!AL12, NPgY!AL12, WMID!AL12, EMID!AL12, SWALES!AL12, SWEST!AL12, LPN!AL12,SPN!AL12,EPN!AL12,SPD!AL12,SPMW!AL12,SSEH!AL12,SSES!AL12) -> 0 | AM12: =CHOOSE(m_identity,ENWL!AM12, NPgN!AM12, NPgY!AM12, WMID!AM12, EMID!AM12, SWALES!AM12, SWEST!AM12, LPN!AM12,SPN!AM12,EPN!AM12,SPD!AM12,SPMW!AM12,SSEH!AM12,SSES!AM12) -> 0 | AN12: =CHOOSE(m_identity,ENWL!AN12, NPgN!AN12, NPgY!AN12, WMID!AN12, EMID!AN12, SWALES!AN12, SWEST!AN12, LPN!AN12,SPN!AN12,EPN!AN12,SPD!AN12,SPMW!AN12,SSEH!AN12,SSES!AN12) -> 0 | AO12: =CHOOSE(m_identity,ENWL!AO12, NPgN!AO12, NPgY!AO12, WMID!AO12, EMID!AO12, SWALES!AO12, SWEST!AO12, LPN!AO12,SPN!AO12,EPN!AO12,SPD!AO12,SPMW!AO12,SSEH!AO12,SSES!AO12) -> 0 | AP12: =CHOOSE(m_identity,ENWL!AP12, NPgN!AP12, NPgY!AP12, WMID!AP12, EMID!AP12, SWALES!AP12, SWEST!AP12, LPN!AP12,SPN!AP12,EPN!AP12,SPD!AP12,SPMW!AP12,SSEH!AP12,SSES!AP12) -> 0 | AQ12: =CHOOSE(m_identity,ENWL!AQ12, NPgN!AQ12, NPgY!AQ12, WMID!AQ12, EMID!AQ12, SWALES!AQ12, SWEST!AQ12, LPN!AQ12,SPN!AQ12,EPN!AQ12,SPD!AQ12,SPMW!AQ12,SSEH!AQ12,SSES!AQ12) -> 0
E13: Actual non-load related capex - asset replacement | F13: XX | G13: £m 12/13 prices | H13: YY | AJ13: =CHOOSE(m_identity,ENWL!AJ13, NPgN!AJ13, NPgY!AJ13, WMID!AJ13, EMID!AJ13, SWALES!AJ13, SWEST!AJ13, LPN!AJ13,SPN!AJ13,EPN!AJ13,SPD!AJ13,SPMW!AJ13,SSEH!AJ13,SSES!AJ13) -> 0 | AK13: =CHOOSE(m_identity,ENWL!AK13, NPgN!AK13, NPgY!AK13, WMID!AK13, EMID!AK13, SWALES!AK13, SWEST!AK13, LPN!AK13,SPN!AK13,EPN!AK13,SPD!AK13,SPMW!AK13,SSEH!AK13,SSES!AK13) -> 0 | AL13: =CHOOSE(m_identity,ENWL!AL13, NPgN!AL13, NPgY!AL13, WMID!AL13, EMID!AL13, SWALES!AL13, SWEST!AL13, LPN!AL13,SPN!AL13,EPN!AL13,SPD!AL13,SPMW!AL13,SSEH!AL13,SSES!AL13) -> 0 | AM13: =CHOOSE(m_identity,ENWL!AM13, NPgN!AM13, NPgY!AM13, WMID!AM13, EMID!AM13, SWALES!AM13, SWEST!AM13, LPN!AM13,SPN!AM13,EPN!AM13,SPD!AM13,SPMW!AM13,SSEH!AM13,SSES!AM13) -> 0 | AN13: =CHOOSE(m_identity,ENWL!AN13, NPgN!AN13, NPgY!AN13, WMID!AN13, EMID!AN13, SWALES!AN13, SWEST!AN13, LPN!AN13,SPN!AN13,EPN!AN13,SPD!AN13,SPMW!AN13,SSEH!AN13,SSES!AN13) -> 0 | AO13: =CHOOSE(m_identity,ENWL!AO13, NPgN!AO13, NPgY!AO13, WMID!AO13, EMID!AO13, SWALES!AO13, SWEST!AO13, LPN!AO13,SPN!AO13,EPN!AO13,SPD!AO13,SPMW!AO13,SSEH!AO13,SSES!AO13) -> 0 | AP13: =CHOOSE(m_identity,ENWL!AP13, NPgN!AP13, NPgY!AP13, WMID!AP13, EMID!AP13, SWALES!AP13, SWEST!AP13, LPN!AP13,SPN!AP13,EPN!AP13,SPD!AP13,SPMW!AP13,SSEH!AP13,SSES!AP13) -> 0 | AQ13: =CHOOSE(m_identity,ENWL!AQ13, NPgN!AQ13, NPgY!AQ13, WMID!AQ13, EMID!AQ13, SWALES!AQ13, SWEST!AQ13, LPN!AQ13,SPN!AQ13,EPN!AQ13,SPD!AQ13,SPMW!AQ13,SSEH!AQ13,SSES!AQ13) -> 0
E14: Actual non-load related capex - other | F14: XX | G14: £m 12/13 prices | H14: YY | AJ14: =CHOOSE(m_identity,ENWL!AJ14, NPgN!AJ14, NPgY!AJ14, WMID!AJ14, EMID!AJ14, SWALES!AJ14, SWEST!AJ14, LPN!AJ14,SPN!AJ14,EPN!AJ14,SPD!AJ14,SPMW!AJ14,SSEH!AJ14,SSES!AJ14) -> 0 | AK14: =CHOOSE(m_identity,ENWL!AK14, NPgN!AK14, NPgY!AK14, WMID!AK14, EMID!AK14, SWALES!AK14, SWEST!AK14, LPN!AK14,SPN!AK14,EPN!AK14,SPD!AK14,SPMW!AK14,SSEH!AK14,SSES!AK14) -> 0 | AL14: =CHOOSE(m_identity,ENWL!AL14, NPgN!AL14, NPgY!AL14, WMID!AL14, EMID!AL14, SWALES!AL14, SWEST!AL14, LPN!AL14,SPN!AL14,EPN!AL14,SPD!AL14,SPMW!AL14,SSEH!AL14,SSES!AL14) -> 0 | AM14: =CHOOSE(m_identity,ENWL!AM14, NPgN!AM14, NPgY!AM14, WMID!AM14, EMID!AM14, SWALES!AM14, SWEST!AM14, LPN!AM14,SPN!AM14,EPN!AM14,SPD!AM14,SPMW!AM14,SSEH!AM14,SSES!AM14) -> 0 | AN14: =CHOOSE(m_identity,ENWL!AN14, NPgN!AN14, NPgY!AN14, WMID!AN14, EMID!AN14, SWALES!AN14, SWEST!AN14, LPN!AN14,SPN!AN14,EPN!AN14,SPD!AN14,SPMW!AN14,SSEH!AN14,SSES!AN14) -> 0 | AO14: =CHOOSE(m_identity,ENWL!AO14, NPgN!AO14, NPgY!AO14, WMID!AO14, EMID!AO14, SWALES!AO14, SWEST!AO14, LPN!AO14,SPN!AO14,EPN!AO14,SPD!AO14,SPMW!AO14,SSEH!AO14,SSES!AO14) -> 0 | AP14: =CHOOSE(m_identity,ENWL!AP14, NPgN!AP14, NPgY!AP14, WMID!AP14, EMID!AP14, SWALES!AP14, SWEST!AP14, LPN!AP14,SPN!AP14,EPN!AP14,SPD!AP14,SPMW!AP14,SSEH!AP14,SSES!AP14) -> 0 | AQ14: =CHOOSE(m_identity,ENWL!AQ14, NPgN!AQ14, NPgY!AQ14, WMID!AQ14, EMID!AQ14, SWALES!AQ14, SWEST!AQ14, LPN!AQ14,SPN!AQ14,EPN!AQ14,SPD!AQ14,SPMW!AQ14,SSEH!AQ14,SSES!AQ14) -> 0
E15: Actual faults | F15: XX | G15: £m 12/13 prices | H15: YY | AJ15: =CHOOSE(m_identity,ENWL!AJ15, NPgN!AJ15, NPgY!AJ15, WMID!AJ15, EMID!AJ15, SWALES!AJ15, SWEST!AJ15, LPN!AJ15,SPN!AJ15,EPN!AJ15,SPD!AJ15,SPMW!AJ15,SSEH!AJ15,SSES!AJ15) -> 0 | AK15: =CHOOSE(m_identity,ENWL!AK15, NPgN!AK15, NPgY!AK15, WMID!AK15, EMID!AK15, SWALES!AK15, SWEST!AK15, LPN!AK15,SPN!AK15,EPN!AK15,SPD!AK15,SPMW!AK15,SSEH!AK15,SSES!AK15) -> 0 | AL15: =CHOOSE(m_identity,ENWL!AL15, NPgN!AL15, NPgY!AL15, WMID!AL15, EMID!AL15, SWALES!AL15, SWEST!AL15, LPN!AL15,SPN!AL15,EPN!AL15,SPD!AL15,SPMW!AL15,SSEH!AL15,SSES!AL15) -> 0 | AM15: =CHOOSE(m_identity,ENWL!AM15, NPgN!AM15, NPgY!AM15, WMID!AM15, EMID!AM15, SWALES!AM15, SWEST!AM15, LPN!AM15,SPN!AM15,EPN!AM15,SPD!AM15,SPMW!AM15,SSEH!AM15,SSES!AM15) -> 0 | AN15: =CHOOSE(m_identity,ENWL!AN15, NPgN!AN15, NPgY!AN15, WMID!AN15, EMID!AN15, SWALES!AN15, SWEST!AN15, LPN!AN15,SPN!AN15,EPN!AN15,SPD!AN15,SPMW!AN15,SSEH!AN15,SSES!AN15) -> 0 | AO15: =CHOOSE(m_identity,ENWL!AO15, NPgN!AO15, NPgY!AO15, WMID!AO15, EMID!AO15, SWALES!AO15, SWEST!AO15, LPN!AO15,SPN!AO15,EPN!AO15,SPD!AO15,SPMW!AO15,SSEH!AO15,SSES!AO15) -> 0 | AP15: =CHOOSE(m_identity,ENWL!AP15, NPgN!AP15, NPgY!AP15, WMID!AP15, EMID!AP15, SWALES!AP15, SWEST!AP15, LPN!AP15,SPN!AP15,EPN!AP15,SPD!AP15,SPMW!AP15,SSEH!AP15,SSES!AP15) -> 0 | AQ15: =CHOOSE(m_identity,ENWL!AQ15, NPgN!AQ15, NPgY!AQ15, WMID!AQ15, EMID!AQ15, SWALES!AQ15, SWEST!AQ15, LPN!AQ15,SPN!AQ15,EPN!AQ15,SPD!AQ15,SPMW!AQ15,SSEH!AQ15,SSES!AQ15) -> 0
E16: Actual tree cutting | F16: XX | G16: £m 12/13 prices | H16: YY | AJ16: =CHOOSE(m_identity,ENWL!AJ16, NPgN!AJ16, NPgY!AJ16, WMID!AJ16, EMID!AJ16, SWALES!AJ16, SWEST!AJ16, LPN!AJ16,SPN!AJ16,EPN!AJ16,SPD!AJ16,SPMW!AJ16,SSEH!AJ16,SSES!AJ16) -> 0 | AK16: =CHOOSE(m_identity,ENWL!AK16, NPgN!AK16, NPgY!AK16, WMID!AK16, EMID!AK16, SWALES!AK16, SWEST!AK16, LPN!AK16,SPN!AK16,EPN!AK16,SPD!AK16,SPMW!AK16,SSEH!AK16,SSES!AK16) -> 0 | AL16: =CHOOSE(m_identity,ENWL!AL16, NPgN!AL16, NPgY!AL16, WMID!AL16, EMID!AL16, SWALES!AL16, SWEST!AL16, LPN!AL16,SPN!AL16,EPN!AL16,SPD!AL16,SPMW!AL16,SSEH!AL16,SSES!AL16) -> 0 | AM16: =CHOOSE(m_identity,ENWL!AM16, NPgN!AM16, NPgY!AM16, WMID!AM16, EMID!AM16, SWALES!AM16, SWEST!AM16, LPN!AM16,SPN!AM16,EPN!AM16,SPD!AM16,SPMW!AM16,SSEH!AM16,SSES!AM16) -> 0 | AN16: =CHOOSE(m_identity,ENWL!AN16, NPgN!AN16, NPgY!AN16, WMID!AN16, EMID!AN16, SWALES!AN16, SWEST!AN16, LPN!AN16,SPN!AN16,EPN!AN16,SPD!AN16,SPMW!AN16,SSEH!AN16,SSES!AN16) -> 0 | AO16: =CHOOSE(m_identity,ENWL!AO16, NPgN!AO16, NPgY!AO16, WMID!AO16, EMID!AO16, SWALES!AO16, SWEST!AO16, LPN!AO16,SPN!AO16,EPN!AO16,SPD!AO16,SPMW!AO16,SSEH!AO16,SSES!AO16) -> 0 | AP16: =CHOOSE(m_identity,ENWL!AP16, NPgN!AP16, NPgY!AP16, WMID!AP16, EMID!AP16, SWALES!AP16, SWEST!AP16, LPN!AP16,SPN!AP16,EPN!AP16,SPD!AP16,SPMW!AP16,SSEH!AP16,SSES!AP16) -> 0 | AQ16: =CHOOSE(m_identity,ENWL!AQ16, NPgN!AQ16, NPgY!AQ16, WMID!AQ16, EMID!AQ16, SWALES!AQ16, SWEST!AQ16, LPN!AQ16,SPN!AQ16,EPN!AQ16,SPD!AQ16,SPMW!AQ16,SSEH!AQ16,SSES!AQ16) -> 0
E17: Actual controllable opex | F17: XX | G17: £m 12/13 prices | H17: YY | AJ17: =CHOOSE(m_identity,ENWL!AJ17, NPgN!AJ17, NPgY!AJ17, WMID!AJ17, EMID!AJ17, SWALES!AJ17, SWEST!AJ17, LPN!AJ17,SPN!AJ17,EPN!AJ17,SPD!AJ17,SPMW!AJ17,SSEH!AJ17,SSES!AJ17) -> 0 | AK17: =CHOOSE(m_identity,ENWL!AK17, NPgN!AK17, NPgY!AK17, WMID!AK17, EMID!AK17, SWALES!AK17, SWEST!AK17, LPN!AK17,SPN!AK17,EPN!AK17,SPD!AK17,SPMW!AK17,SSEH!AK17,SSES!AK17) -> 0 | AL17: =CHOOSE(m_identity,ENWL!AL17, NPgN!AL17, NPgY!AL17, WMID!AL17, EMID!AL17, SWALES!AL17, SWEST!AL17, LPN!AL17,SPN!AL17,EPN!AL17,SPD!AL17,SPMW!AL17,SSEH!AL17,SSES!AL17) -> 0 | AM17: =CHOOSE(m_identity,ENWL!AM17, NPgN!AM17, NPgY!AM17, WMID!AM17, EMID!AM17, SWALES!AM17, SWEST!AM17, LPN!AM17,SPN!AM17,EPN!AM17,SPD!AM17,SPMW!AM17,SSEH!AM17,SSES!AM17) -> 0 | AN17: =CHOOSE(m_identity,ENWL!AN17, NPgN!AN17, NPgY!AN17, WMID!AN17, EMID!AN17, SWALES!AN17, SWEST!AN17, LPN!AN17,SPN!AN17,EPN!AN17,SPD!AN17,SPMW!AN17,SSEH!AN17,SSES!AN17) -> 0 | AO17: =CHOOSE(m_identity,ENWL!AO17, NPgN!AO17, NPgY!AO17, WMID!AO17, EMID!AO17, SWALES!AO17, SWEST!AO17, LPN!AO17,SPN!AO17,EPN!AO17,SPD!AO17,SPMW!AO17,SSEH!AO17,SSES!AO17) -> 0 | AP17: =CHOOSE(m_identity,ENWL!AP17, NPgN!AP17, NPgY!AP17, WMID!AP17, EMID!AP17, SWALES!AP17, SWEST!AP17, LPN!AP17,SPN!AP17,EPN!AP17,SPD!AP17,SPMW!AP17,SSEH!AP17,SSES!AP17) -> 0 | AQ17: =CHOOSE(m_identity,ENWL!AQ17, NPgN!AQ17, NPgY!AQ17, WMID!AQ17, EMID!AQ17, SWALES!AQ17, SWEST!AQ17, LPN!AQ17,SPN!AQ17,EPN!AQ17,SPD!AQ17,SPMW!AQ17,SSEH!AQ17,SSES!AQ17) -> 0
E18: Allowed uncertain costs (CNI) | F18: XX | G18: £m 12/13 prices | H18: YY | AJ18: =CHOOSE(m_identity,ENWL!AJ18, NPgN!AJ18, NPgY!AJ18, WMID!AJ18, EMID!AJ18, SWALES!AJ18, SWEST!AJ18, LPN!AJ18,SPN!AJ18,EPN!AJ18,SPD!AJ18,SPMW!AJ18,SSEH!AJ18,SSES!AJ18) -> 0 | AK18: =CHOOSE(m_identity,ENWL!AK18, NPgN!AK18, NPgY!AK18, WMID!AK18, EMID!AK18, SWALES!AK18, SWEST!AK18, LPN!AK18,SPN!AK18,EPN!AK18,SPD!AK18,SPMW!AK18,SSEH!AK18,SSES!AK18) -> 0 | AL18: =CHOOSE(m_identity,ENWL!AL18, NPgN!AL18, NPgY!AL18, WMID!AL18, EMID!AL18, SWALES!AL18, SWEST!AL18, LPN!AL18,SPN!AL18,EPN!AL18,SPD!AL18,SPMW!AL18,SSEH!AL18,SSES!AL18) -> 0 | AM18: =CHOOSE(m_identity,ENWL!AM18, NPgN!AM18, NPgY!AM18, WMID!AM18, EMID!AM18, SWALES!AM18, SWEST!AM18, LPN!AM18,SPN!AM18,EPN!AM18,SPD!AM18,SPMW!AM18,SSEH!AM18,SSES!AM18) -> 0 | AN18: =CHOOSE(m_identity,ENWL!AN18, NPgN!AN18, NPgY!AN18, WMID!AN18, EMID!AN18, SWALES!AN18, SWEST!AN18, LPN!AN18,SPN!AN18,EPN!AN18,SPD!AN18,SPMW!AN18,SSEH!AN18,SSES!AN18) -> 0 | AO18: =CHOOSE(m_identity,ENWL!AO18, NPgN!AO18, NPgY!AO18, WMID!AO18, EMID!AO18, SWALES!AO18, SWEST!AO18, LPN!AO18,SPN!AO18,EPN!AO18,SPD!AO18,SPMW!AO18,SSEH!AO18,SSES!AO18) -> 0 | AP18: =CHOOSE(m_identity,ENWL!AP18, NPgN!AP18, NPgY!AP18, WMID!AP18, EMID!AP18, SWALES!AP18, SWEST!AP18, LPN!AP18,SPN!AP18,EPN!AP18,SPD!AP18,SPMW!AP18,SSEH!AP18,SSES!AP18) -> 0 | AQ18: =CHOOSE(m_identity,ENWL!AQ18, NPgN!AQ18, NPgY!AQ18, WMID!AQ18, EMID!AQ18, SWALES!AQ18, SWEST!AQ18, LPN!AQ18,SPN!AQ18,EPN!AQ18,SPD!AQ18,SPMW!AQ18,SSEH!AQ18,SSES!AQ18) -> 0
E19: Allowed uncertain costs (High Value Projects) | F19: XX | G19: £m 12/13 prices | H19: YY | AJ19: =CHOOSE(m_identity,ENWL!AJ19, NPgN!AJ19, NPgY!AJ19, WMID!AJ19, EMID!AJ19, SWALES!AJ19, SWEST!AJ19, LPN!AJ19,SPN!AJ19,EPN!AJ19,SPD!AJ19,SPMW!AJ19,SSEH!AJ19,SSES!AJ19) -> 0 | AK19: =CHOOSE(m_identity,ENWL!AK19, NPgN!AK19, NPgY!AK19, WMID!AK19, EMID!AK19, SWALES!AK19, SWEST!AK19, LPN!AK19,SPN!AK19,EPN!AK19,SPD!AK19,SPMW!AK19,SSEH!AK19,SSES!AK19) -> 0 | AL19: =CHOOSE(m_identity,ENWL!AL19, NPgN!AL19, NPgY!AL19, WMID!AL19, EMID!AL19, SWALES!AL19, SWEST!AL19, LPN!AL19,SPN!AL19,EPN!AL19,SPD!AL19,SPMW!AL19,SSEH!AL19,SSES!AL19) -> 0 | AM19: =CHOOSE(m_identity,ENWL!AM19, NPgN!AM19, NPgY!AM19, WMID!AM19, EMID!AM19, SWALES!AM19, SWEST!AM19, LPN!AM19,SPN!AM19,EPN!AM19,SPD!AM19,SPMW!AM19,SSEH!AM19,SSES!AM19) -> 0 | AN19: =CHOOSE(m_identity,ENWL!AN19, NPgN!AN19, NPgY!AN19, WMID!AN19, EMID!AN19, SWALES!AN19, SWEST!AN19, LPN!AN19,SPN!AN19,EPN!AN19,SPD!AN19,SPMW!AN19,SSEH!AN19,SSES!AN19) -> 0 | AO19: =CHOOSE(m_identity,ENWL!AO19, NPgN!AO19, NPgY!AO19, WMID!AO19, EMID!AO19, SWALES!AO19, SWEST!AO19, LPN!AO19,SPN!AO19,EPN!AO19,SPD!AO19,SPMW!AO19,SSEH!AO19,SSES!AO19) -> 0 | AP19: =CHOOSE(m_identity,ENWL!AP19, NPgN!AP19, NPgY!AP19, WMID!AP19, EMID!AP19, SWALES!AP19, SWEST!AP19, LPN!AP19,SPN!AP19,EPN!AP19,SPD!AP19,SPMW!AP19,SSEH!AP19,SSES!AP19) -> 0 | AQ19: =CHOOSE(m_identity,ENWL!AQ19, NPgN!AQ19, NPgY!AQ19, WMID!AQ19, EMID!AQ19, SWALES!AQ19, SWEST!AQ19, LPN!AQ19,SPN!AQ19,EPN!AQ19,SPD!AQ19,SPMW!AQ19,SSEH!AQ19,SSES!AQ19) -> 0
E20: Allowed uncertain costs (Undergrounding) | F20: XX | G20: £m 12/13 prices | H20: YY | AJ20: =CHOOSE(m_identity,ENWL!AJ20, NPgN!AJ20, NPgY!AJ20, WMID!AJ20, EMID!AJ20, SWALES!AJ20, SWEST!AJ20, LPN!AJ20,SPN!AJ20,EPN!AJ20,SPD!AJ20,SPMW!AJ20,SSEH!AJ20,SSES!AJ20) -> 0.320863282 | AK20: =CHOOSE(m_identity,ENWL!AK20, NPgN!AK20, NPgY!AK20, WMID!AK20, EMID!AK20, SWALES!AK20, SWEST!AK20, LPN!AK20,SPN!AK20,EPN!AK20,SPD!AK20,SPMW!AK20,SSEH!AK20,SSES!AK20) -> 0.3201234782 | AL20: =CHOOSE(m_identity,ENWL!AL20, NPgN!AL20, NPgY!AL20, WMID!AL20, EMID!AL20, SWALES!AL20, SWEST!AL20, LPN!AL20,SPN!AL20,EPN!AL20,SPD!AL20,SPMW!AL20,SSEH!AL20,SSES!AL20) -> 0.3207506198 | AM20: =CHOOSE(m_identity,ENWL!AM20, NPgN!AM20, NPgY!AM20, WMID!AM20, EMID!AM20, SWALES!AM20, SWEST!AM20, LPN!AM20,SPN!AM20,EPN!AM20,SPD!AM20,SPMW!AM20,SSEH!AM20,SSES!AM20) -> 0.3200639505 | AN20: =CHOOSE(m_identity,ENWL!AN20, NPgN!AN20, NPgY!AN20, WMID!AN20, EMID!AN20, SWALES!AN20, SWEST!AN20, LPN!AN20,SPN!AN20,EPN!AN20,SPD!AN20,SPMW!AN20,SSEH!AN20,SSES!AN20) -> 0.3205412446 | AO20: =CHOOSE(m_identity,ENWL!AO20, NPgN!AO20, NPgY!AO20, WMID!AO20, EMID!AO20, SWALES!AO20, SWEST!AO20, LPN!AO20,SPN!AO20,EPN!AO20,SPD!AO20,SPMW!AO20,SSEH!AO20,SSES!AO20) -> 0.3210846656 | AP20: =CHOOSE(m_identity,ENWL!AP20, NPgN!AP20, NPgY!AP20, WMID!AP20, EMID!AP20, SWALES!AP20, SWEST!AP20, LPN!AP20,SPN!AP20,EPN!AP20,SPD!AP20,SPMW!AP20,SSEH!AP20,SSES!AP20) -> 0.3203434811 | AQ20: =CHOOSE(m_identity,ENWL!AQ20, NPgN!AQ20, NPgY!AQ20, WMID!AQ20, EMID!AQ20, SWALES!AQ20, SWEST!AQ20, LPN!AQ20,SPN!AQ20,EPN!AQ20,SPD!AQ20,SPMW!AQ20,SSEH!AQ20,SSES!AQ20) -> 0.3210856157
E21: Allowed uncertain costs (Worst served customers) | F21: XX | G21: £m 12/13 prices | H21: YY | AJ21: =CHOOSE(m_identity,ENWL!AJ21, NPgN!AJ21, NPgY!AJ21, WMID!AJ21, EMID!AJ21, SWALES!AJ21, SWEST!AJ21, LPN!AJ21,SPN!AJ21,EPN!AJ21,SPD!AJ21,SPMW!AJ21,SSEH!AJ21,SSES!AJ21) -> 0 | AK21: =CHOOSE(m_identity,ENWL!AK21, NPgN!AK21, NPgY!AK21, WMID!AK21, EMID!AK21, SWALES!AK21, SWEST!AK21, LPN!AK21,SPN!AK21,EPN!AK21,SPD!AK21,SPMW!AK21,SSEH!AK21,SSES!AK21) -> 0.5109417222 | AL21: =CHOOSE(m_identity,ENWL!AL21, NPgN!AL21, NPgY!AL21, WMID!AL21, EMID!AL21, SWALES!AL21, SWEST!AL21, LPN!AL21,SPN!AL21,EPN!AL21,SPD!AL21,SPMW!AL21,SSEH!AL21,SSES!AL21) -> 0.5102133506 | AM21: =CHOOSE(m_identity,ENWL!AM21, NPgN!AM21, NPgY!AM21, WMID!AM21, EMID!AM21, SWALES!AM21, SWEST!AM21, LPN!AM21,SPN!AM21,EPN!AM21,SPD!AM21,SPMW!AM21,SSEH!AM21,SSES!AM21) -> 0 | AN21: =CHOOSE(m_identity,ENWL!AN21, NPgN!AN21, NPgY!AN21, WMID!AN21, EMID!AN21, SWALES!AN21, SWEST!AN21, LPN!AN21,SPN!AN21,EPN!AN21,SPD!AN21,SPMW!AN21,SSEH!AN21,SSES!AN21) -> 0 | AO21: =CHOOSE(m_identity,ENWL!AO21, NPgN!AO21, NPgY!AO21, WMID!AO21, EMID!AO21, SWALES!AO21, SWEST!AO21, LPN!AO21,SPN!AO21,EPN!AO21,SPD!AO21,SPMW!AO21,SSEH!AO21,SSES!AO21) -> 0 | AP21: =CHOOSE(m_identity,ENWL!AP21, NPgN!AP21, NPgY!AP21, WMID!AP21, EMID!AP21, SWALES!AP21, SWEST!AP21, LPN!AP21,SPN!AP21,EPN!AP21,SPD!AP21,SPMW!AP21,SSEH!AP21,SSES!AP21) -> 0 | AQ21: =CHOOSE(m_identity,ENWL!AQ21, NPgN!AQ21, NPgY!AQ21, WMID!AQ21, EMID!AQ21, SWALES!AQ21, SWEST!AQ21, LPN!AQ21,SPN!AQ21,EPN!AQ21,SPD!AQ21,SPMW!AQ21,SSEH!AQ21,SSES!AQ21) -> 0
E22: Allowed uncertain costs (Smart metering roll out costs) | F22: XX | G22: £m 12/13 prices | H22: YY | AJ22: =CHOOSE(m_identity,ENWL!AJ22, NPgN!AJ22, NPgY!AJ22, WMID!AJ22, EMID!AJ22, SWALES!AJ22, SWEST!AJ22, LPN!AJ22,SPN!AJ22,EPN!AJ22,SPD!AJ22,SPMW!AJ22,SSEH!AJ22,SSES!AJ22) -> 0.05248632041 | AK22: =CHOOSE(m_identity,ENWL!AK22, NPgN!AK22, NPgY!AK22, WMID!AK22, EMID!AK22, SWALES!AK22, SWEST!AK22, LPN!AK22,SPN!AK22,EPN!AK22,SPD!AK22,SPMW!AK22,SSEH!AK22,SSES!AK22) -> 0.05185836066 | AL22: =CHOOSE(m_identity,ENWL!AL22, NPgN!AL22, NPgY!AL22, WMID!AL22, EMID!AL22, SWALES!AL22, SWEST!AL22, LPN!AL22,SPN!AL22,EPN!AL22,SPD!AL22,SPMW!AL22,SSEH!AL22,SSES!AL22) -> 0.05056522318 | AM22: =CHOOSE(m_identity,ENWL!AM22, NPgN!AM22, NPgY!AM22, WMID!AM22, EMID!AM22, SWALES!AM22, SWEST!AM22, LPN!AM22,SPN!AM22,EPN!AM22,SPD!AM22,SPMW!AM22,SSEH!AM22,SSES!AM22) -> 0.04590256723 | AN22: =CHOOSE(m_identity,ENWL!AN22, NPgN!AN22, NPgY!AN22, WMID!AN22, EMID!AN22, SWALES!AN22, SWEST!AN22, LPN!AN22,SPN!AN22,EPN!AN22,SPD!AN22,SPMW!AN22,SSEH!AN22,SSES!AN22) -> 0.04200092604 | AO22: =CHOOSE(m_identity,ENWL!AO22, NPgN!AO22, NPgY!AO22, WMID!AO22, EMID!AO22, SWALES!AO22, SWEST!AO22, LPN!AO22,SPN!AO22,EPN!AO22,SPD!AO22,SPMW!AO22,SSEH!AO22,SSES!AO22) -> 0.04373033078 | AP22: =CHOOSE(m_identity,ENWL!AP22, NPgN!AP22, NPgY!AP22, WMID!AP22, EMID!AP22, SWALES!AP22, SWEST!AP22, LPN!AP22,SPN!AP22,EPN!AP22,SPD!AP22,SPMW!AP22,SSEH!AP22,SSES!AP22) -> 0 | AQ22: =CHOOSE(m_identity,ENWL!AQ22, NPgN!AQ22, NPgY!AQ22, WMID!AQ22, EMID!AQ22, SWALES!AQ22, SWEST!AQ22, LPN!AQ22,SPN!AQ22,EPN!AQ22,SPD!AQ22,SPMW!AQ22,SSEH!AQ22,SSES!AQ22) -> 0
E23: Allowed uncertain costs (Specified street work costs) | F23: XX | G23: £m 12/13 prices | H23: YY | AJ23: =CHOOSE(m_identity,ENWL!AJ23, NPgN!AJ23, NPgY!AJ23, WMID!AJ23, EMID!AJ23, SWALES!AJ23, SWEST!AJ23, LPN!AJ23,SPN!AJ23,EPN!AJ23,SPD!AJ23,SPMW!AJ23,SSEH!AJ23,SSES!AJ23) -> 0.1618825685 | AK23: =CHOOSE(m_identity,ENWL!AK23, NPgN!AK23, NPgY!AK23, WMID!AK23, EMID!AK23, SWALES!AK23, SWEST!AK23, LPN!AK23,SPN!AK23,EPN!AK23,SPD!AK23,SPMW!AK23,SSEH!AK23,SSES!AK23) -> 0.1683944383 | AL23: =CHOOSE(m_identity,ENWL!AL23, NPgN!AL23, NPgY!AL23, WMID!AL23, EMID!AL23, SWALES!AL23, SWEST!AL23, LPN!AL23,SPN!AL23,EPN!AL23,SPD!AL23,SPMW!AL23,SSEH!AL23,SSES!AL23) -> 0.1699728898 | AM23: =CHOOSE(m_identity,ENWL!AM23, NPgN!AM23, NPgY!AM23, WMID!AM23, EMID!AM23, SWALES!AM23, SWEST!AM23, LPN!AM23,SPN!AM23,EPN!AM23,SPD!AM23,SPMW!AM23,SSEH!AM23,SSES!AM23) -> 0.1724491816 | AN23: =CHOOSE(m_identity,ENWL!AN23, NPgN!AN23, NPgY!AN23, WMID!AN23, EMID!AN23, SWALES!AN23, SWEST!AN23, LPN!AN23,SPN!AN23,EPN!AN23,SPD!AN23,SPMW!AN23,SSEH!AN23,SSES!AN23) -> 0.1749503652 | AO23: =CHOOSE(m_identity,ENWL!AO23, NPgN!AO23, NPgY!AO23, WMID!AO23, EMID!AO23, SWALES!AO23, SWEST!AO23, LPN!AO23,SPN!AO23,EPN!AO23,SPD!AO23,SPMW!AO23,SSEH!AO23,SSES!AO23) -> 0.1775396876 | AP23: =CHOOSE(m_identity,ENWL!AP23, NPgN!AP23, NPgY!AP23, WMID!AP23, EMID!AP23, SWALES!AP23, SWEST!AP23, LPN!AP23,SPN!AP23,EPN!AP23,SPD!AP23,SPMW!AP23,SSEH!AP23,SSES!AP23) -> 0.1801276856 | AQ23: =CHOOSE(m_identity,ENWL!AQ23, NPgN!AQ23, NPgY!AQ23, WMID!AQ23, EMID!AQ23, SWALES!AQ23, SWEST!AQ23, LPN!AQ23,SPN!AQ23,EPN!AQ23,SPD!AQ23,SPMW!AQ23,SSEH!AQ23,SSES!AQ23) -> 0.182783479
E24: Allowed uncertain costs (Load related re-operner) | F24: XX | G24: £m 12/13 prices | H24: YY | AJ24: =CHOOSE(m_identity,ENWL!AJ24, NPgN!AJ24, NPgY!AJ24, WMID!AJ24, EMID!AJ24, SWALES!AJ24, SWEST!AJ24, LPN!AJ24,SPN!AJ24,EPN!AJ24,SPD!AJ24,SPMW!AJ24,SSEH!AJ24,SSES!AJ24) -> 0 | AK24: =CHOOSE(m_identity,ENWL!AK24, NPgN!AK24, NPgY!AK24, WMID!AK24, EMID!AK24, SWALES!AK24, SWEST!AK24, LPN!AK24,SPN!AK24,EPN!AK24,SPD!AK24,SPMW!AK24,SSEH!AK24,SSES!AK24) -> 0 | AL24: =CHOOSE(m_identity,ENWL!AL24, NPgN!AL24, NPgY!AL24, WMID!AL24, EMID!AL24, SWALES!AL24, SWEST!AL24, LPN!AL24,SPN!AL24,EPN!AL24,SPD!AL24,SPMW!AL24,SSEH!AL24,SSES!AL24) -> 0 | AM24: =CHOOSE(m_identity,ENWL!AM24, NPgN!AM24, NPgY!AM24, WMID!AM24, EMID!AM24, SWALES!AM24, SWEST!AM24, LPN!AM24,SPN!AM24,EPN!AM24,SPD!AM24,SPMW!AM24,SSEH!AM24,SSES!AM24) -> 0 | AN24: =CHOOSE(m_identity,ENWL!AN24, NPgN!AN24, NPgY!AN24, WMID!AN24, EMID!AN24, SWALES!AN24, SWEST!AN24, LPN!AN24,SPN!AN24,EPN!AN24,SPD!AN24,SPMW!AN24,SSEH!AN24,SSES!AN24) -> 0 | AO24: =CHOOSE(m_identity,ENWL!AO24, NPgN!AO24, NPgY!AO24, WMID!AO24, EMID!AO24, SWALES!AO24, SWEST!AO24, LPN!AO24,SPN!AO24,EPN!AO24,SPD!AO24,SPMW!AO24,SSEH!AO24,SSES!AO24) -> 0 | AP24: =CHOOSE(m_identity,ENWL!AP24, NPgN!AP24, NPgY!AP24, WMID!AP24, EMID!AP24, SWALES!AP24, SWEST!AP24, LPN!AP24,SPN!AP24,EPN!AP24,SPD!AP24,SPMW!AP24,SSEH!AP24,SSES!AP24) -> 0 | AQ24: =CHOOSE(m_identity,ENWL!AQ24, NPgN!AQ24, NPgY!AQ24, WMID!AQ24, EMID!AQ24, SWALES!AQ24, SWEST!AQ24, LPN!AQ24,SPN!AQ24,EPN!AQ24,SPD!AQ24,SPMW!AQ24,SSEH!AQ24,SSES!AQ24) -> 0
E25: Spare 1 | F25: XX | G25: £m 12/13 prices | H25: YY | AJ25: =CHOOSE(m_identity,ENWL!AJ25, NPgN!AJ25, NPgY!AJ25, WMID!AJ25, EMID!AJ25, SWALES!AJ25, SWEST!AJ25, LPN!AJ25,SPN!AJ25,EPN!AJ25,SPD!AJ25,SPMW!AJ25,SSEH!AJ25,SSES!AJ25) -> 0 | AK25: =CHOOSE(m_identity,ENWL!AK25, NPgN!AK25, NPgY!AK25, WMID!AK25, EMID!AK25, SWALES!AK25, SWEST!AK25, LPN!AK25,SPN!AK25,EPN!AK25,SPD!AK25,SPMW!AK25,SSEH!AK25,SSES!AK25) -> 0 | AL25: =CHOOSE(m_identity,ENWL!AL25, NPgN!AL25, NPgY!AL25, WMID!AL25, EMID!AL25, SWALES!AL25, SWEST!AL25, LPN!AL25,SPN!AL25,EPN!AL25,SPD!AL25,SPMW!AL25,SSEH!AL25,SSES!AL25) -> 0 | AM25: =CHOOSE(m_identity,ENWL!AM25, NPgN!AM25, NPgY!AM25, WMID!AM25, EMID!AM25, SWALES!AM25, SWEST!AM25, LPN!AM25,SPN!AM25,EPN!AM25,SPD!AM25,SPMW!AM25,SSEH!AM25,SSES!AM25) -> 0 | AN25: =CHOOSE(m_identity,ENWL!AN25, NPgN!AN25, NPgY!AN25, WMID!AN25, EMID!AN25, SWALES!AN25, SWEST!AN25, LPN!AN25,SPN!AN25,EPN!AN25,SPD!AN25,SPMW!AN25,SSEH!AN25,SSES!AN25) -> 0 | AO25: =CHOOSE(m_identity,ENWL!AO25, NPgN!AO25, NPgY!AO25, WMID!AO25, EMID!AO25, SWALES!AO25, SWEST!AO25, LPN!AO25,SPN!AO25,EPN!AO25,SPD!AO25,SPMW!AO25,SSEH!AO25,SSES!AO25) -> 0 | AP25: =CHOOSE(m_identity,ENWL!AP25, NPgN!AP25, NPgY!AP25, WMID!AP25, EMID!AP25, SWALES!AP25, SWEST!AP25, LPN!AP25,SPN!AP25,EPN!AP25,SPD!AP25,SPMW!AP25,SSEH!AP25,SSES!AP25) -> 0 | AQ25: =CHOOSE(m_identity,ENWL!AQ25, NPgN!AQ25, NPgY!AQ25, WMID!AQ25, EMID!AQ25, SWALES!AQ25, SWEST!AQ25, LPN!AQ25,SPN!AQ25,EPN!AQ25,SPD!AQ25,SPMW!AQ25,SSEH!AQ25,SSES!AQ25) -> 0
E26: Spare 2 | F26: XX | G26: £m 12/13 prices | H26: YY | AJ26: =CHOOSE(m_identity,ENWL!AJ26, NPgN!AJ26, NPgY!AJ26, WMID!AJ26, EMID!AJ26, SWALES!AJ26, SWEST!AJ26, LPN!AJ26,SPN!AJ26,EPN!AJ26,SPD!AJ26,SPMW!AJ26,SSEH!AJ26,SSES!AJ26) -> 0 | AK26: =CHOOSE(m_identity,ENWL!AK26, NPgN!AK26, NPgY!AK26, WMID!AK26, EMID!AK26, SWALES!AK26, SWEST!AK26, LPN!AK26,SPN!AK26,EPN!AK26,SPD!AK26,SPMW!AK26,SSEH!AK26,SSES!AK26) -> 0 | AL26: =CHOOSE(m_identity,ENWL!AL26, NPgN!AL26, NPgY!AL26, WMID!AL26, EMID!AL26, SWALES!AL26, SWEST!AL26, LPN!AL26,SPN!AL26,EPN!AL26,SPD!AL26,SPMW!AL26,SSEH!AL26,SSES!AL26) -> 0 | AM26: =CHOOSE(m_identity,ENWL!AM26, NPgN!AM26, NPgY!AM26, WMID!AM26, EMID!AM26, SWALES!AM26, SWEST!AM26, LPN!AM26,SPN!AM26,EPN!AM26,SPD!AM26,SPMW!AM26,SSEH!AM26,SSES!AM26) -> 0 | AN26: =CHOOSE(m_identity,ENWL!AN26, NPgN!AN26, NPgY!AN26, WMID!AN26, EMID!AN26, SWALES!AN26, SWEST!AN26, LPN!AN26,SPN!AN26,EPN!AN26,SPD!AN26,SPMW!AN26,SSEH!AN26,SSES!AN26) -> 0 | AO26: =CHOOSE(m_identity,ENWL!AO26, NPgN!AO26, NPgY!AO26, WMID!AO26, EMID!AO26, SWALES!AO26, SWEST!AO26, LPN!AO26,SPN!AO26,EPN!AO26,SPD!AO26,SPMW!AO26,SSEH!AO26,SSES!AO26) -> 0 | AP26: =CHOOSE(m_identity,ENWL!AP26, NPgN!AP26, NPgY!AP26, WMID!AP26, EMID!AP26, SWALES!AP26, SWEST!AP26, LPN!AP26,SPN!AP26,EPN!AP26,SPD!AP26,SPMW!AP26,SSEH!AP26,SSES!AP26) -> 0 | AQ26: =CHOOSE(m_identity,ENWL!AQ26, NPgN!AQ26, NPgY!AQ26, WMID!AQ26, EMID!AQ26, SWALES!AQ26, SWEST!AQ26, LPN!AQ26,SPN!AQ26,EPN!AQ26,SPD!AQ26,SPMW!AQ26,SSEH!AQ26,SSES!AQ26) -> 0
E27: Spare 3 | F27: XX | G27: £m 12/13 prices | H27: YY | AJ27: =CHOOSE(m_identity,ENWL!AJ27, NPgN!AJ27, NPgY!AJ27, WMID!AJ27, EMID!AJ27, SWALES!AJ27, SWEST!AJ27, LPN!AJ27,SPN!AJ27,EPN!AJ27,SPD!AJ27,SPMW!AJ27,SSEH!AJ27,SSES!AJ27) -> 0 | AK27: =CHOOSE(m_identity,ENWL!AK27, NPgN!AK27, NPgY!AK27, WMID!AK27, EMID!AK27, SWALES!AK27, SWEST!AK27, LPN!AK27,SPN!AK27,EPN!AK27,SPD!AK27,SPMW!AK27,SSEH!AK27,SSES!AK27) -> 0 | AL27: =CHOOSE(m_identity,ENWL!AL27, NPgN!AL27, NPgY!AL27, WMID!AL27, EMID!AL27, SWALES!AL27, SWEST!AL27, LPN!AL27,SPN!AL27,EPN!AL27,SPD!AL27,SPMW!AL27,SSEH!AL27,SSES!AL27) -> 0 | AM27: =CHOOSE(m_identity,ENWL!AM27, NPgN!AM27, NPgY!AM27, WMID!AM27, EMID!AM27, SWALES!AM27, SWEST!AM27, LPN!AM27,SPN!AM27,EPN!AM27,SPD!AM27,SPMW!AM27,SSEH!AM27,SSES!AM27) -> 0 | AN27: =CHOOSE(m_identity,ENWL!AN27, NPgN!AN27, NPgY!AN27, WMID!AN27, EMID!AN27, SWALES!AN27, SWEST!AN27, LPN!AN27,SPN!AN27,EPN!AN27,SPD!AN27,SPMW!AN27,SSEH!AN27,SSES!AN27) -> 0 | AO27: =CHOOSE(m_identity,ENWL!AO27, NPgN!AO27, NPgY!AO27, WMID!AO27, EMID!AO27, SWALES!AO27, SWEST!AO27, LPN!AO27,SPN!AO27,EPN!AO27,SPD!AO27,SPMW!AO27,SSEH!AO27,SSES!AO27) -> 0 | AP27: =CHOOSE(m_identity,ENWL!AP27, NPgN!AP27, NPgY!AP27, WMID!AP27, EMID!AP27, SWALES!AP27, SWEST!AP27, LPN!AP27,SPN!AP27,EPN!AP27,SPD!AP27,SPMW!AP27,SSEH!AP27,SSES!AP27) -> 0 | AQ27: =CHOOSE(m_identity,ENWL!AQ27, NPgN!AQ27, NPgY!AQ27, WMID!AQ27, EMID!AQ27, SWALES!AQ27, SWEST!AQ27, LPN!AQ27,SPN!AQ27,EPN!AQ27,SPD!AQ27,SPMW!AQ27,SSEH!AQ27,SSES!AQ27) -> 0
E28: Allowed innovation roll-out mechanism | F28: XX | G28: £m 12/13 prices | H28: YY | AJ28: =CHOOSE(m_identity,ENWL!AJ28, NPgN!AJ28, NPgY!AJ28, WMID!AJ28, EMID!AJ28, SWALES!AJ28, SWEST!AJ28, LPN!AJ28,SPN!AJ28,EPN!AJ28,SPD!AJ28,SPMW!AJ28,SSEH!AJ28,SSES!AJ28) -> 0 | AK28: =CHOOSE(m_identity,ENWL!AK28, NPgN!AK28, NPgY!AK28, WMID!AK28, EMID!AK28, SWALES!AK28, SWEST!AK28, LPN!AK28,SPN!AK28,EPN!AK28,SPD!AK28,SPMW!AK28,SSEH!AK28,SSES!AK28) -> 0 | AL28: =CHOOSE(m_identity,ENWL!AL28, NPgN!AL28, NPgY!AL28, WMID!AL28, EMID!AL28, SWALES!AL28, SWEST!AL28, LPN!AL28,SPN!AL28,EPN!AL28,SPD!AL28,SPMW!AL28,SSEH!AL28,SSES!AL28) -> 0 | AM28: =CHOOSE(m_identity,ENWL!AM28, NPgN!AM28, NPgY!AM28, WMID!AM28, EMID!AM28, SWALES!AM28, SWEST!AM28, LPN!AM28,SPN!AM28,EPN!AM28,SPD!AM28,SPMW!AM28,SSEH!AM28,SSES!AM28) -> 0 | AN28: =CHOOSE(m_identity,ENWL!AN28, NPgN!AN28, NPgY!AN28, WMID!AN28, EMID!AN28, SWALES!AN28, SWEST!AN28, LPN!AN28,SPN!AN28,EPN!AN28,SPD!AN28,SPMW!AN28,SSEH!AN28,SSES!AN28) -> 0 | AO28: =CHOOSE(m_identity,ENWL!AO28, NPgN!AO28, NPgY!AO28, WMID!AO28, EMID!AO28, SWALES!AO28, SWEST!AO28, LPN!AO28,SPN!AO28,EPN!AO28,SPD!AO28,SPMW!AO28,SSEH!AO28,SSES!AO28) -> 0 | AP28: =CHOOSE(m_identity,ENWL!AP28, NPgN!AP28, NPgY!AP28, WMID!AP28, EMID!AP28, SWALES!AP28, SWEST!AP28, LPN!AP28,SPN!AP28,EPN!AP28,SPD!AP28,SPMW!AP28,SSEH!AP28,SSES!AP28) -> 0 | AQ28: =CHOOSE(m_identity,ENWL!AQ28, NPgN!AQ28, NPgY!AQ28, WMID!AQ28, EMID!AQ28, SWALES!AQ28, SWEST!AQ28, LPN!AQ28,SPN!AQ28,EPN!AQ28,SPD!AQ28,SPMW!AQ28,SSEH!AQ28,SSES!AQ28) -> 0
E29: Exit Charges | F29: XX | G29: £m 12/13 prices | H29: YY | AJ29: =CHOOSE(m_identity,ENWL!AJ29, NPgN!AJ29, NPgY!AJ29, WMID!AJ29, EMID!AJ29, SWALES!AJ29, SWEST!AJ29, LPN!AJ29,SPN!AJ29,EPN!AJ29,SPD!AJ29,SPMW!AJ29,SSEH!AJ29,SSES!AJ29) -> 12.7409472 | AK29: =CHOOSE(m_identity,ENWL!AK29, NPgN!AK29, NPgY!AK29, WMID!AK29, EMID!AK29, SWALES!AK29, SWEST!AK29, LPN!AK29,SPN!AK29,EPN!AK29,SPD!AK29,SPMW!AK29,SSEH!AK29,SSES!AK29) -> 13.01350398 | AL29: =CHOOSE(m_identity,ENWL!AL29, NPgN!AL29, NPgY!AL29, WMID!AL29, EMID!AL29, SWALES!AL29, SWEST!AL29, LPN!AL29,SPN!AL29,EPN!AL29,SPD!AL29,SPMW!AL29,SSEH!AL29,SSES!AL29) -> 13.1543792 | AM29: =CHOOSE(m_identity,ENWL!AM29, NPgN!AM29, NPgY!AM29, WMID!AM29, EMID!AM29, SWALES!AM29, SWEST!AM29, LPN!AM29,SPN!AM29,EPN!AM29,SPD!AM29,SPMW!AM29,SSEH!AM29,SSES!AM29) -> 13.1740952 | AN29: =CHOOSE(m_identity,ENWL!AN29, NPgN!AN29, NPgY!AN29, WMID!AN29, EMID!AN29, SWALES!AN29, SWEST!AN29, LPN!AN29,SPN!AN29,EPN!AN29,SPD!AN29,SPMW!AN29,SSEH!AN29,SSES!AN29) -> 13.5480952 | AO29: =CHOOSE(m_identity,ENWL!AO29, NPgN!AO29, NPgY!AO29, WMID!AO29, EMID!AO29, SWALES!AO29, SWEST!AO29, LPN!AO29,SPN!AO29,EPN!AO29,SPD!AO29,SPMW!AO29,SSEH!AO29,SSES!AO29) -> 14.1222952 | AP29: =CHOOSE(m_identity,ENWL!AP29, NPgN!AP29, NPgY!AP29, WMID!AP29, EMID!AP29, SWALES!AP29, SWEST!AP29, LPN!AP29,SPN!AP29,EPN!AP29,SPD!AP29,SPMW!AP29,SSEH!AP29,SSES!AP29) -> 14.1222952 | AQ29: =CHOOSE(m_identity,ENWL!AQ29, NPgN!AQ29, NPgY!AQ29, WMID!AQ29, EMID!AQ29, SWALES!AQ29, SWEST!AQ29, LPN!AQ29,SPN!AQ29,EPN!AQ29,SPD!AQ29,SPMW!AQ29,SSEH!AQ29,SSES!AQ29) -> 14.1222952
E30: Pension scheme established deficit revenue allowances | F30: XX | G30: £m 12/13 prices | H30: YY | AJ30: =CHOOSE(m_identity,ENWL!AJ30, NPgN!AJ30, NPgY!AJ30, WMID!AJ30, EMID!AJ30, SWALES!AJ30, SWEST!AJ30, LPN!AJ30,SPN!AJ30,EPN!AJ30,SPD!AJ30,SPMW!AJ30,SSEH!AJ30,SSES!AJ30) -> 23.6809903 | AK30: =CHOOSE(m_identity,ENWL!AK30, NPgN!AK30, NPgY!AK30, WMID!AK30, EMID!AK30, SWALES!AK30, SWEST!AK30, LPN!AK30,SPN!AK30,EPN!AK30,SPD!AK30,SPMW!AK30,SSEH!AK30,SSES!AK30) -> 23.6809903 | AL30: =CHOOSE(m_identity,ENWL!AL30, NPgN!AL30, NPgY!AL30, WMID!AL30, EMID!AL30, SWALES!AL30, SWEST!AL30, LPN!AL30,SPN!AL30,EPN!AL30,SPD!AL30,SPMW!AL30,SSEH!AL30,SSES!AL30) -> 23.6809903 | AM30: =CHOOSE(m_identity,ENWL!AM30, NPgN!AM30, NPgY!AM30, WMID!AM30, EMID!AM30, SWALES!AM30, SWEST!AM30, LPN!AM30,SPN!AM30,EPN!AM30,SPD!AM30,SPMW!AM30,SSEH!AM30,SSES!AM30) -> 23.6809903 | AN30: =CHOOSE(m_identity,ENWL!AN30, NPgN!AN30, NPgY!AN30, WMID!AN30, EMID!AN30, SWALES!AN30, SWEST!AN30, LPN!AN30,SPN!AN30,EPN!AN30,SPD!AN30,SPMW!AN30,SSEH!AN30,SSES!AN30) -> 23.6809903 | AO30: =CHOOSE(m_identity,ENWL!AO30, NPgN!AO30, NPgY!AO30, WMID!AO30, EMID!AO30, SWALES!AO30, SWEST!AO30, LPN!AO30,SPN!AO30,EPN!AO30,SPD!AO30,SPMW!AO30,SSEH!AO30,SSES!AO30) -> 23.6809903 | AP30: =CHOOSE(m_identity,ENWL!AP30, NPgN!AP30, NPgY!AP30, WMID!AP30, EMID!AP30, SWALES!AP30, SWEST!AP30, LPN!AP30,SPN!AP30,EPN!AP30,SPD!AP30,SPMW!AP30,SSEH!AP30,SSES!AP30) -> 23.6809903 | AQ30: =CHOOSE(m_identity,ENWL!AQ30, NPgN!AQ30, NPgY!AQ30, WMID!AQ30, EMID!AQ30, SWALES!AQ30, SWEST!AQ30, LPN!AQ30,SPN!AQ30,EPN!AQ30,SPD!AQ30,SPMW!AQ30,SSEH!AQ30,SSES!AQ30) -> 23.6809903
E31: Legacy price control allowed revenue adjustment | F31: XX | G31: £m 12/13 prices | H31: YY | AJ31: =CHOOSE(m_identity,ENWL!AJ31, NPgN!AJ31, NPgY!AJ31, WMID!AJ31, EMID!AJ31, SWALES!AJ31, SWEST!AJ31, LPN!AJ31,SPN!AJ31,EPN!AJ31,SPD!AJ31,SPMW!AJ31,SSEH!AJ31,SSES!AJ31) -> 0
E32: Legacy price control RAV additions adjustment | F32: XX | G32: £m 12/13 prices | H32: YY | AH32: =CHOOSE(m_identity,ENWL!AH32, NPgN!AH32, NPgY!AH32, WMID!AH32, EMID!AH32, SWALES!AH32, SWEST!AH32, LPN!AH32,SPN!AH32,EPN!AH32,SPD!AH32,SPMW!AH32,SSEH!AH32,SSES!AH32) -> 8.528433736 | AI32: =CHOOSE(m_identity,ENWL!AI32, NPgN!AI32, NPgY!AI32, WMID!AI32, EMID!AI32, SWALES!AI32, SWEST!AI32, LPN!AI32,SPN!AI32,EPN!AI32,SPD!AI32,SPMW!AI32,SSEH!AI32,SSES!AI32) -> -6.733778275
E33: Tax liability allowance adjustments - gearing/interest costs | F33: XX | G33: £m nominal | H33: YY | AJ33: =CHOOSE(m_identity,ENWL!AJ33, NPgN!AJ33, NPgY!AJ33, WMID!AJ33, EMID!AJ33, SWALES!AJ33, SWEST!AJ33, LPN!AJ33,SPN!AJ33,EPN!AJ33,SPD!AJ33,SPMW!AJ33,SSEH!AJ33,SSES!AJ33) -> 0 | AK33: =CHOOSE(m_identity,ENWL!AK33, NPgN!AK33, NPgY!AK33, WMID!AK33, EMID!AK33, SWALES!AK33, SWEST!AK33, LPN!AK33,SPN!AK33,EPN!AK33,SPD!AK33,SPMW!AK33,SSEH!AK33,SSES!AK33) -> 0 | AL33: =CHOOSE(m_identity,ENWL!AL33, NPgN!AL33, NPgY!AL33, WMID!AL33, EMID!AL33, SWALES!AL33, SWEST!AL33, LPN!AL33,SPN!AL33,EPN!AL33,SPD!AL33,SPMW!AL33,SSEH!AL33,SSES!AL33) -> 0 | AM33: =CHOOSE(m_identity,ENWL!AM33, NPgN!AM33, NPgY!AM33, WMID!AM33, EMID!AM33, SWALES!AM33, SWEST!AM33, LPN!AM33,SPN!AM33,EPN!AM33,SPD!AM33,SPMW!AM33,SSEH!AM33,SSES!AM33) -> 0 | AN33: =CHOOSE(m_identity,ENWL!AN33, NPgN!AN33, NPgY!AN33, WMID!AN33, EMID!AN33, SWALES!AN33, SWEST!AN33, LPN!AN33,SPN!AN33,EPN!AN33,SPD!AN33,SPMW!AN33,SSEH!AN33,SSES!AN33) -> 0 | AO33: =CHOOSE(m_identity,ENWL!AO33, NPgN!AO33, NPgY!AO33, WMID!AO33, EMID!AO33, SWALES!AO33, SWEST!AO33, LPN!AO33,SPN!AO33,EPN!AO33,SPD!AO33,SPMW!AO33,SSEH!AO33,SSES!AO33) -> 0 | AP33: =CHOOSE(m_identity,ENWL!AP33, NPgN!AP33, NPgY!AP33, WMID!AP33, EMID!AP33, SWALES!AP33, SWEST!AP33, LPN!AP33,SPN!AP33,EPN!AP33,SPD!AP33,SPMW!AP33,SSEH!AP33,SSES!AP33) -> 0 | AQ33: =CHOOSE(m_identity,ENWL!AQ33, NPgN!AQ33, NPgY!AQ33, WMID!AQ33, EMID!AQ33, SWALES!AQ33, SWEST!AQ33, LPN!AQ33,SPN!AQ33,EPN!AQ33,SPD!AQ33,SPMW!AQ33,SSEH!AQ33,SSES!AQ33) -> 0
E34: Tax liability allowance adjustments - driven by tax trigger events | F34: XX | G34: £m 12/13 prices | H34: YY | AJ34: =CHOOSE(m_identity,ENWL!AJ34, NPgN!AJ34, NPgY!AJ34, WMID!AJ34, EMID!AJ34, SWALES!AJ34, SWEST!AJ34, LPN!AJ34,SPN!AJ34,EPN!AJ34,SPD!AJ34,SPMW!AJ34,SSEH!AJ34,SSES!AJ34) -> 0 | AK34: =CHOOSE(m_identity,ENWL!AK34, NPgN!AK34, NPgY!AK34, WMID!AK34, EMID!AK34, SWALES!AK34, SWEST!AK34, LPN!AK34,SPN!AK34,EPN!AK34,SPD!AK34,SPMW!AK34,SSEH!AK34,SSES!AK34) -> 0 | AL34: =CHOOSE(m_identity,ENWL!AL34, NPgN!AL34, NPgY!AL34, WMID!AL34, EMID!AL34, SWALES!AL34, SWEST!AL34, LPN!AL34,SPN!AL34,EPN!AL34,SPD!AL34,SPMW!AL34,SSEH!AL34,SSES!AL34) -> 0 | AM34: =CHOOSE(m_identity,ENWL!AM34, NPgN!AM34, NPgY!AM34, WMID!AM34, EMID!AM34, SWALES!AM34, SWEST!AM34, LPN!AM34,SPN!AM34,EPN!AM34,SPD!AM34,SPMW!AM34,SSEH!AM34,SSES!AM34) -> 0 | AN34: =CHOOSE(m_identity,ENWL!AN34, NPgN!AN34, NPgY!AN34, WMID!AN34, EMID!AN34, SWALES!AN34, SWEST!AN34, LPN!AN34,SPN!AN34,EPN!AN34,SPD!AN34,SPMW!AN34,SSEH!AN34,SSES!AN34) -> 0 | AO34: =CHOOSE(m_identity,ENWL!AO34, NPgN!AO34, NPgY!AO34, WMID!AO34, EMID!AO34, SWALES!AO34, SWEST!AO34, LPN!AO34,SPN!AO34,EPN!AO34,SPD!AO34,SPMW!AO34,SSEH!AO34,SSES!AO34) -> 0 | AP34: =CHOOSE(m_identity,ENWL!AP34, NPgN!AP34, NPgY!AP34, WMID!AP34, EMID!AP34, SWALES!AP34, SWEST!AP34, LPN!AP34,SPN!AP34,EPN!AP34,SPD!AP34,SPMW!AP34,SSEH!AP34,SSES!AP34) -> 0 | AQ34: =CHOOSE(m_identity,ENWL!AQ34, NPgN!AQ34, NPgY!AQ34, WMID!AQ34, EMID!AQ34, SWALES!AQ34, SWEST!AQ34, LPN!AQ34,SPN!AQ34,EPN!AQ34,SPD!AQ34,SPMW!AQ34,SSEH!AQ34,SSES!AQ34) -> 0
E35: General pool capital allowance pre-RIIO movement adjustment | F35: XX | G35: Nominal | H35: YY | AH35: =CHOOSE(m_identity,ENWL!AH35, NPgN!AH35, NPgY!AH35, WMID!AH35, EMID!AH35, SWALES!AH35, SWEST!AH35, LPN!AH35,SPN!AH35,EPN!AH35,SPD!AH35,SPMW!AH35,SSEH!AH35,SSES!AH35) -> 0 | AI35: =CHOOSE(m_identity,ENWL!AI35, NPgN!AI35, NPgY!AI35, WMID!AI35, EMID!AI35, SWALES!AI35, SWEST!AI35, LPN!AI35,SPN!AI35,EPN!AI35,SPD!AI35,SPMW!AI35,SSEH!AI35,SSES!AI35) -> 0
E36: Special pool capital allowance pre-RIIO movement adjustment | F36: XX | G36: Nominal | H36: YY | AH36: =CHOOSE(m_identity,ENWL!AH36, NPgN!AH36, NPgY!AH36, WMID!AH36, EMID!AH36, SWALES!AH36, SWEST!AH36, LPN!AH36,SPN!AH36,EPN!AH36,SPD!AH36,SPMW!AH36,SSEH!AH36,SSES!AH36) -> 0 | AI36: =CHOOSE(m_identity,ENWL!AI36, NPgN!AI36, NPgY!AI36, WMID!AI36, EMID!AI36, SWALES!AI36, SWEST!AI36, LPN!AI36,SPN!AI36,EPN!AI36,SPD!AI36,SPMW!AI36,SSEH!AI36,SSES!AI36) -> 0
E37: Deferred Revenue Expenditure pre-RIIO movement adjustment | F37: XX | G37: Nominal | H37: YY | AH37: =CHOOSE(m_identity,ENWL!AH37, NPgN!AH37, NPgY!AH37, WMID!AH37, EMID!AH37, SWALES!AH37, SWEST!AH37, LPN!AH37,SPN!AH37,EPN!AH37,SPD!AH37,SPMW!AH37,SSEH!AH37,SSES!AH37) -> 0 | AI37: =CHOOSE(m_identity,ENWL!AI37, NPgN!AI37, NPgY!AI37, WMID!AI37, EMID!AI37, SWALES!AI37, SWEST!AI37, LPN!AI37,SPN!AI37,EPN!AI37,SPD!AI37,SPMW!AI37,SSEH!AI37,SSES!AI37) -> 0
E38: DRE: Gross capex adjustment | F38: XX | G38: Nominal | H38: YY | AH38: =CHOOSE(m_identity,ENWL!AH38, NPgN!AH38, NPgY!AH38, WMID!AH38, EMID!AH38, SWALES!AH38, SWEST!AH38, LPN!AH38,SPN!AH38,EPN!AH38,SPD!AH38,SPMW!AH38,SSEH!AH38,SSES!AH38) -> 0 | AI38: =CHOOSE(m_identity,ENWL!AI38, NPgN!AI38, NPgY!AI38, WMID!AI38, EMID!AI38, SWALES!AI38, SWEST!AI38, LPN!AI38,SPN!AI38,EPN!AI38,SPD!AI38,SPMW!AI38,SSEH!AI38,SSES!AI38) -> 0
B40: Policy
C42: Cost of capital
E44: Cost of debt | G44: annual real % | AJ44: =AJ11 -> 0.0292 | AK44: 0.0292 | AL44: 0.0292 | AM44: 0.0292 | AN44: 0.0292 | AO44: 0.0292 | AP44: 0.0292 | AQ44: 0.0292
E45: Cost of equity | G45: annual real % | AJ45: =CHOOSE(m_identity,ENWL!AJ45, NPgN!AJ45, NPgY!AJ45, WMID!AJ45, EMID!AJ45, SWALES!AJ45, SWEST!AJ45, LPN!AJ45,SPN!AJ45,EPN!AJ45,SPD!AJ45,SPMW!AJ45,SSEH!AJ45,SSES!AJ45) -> 0.067 | AK45: =CHOOSE(m_identity,ENWL!AK45, NPgN!AK45, NPgY!AK45, WMID!AK45, EMID!AK45, SWALES!AK45, SWEST!AK45, LPN!AK45,SPN!AK45,EPN!AK45,SPD!AK45,SPMW!AK45,SSEH!AK45,SSES!AK45) -> 0.067 | AL45: =CHOOSE(m_identity,ENWL!AL45, NPgN!AL45, NPgY!AL45, WMID!AL45, EMID!AL45, SWALES!AL45, SWEST!AL45, LPN!AL45,SPN!AL45,EPN!AL45,SPD!AL45,SPMW!AL45,SSEH!AL45,SSES!AL45) -> 0.067 | AM45: =CHOOSE(m_identity,ENWL!AM45, NPgN!AM45, NPgY!AM45, WMID!AM45, EMID!AM45, SWALES!AM45, SWEST!AM45, LPN!AM45,SPN!AM45,EPN!AM45,SPD!AM45,SPMW!AM45,SSEH!AM45,SSES!AM45) -> 0.067 | AN45: =CHOOSE(m_identity,ENWL!AN45, NPgN!AN45, NPgY!AN45, WMID!AN45, EMID!AN45, SWALES!AN45, SWEST!AN45, LPN!AN45,SPN!AN45,EPN!AN45,SPD!AN45,SPMW!AN45,SSEH!AN45,SSES!AN45) -> 0.067 | AO45: =CHOOSE(m_identity,ENWL!AO45, NPgN!AO45, NPgY!AO45, WMID!AO45, EMID!AO45, SWALES!AO45, SWEST!AO45, LPN!AO45,SPN!AO45,EPN!AO45,SPD!AO45,SPMW!AO45,SSEH!AO45,SSES!AO45) -> 0.067 | AP45: =CHOOSE(m_identity,ENWL!AP45, NPgN!AP45, NPgY!AP45, WMID!AP45, EMID!AP45, SWALES!AP45, SWEST!AP45, LPN!AP45,SPN!AP45,EPN!AP45,SPD!AP45,SPMW!AP45,SSEH!AP45,SSES!AP45) -> 0.067 | AQ45: =CHOOSE(m_identity,ENWL!AQ45, NPgN!AQ45, NPgY!AQ45, WMID!AQ45, EMID!AQ45, SWALES!AQ45, SWEST!AQ45, LPN!AQ45,SPN!AQ45,EPN!AQ45,SPD!AQ45,SPMW!AQ45,SSEH!AQ45,SSES!AQ45) -> 0.067
E46: Notional gearing | G46: % | J46: > | AI46: =CHOOSE(m_identity,ENWL!AI46, NPgN!AI46, NPgY!AI46, WMID!AI46, EMID!AI46, SWALES!AI46, SWEST!AI46, LPN!AI46,SPN!AI46,EPN!AI46,SPD!AI46,SPMW!AI46,SSEH!AI46,SSES!AI46) -> 0.65 | AJ46: =CHOOSE(m_identity,ENWL!AJ46, NPgN!AJ46, NPgY!AJ46, WMID!AJ46, EMID!AJ46, SWALES!AJ46, SWEST!AJ46, LPN!AJ46,SPN!AJ46,EPN!AJ46,SPD!AJ46,SPMW!AJ46,SSEH!AJ46,SSES!AJ46) -> 0.65 | AK46: =CHOOSE(m_identity,ENWL!AK46, NPgN!AK46, NPgY!AK46, WMID!AK46, EMID!AK46, SWALES!AK46, SWEST!AK46, LPN!AK46,SPN!AK46,EPN!AK46,SPD!AK46,SPMW!AK46,SSEH!AK46,SSES!AK46) -> 0.65 | AL46: =CHOOSE(m_identity,ENWL!AL46, NPgN!AL46, NPgY!AL46, WMID!AL46, EMID!AL46, SWALES!AL46, SWEST!AL46, LPN!AL46,SPN!AL46,EPN!AL46,SPD!AL46,SPMW!AL46,SSEH!AL46,SSES!AL46) -> 0.65 | AM46: =CHOOSE(m_identity,ENWL!AM46, NPgN!AM46, NPgY!AM46, WMID!AM46, EMID!AM46, SWALES!AM46, SWEST!AM46, LPN!AM46,SPN!AM46,EPN!AM46,SPD!AM46,SPMW!AM46,SSEH!AM46,SSES!AM46) -> 0.65 | AN46: =CHOOSE(m_identity,ENWL!AN46, NPgN!AN46, NPgY!AN46, WMID!AN46, EMID!AN46, SWALES!AN46, SWEST!AN46, LPN!AN46,SPN!AN46,EPN!AN46,SPD!AN46,SPMW!AN46,SSEH!AN46,SSES!AN46) -> 0.65 | AO46: =CHOOSE(m_identity,ENWL!AO46, NPgN!AO46, NPgY!AO46, WMID!AO46, EMID!AO46, SWALES!AO46, SWEST!AO46, LPN!AO46,SPN!AO46,EPN!AO46,SPD!AO46,SPMW!AO46,SSEH!AO46,SSES!AO46) -> 0.65 | AP46: =CHOOSE(m_identity,ENWL!AP46, NPgN!AP46, NPgY!AP46, WMID!AP46, EMID!AP46, SWALES!AP46, SWEST!AP46, LPN!AP46,SPN!AP46,EPN!AP46,SPD!AP46,SPMW!AP46,SSEH!AP46,SSES!AP46) -> 0.65 | AQ46: =CHOOSE(m_identity,ENWL!AQ46, NPgN!AQ46, NPgY!AQ46, WMID!AQ46, EMID!AQ46, SWALES!AQ46, SWEST!AQ46, LPN!AQ46,SPN!AQ46,EPN!AQ46,SPD!AQ46,SPMW!AQ46,SSEH!AQ46,SSES!AQ46) -> 0.65
E48: Vanilla WACC | G48: annual real % | AJ48: =(AJ44 * AJ46) + (AJ45 * (1 - AJ46)) -> 0.04243 | AK48: 0.04243 | AL48: 0.04243 | AM48: 0.04243 | AN48: 0.04243 | AO48: 0.04243 | AP48: 0.04243 | AQ48: 0.04243
C52: Indexation
E54: Forecast RPI (simple average year to March) | G54: index value | J54: > | AG54: =CHOOSE(m_identity,ENWL!AG54, NPgN!AG54, NPgY!AG54, WMID!AG54, EMID!AG54, SWALES!AG54, SWEST!AG54, LPN!AG54,SPN!AG54,EPN!AG54,SPD!AG54,SPMW!AG54,SSEH!AG54,SSES!AG54) -> 244.675 | AH54: =CHOOSE(m_identity,ENWL!AH54, NPgN!AH54, NPgY!AH54, WMID!AH54, EMID!AH54, SWALES!AH54, SWEST!AH54, LPN!AH54,SPN!AH54,EPN!AH54,SPD!AH54,SPMW!AH54,SSEH!AH54,SSES!AH54) -> 251.526 | AI54: =CHOOSE(m_identity,ENWL!AI54, NPgN!AI54, NPgY!AI54, WMID!AI54, EMID!AI54, SWALES!AI54, SWEST!AI54, LPN!AI54,SPN!AI54,EPN!AI54,SPD!AI54,SPMW!AI54,SSEH!AI54,SSES!AI54) -> 258.569 | AJ54: =CHOOSE(m_identity,ENWL!AJ54, NPgN!AJ54, NPgY!AJ54, WMID!AJ54, EMID!AJ54, SWALES!AJ54, SWEST!AJ54, LPN!AJ54,SPN!AJ54,EPN!AJ54,SPD!AJ54,SPMW!AJ54,SSEH!AJ54,SSES!AJ54) -> 265.809 | AK54: =CHOOSE(m_identity,ENWL!AK54, NPgN!AK54, NPgY!AK54, WMID!AK54, EMID!AK54, SWALES!AK54, SWEST!AK54, LPN!AK54,SPN!AK54,EPN!AK54,SPD!AK54,SPMW!AK54,SSEH!AK54,SSES!AK54) -> 273.252 | AL54: =CHOOSE(m_identity,ENWL!AL54, NPgN!AL54, NPgY!AL54, WMID!AL54, EMID!AL54, SWALES!AL54, SWEST!AL54, LPN!AL54,SPN!AL54,EPN!AL54,SPD!AL54,SPMW!AL54,SSEH!AL54,SSES!AL54) -> 280.903 | AM54: =CHOOSE(m_identity,ENWL!AM54, NPgN!AM54, NPgY!AM54, WMID!AM54, EMID!AM54, SWALES!AM54, SWEST!AM54, LPN!AM54,SPN!AM54,EPN!AM54,SPD!AM54,SPMW!AM54,SSEH!AM54,SSES!AM54) -> 288.768 | AN54: =CHOOSE(m_identity,ENWL!AN54, NPgN!AN54, NPgY!AN54, WMID!AN54, EMID!AN54, SWALES!AN54, SWEST!AN54, LPN!AN54,SPN!AN54,EPN!AN54,SPD!AN54,SPMW!AN54,SSEH!AN54,SSES!AN54) -> 296.854 | AO54: =CHOOSE(m_identity,ENWL!AO54, NPgN!AO54, NPgY!AO54, WMID!AO54, EMID!AO54, SWALES!AO54, SWEST!AO54, LPN!AO54,SPN!AO54,EPN!AO54,SPD!AO54,SPMW!AO54,SSEH!AO54,SSES!AO54) -> 305.166 | AP54: =CHOOSE(m_identity,ENWL!AP54, NPgN!AP54, NPgY!AP54, WMID!AP54, EMID!AP54, SWALES!AP54, SWEST!AP54, LPN!AP54,SPN!AP54,EPN!AP54,SPD!AP54,SPMW!AP54,SSEH!AP54,SSES!AP54) -> 313.711 | AQ54: =CHOOSE(m_identity,ENWL!AQ54, NPgN!AQ54, NPgY!AQ54, WMID!AQ54, EMID!AQ54, SWALES!AQ54, SWEST!AQ54, LPN!AQ54,SPN!AQ54,EPN!AQ54,SPD!AQ54,SPMW!AQ54,SSEH!AQ54,SSES!AQ54) -> 322.495
E55: RPI assumption for interest costs | G55: index value | J55: > | AG55: =CHOOSE(m_identity,ENWL!AG55, NPgN!AG55, NPgY!AG55, WMID!AG55, EMID!AG55, SWALES!AG55, SWEST!AG55, LPN!AG55,SPN!AG55,EPN!AG55,SPD!AG55,SPMW!AG55,SSEH!AG55,SSES!AG55) -> 244.675 | AH55: =CHOOSE(m_identity,ENWL!AH55, NPgN!AH55, NPgY!AH55, WMID!AH55, EMID!AH55, SWALES!AH55, SWEST!AH55, LPN!AH55,SPN!AH55,EPN!AH55,SPD!AH55,SPMW!AH55,SSEH!AH55,SSES!AH55) -> 251.526 | AI55: =CHOOSE(m_identity,ENWL!AI55, NPgN!AI55, NPgY!AI55, WMID!AI55, EMID!AI55, SWALES!AI55, SWEST!AI55, LPN!AI55,SPN!AI55,EPN!AI55,SPD!AI55,SPMW!AI55,SSEH!AI55,SSES!AI55) -> 258.569 | AJ55: =CHOOSE(m_identity,ENWL!AJ55, NPgN!AJ55, NPgY!AJ55, WMID!AJ55, EMID!AJ55, SWALES!AJ55, SWEST!AJ55, LPN!AJ55,SPN!AJ55,EPN!AJ55,SPD!AJ55,SPMW!AJ55,SSEH!AJ55,SSES!AJ55) -> 265.809 | AK55: =CHOOSE(m_identity,ENWL!AK55, NPgN!AK55, NPgY!AK55, WMID!AK55, EMID!AK55, SWALES!AK55, SWEST!AK55, LPN!AK55,SPN!AK55,EPN!AK55,SPD!AK55,SPMW!AK55,SSEH!AK55,SSES!AK55) -> 273.252 | AL55: =CHOOSE(m_identity,ENWL!AL55, NPgN!AL55, NPgY!AL55, WMID!AL55, EMID!AL55, SWALES!AL55, SWEST!AL55, LPN!AL55,SPN!AL55,EPN!AL55,SPD!AL55,SPMW!AL55,SSEH!AL55,SSES!AL55) -> 280.903 | AM55: =CHOOSE(m_identity,ENWL!AM55, NPgN!AM55, NPgY!AM55, WMID!AM55, EMID!AM55, SWALES!AM55, SWEST!AM55, LPN!AM55,SPN!AM55,EPN!AM55,SPD!AM55,SPMW!AM55,SSEH!AM55,SSES!AM55) -> 288.768 | AN55: =CHOOSE(m_identity,ENWL!AN55, NPgN!AN55, NPgY!AN55, WMID!AN55, EMID!AN55, SWALES!AN55, SWEST!AN55, LPN!AN55,SPN!AN55,EPN!AN55,SPD!AN55,SPMW!AN55,SSEH!AN55,SSES!AN55) -> 296.854 | AO55: =CHOOSE(m_identity,ENWL!AO55, NPgN!AO55, NPgY!AO55, WMID!AO55, EMID!AO55, SWALES!AO55, SWEST!AO55, LPN!AO55,SPN!AO55,EPN!AO55,SPD!AO55,SPMW!AO55,SSEH!AO55,SSES!AO55) -> 305.166 | AP55: =CHOOSE(m_identity,ENWL!AP55, NPgN!AP55, NPgY!AP55, WMID!AP55, EMID!AP55, SWALES!AP55, SWEST!AP55, LPN!AP55,SPN!AP55,EPN!AP55,SPD!AP55,SPMW!AP55,SSEH!AP55,SSES!AP55) -> 313.711 | AQ55: =CHOOSE(m_identity,ENWL!AQ55, NPgN!AQ55, NPgY!AQ55, WMID!AQ55, EMID!AQ55, SWALES!AQ55, SWEST!AQ55, LPN!AQ55,SPN!AQ55,EPN!AQ55,SPD!AQ55,SPMW!AQ55,SSEH!AQ55,SSES!AQ55) -> 322.495
C57: TIM and capitalisation
E59: Years from t until normal reporting of actual costs | G59: years | I59: =CHOOSE(m_identity,ENWL!I59, NPgN!I59, NPgY!I59, WMID!I59, EMID!I59, SWALES!I59, SWEST!I59, LPN!I59,SPN!I59,EPN!I59,SPD!I59,SPMW!I59,SSEH!I59,SSES!I59) -> 2
E61: Capitalised share of totex | G61: % | AJ61: =CHOOSE(m_identity,ENWL!AJ61, NPgN!AJ61, NPgY!AJ61, WMID!AJ61, EMID!AJ61, SWALES!AJ61, SWEST!AJ61, LPN!AJ61,SPN!AJ61,EPN!AJ61,SPD!AJ61,SPMW!AJ61,SSEH!AJ61,SSES!AJ61) -> 0.8 | AK61: =CHOOSE(m_identity,ENWL!AK61, NPgN!AK61, NPgY!AK61, WMID!AK61, EMID!AK61, SWALES!AK61, SWEST!AK61, LPN!AK61,SPN!AK61,EPN!AK61,SPD!AK61,SPMW!AK61,SSEH!AK61,SSES!AK61) -> 0.8 | AL61: =CHOOSE(m_identity,ENWL!AL61, NPgN!AL61, NPgY!AL61, WMID!AL61, EMID!AL61, SWALES!AL61, SWEST!AL61, LPN!AL61,SPN!AL61,EPN!AL61,SPD!AL61,SPMW!AL61,SSEH!AL61,SSES!AL61) -> 0.8 | AM61: =CHOOSE(m_identity,ENWL!AM61, NPgN!AM61, NPgY!AM61, WMID!AM61, EMID!AM61, SWALES!AM61, SWEST!AM61, LPN!AM61,SPN!AM61,EPN!AM61,SPD!AM61,SPMW!AM61,SSEH!AM61,SSES!AM61) -> 0.8 | AN61: =CHOOSE(m_identity,ENWL!AN61, NPgN!AN61, NPgY!AN61, WMID!AN61, EMID!AN61, SWALES!AN61, SWEST!AN61, LPN!AN61,SPN!AN61,EPN!AN61,SPD!AN61,SPMW!AN61,SSEH!AN61,SSES!AN61) -> 0.8 | AO61: =CHOOSE(m_identity,ENWL!AO61, NPgN!AO61, NPgY!AO61, WMID!AO61, EMID!AO61, SWALES!AO61, SWEST!AO61, LPN!AO61,SPN!AO61,EPN!AO61,SPD!AO61,SPMW!AO61,SSEH!AO61,SSES!AO61) -> 0.8 | AP61: =CHOOSE(m_identity,ENWL!AP61, NPgN!AP61, NPgY!AP61, WMID!AP61, EMID!AP61, SWALES!AP61, SWEST!AP61, LPN!AP61,SPN!AP61,EPN!AP61,SPD!AP61,SPMW!AP61,SSEH!AP61,SSES!AP61) -> 0.8 | AQ61: =CHOOSE(m_identity,ENWL!AQ61, NPgN!AQ61, NPgY!AQ61, WMID!AQ61, EMID!AQ61, SWALES!AQ61, SWEST!AQ61, LPN!AQ61,SPN!AQ61,EPN!AQ61,SPD!AQ61,SPMW!AQ61,SSEH!AQ61,SSES!AQ61) -> 0.8
E63: Additional income % | G63: % | I63: =CHOOSE(m_identity,ENWL!I63, NPgN!I63, NPgY!I63, WMID!I63, EMID!I63, SWALES!I63, SWEST!I63, LPN!I63,SPN!I63,EPN!I63,SPD!I63,SPMW!I63,SSEH!I63,SSES!I63) -> 0.025
E65: Incentive Strength | G65: % | I65: =CHOOSE(m_identity,ENWL!I65, NPgN!I65, NPgY!I65, WMID!I65, EMID!I65, SWALES!I65, SWEST!I65, LPN!I65,SPN!I65,EPN!I65,SPD!I65,SPMW!I65,SSEH!I65,SSES!I65) -> 0.7
E67: Weight of Ofgem's view on price control totex | G67: % | I67: =CHOOSE(m_identity,ENWL!I67, NPgN!I67, NPgY!I67, WMID!I67, EMID!I67, SWALES!I67, SWEST!I67, LPN!I67,SPN!I67,EPN!I67,SPD!I67,SPMW!I67,SSEH!I67,SSES!I67) -> 0.75
E68: Weight of operator's view on price control totex | G68: % | I68: =CHOOSE(m_identity,ENWL!I68, NPgN!I68, NPgY!I68, WMID!I68, EMID!I68, SWALES!I68, SWEST!I68, LPN!I68,SPN!I68,EPN!I68,SPD!I68,SPMW!I68,SSEH!I68,SSES!I68) -> 0.25
E70: Ofgem's view of licensee totex | G70: £m 12/13 prices | I70: =CHOOSE(m_identity,ENWL!I70, NPgN!I70, NPgY!I70, WMID!I70, EMID!I70, SWALES!I70, SWEST!I70, LPN!I70,SPN!I70,EPN!I70,SPD!I70,SPMW!I70,SSEH!I70,SSES!I70) -> 2109.226016
E71: Operator's view of licensee totex | G71: £m 12/13 prices | I71: =CHOOSE(m_identity,ENWL!I71, NPgN!I71, NPgY!I71, WMID!I71, EMID!I71, SWALES!I71, SWEST!I71, LPN!I71,SPN!I71,EPN!I71,SPD!I71,SPMW!I71,SSEH!I71,SSES!I71) -> 2109.226016
E73: Ofgem's view of group price control totex | G73: £m 12/13 prices | I73: =CHOOSE(m_identity,ENWL!I73, NPgN!I73, NPgY!I73, WMID!I73, EMID!I73, SWALES!I73, SWEST!I73, LPN!I73,SPN!I73,EPN!I73,SPD!I73,SPMW!I73,SSEH!I73,SSES!I73) -> 7063.291031
E74: Operator's view of group price control totex | G74: £m 12/13 prices | I74: =CHOOSE(m_identity,ENWL!I74, NPgN!I74, NPgY!I74, WMID!I74, EMID!I74, SWALES!I74, SWEST!I74, LPN!I74,SPN!I74,EPN!I74,SPD!I74,SPMW!I74,SSEH!I74,SSES!I74) -> 7063.291031
C76: Finance
E78: Minimum equity issuance threshold | G78: % | I78: =CHOOSE(m_identity,ENWL!I78, NPgN!I78, NPgY!I78, WMID!I78, EMID!I78, SWALES!I78, SWEST!I78, LPN!I78,SPN!I78,EPN!I78,SPD!I78,SPMW!I78,SSEH!I78,SSES!I78) -> 0
E79: Equity issuance costs | G79: % | I79: =CHOOSE(m_identity,ENWL!I79, NPgN!I79, NPgY!I79, WMID!I79, EMID!I79, SWALES!I79, SWEST!I79, LPN!I79,SPN!I79,EPN!I79,SPD!I79,SPMW!I79,SSEH!I79,SSES!I79) -> 0
E80: Assumed dividends as % of notional equity portion of RAV | G80: % | I80: =CHOOSE(m_identity,ENWL!I80, NPgN!I80, NPgY!I80, WMID!I80, EMID!I80, SWALES!I80, SWEST!I80, LPN!I80,SPN!I80,EPN!I80,SPD!I80,SPMW!I80,SSEH!I80,SSES!I80) -> 0.067
E82: Equity issuance gearing target | G82: % | AJ82: =CHOOSE(m_identity,ENWL!AJ82, NPgN!AJ82, NPgY!AJ82, WMID!AJ82, EMID!AJ82, SWALES!AJ82, SWEST!AJ82, LPN!AJ82,SPN!AJ82,EPN!AJ82,SPD!AJ82,SPMW!AJ82,SSEH!AJ82,SSES!AJ82) -> 0.65 | AK82: =CHOOSE(m_identity,ENWL!AK82, NPgN!AK82, NPgY!AK82, WMID!AK82, EMID!AK82, SWALES!AK82, SWEST!AK82, LPN!AK82,SPN!AK82,EPN!AK82,SPD!AK82,SPMW!AK82,SSEH!AK82,SSES!AK82) -> 0.65 | AL82: =CHOOSE(m_identity,ENWL!AL82, NPgN!AL82, NPgY!AL82, WMID!AL82, EMID!AL82, SWALES!AL82, SWEST!AL82, LPN!AL82,SPN!AL82,EPN!AL82,SPD!AL82,SPMW!AL82,SSEH!AL82,SSES!AL82) -> 0.65 | AM82: =CHOOSE(m_identity,ENWL!AM82, NPgN!AM82, NPgY!AM82, WMID!AM82, EMID!AM82, SWALES!AM82, SWEST!AM82, LPN!AM82,SPN!AM82,EPN!AM82,SPD!AM82,SPMW!AM82,SSEH!AM82,SSES!AM82) -> 0.65 | AN82: =CHOOSE(m_identity,ENWL!AN82, NPgN!AN82, NPgY!AN82, WMID!AN82, EMID!AN82, SWALES!AN82, SWEST!AN82, LPN!AN82,SPN!AN82,EPN!AN82,SPD!AN82,SPMW!AN82,SSEH!AN82,SSES!AN82) -> 0.65 | AO82: =CHOOSE(m_identity,ENWL!AO82, NPgN!AO82, NPgY!AO82, WMID!AO82, EMID!AO82, SWALES!AO82, SWEST!AO82, LPN!AO82,SPN!AO82,EPN!AO82,SPD!AO82,SPMW!AO82,SSEH!AO82,SSES!AO82) -> 0.65 | AP82: =CHOOSE(m_identity,ENWL!AP82, NPgN!AP82, NPgY!AP82, WMID!AP82, EMID!AP82, SWALES!AP82, SWEST!AP82, LPN!AP82,SPN!AP82,EPN!AP82,SPD!AP82,SPMW!AP82,SSEH!AP82,SSES!AP82) -> 0.65 | AQ82: =CHOOSE(m_identity,ENWL!AQ82, NPgN!AQ82, NPgY!AQ82, WMID!AQ82, EMID!AQ82, SWALES!AQ82, SWEST!AQ82, LPN!AQ82,SPN!AQ82,EPN!AQ82,SPD!AQ82,SPMW!AQ82,SSEH!AQ82,SSES!AQ82) -> 0.65
E84: Index-linked debt as a percentage of net debt | G84: % | AJ84: =CHOOSE(m_identity,ENWL!AJ84, NPgN!AJ84, NPgY!AJ84, WMID!AJ84, EMID!AJ84, SWALES!AJ84, SWEST!AJ84, LPN!AJ84,SPN!AJ84,EPN!AJ84,SPD!AJ84,SPMW!AJ84,SSEH!AJ84,SSES!AJ84) -> 0.25 | AK84: =CHOOSE(m_identity,ENWL!AK84, NPgN!AK84, NPgY!AK84, WMID!AK84, EMID!AK84, SWALES!AK84, SWEST!AK84, LPN!AK84,SPN!AK84,EPN!AK84,SPD!AK84,SPMW!AK84,SSEH!AK84,SSES!AK84) -> 0.25 | AL84: =CHOOSE(m_identity,ENWL!AL84, NPgN!AL84, NPgY!AL84, WMID!AL84, EMID!AL84, SWALES!AL84, SWEST!AL84, LPN!AL84,SPN!AL84,EPN!AL84,SPD!AL84,SPMW!AL84,SSEH!AL84,SSES!AL84) -> 0.25 | AM84: =CHOOSE(m_identity,ENWL!AM84, NPgN!AM84, NPgY!AM84, WMID!AM84, EMID!AM84, SWALES!AM84, SWEST!AM84, LPN!AM84,SPN!AM84,EPN!AM84,SPD!AM84,SPMW!AM84,SSEH!AM84,SSES!AM84) -> 0.25 | AN84: =CHOOSE(m_identity,ENWL!AN84, NPgN!AN84, NPgY!AN84, WMID!AN84, EMID!AN84, SWALES!AN84, SWEST!AN84, LPN!AN84,SPN!AN84,EPN!AN84,SPD!AN84,SPMW!AN84,SSEH!AN84,SSES!AN84) -> 0.25 | AO84: =CHOOSE(m_identity,ENWL!AO84, NPgN!AO84, NPgY!AO84, WMID!AO84, EMID!AO84, SWALES!AO84, SWEST!AO84, LPN!AO84,SPN!AO84,EPN!AO84,SPD!AO84,SPMW!AO84,SSEH!AO84,SSES!AO84) -> 0.25 | AP84: =CHOOSE(m_identity,ENWL!AP84, NPgN!AP84, NPgY!AP84, WMID!AP84, EMID!AP84, SWALES!AP84, SWEST!AP84, LPN!AP84,SPN!AP84,EPN!AP84,SPD!AP84,SPMW!AP84,SSEH!AP84,SSES!AP84) -> 0.25 | AQ84: =CHOOSE(m_identity,ENWL!AQ84, NPgN!AQ84, NPgY!AQ84, WMID!AQ84, EMID!AQ84, SWALES!AQ84, SWEST!AQ84, LPN!AQ84,SPN!AQ84,EPN!AQ84,SPD!AQ84,SPMW!AQ84,SSEH!AQ84,SSES!AQ84) -> 0.25
B86: Expenditure
C88: Totex
D90: Non-variant allowances
E92: Non-variant allowed load related capex | G92: £m 12/13 prices | AJ92: =CHOOSE(m_identity,ENWL!AJ92, NPgN!AJ92, NPgY!AJ92, WMID!AJ92, EMID!AJ92, SWALES!AJ92, SWEST!AJ92, LPN!AJ92,SPN!AJ92,EPN!AJ92,SPD!AJ92,SPMW!AJ92,SSEH!AJ92,SSES!AJ92) -> 23.71268111 | AK92: =CHOOSE(m_identity,ENWL!AK92, NPgN!AK92, NPgY!AK92, WMID!AK92, EMID!AK92, SWALES!AK92, SWEST!AK92, LPN!AK92,SPN!AK92,EPN!AK92,SPD!AK92,SPMW!AK92,SSEH!AK92,SSES!AK92) -> 24.59347416 | AL92: =CHOOSE(m_identity,ENWL!AL92, NPgN!AL92, NPgY!AL92, WMID!AL92, EMID!AL92, SWALES!AL92, SWEST!AL92, LPN!AL92,SPN!AL92,EPN!AL92,SPD!AL92,SPMW!AL92,SSEH!AL92,SSES!AL92) -> 23.42171412 | AM92: =CHOOSE(m_identity,ENWL!AM92, NPgN!AM92, NPgY!AM92, WMID!AM92, EMID!AM92, SWALES!AM92, SWEST!AM92, LPN!AM92,SPN!AM92,EPN!AM92,SPD!AM92,SPMW!AM92,SSEH!AM92,SSES!AM92) -> 27.80700791 | AN92: =CHOOSE(m_identity,ENWL!AN92, NPgN!AN92, NPgY!AN92, WMID!AN92, EMID!AN92, SWALES!AN92, SWEST!AN92, LPN!AN92,SPN!AN92,EPN!AN92,SPD!AN92,SPMW!AN92,SSEH!AN92,SSES!AN92) -> 30.13310652 | AO92: =CHOOSE(m_identity,ENWL!AO92, NPgN!AO92, NPgY!AO92, WMID!AO92, EMID!AO92, SWALES!AO92, SWEST!AO92, LPN!AO92,SPN!AO92,EPN!AO92,SPD!AO92,SPMW!AO92,SSEH!AO92,SSES!AO92) -> 27.21590715 | AP92: =CHOOSE(m_identity,ENWL!AP92, NPgN!AP92, NPgY!AP92, WMID!AP92, EMID!AP92, SWALES!AP92, SWEST!AP92, LPN!AP92,SPN!AP92,EPN!AP92,SPD!AP92,SPMW!AP92,SSEH!AP92,SSES!AP92) -> 31.09474006 | AQ92: =CHOOSE(m_identity,ENWL!AQ92, NPgN!AQ92, NPgY!AQ92, WMID!AQ92, EMID!AQ92, SWALES!AQ92, SWEST!AQ92, LPN!AQ92,SPN!AQ92,EPN!AQ92,SPD!AQ92,SPMW!AQ92,SSEH!AQ92,SSES!AQ92) -> 35.25645358
E93: Non-variant allowed non-load related capex - asset replacement | G93: £m 12/13 prices | AJ93: =CHOOSE(m_identity,ENWL!AJ93, NPgN!AJ93, NPgY!AJ93, WMID!AJ93, EMID!AJ93, SWALES!AJ93, SWEST!AJ93, LPN!AJ93,SPN!AJ93,EPN!AJ93,SPD!AJ93,SPMW!AJ93,SSEH!AJ93,SSES!AJ93) -> 83.53929294 | AK93: =CHOOSE(m_identity,ENWL!AK93, NPgN!AK93, NPgY!AK93, WMID!AK93, EMID!AK93, SWALES!AK93, SWEST!AK93, LPN!AK93,SPN!AK93,EPN!AK93,SPD!AK93,SPMW!AK93,SSEH!AK93,SSES!AK93) -> 84.46241391 | AL93: =CHOOSE(m_identity,ENWL!AL93, NPgN!AL93, NPgY!AL93, WMID!AL93, EMID!AL93, SWALES!AL93, SWEST!AL93, LPN!AL93,SPN!AL93,EPN!AL93,SPD!AL93,SPMW!AL93,SSEH!AL93,SSES!AL93) -> 83.94047358 | AM93: =CHOOSE(m_identity,ENWL!AM93, NPgN!AM93, NPgY!AM93, WMID!AM93, EMID!AM93, SWALES!AM93, SWEST!AM93, LPN!AM93,SPN!AM93,EPN!AM93,SPD!AM93,SPMW!AM93,SSEH!AM93,SSES!AM93) -> 85.91453151 | AN93: =CHOOSE(m_identity,ENWL!AN93, NPgN!AN93, NPgY!AN93, WMID!AN93, EMID!AN93, SWALES!AN93, SWEST!AN93, LPN!AN93,SPN!AN93,EPN!AN93,SPD!AN93,SPMW!AN93,SSEH!AN93,SSES!AN93) -> 86.54305461 | AO93: =CHOOSE(m_identity,ENWL!AO93, NPgN!AO93, NPgY!AO93, WMID!AO93, EMID!AO93, SWALES!AO93, SWEST!AO93, LPN!AO93,SPN!AO93,EPN!AO93,SPD!AO93,SPMW!AO93,SSEH!AO93,SSES!AO93) -> 92.15177176 | AP93: =CHOOSE(m_identity,ENWL!AP93, NPgN!AP93, NPgY!AP93, WMID!AP93, EMID!AP93, SWALES!AP93, SWEST!AP93, LPN!AP93,SPN!AP93,EPN!AP93,SPD!AP93,SPMW!AP93,SSEH!AP93,SSES!AP93) -> 89.14723446 | AQ93: =CHOOSE(m_identity,ENWL!AQ93, NPgN!AQ93, NPgY!AQ93, WMID!AQ93, EMID!AQ93, SWALES!AQ93, SWEST!AQ93, LPN!AQ93,SPN!AQ93,EPN!AQ93,SPD!AQ93,SPMW!AQ93,SSEH!AQ93,SSES!AQ93) -> 89.23218433
E94: Non-variant allowed non-load related capex - other | G94: £m 12/13 prices | AJ94: =CHOOSE(m_identity,ENWL!AJ94, NPgN!AJ94, NPgY!AJ94, WMID!AJ94, EMID!AJ94, SWALES!AJ94, SWEST!AJ94, LPN!AJ94,SPN!AJ94,EPN!AJ94,SPD!AJ94,SPMW!AJ94,SSEH!AJ94,SSES!AJ94) -> 21.68148982 | AK94: =CHOOSE(m_identity,ENWL!AK94, NPgN!AK94, NPgY!AK94, WMID!AK94, EMID!AK94, SWALES!AK94, SWEST!AK94, LPN!AK94,SPN!AK94,EPN!AK94,SPD!AK94,SPMW!AK94,SSEH!AK94,SSES!AK94) -> 20.08061088 | AL94: =CHOOSE(m_identity,ENWL!AL94, NPgN!AL94, NPgY!AL94, WMID!AL94, EMID!AL94, SWALES!AL94, SWEST!AL94, LPN!AL94,SPN!AL94,EPN!AL94,SPD!AL94,SPMW!AL94,SSEH!AL94,SSES!AL94) -> 14.22760511 | AM94: =CHOOSE(m_identity,ENWL!AM94, NPgN!AM94, NPgY!AM94, WMID!AM94, EMID!AM94, SWALES!AM94, SWEST!AM94, LPN!AM94,SPN!AM94,EPN!AM94,SPD!AM94,SPMW!AM94,SSEH!AM94,SSES!AM94) -> 11.69184928 | AN94: =CHOOSE(m_identity,ENWL!AN94, NPgN!AN94, NPgY!AN94, WMID!AN94, EMID!AN94, SWALES!AN94, SWEST!AN94, LPN!AN94,SPN!AN94,EPN!AN94,SPD!AN94,SPMW!AN94,SSEH!AN94,SSES!AN94) -> 15.63776959 | AO94: =CHOOSE(m_identity,ENWL!AO94, NPgN!AO94, NPgY!AO94, WMID!AO94, EMID!AO94, SWALES!AO94, SWEST!AO94, LPN!AO94,SPN!AO94,EPN!AO94,SPD!AO94,SPMW!AO94,SSEH!AO94,SSES!AO94) -> 17.62446823 | AP94: =CHOOSE(m_identity,ENWL!AP94, NPgN!AP94, NPgY!AP94, WMID!AP94, EMID!AP94, SWALES!AP94, SWEST!AP94, LPN!AP94,SPN!AP94,EPN!AP94,SPD!AP94,SPMW!AP94,SSEH!AP94,SSES!AP94) -> 15.20179974 | AQ94: =CHOOSE(m_identity,ENWL!AQ94, NPgN!AQ94, NPgY!AQ94, WMID!AQ94, EMID!AQ94, SWALES!AQ94, SWEST!AQ94, LPN!AQ94,SPN!AQ94,EPN!AQ94,SPD!AQ94,SPMW!AQ94,SSEH!AQ94,SSES!AQ94) -> 13.05759517
E95: Non-variant allowed faults | G95: £m 12/13 prices | AJ95: =CHOOSE(m_identity,ENWL!AJ95, NPgN!AJ95, NPgY!AJ95, WMID!AJ95, EMID!AJ95, SWALES!AJ95, SWEST!AJ95, LPN!AJ95,SPN!AJ95,EPN!AJ95,SPD!AJ95,SPMW!AJ95,SSEH!AJ95,SSES!AJ95) -> 29.71318465 | AK95: =CHOOSE(m_identity,ENWL!AK95, NPgN!AK95, NPgY!AK95, WMID!AK95, EMID!AK95, SWALES!AK95, SWEST!AK95, LPN!AK95,SPN!AK95,EPN!AK95,SPD!AK95,SPMW!AK95,SSEH!AK95,SSES!AK95) -> 29.63068285 | AL95: =CHOOSE(m_identity,ENWL!AL95, NPgN!AL95, NPgY!AL95, WMID!AL95, EMID!AL95, SWALES!AL95, SWEST!AL95, LPN!AL95,SPN!AL95,EPN!AL95,SPD!AL95,SPMW!AL95,SSEH!AL95,SSES!AL95) -> 29.43749658 | AM95: =CHOOSE(m_identity,ENWL!AM95, NPgN!AM95, NPgY!AM95, WMID!AM95, EMID!AM95, SWALES!AM95, SWEST!AM95, LPN!AM95,SPN!AM95,EPN!AM95,SPD!AM95,SPMW!AM95,SSEH!AM95,SSES!AM95) -> 29.37244065 | AN95: =CHOOSE(m_identity,ENWL!AN95, NPgN!AN95, NPgY!AN95, WMID!AN95, EMID!AN95, SWALES!AN95, SWEST!AN95, LPN!AN95,SPN!AN95,EPN!AN95,SPD!AN95,SPMW!AN95,SSEH!AN95,SSES!AN95) -> 29.30538206 | AO95: =CHOOSE(m_identity,ENWL!AO95, NPgN!AO95, NPgY!AO95, WMID!AO95, EMID!AO95, SWALES!AO95, SWEST!AO95, LPN!AO95,SPN!AO95,EPN!AO95,SPD!AO95,SPMW!AO95,SSEH!AO95,SSES!AO95) -> 29.35637984 | AP95: =CHOOSE(m_identity,ENWL!AP95, NPgN!AP95, NPgY!AP95, WMID!AP95, EMID!AP95, SWALES!AP95, SWEST!AP95, LPN!AP95,SPN!AP95,EPN!AP95,SPD!AP95,SPMW!AP95,SSEH!AP95,SSES!AP95) -> 29.45798439 | AQ95: =CHOOSE(m_identity,ENWL!AQ95, NPgN!AQ95, NPgY!AQ95, WMID!AQ95, EMID!AQ95, SWALES!AQ95, SWEST!AQ95, LPN!AQ95,SPN!AQ95,EPN!AQ95,SPD!AQ95,SPMW!AQ95,SSEH!AQ95,SSES!AQ95) -> 29.54920905
E96: Non-variant allowed tree cutting | G96: £m 12/13 prices | AJ96: =CHOOSE(m_identity,ENWL!AJ96, NPgN!AJ96, NPgY!AJ96, WMID!AJ96, EMID!AJ96, SWALES!AJ96, SWEST!AJ96, LPN!AJ96,SPN!AJ96,EPN!AJ96,SPD!AJ96,SPMW!AJ96,SSEH!AJ96,SSES!AJ96) -> 8.182874203 | AK96: =CHOOSE(m_identity,ENWL!AK96, NPgN!AK96, NPgY!AK96, WMID!AK96, EMID!AK96, SWALES!AK96, SWEST!AK96, LPN!AK96,SPN!AK96,EPN!AK96,SPD!AK96,SPMW!AK96,SSEH!AK96,SSES!AK96) -> 8.208633247 | AL96: =CHOOSE(m_identity,ENWL!AL96, NPgN!AL96, NPgY!AL96, WMID!AL96, EMID!AL96, SWALES!AL96, SWEST!AL96, LPN!AL96,SPN!AL96,EPN!AL96,SPD!AL96,SPMW!AL96,SSEH!AL96,SSES!AL96) -> 8.214779005 | AM96: =CHOOSE(m_identity,ENWL!AM96, NPgN!AM96, NPgY!AM96, WMID!AM96, EMID!AM96, SWALES!AM96, SWEST!AM96, LPN!AM96,SPN!AM96,EPN!AM96,SPD!AM96,SPMW!AM96,SSEH!AM96,SSES!AM96) -> 8.271194363 | AN96: =CHOOSE(m_identity,ENWL!AN96, NPgN!AN96, NPgY!AN96, WMID!AN96, EMID!AN96, SWALES!AN96, SWEST!AN96, LPN!AN96,SPN!AN96,EPN!AN96,SPD!AN96,SPMW!AN96,SSEH!AN96,SSES!AN96) -> 8.328176381 | AO96: =CHOOSE(m_identity,ENWL!AO96, NPgN!AO96, NPgY!AO96, WMID!AO96, EMID!AO96, SWALES!AO96, SWEST!AO96, LPN!AO96,SPN!AO96,EPN!AO96,SPD!AO96,SPMW!AO96,SSEH!AO96,SSES!AO96) -> 8.386134308 | AP96: =CHOOSE(m_identity,ENWL!AP96, NPgN!AP96, NPgY!AP96, WMID!AP96, EMID!AP96, SWALES!AP96, SWEST!AP96, LPN!AP96,SPN!AP96,EPN!AP96,SPD!AP96,SPMW!AP96,SSEH!AP96,SSES!AP96) -> 8.442115151 | AQ96: =CHOOSE(m_identity,ENWL!AQ96, NPgN!AQ96, NPgY!AQ96, WMID!AQ96, EMID!AQ96, SWALES!AQ96, SWEST!AQ96, LPN!AQ96,SPN!AQ96,EPN!AQ96,SPD!AQ96,SPMW!AQ96,SSEH!AQ96,SSES!AQ96) -> 8.50201016
E97: Non-variant allowed controllable opex | G97: £m 12/13 prices | AJ97: =CHOOSE(m_identity,ENWL!AJ97, NPgN!AJ97, NPgY!AJ97, WMID!AJ97, EMID!AJ97, SWALES!AJ97, SWEST!AJ97, LPN!AJ97,SPN!AJ97,EPN!AJ97,SPD!AJ97,SPMW!AJ97,SSEH!AJ97,SSES!AJ97) -> 93.43526801 | AK97: =CHOOSE(m_identity,ENWL!AK97, NPgN!AK97, NPgY!AK97, WMID!AK97, EMID!AK97, SWALES!AK97, SWEST!AK97, LPN!AK97,SPN!AK97,EPN!AK97,SPD!AK97,SPMW!AK97,SSEH!AK97,SSES!AK97) -> 93.63700866 | AL97: =CHOOSE(m_identity,ENWL!AL97, NPgN!AL97, NPgY!AL97, WMID!AL97, EMID!AL97, SWALES!AL97, SWEST!AL97, LPN!AL97,SPN!AL97,EPN!AL97,SPD!AL97,SPMW!AL97,SSEH!AL97,SSES!AL97) -> 93.87545379 | AM97: =CHOOSE(m_identity,ENWL!AM97, NPgN!AM97, NPgY!AM97, WMID!AM97, EMID!AM97, SWALES!AM97, SWEST!AM97, LPN!AM97,SPN!AM97,EPN!AM97,SPD!AM97,SPMW!AM97,SSEH!AM97,SSES!AM97) -> 94.5195288 | AN97: =CHOOSE(m_identity,ENWL!AN97, NPgN!AN97, NPgY!AN97, WMID!AN97, EMID!AN97, SWALES!AN97, SWEST!AN97, LPN!AN97,SPN!AN97,EPN!AN97,SPD!AN97,SPMW!AN97,SSEH!AN97,SSES!AN97) -> 95.46805764 | AO97: =CHOOSE(m_identity,ENWL!AO97, NPgN!AO97, NPgY!AO97, WMID!AO97, EMID!AO97, SWALES!AO97, SWEST!AO97, LPN!AO97,SPN!AO97,EPN!AO97,SPD!AO97,SPMW!AO97,SSEH!AO97,SSES!AO97) -> 95.48345901 | AP97: =CHOOSE(m_identity,ENWL!AP97, NPgN!AP97, NPgY!AP97, WMID!AP97, EMID!AP97, SWALES!AP97, SWEST!AP97, LPN!AP97,SPN!AP97,EPN!AP97,SPD!AP97,SPMW!AP97,SSEH!AP97,SSES!AP97) -> 94.50106399 | AQ97: =CHOOSE(m_identity,ENWL!AQ97, NPgN!AQ97, NPgY!AQ97, WMID!AQ97, EMID!AQ97, SWALES!AQ97, SWEST!AQ97, LPN!AQ97,SPN!AQ97,EPN!AQ97,SPD!AQ97,SPMW!AQ97,SSEH!AQ97,SSES!AQ97) -> 94.99225791
D99: Variant allowances
E101: =E18 -> Allowed uncertain costs (CNI) | G101: £m 12/13 prices | AJ101: =AJ18 -> 0 | AK101: =AK18 -> 0 | AL101: 0 | AM101: 0 | AN101: 0 | AO101: 0 | AP101: 0 | AQ101: 0
E102: Allocation to load related capex | G102: % | AJ102: =CHOOSE(m_identity,ENWL!AJ102, NPgN!AJ102, NPgY!AJ102, WMID!AJ102, EMID!AJ102, SWALES!AJ102, SWEST!AJ102, LPN!AJ102,SPN!AJ102,EPN!AJ102,SPD!AJ102,SPMW!AJ102,SSEH!AJ102,SSES!AJ102) -> 0 | AK102: =CHOOSE(m_identity,ENWL!AK102, NPgN!AK102, NPgY!AK102, WMID!AK102, EMID!AK102, SWALES!AK102, SWEST!AK102, LPN!AK102,SPN!AK102,EPN!AK102,SPD!AK102,SPMW!AK102,SSEH!AK102,SSES!AK102) -> 0 | AL102: =CHOOSE(m_identity,ENWL!AL102, NPgN!AL102, NPgY!AL102, WMID!AL102, EMID!AL102, SWALES!AL102, SWEST!AL102, LPN!AL102,SPN!AL102,EPN!AL102,SPD!AL102,SPMW!AL102,SSEH!AL102,SSES!AL102) -> 0 | AM102: =CHOOSE(m_identity,ENWL!AM102, NPgN!AM102, NPgY!AM102, WMID!AM102, EMID!AM102, SWALES!AM102, SWEST!AM102, LPN!AM102,SPN!AM102,EPN!AM102,SPD!AM102,SPMW!AM102,SSEH!AM102,SSES!AM102) -> 0 | AN102: =CHOOSE(m_identity,ENWL!AN102, NPgN!AN102, NPgY!AN102, WMID!AN102, EMID!AN102, SWALES!AN102, SWEST!AN102, LPN!AN102,SPN!AN102,EPN!AN102,SPD!AN102,SPMW!AN102,SSEH!AN102,SSES!AN102) -> 0 | AO102: =CHOOSE(m_identity,ENWL!AO102, NPgN!AO102, NPgY!AO102, WMID!AO102, EMID!AO102, SWALES!AO102, SWEST!AO102, LPN!AO102,SPN!AO102,EPN!AO102,SPD!AO102,SPMW!AO102,SSEH!AO102,SSES!AO102) -> 0 | AP102: =CHOOSE(m_identity,ENWL!AP102, NPgN!AP102, NPgY!AP102, WMID!AP102, EMID!AP102, SWALES!AP102, SWEST!AP102, LPN!AP102,SPN!AP102,EPN!AP102,SPD!AP102,SPMW!AP102,SSEH!AP102,SSES!AP102) -> 0 | AQ102: =CHOOSE(m_identity,ENWL!AQ102, NPgN!AQ102, NPgY!AQ102, WMID!AQ102, EMID!AQ102, SWALES!AQ102, SWEST!AQ102, LPN!AQ102,SPN!AQ102,EPN!AQ102,SPD!AQ102,SPMW!AQ102,SSEH!AQ102,SSES!AQ102) -> 0
E103: Allocation to non-load related capex - asset replacement | G103: % | AJ103: =CHOOSE(m_identity,ENWL!AJ103, NPgN!AJ103, NPgY!AJ103, WMID!AJ103, EMID!AJ103, SWALES!AJ103, SWEST!AJ103, LPN!AJ103,SPN!AJ103,EPN!AJ103,SPD!AJ103,SPMW!AJ103,SSEH!AJ103,SSES!AJ103) -> 0 | AK103: =CHOOSE(m_identity,ENWL!AK103, NPgN!AK103, NPgY!AK103, WMID!AK103, EMID!AK103, SWALES!AK103, SWEST!AK103, LPN!AK103,SPN!AK103,EPN!AK103,SPD!AK103,SPMW!AK103,SSEH!AK103,SSES!AK103) -> 0 | AL103: =CHOOSE(m_identity,ENWL!AL103, NPgN!AL103, NPgY!AL103, WMID!AL103, EMID!AL103, SWALES!AL103, SWEST!AL103, LPN!AL103,SPN!AL103,EPN!AL103,SPD!AL103,SPMW!AL103,SSEH!AL103,SSES!AL103) -> 0 | AM103: =CHOOSE(m_identity,ENWL!AM103, NPgN!AM103, NPgY!AM103, WMID!AM103, EMID!AM103, SWALES!AM103, SWEST!AM103, LPN!AM103,SPN!AM103,EPN!AM103,SPD!AM103,SPMW!AM103,SSEH!AM103,SSES!AM103) -> 0 | AN103: =CHOOSE(m_identity,ENWL!AN103, NPgN!AN103, NPgY!AN103, WMID!AN103, EMID!AN103, SWALES!AN103, SWEST!AN103, LPN!AN103,SPN!AN103,EPN!AN103,SPD!AN103,SPMW!AN103,SSEH!AN103,SSES!AN103) -> 0 | AO103: =CHOOSE(m_identity,ENWL!AO103, NPgN!AO103, NPgY!AO103, WMID!AO103, EMID!AO103, SWALES!AO103, SWEST!AO103, LPN!AO103,SPN!AO103,EPN!AO103,SPD!AO103,SPMW!AO103,SSEH!AO103,SSES!AO103) -> 0 | AP103: =CHOOSE(m_identity,ENWL!AP103, NPgN!AP103, NPgY!AP103, WMID!AP103, EMID!AP103, SWALES!AP103, SWEST!AP103, LPN!AP103,SPN!AP103,EPN!AP103,SPD!AP103,SPMW!AP103,SSEH!AP103,SSES!AP103) -> 0 | AQ103: =CHOOSE(m_identity,ENWL!AQ103, NPgN!AQ103, NPgY!AQ103, WMID!AQ103, EMID!AQ103, SWALES!AQ103, SWEST!AQ103, LPN!AQ103,SPN!AQ103,EPN!AQ103,SPD!AQ103,SPMW!AQ103,SSEH!AQ103,SSES!AQ103) -> 0
E104: Allocation to non-load related capex - other | G104: % | AJ104: =CHOOSE(m_identity,ENWL!AJ104, NPgN!AJ104, NPgY!AJ104, WMID!AJ104, EMID!AJ104, SWALES!AJ104, SWEST!AJ104, LPN!AJ104,SPN!AJ104,EPN!AJ104,SPD!AJ104,SPMW!AJ104,SSEH!AJ104,SSES!AJ104) -> 1 | AK104: =CHOOSE(m_identity,ENWL!AK104, NPgN!AK104, NPgY!AK104, WMID!AK104, EMID!AK104, SWALES!AK104, SWEST!AK104, LPN!AK104,SPN!AK104,EPN!AK104,SPD!AK104,SPMW!AK104,SSEH!AK104,SSES!AK104) -> 1 | AL104: =CHOOSE(m_identity,ENWL!AL104, NPgN!AL104, NPgY!AL104, WMID!AL104, EMID!AL104, SWALES!AL104, SWEST!AL104, LPN!AL104,SPN!AL104,EPN!AL104,SPD!AL104,SPMW!AL104,SSEH!AL104,SSES!AL104) -> 1 | AM104: =CHOOSE(m_identity,ENWL!AM104, NPgN!AM104, NPgY!AM104, WMID!AM104, EMID!AM104, SWALES!AM104, SWEST!AM104, LPN!AM104,SPN!AM104,EPN!AM104,SPD!AM104,SPMW!AM104,SSEH!AM104,SSES!AM104) -> 1 | AN104: =CHOOSE(m_identity,ENWL!AN104, NPgN!AN104, NPgY!AN104, WMID!AN104, EMID!AN104, SWALES!AN104, SWEST!AN104, LPN!AN104,SPN!AN104,EPN!AN104,SPD!AN104,SPMW!AN104,SSEH!AN104,SSES!AN104) -> 1 | AO104: =CHOOSE(m_identity,ENWL!AO104, NPgN!AO104, NPgY!AO104, WMID!AO104, EMID!AO104, SWALES!AO104, SWEST!AO104, LPN!AO104,SPN!AO104,EPN!AO104,SPD!AO104,SPMW!AO104,SSEH!AO104,SSES!AO104) -> 1 | AP104: =CHOOSE(m_identity,ENWL!AP104, NPgN!AP104, NPgY!AP104, WMID!AP104, EMID!AP104, SWALES!AP104, SWEST!AP104, LPN!AP104,SPN!AP104,EPN!AP104,SPD!AP104,SPMW!AP104,SSEH!AP104,SSES!AP104) -> 1 | AQ104: =CHOOSE(m_identity,ENWL!AQ104, NPgN!AQ104, NPgY!AQ104, WMID!AQ104, EMID!AQ104, SWALES!AQ104, SWEST!AQ104, LPN!AQ104,SPN!AQ104,EPN!AQ104,SPD!AQ104,SPMW!AQ104,SSEH!AQ104,SSES!AQ104) -> 1
E105: Allocation to faults | G105: % | AJ105: =CHOOSE(m_identity,ENWL!AJ105, NPgN!AJ105, NPgY!AJ105, WMID!AJ105, EMID!AJ105, SWALES!AJ105, SWEST!AJ105, LPN!AJ105,SPN!AJ105,EPN!AJ105,SPD!AJ105,SPMW!AJ105,SSEH!AJ105,SSES!AJ105) -> 0 | AK105: =CHOOSE(m_identity,ENWL!AK105, NPgN!AK105, NPgY!AK105, WMID!AK105, EMID!AK105, SWALES!AK105, SWEST!AK105, LPN!AK105,SPN!AK105,EPN!AK105,SPD!AK105,SPMW!AK105,SSEH!AK105,SSES!AK105) -> 0 | AL105: =CHOOSE(m_identity,ENWL!AL105, NPgN!AL105, NPgY!AL105, WMID!AL105, EMID!AL105, SWALES!AL105, SWEST!AL105, LPN!AL105,SPN!AL105,EPN!AL105,SPD!AL105,SPMW!AL105,SSEH!AL105,SSES!AL105) -> 0 | AM105: =CHOOSE(m_identity,ENWL!AM105, NPgN!AM105, NPgY!AM105, WMID!AM105, EMID!AM105, SWALES!AM105, SWEST!AM105, LPN!AM105,SPN!AM105,EPN!AM105,SPD!AM105,SPMW!AM105,SSEH!AM105,SSES!AM105) -> 0 | AN105: =CHOOSE(m_identity,ENWL!AN105, NPgN!AN105, NPgY!AN105, WMID!AN105, EMID!AN105, SWALES!AN105, SWEST!AN105, LPN!AN105,SPN!AN105,EPN!AN105,SPD!AN105,SPMW!AN105,SSEH!AN105,SSES!AN105) -> 0 | AO105: =CHOOSE(m_identity,ENWL!AO105, NPgN!AO105, NPgY!AO105, WMID!AO105, EMID!AO105, SWALES!AO105, SWEST!AO105, LPN!AO105,SPN!AO105,EPN!AO105,SPD!AO105,SPMW!AO105,SSEH!AO105,SSES!AO105) -> 0 | AP105: =CHOOSE(m_identity,ENWL!AP105, NPgN!AP105, NPgY!AP105, WMID!AP105, EMID!AP105, SWALES!AP105, SWEST!AP105, LPN!AP105,SPN!AP105,EPN!AP105,SPD!AP105,SPMW!AP105,SSEH!AP105,SSES!AP105) -> 0 | AQ105: =CHOOSE(m_identity,ENWL!AQ105, NPgN!AQ105, NPgY!AQ105, WMID!AQ105, EMID!AQ105, SWALES!AQ105, SWEST!AQ105, LPN!AQ105,SPN!AQ105,EPN!AQ105,SPD!AQ105,SPMW!AQ105,SSEH!AQ105,SSES!AQ105) -> 0
E106: Allocation to tree cutting | G106: % | AJ106: =CHOOSE(m_identity,ENWL!AJ106, NPgN!AJ106, NPgY!AJ106, WMID!AJ106, EMID!AJ106, SWALES!AJ106, SWEST!AJ106, LPN!AJ106,SPN!AJ106,EPN!AJ106,SPD!AJ106,SPMW!AJ106,SSEH!AJ106,SSES!AJ106) -> 0 | AK106: =CHOOSE(m_identity,ENWL!AK106, NPgN!AK106, NPgY!AK106, WMID!AK106, EMID!AK106, SWALES!AK106, SWEST!AK106, LPN!AK106,SPN!AK106,EPN!AK106,SPD!AK106,SPMW!AK106,SSEH!AK106,SSES!AK106) -> 0 | AL106: =CHOOSE(m_identity,ENWL!AL106, NPgN!AL106, NPgY!AL106, WMID!AL106, EMID!AL106, SWALES!AL106, SWEST!AL106, LPN!AL106,SPN!AL106,EPN!AL106,SPD!AL106,SPMW!AL106,SSEH!AL106,SSES!AL106) -> 0 | AM106: =CHOOSE(m_identity,ENWL!AM106, NPgN!AM106, NPgY!AM106, WMID!AM106, EMID!AM106, SWALES!AM106, SWEST!AM106, LPN!AM106,SPN!AM106,EPN!AM106,SPD!AM106,SPMW!AM106,SSEH!AM106,SSES!AM106) -> 0 | AN106: =CHOOSE(m_identity,ENWL!AN106, NPgN!AN106, NPgY!AN106, WMID!AN106, EMID!AN106, SWALES!AN106, SWEST!AN106, LPN!AN106,SPN!AN106,EPN!AN106,SPD!AN106,SPMW!AN106,SSEH!AN106,SSES!AN106) -> 0 | AO106: =CHOOSE(m_identity,ENWL!AO106, NPgN!AO106, NPgY!AO106, WMID!AO106, EMID!AO106, SWALES!AO106, SWEST!AO106, LPN!AO106,SPN!AO106,EPN!AO106,SPD!AO106,SPMW!AO106,SSEH!AO106,SSES!AO106) -> 0 | AP106: =CHOOSE(m_identity,ENWL!AP106, NPgN!AP106, NPgY!AP106, WMID!AP106, EMID!AP106, SWALES!AP106, SWEST!AP106, LPN!AP106,SPN!AP106,EPN!AP106,SPD!AP106,SPMW!AP106,SSEH!AP106,SSES!AP106) -> 0 | AQ106: =CHOOSE(m_identity,ENWL!AQ106, NPgN!AQ106, NPgY!AQ106, WMID!AQ106, EMID!AQ106, SWALES!AQ106, SWEST!AQ106, LPN!AQ106,SPN!AQ106,EPN!AQ106,SPD!AQ106,SPMW!AQ106,SSEH!AQ106,SSES!AQ106) -> 0
E107: Allocation to controllable opex | G107: % | AJ107: =CHOOSE(m_identity,ENWL!AJ107, NPgN!AJ107, NPgY!AJ107, WMID!AJ107, EMID!AJ107, SWALES!AJ107, SWEST!AJ107, LPN!AJ107,SPN!AJ107,EPN!AJ107,SPD!AJ107,SPMW!AJ107,SSEH!AJ107,SSES!AJ107) -> 0 | AK107: =CHOOSE(m_identity,ENWL!AK107, NPgN!AK107, NPgY!AK107, WMID!AK107, EMID!AK107, SWALES!AK107, SWEST!AK107, LPN!AK107,SPN!AK107,EPN!AK107,SPD!AK107,SPMW!AK107,SSEH!AK107,SSES!AK107) -> 0 | AL107: =CHOOSE(m_identity,ENWL!AL107, NPgN!AL107, NPgY!AL107, WMID!AL107, EMID!AL107, SWALES!AL107, SWEST!AL107, LPN!AL107,SPN!AL107,EPN!AL107,SPD!AL107,SPMW!AL107,SSEH!AL107,SSES!AL107) -> 0 | AM107: =CHOOSE(m_identity,ENWL!AM107, NPgN!AM107, NPgY!AM107, WMID!AM107, EMID!AM107, SWALES!AM107, SWEST!AM107, LPN!AM107,SPN!AM107,EPN!AM107,SPD!AM107,SPMW!AM107,SSEH!AM107,SSES!AM107) -> 0 | AN107: =CHOOSE(m_identity,ENWL!AN107, NPgN!AN107, NPgY!AN107, WMID!AN107, EMID!AN107, SWALES!AN107, SWEST!AN107, LPN!AN107,SPN!AN107,EPN!AN107,SPD!AN107,SPMW!AN107,SSEH!AN107,SSES!AN107) -> 0 | AO107: =CHOOSE(m_identity,ENWL!AO107, NPgN!AO107, NPgY!AO107, WMID!AO107, EMID!AO107, SWALES!AO107, SWEST!AO107, LPN!AO107,SPN!AO107,EPN!AO107,SPD!AO107,SPMW!AO107,SSEH!AO107,SSES!AO107) -> 0 | AP107: =CHOOSE(m_identity,ENWL!AP107, NPgN!AP107, NPgY!AP107, WMID!AP107, EMID!AP107, SWALES!AP107, SWEST!AP107, LPN!AP107,SPN!AP107,EPN!AP107,SPD!AP107,SPMW!AP107,SSEH!AP107,SSES!AP107) -> 0 | AQ107: =CHOOSE(m_identity,ENWL!AQ107, NPgN!AQ107, NPgY!AQ107, WMID!AQ107, EMID!AQ107, SWALES!AQ107, SWEST!AQ107, LPN!AQ107,SPN!AQ107,EPN!AQ107,SPD!AQ107,SPMW!AQ107,SSEH!AQ107,SSES!AQ107) -> 0
E109: =E19 -> Allowed uncertain costs (High Value Projects) | G109: £m 12/13 prices | AJ109: =AJ19 -> 0 | AK109: 0 | AL109: 0 | AM109: 0 | AN109: 0 | AO109: 0 | AP109: 0 | AQ109: 0
E110: Allocation to load related capex | G110: % | AJ110: =CHOOSE(m_identity,ENWL!AJ110, NPgN!AJ110, NPgY!AJ110, WMID!AJ110, EMID!AJ110, SWALES!AJ110, SWEST!AJ110, LPN!AJ110,SPN!AJ110,EPN!AJ110,SPD!AJ110,SPMW!AJ110,SSEH!AJ110,SSES!AJ110) -> 0 | AK110: =CHOOSE(m_identity,ENWL!AK110, NPgN!AK110, NPgY!AK110, WMID!AK110, EMID!AK110, SWALES!AK110, SWEST!AK110, LPN!AK110,SPN!AK110,EPN!AK110,SPD!AK110,SPMW!AK110,SSEH!AK110,SSES!AK110) -> 0 | AL110: =CHOOSE(m_identity,ENWL!AL110, NPgN!AL110, NPgY!AL110, WMID!AL110, EMID!AL110, SWALES!AL110, SWEST!AL110, LPN!AL110,SPN!AL110,EPN!AL110,SPD!AL110,SPMW!AL110,SSEH!AL110,SSES!AL110) -> 0 | AM110: =CHOOSE(m_identity,ENWL!AM110, NPgN!AM110, NPgY!AM110, WMID!AM110, EMID!AM110, SWALES!AM110, SWEST!AM110, LPN!AM110,SPN!AM110,EPN!AM110,SPD!AM110,SPMW!AM110,SSEH!AM110,SSES!AM110) -> 0 | AN110: =CHOOSE(m_identity,ENWL!AN110, NPgN!AN110, NPgY!AN110, WMID!AN110, EMID!AN110, SWALES!AN110, SWEST!AN110, LPN!AN110,SPN!AN110,EPN!AN110,SPD!AN110,SPMW!AN110,SSEH!AN110,SSES!AN110) -> 0 | AO110: =CHOOSE(m_identity,ENWL!AO110, NPgN!AO110, NPgY!AO110, WMID!AO110, EMID!AO110, SWALES!AO110, SWEST!AO110, LPN!AO110,SPN!AO110,EPN!AO110,SPD!AO110,SPMW!AO110,SSEH!AO110,SSES!AO110) -> 0 | AP110: =CHOOSE(m_identity,ENWL!AP110, NPgN!AP110, NPgY!AP110, WMID!AP110, EMID!AP110, SWALES!AP110, SWEST!AP110, LPN!AP110,SPN!AP110,EPN!AP110,SPD!AP110,SPMW!AP110,SSEH!AP110,SSES!AP110) -> 0 | AQ110: =CHOOSE(m_identity,ENWL!AQ110, NPgN!AQ110, NPgY!AQ110, WMID!AQ110, EMID!AQ110, SWALES!AQ110, SWEST!AQ110, LPN!AQ110,SPN!AQ110,EPN!AQ110,SPD!AQ110,SPMW!AQ110,SSEH!AQ110,SSES!AQ110) -> 0
E111: Allocation to non-load related capex - asset replacement | G111: % | AJ111: =CHOOSE(m_identity,ENWL!AJ111, NPgN!AJ111, NPgY!AJ111, WMID!AJ111, EMID!AJ111, SWALES!AJ111, SWEST!AJ111, LPN!AJ111,SPN!AJ111,EPN!AJ111,SPD!AJ111,SPMW!AJ111,SSEH!AJ111,SSES!AJ111) -> 0 | AK111: =CHOOSE(m_identity,ENWL!AK111, NPgN!AK111, NPgY!AK111, WMID!AK111, EMID!AK111, SWALES!AK111, SWEST!AK111, LPN!AK111,SPN!AK111,EPN!AK111,SPD!AK111,SPMW!AK111,SSEH!AK111,SSES!AK111) -> 0 | AL111: =CHOOSE(m_identity,ENWL!AL111, NPgN!AL111, NPgY!AL111, WMID!AL111, EMID!AL111, SWALES!AL111, SWEST!AL111, LPN!AL111,SPN!AL111,EPN!AL111,SPD!AL111,SPMW!AL111,SSEH!AL111,SSES!AL111) -> 0 | AM111: =CHOOSE(m_identity,ENWL!AM111, NPgN!AM111, NPgY!AM111, WMID!AM111, EMID!AM111, SWALES!AM111, SWEST!AM111, LPN!AM111,SPN!AM111,EPN!AM111,SPD!AM111,SPMW!AM111,SSEH!AM111,SSES!AM111) -> 0 | AN111: =CHOOSE(m_identity,ENWL!AN111, NPgN!AN111, NPgY!AN111, WMID!AN111, EMID!AN111, SWALES!AN111, SWEST!AN111, LPN!AN111,SPN!AN111,EPN!AN111,SPD!AN111,SPMW!AN111,SSEH!AN111,SSES!AN111) -> 0 | AO111: =CHOOSE(m_identity,ENWL!AO111, NPgN!AO111, NPgY!AO111, WMID!AO111, EMID!AO111, SWALES!AO111, SWEST!AO111, LPN!AO111,SPN!AO111,EPN!AO111,SPD!AO111,SPMW!AO111,SSEH!AO111,SSES!AO111) -> 0 | AP111: =CHOOSE(m_identity,ENWL!AP111, NPgN!AP111, NPgY!AP111, WMID!AP111, EMID!AP111, SWALES!AP111, SWEST!AP111, LPN!AP111,SPN!AP111,EPN!AP111,SPD!AP111,SPMW!AP111,SSEH!AP111,SSES!AP111) -> 0 | AQ111: =CHOOSE(m_identity,ENWL!AQ111, NPgN!AQ111, NPgY!AQ111, WMID!AQ111, EMID!AQ111, SWALES!AQ111, SWEST!AQ111, LPN!AQ111,SPN!AQ111,EPN!AQ111,SPD!AQ111,SPMW!AQ111,SSEH!AQ111,SSES!AQ111) -> 0
E112: Allocation to non-load related capex - other | G112: % | AJ112: =CHOOSE(m_identity,ENWL!AJ112, NPgN!AJ112, NPgY!AJ112, WMID!AJ112, EMID!AJ112, SWALES!AJ112, SWEST!AJ112, LPN!AJ112,SPN!AJ112,EPN!AJ112,SPD!AJ112,SPMW!AJ112,SSEH!AJ112,SSES!AJ112) -> 0 | AK112: =CHOOSE(m_identity,ENWL!AK112, NPgN!AK112, NPgY!AK112, WMID!AK112, EMID!AK112, SWALES!AK112, SWEST!AK112, LPN!AK112,SPN!AK112,EPN!AK112,SPD!AK112,SPMW!AK112,SSEH!AK112,SSES!AK112) -> 0 | AL112: =CHOOSE(m_identity,ENWL!AL112, NPgN!AL112, NPgY!AL112, WMID!AL112, EMID!AL112, SWALES!AL112, SWEST!AL112, LPN!AL112,SPN!AL112,EPN!AL112,SPD!AL112,SPMW!AL112,SSEH!AL112,SSES!AL112) -> 0 | AM112: =CHOOSE(m_identity,ENWL!AM112, NPgN!AM112, NPgY!AM112, WMID!AM112, EMID!AM112, SWALES!AM112, SWEST!AM112, LPN!AM112,SPN!AM112,EPN!AM112,SPD!AM112,SPMW!AM112,SSEH!AM112,SSES!AM112) -> 0 | AN112: =CHOOSE(m_identity,ENWL!AN112, NPgN!AN112, NPgY!AN112, WMID!AN112, EMID!AN112, SWALES!AN112, SWEST!AN112, LPN!AN112,SPN!AN112,EPN!AN112,SPD!AN112,SPMW!AN112,SSEH!AN112,SSES!AN112) -> 0 | AO112: =CHOOSE(m_identity,ENWL!AO112, NPgN!AO112, NPgY!AO112, WMID!AO112, EMID!AO112, SWALES!AO112, SWEST!AO112, LPN!AO112,SPN!AO112,EPN!AO112,SPD!AO112,SPMW!AO112,SSEH!AO112,SSES!AO112) -> 0 | AP112: =CHOOSE(m_identity,ENWL!AP112, NPgN!AP112, NPgY!AP112, WMID!AP112, EMID!AP112, SWALES!AP112, SWEST!AP112, LPN!AP112,SPN!AP112,EPN!AP112,SPD!AP112,SPMW!AP112,SSEH!AP112,SSES!AP112) -> 0 | AQ112: =CHOOSE(m_identity,ENWL!AQ112, NPgN!AQ112, NPgY!AQ112, WMID!AQ112, EMID!AQ112, SWALES!AQ112, SWEST!AQ112, LPN!AQ112,SPN!AQ112,EPN!AQ112,SPD!AQ112,SPMW!AQ112,SSEH!AQ112,SSES!AQ112) -> 0
E113: Allocation to faults | G113: % | AJ113: =CHOOSE(m_identity,ENWL!AJ113, NPgN!AJ113, NPgY!AJ113, WMID!AJ113, EMID!AJ113, SWALES!AJ113, SWEST!AJ113, LPN!AJ113,SPN!AJ113,EPN!AJ113,SPD!AJ113,SPMW!AJ113,SSEH!AJ113,SSES!AJ113) -> 0 | AK113: =CHOOSE(m_identity,ENWL!AK113, NPgN!AK113, NPgY!AK113, WMID!AK113, EMID!AK113, SWALES!AK113, SWEST!AK113, LPN!AK113,SPN!AK113,EPN!AK113,SPD!AK113,SPMW!AK113,SSEH!AK113,SSES!AK113) -> 0 | AL113: =CHOOSE(m_identity,ENWL!AL113, NPgN!AL113, NPgY!AL113, WMID!AL113, EMID!AL113, SWALES!AL113, SWEST!AL113, LPN!AL113,SPN!AL113,EPN!AL113,SPD!AL113,SPMW!AL113,SSEH!AL113,SSES!AL113) -> 0 | AM113: =CHOOSE(m_identity,ENWL!AM113, NPgN!AM113, NPgY!AM113, WMID!AM113, EMID!AM113, SWALES!AM113, SWEST!AM113, LPN!AM113,SPN!AM113,EPN!AM113,SPD!AM113,SPMW!AM113,SSEH!AM113,SSES!AM113) -> 0 | AN113: =CHOOSE(m_identity,ENWL!AN113, NPgN!AN113, NPgY!AN113, WMID!AN113, EMID!AN113, SWALES!AN113, SWEST!AN113, LPN!AN113,SPN!AN113,EPN!AN113,SPD!AN113,SPMW!AN113,SSEH!AN113,SSES!AN113) -> 0 | AO113: =CHOOSE(m_identity,ENWL!AO113, NPgN!AO113, NPgY!AO113, WMID!AO113, EMID!AO113, SWALES!AO113, SWEST!AO113, LPN!AO113,SPN!AO113,EPN!AO113,SPD!AO113,SPMW!AO113,SSEH!AO113,SSES!AO113) -> 0 | AP113: =CHOOSE(m_identity,ENWL!AP113, NPgN!AP113, NPgY!AP113, WMID!AP113, EMID!AP113, SWALES!AP113, SWEST!AP113, LPN!AP113,SPN!AP113,EPN!AP113,SPD!AP113,SPMW!AP113,SSEH!AP113,SSES!AP113) -> 0 | AQ113: =CHOOSE(m_identity,ENWL!AQ113, NPgN!AQ113, NPgY!AQ113, WMID!AQ113, EMID!AQ113, SWALES!AQ113, SWEST!AQ113, LPN!AQ113,SPN!AQ113,EPN!AQ113,SPD!AQ113,SPMW!AQ113,SSEH!AQ113,SSES!AQ113) -> 0
E114: Allocation to tree cutting | G114: % | AJ114: =CHOOSE(m_identity,ENWL!AJ114, NPgN!AJ114, NPgY!AJ114, WMID!AJ114, EMID!AJ114, SWALES!AJ114, SWEST!AJ114, LPN!AJ114,SPN!AJ114,EPN!AJ114,SPD!AJ114,SPMW!AJ114,SSEH!AJ114,SSES!AJ114) -> 0 | AK114: =CHOOSE(m_identity,ENWL!AK114, NPgN!AK114, NPgY!AK114, WMID!AK114, EMID!AK114, SWALES!AK114, SWEST!AK114, LPN!AK114,SPN!AK114,EPN!AK114,SPD!AK114,SPMW!AK114,SSEH!AK114,SSES!AK114) -> 0 | AL114: =CHOOSE(m_identity,ENWL!AL114, NPgN!AL114, NPgY!AL114, WMID!AL114, EMID!AL114, SWALES!AL114, SWEST!AL114, LPN!AL114,SPN!AL114,EPN!AL114,SPD!AL114,SPMW!AL114,SSEH!AL114,SSES!AL114) -> 0 | AM114: =CHOOSE(m_identity,ENWL!AM114, NPgN!AM114, NPgY!AM114, WMID!AM114, EMID!AM114, SWALES!AM114, SWEST!AM114, LPN!AM114,SPN!AM114,EPN!AM114,SPD!AM114,SPMW!AM114,SSEH!AM114,SSES!AM114) -> 0 | AN114: =CHOOSE(m_identity,ENWL!AN114, NPgN!AN114, NPgY!AN114, WMID!AN114, EMID!AN114, SWALES!AN114, SWEST!AN114, LPN!AN114,SPN!AN114,EPN!AN114,SPD!AN114,SPMW!AN114,SSEH!AN114,SSES!AN114) -> 0 | AO114: =CHOOSE(m_identity,ENWL!AO114, NPgN!AO114, NPgY!AO114, WMID!AO114, EMID!AO114, SWALES!AO114, SWEST!AO114, LPN!AO114,SPN!AO114,EPN!AO114,SPD!AO114,SPMW!AO114,SSEH!AO114,SSES!AO114) -> 0 | AP114: =CHOOSE(m_identity,ENWL!AP114, NPgN!AP114, NPgY!AP114, WMID!AP114, EMID!AP114, SWALES!AP114, SWEST!AP114, LPN!AP114,SPN!AP114,EPN!AP114,SPD!AP114,SPMW!AP114,SSEH!AP114,SSES!AP114) -> 0 | AQ114: =CHOOSE(m_identity,ENWL!AQ114, NPgN!AQ114, NPgY!AQ114, WMID!AQ114, EMID!AQ114, SWALES!AQ114, SWEST!AQ114, LPN!AQ114,SPN!AQ114,EPN!AQ114,SPD!AQ114,SPMW!AQ114,SSEH!AQ114,SSES!AQ114) -> 0
E115: Allocation to controllable opex | G115: % | AJ115: =CHOOSE(m_identity,ENWL!AJ115, NPgN!AJ115, NPgY!AJ115, WMID!AJ115, EMID!AJ115, SWALES!AJ115, SWEST!AJ115, LPN!AJ115,SPN!AJ115,EPN!AJ115,SPD!AJ115,SPMW!AJ115,SSEH!AJ115,SSES!AJ115) -> 0 | AK115: =CHOOSE(m_identity,ENWL!AK115, NPgN!AK115, NPgY!AK115, WMID!AK115, EMID!AK115, SWALES!AK115, SWEST!AK115, LPN!AK115,SPN!AK115,EPN!AK115,SPD!AK115,SPMW!AK115,SSEH!AK115,SSES!AK115) -> 0 | AL115: =CHOOSE(m_identity,ENWL!AL115, NPgN!AL115, NPgY!AL115, WMID!AL115, EMID!AL115, SWALES!AL115, SWEST!AL115, LPN!AL115,SPN!AL115,EPN!AL115,SPD!AL115,SPMW!AL115,SSEH!AL115,SSES!AL115) -> 0 | AM115: =CHOOSE(m_identity,ENWL!AM115, NPgN!AM115, NPgY!AM115, WMID!AM115, EMID!AM115, SWALES!AM115, SWEST!AM115, LPN!AM115,SPN!AM115,EPN!AM115,SPD!AM115,SPMW!AM115,SSEH!AM115,SSES!AM115) -> 0 | AN115: =CHOOSE(m_identity,ENWL!AN115, NPgN!AN115, NPgY!AN115, WMID!AN115, EMID!AN115, SWALES!AN115, SWEST!AN115, LPN!AN115,SPN!AN115,EPN!AN115,SPD!AN115,SPMW!AN115,SSEH!AN115,SSES!AN115) -> 0 | AO115: =CHOOSE(m_identity,ENWL!AO115, NPgN!AO115, NPgY!AO115, WMID!AO115, EMID!AO115, SWALES!AO115, SWEST!AO115, LPN!AO115,SPN!AO115,EPN!AO115,SPD!AO115,SPMW!AO115,SSEH!AO115,SSES!AO115) -> 0 | AP115: =CHOOSE(m_identity,ENWL!AP115, NPgN!AP115, NPgY!AP115, WMID!AP115, EMID!AP115, SWALES!AP115, SWEST!AP115, LPN!AP115,SPN!AP115,EPN!AP115,SPD!AP115,SPMW!AP115,SSEH!AP115,SSES!AP115) -> 0 | AQ115: =CHOOSE(m_identity,ENWL!AQ115, NPgN!AQ115, NPgY!AQ115, WMID!AQ115, EMID!AQ115, SWALES!AQ115, SWEST!AQ115, LPN!AQ115,SPN!AQ115,EPN!AQ115,SPD!AQ115,SPMW!AQ115,SSEH!AQ115,SSES!AQ115) -> 0
E117: =E20 -> Allowed uncertain costs (Undergrounding) | G117: £m 12/13 prices | AJ117: =AJ20 -> 0.320863282 | AK117: =AK20 -> 0.3201234782 | AL117: 0.3207506198 | AM117: 0.3200639505 | AN117: 0.3205412446 | AO117: 0.3210846656 | AP117: 0.3203434811 | AQ117: 0.3210856157
E118: Allocation to load related capex | G118: % | AJ118: =CHOOSE(m_identity,ENWL!AJ118, NPgN!AJ118, NPgY!AJ118, WMID!AJ118, EMID!AJ118, SWALES!AJ118, SWEST!AJ118, LPN!AJ118,SPN!AJ118,EPN!AJ118,SPD!AJ118,SPMW!AJ118,SSEH!AJ118,SSES!AJ118) -> 0 | AK118: =CHOOSE(m_identity,ENWL!AK118, NPgN!AK118, NPgY!AK118, WMID!AK118, EMID!AK118, SWALES!AK118, SWEST!AK118, LPN!AK118,SPN!AK118,EPN!AK118,SPD!AK118,SPMW!AK118,SSEH!AK118,SSES!AK118) -> 0 | AL118: =CHOOSE(m_identity,ENWL!AL118, NPgN!AL118, NPgY!AL118, WMID!AL118, EMID!AL118, SWALES!AL118, SWEST!AL118, LPN!AL118,SPN!AL118,EPN!AL118,SPD!AL118,SPMW!AL118,SSEH!AL118,SSES!AL118) -> 0 | AM118: =CHOOSE(m_identity,ENWL!AM118, NPgN!AM118, NPgY!AM118, WMID!AM118, EMID!AM118, SWALES!AM118, SWEST!AM118, LPN!AM118,SPN!AM118,EPN!AM118,SPD!AM118,SPMW!AM118,SSEH!AM118,SSES!AM118) -> 0 | AN118: =CHOOSE(m_identity,ENWL!AN118, NPgN!AN118, NPgY!AN118, WMID!AN118, EMID!AN118, SWALES!AN118, SWEST!AN118, LPN!AN118,SPN!AN118,EPN!AN118,SPD!AN118,SPMW!AN118,SSEH!AN118,SSES!AN118) -> 0 | AO118: =CHOOSE(m_identity,ENWL!AO118, NPgN!AO118, NPgY!AO118, WMID!AO118, EMID!AO118, SWALES!AO118, SWEST!AO118, LPN!AO118,SPN!AO118,EPN!AO118,SPD!AO118,SPMW!AO118,SSEH!AO118,SSES!AO118) -> 0 | AP118: =CHOOSE(m_identity,ENWL!AP118, NPgN!AP118, NPgY!AP118, WMID!AP118, EMID!AP118, SWALES!AP118, SWEST!AP118, LPN!AP118,SPN!AP118,EPN!AP118,SPD!AP118,SPMW!AP118,SSEH!AP118,SSES!AP118) -> 0 | AQ118: =CHOOSE(m_identity,ENWL!AQ118, NPgN!AQ118, NPgY!AQ118, WMID!AQ118, EMID!AQ118, SWALES!AQ118, SWEST!AQ118, LPN!AQ118,SPN!AQ118,EPN!AQ118,SPD!AQ118,SPMW!AQ118,SSEH!AQ118,SSES!AQ118) -> 0
E119: Allocation to non-load related capex - asset replacement | G119: % | AJ119: =CHOOSE(m_identity,ENWL!AJ119, NPgN!AJ119, NPgY!AJ119, WMID!AJ119, EMID!AJ119, SWALES!AJ119, SWEST!AJ119, LPN!AJ119,SPN!AJ119,EPN!AJ119,SPD!AJ119,SPMW!AJ119,SSEH!AJ119,SSES!AJ119) -> 0 | AK119: =CHOOSE(m_identity,ENWL!AK119, NPgN!AK119, NPgY!AK119, WMID!AK119, EMID!AK119, SWALES!AK119, SWEST!AK119, LPN!AK119,SPN!AK119,EPN!AK119,SPD!AK119,SPMW!AK119,SSEH!AK119,SSES!AK119) -> 0 | AL119: =CHOOSE(m_identity,ENWL!AL119, NPgN!AL119, NPgY!AL119, WMID!AL119, EMID!AL119, SWALES!AL119, SWEST!AL119, LPN!AL119,SPN!AL119,EPN!AL119,SPD!AL119,SPMW!AL119,SSEH!AL119,SSES!AL119) -> 0 | AM119: =CHOOSE(m_identity,ENWL!AM119, NPgN!AM119, NPgY!AM119, WMID!AM119, EMID!AM119, SWALES!AM119, SWEST!AM119, LPN!AM119,SPN!AM119,EPN!AM119,SPD!AM119,SPMW!AM119,SSEH!AM119,SSES!AM119) -> 0 | AN119: =CHOOSE(m_identity,ENWL!AN119, NPgN!AN119, NPgY!AN119, WMID!AN119, EMID!AN119, SWALES!AN119, SWEST!AN119, LPN!AN119,SPN!AN119,EPN!AN119,SPD!AN119,SPMW!AN119,SSEH!AN119,SSES!AN119) -> 0 | AO119: =CHOOSE(m_identity,ENWL!AO119, NPgN!AO119, NPgY!AO119, WMID!AO119, EMID!AO119, SWALES!AO119, SWEST!AO119, LPN!AO119,SPN!AO119,EPN!AO119,SPD!AO119,SPMW!AO119,SSEH!AO119,SSES!AO119) -> 0 | AP119: =CHOOSE(m_identity,ENWL!AP119, NPgN!AP119, NPgY!AP119, WMID!AP119, EMID!AP119, SWALES!AP119, SWEST!AP119, LPN!AP119,SPN!AP119,EPN!AP119,SPD!AP119,SPMW!AP119,SSEH!AP119,SSES!AP119) -> 0 | AQ119: =CHOOSE(m_identity,ENWL!AQ119, NPgN!AQ119, NPgY!AQ119, WMID!AQ119, EMID!AQ119, SWALES!AQ119, SWEST!AQ119, LPN!AQ119,SPN!AQ119,EPN!AQ119,SPD!AQ119,SPMW!AQ119,SSEH!AQ119,SSES!AQ119) -> 0
E120: Allocation to non-load related capex - other | G120: % | AJ120: =CHOOSE(m_identity,ENWL!AJ120, NPgN!AJ120, NPgY!AJ120, WMID!AJ120, EMID!AJ120, SWALES!AJ120, SWEST!AJ120, LPN!AJ120,SPN!AJ120,EPN!AJ120,SPD!AJ120,SPMW!AJ120,SSEH!AJ120,SSES!AJ120) -> 1 | AK120: =CHOOSE(m_identity,ENWL!AK120, NPgN!AK120, NPgY!AK120, WMID!AK120, EMID!AK120, SWALES!AK120, SWEST!AK120, LPN!AK120,SPN!AK120,EPN!AK120,SPD!AK120,SPMW!AK120,SSEH!AK120,SSES!AK120) -> 1 | AL120: =CHOOSE(m_identity,ENWL!AL120, NPgN!AL120, NPgY!AL120, WMID!AL120, EMID!AL120, SWALES!AL120, SWEST!AL120, LPN!AL120,SPN!AL120,EPN!AL120,SPD!AL120,SPMW!AL120,SSEH!AL120,SSES!AL120) -> 1 | AM120: =CHOOSE(m_identity,ENWL!AM120, NPgN!AM120, NPgY!AM120, WMID!AM120, EMID!AM120, SWALES!AM120, SWEST!AM120, LPN!AM120,SPN!AM120,EPN!AM120,SPD!AM120,SPMW!AM120,SSEH!AM120,SSES!AM120) -> 1 | AN120: =CHOOSE(m_identity,ENWL!AN120, NPgN!AN120, NPgY!AN120, WMID!AN120, EMID!AN120, SWALES!AN120, SWEST!AN120, LPN!AN120,SPN!AN120,EPN!AN120,SPD!AN120,SPMW!AN120,SSEH!AN120,SSES!AN120) -> 1 | AO120: =CHOOSE(m_identity,ENWL!AO120, NPgN!AO120, NPgY!AO120, WMID!AO120, EMID!AO120, SWALES!AO120, SWEST!AO120, LPN!AO120,SPN!AO120,EPN!AO120,SPD!AO120,SPMW!AO120,SSEH!AO120,SSES!AO120) -> 1 | AP120: =CHOOSE(m_identity,ENWL!AP120, NPgN!AP120, NPgY!AP120, WMID!AP120, EMID!AP120, SWALES!AP120, SWEST!AP120, LPN!AP120,SPN!AP120,EPN!AP120,SPD!AP120,SPMW!AP120,SSEH!AP120,SSES!AP120) -> 1 | AQ120: =CHOOSE(m_identity,ENWL!AQ120, NPgN!AQ120, NPgY!AQ120, WMID!AQ120, EMID!AQ120, SWALES!AQ120, SWEST!AQ120, LPN!AQ120,SPN!AQ120,EPN!AQ120,SPD!AQ120,SPMW!AQ120,SSEH!AQ120,SSES!AQ120) -> 1
E121: Allocation to faults | G121: % | AJ121: =CHOOSE(m_identity,ENWL!AJ121, NPgN!AJ121, NPgY!AJ121, WMID!AJ121, EMID!AJ121, SWALES!AJ121, SWEST!AJ121, LPN!AJ121,SPN!AJ121,EPN!AJ121,SPD!AJ121,SPMW!AJ121,SSEH!AJ121,SSES!AJ121) -> 0 | AK121: =CHOOSE(m_identity,ENWL!AK121, NPgN!AK121, NPgY!AK121, WMID!AK121, EMID!AK121, SWALES!AK121, SWEST!AK121, LPN!AK121,SPN!AK121,EPN!AK121,SPD!AK121,SPMW!AK121,SSEH!AK121,SSES!AK121) -> 0 | AL121: =CHOOSE(m_identity,ENWL!AL121, NPgN!AL121, NPgY!AL121, WMID!AL121, EMID!AL121, SWALES!AL121, SWEST!AL121, LPN!AL121,SPN!AL121,EPN!AL121,SPD!AL121,SPMW!AL121,SSEH!AL121,SSES!AL121) -> 0 | AM121: =CHOOSE(m_identity,ENWL!AM121, NPgN!AM121, NPgY!AM121, WMID!AM121, EMID!AM121, SWALES!AM121, SWEST!AM121, LPN!AM121,SPN!AM121,EPN!AM121,SPD!AM121,SPMW!AM121,SSEH!AM121,SSES!AM121) -> 0 | AN121: =CHOOSE(m_identity,ENWL!AN121, NPgN!AN121, NPgY!AN121, WMID!AN121, EMID!AN121, SWALES!AN121, SWEST!AN121, LPN!AN121,SPN!AN121,EPN!AN121,SPD!AN121,SPMW!AN121,SSEH!AN121,SSES!AN121) -> 0 | AO121: =CHOOSE(m_identity,ENWL!AO121, NPgN!AO121, NPgY!AO121, WMID!AO121, EMID!AO121, SWALES!AO121, SWEST!AO121, LPN!AO121,SPN!AO121,EPN!AO121,SPD!AO121,SPMW!AO121,SSEH!AO121,SSES!AO121) -> 0 | AP121: =CHOOSE(m_identity,ENWL!AP121, NPgN!AP121, NPgY!AP121, WMID!AP121, EMID!AP121, SWALES!AP121, SWEST!AP121, LPN!AP121,SPN!AP121,EPN!AP121,SPD!AP121,SPMW!AP121,SSEH!AP121,SSES!AP121) -> 0 | AQ121: =CHOOSE(m_identity,ENWL!AQ121, NPgN!AQ121, NPgY!AQ121, WMID!AQ121, EMID!AQ121, SWALES!AQ121, SWEST!AQ121, LPN!AQ121,SPN!AQ121,EPN!AQ121,SPD!AQ121,SPMW!AQ121,SSEH!AQ121,SSES!AQ121) -> 0
E122: Allocation to tree cutting | G122: % | AJ122: =CHOOSE(m_identity,ENWL!AJ122, NPgN!AJ122, NPgY!AJ122, WMID!AJ122, EMID!AJ122, SWALES!AJ122, SWEST!AJ122, LPN!AJ122,SPN!AJ122,EPN!AJ122,SPD!AJ122,SPMW!AJ122,SSEH!AJ122,SSES!AJ122) -> 0 | AK122: =CHOOSE(m_identity,ENWL!AK122, NPgN!AK122, NPgY!AK122, WMID!AK122, EMID!AK122, SWALES!AK122, SWEST!AK122, LPN!AK122,SPN!AK122,EPN!AK122,SPD!AK122,SPMW!AK122,SSEH!AK122,SSES!AK122) -> 0 | AL122: =CHOOSE(m_identity,ENWL!AL122, NPgN!AL122, NPgY!AL122, WMID!AL122, EMID!AL122, SWALES!AL122, SWEST!AL122, LPN!AL122,SPN!AL122,EPN!AL122,SPD!AL122,SPMW!AL122,SSEH!AL122,SSES!AL122) -> 0 | AM122: =CHOOSE(m_identity,ENWL!AM122, NPgN!AM122, NPgY!AM122, WMID!AM122, EMID!AM122, SWALES!AM122, SWEST!AM122, LPN!AM122,SPN!AM122,EPN!AM122,SPD!AM122,SPMW!AM122,SSEH!AM122,SSES!AM122) -> 0 | AN122: =CHOOSE(m_identity,ENWL!AN122, NPgN!AN122, NPgY!AN122, WMID!AN122, EMID!AN122, SWALES!AN122, SWEST!AN122, LPN!AN122,SPN!AN122,EPN!AN122,SPD!AN122,SPMW!AN122,SSEH!AN122,SSES!AN122) -> 0 | AO122: =CHOOSE(m_identity,ENWL!AO122, NPgN!AO122, NPgY!AO122, WMID!AO122, EMID!AO122, SWALES!AO122, SWEST!AO122, LPN!AO122,SPN!AO122,EPN!AO122,SPD!AO122,SPMW!AO122,SSEH!AO122,SSES!AO122) -> 0 | AP122: =CHOOSE(m_identity,ENWL!AP122, NPgN!AP122, NPgY!AP122, WMID!AP122, EMID!AP122, SWALES!AP122, SWEST!AP122, LPN!AP122,SPN!AP122,EPN!AP122,SPD!AP122,SPMW!AP122,SSEH!AP122,SSES!AP122) -> 0 | AQ122: =CHOOSE(m_identity,ENWL!AQ122, NPgN!AQ122, NPgY!AQ122, WMID!AQ122, EMID!AQ122, SWALES!AQ122, SWEST!AQ122, LPN!AQ122,SPN!AQ122,EPN!AQ122,SPD!AQ122,SPMW!AQ122,SSEH!AQ122,SSES!AQ122) -> 0
E123: Allocation to controllable opex | G123: % | AJ123: =CHOOSE(m_identity,ENWL!AJ123, NPgN!AJ123, NPgY!AJ123, WMID!AJ123, EMID!AJ123, SWALES!AJ123, SWEST!AJ123, LPN!AJ123,SPN!AJ123,EPN!AJ123,SPD!AJ123,SPMW!AJ123,SSEH!AJ123,SSES!AJ123) -> 0 | AK123: =CHOOSE(m_identity,ENWL!AK123, NPgN!AK123, NPgY!AK123, WMID!AK123, EMID!AK123, SWALES!AK123, SWEST!AK123, LPN!AK123,SPN!AK123,EPN!AK123,SPD!AK123,SPMW!AK123,SSEH!AK123,SSES!AK123) -> 0 | AL123: =CHOOSE(m_identity,ENWL!AL123, NPgN!AL123, NPgY!AL123, WMID!AL123, EMID!AL123, SWALES!AL123, SWEST!AL123, LPN!AL123,SPN!AL123,EPN!AL123,SPD!AL123,SPMW!AL123,SSEH!AL123,SSES!AL123) -> 0 | AM123: =CHOOSE(m_identity,ENWL!AM123, NPgN!AM123, NPgY!AM123, WMID!AM123, EMID!AM123, SWALES!AM123, SWEST!AM123, LPN!AM123,SPN!AM123,EPN!AM123,SPD!AM123,SPMW!AM123,SSEH!AM123,SSES!AM123) -> 0 | AN123: =CHOOSE(m_identity,ENWL!AN123, NPgN!AN123, NPgY!AN123, WMID!AN123, EMID!AN123, SWALES!AN123, SWEST!AN123, LPN!AN123,SPN!AN123,EPN!AN123,SPD!AN123,SPMW!AN123,SSEH!AN123,SSES!AN123) -> 0 | AO123: =CHOOSE(m_identity,ENWL!AO123, NPgN!AO123, NPgY!AO123, WMID!AO123, EMID!AO123, SWALES!AO123, SWEST!AO123, LPN!AO123,SPN!AO123,EPN!AO123,SPD!AO123,SPMW!AO123,SSEH!AO123,SSES!AO123) -> 0 | AP123: =CHOOSE(m_identity,ENWL!AP123, NPgN!AP123, NPgY!AP123, WMID!AP123, EMID!AP123, SWALES!AP123, SWEST!AP123, LPN!AP123,SPN!AP123,EPN!AP123,SPD!AP123,SPMW!AP123,SSEH!AP123,SSES!AP123) -> 0 | AQ123: =CHOOSE(m_identity,ENWL!AQ123, NPgN!AQ123, NPgY!AQ123, WMID!AQ123, EMID!AQ123, SWALES!AQ123, SWEST!AQ123, LPN!AQ123,SPN!AQ123,EPN!AQ123,SPD!AQ123,SPMW!AQ123,SSEH!AQ123,SSES!AQ123) -> 0
E125: =E21 -> Allowed uncertain costs (Worst served customers) | G125: £m 12/13 prices | AJ125: =AJ21 -> 0 | AK125: =AK21 -> 0.5109417222 | AL125: 0.5102133506 | AM125: 0 | AN125: 0 | AO125: 0 | AP125: 0 | AQ125: 0
E126: Allocation to load related capex | G126: % | AJ126: =CHOOSE(m_identity,ENWL!AJ126, NPgN!AJ126, NPgY!AJ126, WMID!AJ126, EMID!AJ126, SWALES!AJ126, SWEST!AJ126, LPN!AJ126,SPN!AJ126,EPN!AJ126,SPD!AJ126,SPMW!AJ126,SSEH!AJ126,SSES!AJ126) -> 0 | AK126: =CHOOSE(m_identity,ENWL!AK126, NPgN!AK126, NPgY!AK126, WMID!AK126, EMID!AK126, SWALES!AK126, SWEST!AK126, LPN!AK126,SPN!AK126,EPN!AK126,SPD!AK126,SPMW!AK126,SSEH!AK126,SSES!AK126) -> 0 | AL126: =CHOOSE(m_identity,ENWL!AL126, NPgN!AL126, NPgY!AL126, WMID!AL126, EMID!AL126, SWALES!AL126, SWEST!AL126, LPN!AL126,SPN!AL126,EPN!AL126,SPD!AL126,SPMW!AL126,SSEH!AL126,SSES!AL126) -> 0 | AM126: =CHOOSE(m_identity,ENWL!AM126, NPgN!AM126, NPgY!AM126, WMID!AM126, EMID!AM126, SWALES!AM126, SWEST!AM126, LPN!AM126,SPN!AM126,EPN!AM126,SPD!AM126,SPMW!AM126,SSEH!AM126,SSES!AM126) -> 0 | AN126: =CHOOSE(m_identity,ENWL!AN126, NPgN!AN126, NPgY!AN126, WMID!AN126, EMID!AN126, SWALES!AN126, SWEST!AN126, LPN!AN126,SPN!AN126,EPN!AN126,SPD!AN126,SPMW!AN126,SSEH!AN126,SSES!AN126) -> 0 | AO126: =CHOOSE(m_identity,ENWL!AO126, NPgN!AO126, NPgY!AO126, WMID!AO126, EMID!AO126, SWALES!AO126, SWEST!AO126, LPN!AO126,SPN!AO126,EPN!AO126,SPD!AO126,SPMW!AO126,SSEH!AO126,SSES!AO126) -> 0 | AP126: =CHOOSE(m_identity,ENWL!AP126, NPgN!AP126, NPgY!AP126, WMID!AP126, EMID!AP126, SWALES!AP126, SWEST!AP126, LPN!AP126,SPN!AP126,EPN!AP126,SPD!AP126,SPMW!AP126,SSEH!AP126,SSES!AP126) -> 0 | AQ126: =CHOOSE(m_identity,ENWL!AQ126, NPgN!AQ126, NPgY!AQ126, WMID!AQ126, EMID!AQ126, SWALES!AQ126, SWEST!AQ126, LPN!AQ126,SPN!AQ126,EPN!AQ126,SPD!AQ126,SPMW!AQ126,SSEH!AQ126,SSES!AQ126) -> 0
E127: Allocation to non-load related capex - asset replacement | G127: % | AJ127: =CHOOSE(m_identity,ENWL!AJ127, NPgN!AJ127, NPgY!AJ127, WMID!AJ127, EMID!AJ127, SWALES!AJ127, SWEST!AJ127, LPN!AJ127,SPN!AJ127,EPN!AJ127,SPD!AJ127,SPMW!AJ127,SSEH!AJ127,SSES!AJ127) -> 1 | AK127: =CHOOSE(m_identity,ENWL!AK127, NPgN!AK127, NPgY!AK127, WMID!AK127, EMID!AK127, SWALES!AK127, SWEST!AK127, LPN!AK127,SPN!AK127,EPN!AK127,SPD!AK127,SPMW!AK127,SSEH!AK127,SSES!AK127) -> 1 | AL127: =CHOOSE(m_identity,ENWL!AL127, NPgN!AL127, NPgY!AL127, WMID!AL127, EMID!AL127, SWALES!AL127, SWEST!AL127, LPN!AL127,SPN!AL127,EPN!AL127,SPD!AL127,SPMW!AL127,SSEH!AL127,SSES!AL127) -> 1 | AM127: =CHOOSE(m_identity,ENWL!AM127, NPgN!AM127, NPgY!AM127, WMID!AM127, EMID!AM127, SWALES!AM127, SWEST!AM127, LPN!AM127,SPN!AM127,EPN!AM127,SPD!AM127,SPMW!AM127,SSEH!AM127,SSES!AM127) -> 1 | AN127: =CHOOSE(m_identity,ENWL!AN127, NPgN!AN127, NPgY!AN127, WMID!AN127, EMID!AN127, SWALES!AN127, SWEST!AN127, LPN!AN127,SPN!AN127,EPN!AN127,SPD!AN127,SPMW!AN127,SSEH!AN127,SSES!AN127) -> 1 | AO127: =CHOOSE(m_identity,ENWL!AO127, NPgN!AO127, NPgY!AO127, WMID!AO127, EMID!AO127, SWALES!AO127, SWEST!AO127, LPN!AO127,SPN!AO127,EPN!AO127,SPD!AO127,SPMW!AO127,SSEH!AO127,SSES!AO127) -> 1 | AP127: =CHOOSE(m_identity,ENWL!AP127, NPgN!AP127, NPgY!AP127, WMID!AP127, EMID!AP127, SWALES!AP127, SWEST!AP127, LPN!AP127,SPN!AP127,EPN!AP127,SPD!AP127,SPMW!AP127,SSEH!AP127,SSES!AP127) -> 1 | AQ127: =CHOOSE(m_identity,ENWL!AQ127, NPgN!AQ127, NPgY!AQ127, WMID!AQ127, EMID!AQ127, SWALES!AQ127, SWEST!AQ127, LPN!AQ127,SPN!AQ127,EPN!AQ127,SPD!AQ127,SPMW!AQ127,SSEH!AQ127,SSES!AQ127) -> 1
E128: Allocation to non-load related capex - other | G128: % | AJ128: =CHOOSE(m_identity,ENWL!AJ128, NPgN!AJ128, NPgY!AJ128, WMID!AJ128, EMID!AJ128, SWALES!AJ128, SWEST!AJ128, LPN!AJ128,SPN!AJ128,EPN!AJ128,SPD!AJ128,SPMW!AJ128,SSEH!AJ128,SSES!AJ128) -> 0 | AK128: =CHOOSE(m_identity,ENWL!AK128, NPgN!AK128, NPgY!AK128, WMID!AK128, EMID!AK128, SWALES!AK128, SWEST!AK128, LPN!AK128,SPN!AK128,EPN!AK128,SPD!AK128,SPMW!AK128,SSEH!AK128,SSES!AK128) -> 0 | AL128: =CHOOSE(m_identity,ENWL!AL128, NPgN!AL128, NPgY!AL128, WMID!AL128, EMID!AL128, SWALES!AL128, SWEST!AL128, LPN!AL128,SPN!AL128,EPN!AL128,SPD!AL128,SPMW!AL128,SSEH!AL128,SSES!AL128) -> 0 | AM128: =CHOOSE(m_identity,ENWL!AM128, NPgN!AM128, NPgY!AM128, WMID!AM128, EMID!AM128, SWALES!AM128, SWEST!AM128, LPN!AM128,SPN!AM128,EPN!AM128,SPD!AM128,SPMW!AM128,SSEH!AM128,SSES!AM128) -> 0 | AN128: =CHOOSE(m_identity,ENWL!AN128, NPgN!AN128, NPgY!AN128, WMID!AN128, EMID!AN128, SWALES!AN128, SWEST!AN128, LPN!AN128,SPN!AN128,EPN!AN128,SPD!AN128,SPMW!AN128,SSEH!AN128,SSES!AN128) -> 0 | AO128: =CHOOSE(m_identity,ENWL!AO128, NPgN!AO128, NPgY!AO128, WMID!AO128, EMID!AO128, SWALES!AO128, SWEST!AO128, LPN!AO128,SPN!AO128,EPN!AO128,SPD!AO128,SPMW!AO128,SSEH!AO128,SSES!AO128) -> 0 | AP128: =CHOOSE(m_identity,ENWL!AP128, NPgN!AP128, NPgY!AP128, WMID!AP128, EMID!AP128, SWALES!AP128, SWEST!AP128, LPN!AP128,SPN!AP128,EPN!AP128,SPD!AP128,SPMW!AP128,SSEH!AP128,SSES!AP128) -> 0 | AQ128: =CHOOSE(m_identity,ENWL!AQ128, NPgN!AQ128, NPgY!AQ128, WMID!AQ128, EMID!AQ128, SWALES!AQ128, SWEST!AQ128, LPN!AQ128,SPN!AQ128,EPN!AQ128,SPD!AQ128,SPMW!AQ128,SSEH!AQ128,SSES!AQ128) -> 0
E129: Allocation to faults | G129: % | AJ129: =CHOOSE(m_identity,ENWL!AJ129, NPgN!AJ129, NPgY!AJ129, WMID!AJ129, EMID!AJ129, SWALES!AJ129, SWEST!AJ129, LPN!AJ129,SPN!AJ129,EPN!AJ129,SPD!AJ129,SPMW!AJ129,SSEH!AJ129,SSES!AJ129) -> 0 | AK129: =CHOOSE(m_identity,ENWL!AK129, NPgN!AK129, NPgY!AK129, WMID!AK129, EMID!AK129, SWALES!AK129, SWEST!AK129, LPN!AK129,SPN!AK129,EPN!AK129,SPD!AK129,SPMW!AK129,SSEH!AK129,SSES!AK129) -> 0 | AL129: =CHOOSE(m_identity,ENWL!AL129, NPgN!AL129, NPgY!AL129, WMID!AL129, EMID!AL129, SWALES!AL129, SWEST!AL129, LPN!AL129,SPN!AL129,EPN!AL129,SPD!AL129,SPMW!AL129,SSEH!AL129,SSES!AL129) -> 0 | AM129: =CHOOSE(m_identity,ENWL!AM129, NPgN!AM129, NPgY!AM129, WMID!AM129, EMID!AM129, SWALES!AM129, SWEST!AM129, LPN!AM129,SPN!AM129,EPN!AM129,SPD!AM129,SPMW!AM129,SSEH!AM129,SSES!AM129) -> 0 | AN129: =CHOOSE(m_identity,ENWL!AN129, NPgN!AN129, NPgY!AN129, WMID!AN129, EMID!AN129, SWALES!AN129, SWEST!AN129, LPN!AN129,SPN!AN129,EPN!AN129,SPD!AN129,SPMW!AN129,SSEH!AN129,SSES!AN129) -> 0 | AO129: =CHOOSE(m_identity,ENWL!AO129, NPgN!AO129, NPgY!AO129, WMID!AO129, EMID!AO129, SWALES!AO129, SWEST!AO129, LPN!AO129,SPN!AO129,EPN!AO129,SPD!AO129,SPMW!AO129,SSEH!AO129,SSES!AO129) -> 0 | AP129: =CHOOSE(m_identity,ENWL!AP129, NPgN!AP129, NPgY!AP129, WMID!AP129, EMID!AP129, SWALES!AP129, SWEST!AP129, LPN!AP129,SPN!AP129,EPN!AP129,SPD!AP129,SPMW!AP129,SSEH!AP129,SSES!AP129) -> 0 | AQ129: =CHOOSE(m_identity,ENWL!AQ129, NPgN!AQ129, NPgY!AQ129, WMID!AQ129, EMID!AQ129, SWALES!AQ129, SWEST!AQ129, LPN!AQ129,SPN!AQ129,EPN!AQ129,SPD!AQ129,SPMW!AQ129,SSEH!AQ129,SSES!AQ129) -> 0
E130: Allocation to tree cutting | G130: % | AJ130: =CHOOSE(m_identity,ENWL!AJ130, NPgN!AJ130, NPgY!AJ130, WMID!AJ130, EMID!AJ130, SWALES!AJ130, SWEST!AJ130, LPN!AJ130,SPN!AJ130,EPN!AJ130,SPD!AJ130,SPMW!AJ130,SSEH!AJ130,SSES!AJ130) -> 0 | AK130: =CHOOSE(m_identity,ENWL!AK130, NPgN!AK130, NPgY!AK130, WMID!AK130, EMID!AK130, SWALES!AK130, SWEST!AK130, LPN!AK130,SPN!AK130,EPN!AK130,SPD!AK130,SPMW!AK130,SSEH!AK130,SSES!AK130) -> 0 | AL130: =CHOOSE(m_identity,ENWL!AL130, NPgN!AL130, NPgY!AL130, WMID!AL130, EMID!AL130, SWALES!AL130, SWEST!AL130, LPN!AL130,SPN!AL130,EPN!AL130,SPD!AL130,SPMW!AL130,SSEH!AL130,SSES!AL130) -> 0 | AM130: =CHOOSE(m_identity,ENWL!AM130, NPgN!AM130, NPgY!AM130, WMID!AM130, EMID!AM130, SWALES!AM130, SWEST!AM130, LPN!AM130,SPN!AM130,EPN!AM130,SPD!AM130,SPMW!AM130,SSEH!AM130,SSES!AM130) -> 0 | AN130: =CHOOSE(m_identity,ENWL!AN130, NPgN!AN130, NPgY!AN130, WMID!AN130, EMID!AN130, SWALES!AN130, SWEST!AN130, LPN!AN130,SPN!AN130,EPN!AN130,SPD!AN130,SPMW!AN130,SSEH!AN130,SSES!AN130) -> 0 | AO130: =CHOOSE(m_identity,ENWL!AO130, NPgN!AO130, NPgY!AO130, WMID!AO130, EMID!AO130, SWALES!AO130, SWEST!AO130, LPN!AO130,SPN!AO130,EPN!AO130,SPD!AO130,SPMW!AO130,SSEH!AO130,SSES!AO130) -> 0 | AP130: =CHOOSE(m_identity,ENWL!AP130, NPgN!AP130, NPgY!AP130, WMID!AP130, EMID!AP130, SWALES!AP130, SWEST!AP130, LPN!AP130,SPN!AP130,EPN!AP130,SPD!AP130,SPMW!AP130,SSEH!AP130,SSES!AP130) -> 0 | AQ130: =CHOOSE(m_identity,ENWL!AQ130, NPgN!AQ130, NPgY!AQ130, WMID!AQ130, EMID!AQ130, SWALES!AQ130, SWEST!AQ130, LPN!AQ130,SPN!AQ130,EPN!AQ130,SPD!AQ130,SPMW!AQ130,SSEH!AQ130,SSES!AQ130) -> 0
E131: Allocation to controllable opex | G131: % | AJ131: =CHOOSE(m_identity,ENWL!AJ131, NPgN!AJ131, NPgY!AJ131, WMID!AJ131, EMID!AJ131, SWALES!AJ131, SWEST!AJ131, LPN!AJ131,SPN!AJ131,EPN!AJ131,SPD!AJ131,SPMW!AJ131,SSEH!AJ131,SSES!AJ131) -> 0 | AK131: =CHOOSE(m_identity,ENWL!AK131, NPgN!AK131, NPgY!AK131, WMID!AK131, EMID!AK131, SWALES!AK131, SWEST!AK131, LPN!AK131,SPN!AK131,EPN!AK131,SPD!AK131,SPMW!AK131,SSEH!AK131,SSES!AK131) -> 0 | AL131: =CHOOSE(m_identity,ENWL!AL131, NPgN!AL131, NPgY!AL131, WMID!AL131, EMID!AL131, SWALES!AL131, SWEST!AL131, LPN!AL131,SPN!AL131,EPN!AL131,SPD!AL131,SPMW!AL131,SSEH!AL131,SSES!AL131) -> 0 | AM131: =CHOOSE(m_identity,ENWL!AM131, NPgN!AM131, NPgY!AM131, WMID!AM131, EMID!AM131, SWALES!AM131, SWEST!AM131, LPN!AM131,SPN!AM131,EPN!AM131,SPD!AM131,SPMW!AM131,SSEH!AM131,SSES!AM131) -> 0 | AN131: =CHOOSE(m_identity,ENWL!AN131, NPgN!AN131, NPgY!AN131, WMID!AN131, EMID!AN131, SWALES!AN131, SWEST!AN131, LPN!AN131,SPN!AN131,EPN!AN131,SPD!AN131,SPMW!AN131,SSEH!AN131,SSES!AN131) -> 0 | AO131: =CHOOSE(m_identity,ENWL!AO131, NPgN!AO131, NPgY!AO131, WMID!AO131, EMID!AO131, SWALES!AO131, SWEST!AO131, LPN!AO131,SPN!AO131,EPN!AO131,SPD!AO131,SPMW!AO131,SSEH!AO131,SSES!AO131) -> 0 | AP131: =CHOOSE(m_identity,ENWL!AP131, NPgN!AP131, NPgY!AP131, WMID!AP131, EMID!AP131, SWALES!AP131, SWEST!AP131, LPN!AP131,SPN!AP131,EPN!AP131,SPD!AP131,SPMW!AP131,SSEH!AP131,SSES!AP131) -> 0 | AQ131: =CHOOSE(m_identity,ENWL!AQ131, NPgN!AQ131, NPgY!AQ131, WMID!AQ131, EMID!AQ131, SWALES!AQ131, SWEST!AQ131, LPN!AQ131,SPN!AQ131,EPN!AQ131,SPD!AQ131,SPMW!AQ131,SSEH!AQ131,SSES!AQ131) -> 0
E133: =E22 -> Allowed uncertain costs (Smart metering roll out costs) | G133: £m 12/13 prices | AJ133: =AJ22 -> 0.05248632041 | AK133: 0.05185836066 | AL133: 0.05056522318 | AM133: 0.04590256723 | AN133: 0.04200092604 | AO133: 0.04373033078 | AP133: 0 | AQ133: 0
E134: Allocation to load related capex | G134: % | AJ134: =CHOOSE(m_identity,ENWL!AJ134, NPgN!AJ134, NPgY!AJ134, WMID!AJ134, EMID!AJ134, SWALES!AJ134, SWEST!AJ134, LPN!AJ134,SPN!AJ134,EPN!AJ134,SPD!AJ134,SPMW!AJ134,SSEH!AJ134,SSES!AJ134) -> 0 | AK134: =CHOOSE(m_identity,ENWL!AK134, NPgN!AK134, NPgY!AK134, WMID!AK134, EMID!AK134, SWALES!AK134, SWEST!AK134, LPN!AK134,SPN!AK134,EPN!AK134,SPD!AK134,SPMW!AK134,SSEH!AK134,SSES!AK134) -> 0 | AL134: =CHOOSE(m_identity,ENWL!AL134, NPgN!AL134, NPgY!AL134, WMID!AL134, EMID!AL134, SWALES!AL134, SWEST!AL134, LPN!AL134,SPN!AL134,EPN!AL134,SPD!AL134,SPMW!AL134,SSEH!AL134,SSES!AL134) -> 0 | AM134: =CHOOSE(m_identity,ENWL!AM134, NPgN!AM134, NPgY!AM134, WMID!AM134, EMID!AM134, SWALES!AM134, SWEST!AM134, LPN!AM134,SPN!AM134,EPN!AM134,SPD!AM134,SPMW!AM134,SSEH!AM134,SSES!AM134) -> 0 | AN134: =CHOOSE(m_identity,ENWL!AN134, NPgN!AN134, NPgY!AN134, WMID!AN134, EMID!AN134, SWALES!AN134, SWEST!AN134, LPN!AN134,SPN!AN134,EPN!AN134,SPD!AN134,SPMW!AN134,SSEH!AN134,SSES!AN134) -> 0 | AO134: =CHOOSE(m_identity,ENWL!AO134, NPgN!AO134, NPgY!AO134, WMID!AO134, EMID!AO134, SWALES!AO134, SWEST!AO134, LPN!AO134,SPN!AO134,EPN!AO134,SPD!AO134,SPMW!AO134,SSEH!AO134,SSES!AO134) -> 0 | AP134: =CHOOSE(m_identity,ENWL!AP134, NPgN!AP134, NPgY!AP134, WMID!AP134, EMID!AP134, SWALES!AP134, SWEST!AP134, LPN!AP134,SPN!AP134,EPN!AP134,SPD!AP134,SPMW!AP134,SSEH!AP134,SSES!AP134) -> 0 | AQ134: =CHOOSE(m_identity,ENWL!AQ134, NPgN!AQ134, NPgY!AQ134, WMID!AQ134, EMID!AQ134, SWALES!AQ134, SWEST!AQ134, LPN!AQ134,SPN!AQ134,EPN!AQ134,SPD!AQ134,SPMW!AQ134,SSEH!AQ134,SSES!AQ134) -> 0
E135: Allocation to non-load related capex - asset replacement | G135: % | AJ135: =CHOOSE(m_identity,ENWL!AJ135, NPgN!AJ135, NPgY!AJ135, WMID!AJ135, EMID!AJ135, SWALES!AJ135, SWEST!AJ135, LPN!AJ135,SPN!AJ135,EPN!AJ135,SPD!AJ135,SPMW!AJ135,SSEH!AJ135,SSES!AJ135) -> 0 | AK135: =CHOOSE(m_identity,ENWL!AK135, NPgN!AK135, NPgY!AK135, WMID!AK135, EMID!AK135, SWALES!AK135, SWEST!AK135, LPN!AK135,SPN!AK135,EPN!AK135,SPD!AK135,SPMW!AK135,SSEH!AK135,SSES!AK135) -> 0 | AL135: =CHOOSE(m_identity,ENWL!AL135, NPgN!AL135, NPgY!AL135, WMID!AL135, EMID!AL135, SWALES!AL135, SWEST!AL135, LPN!AL135,SPN!AL135,EPN!AL135,SPD!AL135,SPMW!AL135,SSEH!AL135,SSES!AL135) -> 0 | AM135: =CHOOSE(m_identity,ENWL!AM135, NPgN!AM135, NPgY!AM135, WMID!AM135, EMID!AM135, SWALES!AM135, SWEST!AM135, LPN!AM135,SPN!AM135,EPN!AM135,SPD!AM135,SPMW!AM135,SSEH!AM135,SSES!AM135) -> 0 | AN135: =CHOOSE(m_identity,ENWL!AN135, NPgN!AN135, NPgY!AN135, WMID!AN135, EMID!AN135, SWALES!AN135, SWEST!AN135, LPN!AN135,SPN!AN135,EPN!AN135,SPD!AN135,SPMW!AN135,SSEH!AN135,SSES!AN135) -> 0 | AO135: =CHOOSE(m_identity,ENWL!AO135, NPgN!AO135, NPgY!AO135, WMID!AO135, EMID!AO135, SWALES!AO135, SWEST!AO135, LPN!AO135,SPN!AO135,EPN!AO135,SPD!AO135,SPMW!AO135,SSEH!AO135,SSES!AO135) -> 0 | AP135: =CHOOSE(m_identity,ENWL!AP135, NPgN!AP135, NPgY!AP135, WMID!AP135, EMID!AP135, SWALES!AP135, SWEST!AP135, LPN!AP135,SPN!AP135,EPN!AP135,SPD!AP135,SPMW!AP135,SSEH!AP135,SSES!AP135) -> 0 | AQ135: =CHOOSE(m_identity,ENWL!AQ135, NPgN!AQ135, NPgY!AQ135, WMID!AQ135, EMID!AQ135, SWALES!AQ135, SWEST!AQ135, LPN!AQ135,SPN!AQ135,EPN!AQ135,SPD!AQ135,SPMW!AQ135,SSEH!AQ135,SSES!AQ135) -> 0
E136: Allocation to non-load related capex - other | G136: % | AJ136: =CHOOSE(m_identity,ENWL!AJ136, NPgN!AJ136, NPgY!AJ136, WMID!AJ136, EMID!AJ136, SWALES!AJ136, SWEST!AJ136, LPN!AJ136,SPN!AJ136,EPN!AJ136,SPD!AJ136,SPMW!AJ136,SSEH!AJ136,SSES!AJ136) -> 0 | AK136: =CHOOSE(m_identity,ENWL!AK136, NPgN!AK136, NPgY!AK136, WMID!AK136, EMID!AK136, SWALES!AK136, SWEST!AK136, LPN!AK136,SPN!AK136,EPN!AK136,SPD!AK136,SPMW!AK136,SSEH!AK136,SSES!AK136) -> 0 | AL136: =CHOOSE(m_identity,ENWL!AL136, NPgN!AL136, NPgY!AL136, WMID!AL136, EMID!AL136, SWALES!AL136, SWEST!AL136, LPN!AL136,SPN!AL136,EPN!AL136,SPD!AL136,SPMW!AL136,SSEH!AL136,SSES!AL136) -> 0 | AM136: =CHOOSE(m_identity,ENWL!AM136, NPgN!AM136, NPgY!AM136, WMID!AM136, EMID!AM136, SWALES!AM136, SWEST!AM136, LPN!AM136,SPN!AM136,EPN!AM136,SPD!AM136,SPMW!AM136,SSEH!AM136,SSES!AM136) -> 0 | AN136: =CHOOSE(m_identity,ENWL!AN136, NPgN!AN136, NPgY!AN136, WMID!AN136, EMID!AN136, SWALES!AN136, SWEST!AN136, LPN!AN136,SPN!AN136,EPN!AN136,SPD!AN136,SPMW!AN136,SSEH!AN136,SSES!AN136) -> 0 | AO136: =CHOOSE(m_identity,ENWL!AO136, NPgN!AO136, NPgY!AO136, WMID!AO136, EMID!AO136, SWALES!AO136, SWEST!AO136, LPN!AO136,SPN!AO136,EPN!AO136,SPD!AO136,SPMW!AO136,SSEH!AO136,SSES!AO136) -> 0 | AP136: =CHOOSE(m_identity,ENWL!AP136, NPgN!AP136, NPgY!AP136, WMID!AP136, EMID!AP136, SWALES!AP136, SWEST!AP136, LPN!AP136,SPN!AP136,EPN!AP136,SPD!AP136,SPMW!AP136,SSEH!AP136,SSES!AP136) -> 0 | AQ136: =CHOOSE(m_identity,ENWL!AQ136, NPgN!AQ136, NPgY!AQ136, WMID!AQ136, EMID!AQ136, SWALES!AQ136, SWEST!AQ136, LPN!AQ136,SPN!AQ136,EPN!AQ136,SPD!AQ136,SPMW!AQ136,SSEH!AQ136,SSES!AQ136) -> 0
E137: Allocation to faults | G137: % | AJ137: =CHOOSE(m_identity,ENWL!AJ137, NPgN!AJ137, NPgY!AJ137, WMID!AJ137, EMID!AJ137, SWALES!AJ137, SWEST!AJ137, LPN!AJ137,SPN!AJ137,EPN!AJ137,SPD!AJ137,SPMW!AJ137,SSEH!AJ137,SSES!AJ137) -> 0 | AK137: =CHOOSE(m_identity,ENWL!AK137, NPgN!AK137, NPgY!AK137, WMID!AK137, EMID!AK137, SWALES!AK137, SWEST!AK137, LPN!AK137,SPN!AK137,EPN!AK137,SPD!AK137,SPMW!AK137,SSEH!AK137,SSES!AK137) -> 0 | AL137: =CHOOSE(m_identity,ENWL!AL137, NPgN!AL137, NPgY!AL137, WMID!AL137, EMID!AL137, SWALES!AL137, SWEST!AL137, LPN!AL137,SPN!AL137,EPN!AL137,SPD!AL137,SPMW!AL137,SSEH!AL137,SSES!AL137) -> 0 | AM137: =CHOOSE(m_identity,ENWL!AM137, NPgN!AM137, NPgY!AM137, WMID!AM137, EMID!AM137, SWALES!AM137, SWEST!AM137, LPN!AM137,SPN!AM137,EPN!AM137,SPD!AM137,SPMW!AM137,SSEH!AM137,SSES!AM137) -> 0 | AN137: =CHOOSE(m_identity,ENWL!AN137, NPgN!AN137, NPgY!AN137, WMID!AN137, EMID!AN137, SWALES!AN137, SWEST!AN137, LPN!AN137,SPN!AN137,EPN!AN137,SPD!AN137,SPMW!AN137,SSEH!AN137,SSES!AN137) -> 0 | AO137: =CHOOSE(m_identity,ENWL!AO137, NPgN!AO137, NPgY!AO137, WMID!AO137, EMID!AO137, SWALES!AO137, SWEST!AO137, LPN!AO137,SPN!AO137,EPN!AO137,SPD!AO137,SPMW!AO137,SSEH!AO137,SSES!AO137) -> 0 | AP137: =CHOOSE(m_identity,ENWL!AP137, NPgN!AP137, NPgY!AP137, WMID!AP137, EMID!AP137, SWALES!AP137, SWEST!AP137, LPN!AP137,SPN!AP137,EPN!AP137,SPD!AP137,SPMW!AP137,SSEH!AP137,SSES!AP137) -> 0 | AQ137: =CHOOSE(m_identity,ENWL!AQ137, NPgN!AQ137, NPgY!AQ137, WMID!AQ137, EMID!AQ137, SWALES!AQ137, SWEST!AQ137, LPN!AQ137,SPN!AQ137,EPN!AQ137,SPD!AQ137,SPMW!AQ137,SSEH!AQ137,SSES!AQ137) -> 0
E138: Allocation to tree cutting | G138: % | AJ138: =CHOOSE(m_identity,ENWL!AJ138, NPgN!AJ138, NPgY!AJ138, WMID!AJ138, EMID!AJ138, SWALES!AJ138, SWEST!AJ138, LPN!AJ138,SPN!AJ138,EPN!AJ138,SPD!AJ138,SPMW!AJ138,SSEH!AJ138,SSES!AJ138) -> 0 | AK138: =CHOOSE(m_identity,ENWL!AK138, NPgN!AK138, NPgY!AK138, WMID!AK138, EMID!AK138, SWALES!AK138, SWEST!AK138, LPN!AK138,SPN!AK138,EPN!AK138,SPD!AK138,SPMW!AK138,SSEH!AK138,SSES!AK138) -> 0 | AL138: =CHOOSE(m_identity,ENWL!AL138, NPgN!AL138, NPgY!AL138, WMID!AL138, EMID!AL138, SWALES!AL138, SWEST!AL138, LPN!AL138,SPN!AL138,EPN!AL138,SPD!AL138,SPMW!AL138,SSEH!AL138,SSES!AL138) -> 0 | AM138: =CHOOSE(m_identity,ENWL!AM138, NPgN!AM138, NPgY!AM138, WMID!AM138, EMID!AM138, SWALES!AM138, SWEST!AM138, LPN!AM138,SPN!AM138,EPN!AM138,SPD!AM138,SPMW!AM138,SSEH!AM138,SSES!AM138) -> 0 | AN138: =CHOOSE(m_identity,ENWL!AN138, NPgN!AN138, NPgY!AN138, WMID!AN138, EMID!AN138, SWALES!AN138, SWEST!AN138, LPN!AN138,SPN!AN138,EPN!AN138,SPD!AN138,SPMW!AN138,SSEH!AN138,SSES!AN138) -> 0 | AO138: =CHOOSE(m_identity,ENWL!AO138, NPgN!AO138, NPgY!AO138, WMID!AO138, EMID!AO138, SWALES!AO138, SWEST!AO138, LPN!AO138,SPN!AO138,EPN!AO138,SPD!AO138,SPMW!AO138,SSEH!AO138,SSES!AO138) -> 0 | AP138: =CHOOSE(m_identity,ENWL!AP138, NPgN!AP138, NPgY!AP138, WMID!AP138, EMID!AP138, SWALES!AP138, SWEST!AP138, LPN!AP138,SPN!AP138,EPN!AP138,SPD!AP138,SPMW!AP138,SSEH!AP138,SSES!AP138) -> 0 | AQ138: =CHOOSE(m_identity,ENWL!AQ138, NPgN!AQ138, NPgY!AQ138, WMID!AQ138, EMID!AQ138, SWALES!AQ138, SWEST!AQ138, LPN!AQ138,SPN!AQ138,EPN!AQ138,SPD!AQ138,SPMW!AQ138,SSEH!AQ138,SSES!AQ138) -> 0
E139: Allocation to controllable opex | G139: % | AJ139: =CHOOSE(m_identity,ENWL!AJ139, NPgN!AJ139, NPgY!AJ139, WMID!AJ139, EMID!AJ139, SWALES!AJ139, SWEST!AJ139, LPN!AJ139,SPN!AJ139,EPN!AJ139,SPD!AJ139,SPMW!AJ139,SSEH!AJ139,SSES!AJ139) -> 1 | AK139: =CHOOSE(m_identity,ENWL!AK139, NPgN!AK139, NPgY!AK139, WMID!AK139, EMID!AK139, SWALES!AK139, SWEST!AK139, LPN!AK139,SPN!AK139,EPN!AK139,SPD!AK139,SPMW!AK139,SSEH!AK139,SSES!AK139) -> 1 | AL139: =CHOOSE(m_identity,ENWL!AL139, NPgN!AL139, NPgY!AL139, WMID!AL139, EMID!AL139, SWALES!AL139, SWEST!AL139, LPN!AL139,SPN!AL139,EPN!AL139,SPD!AL139,SPMW!AL139,SSEH!AL139,SSES!AL139) -> 1 | AM139: =CHOOSE(m_identity,ENWL!AM139, NPgN!AM139, NPgY!AM139, WMID!AM139, EMID!AM139, SWALES!AM139, SWEST!AM139, LPN!AM139,SPN!AM139,EPN!AM139,SPD!AM139,SPMW!AM139,SSEH!AM139,SSES!AM139) -> 1 | AN139: =CHOOSE(m_identity,ENWL!AN139, NPgN!AN139, NPgY!AN139, WMID!AN139, EMID!AN139, SWALES!AN139, SWEST!AN139, LPN!AN139,SPN!AN139,EPN!AN139,SPD!AN139,SPMW!AN139,SSEH!AN139,SSES!AN139) -> 1 | AO139: =CHOOSE(m_identity,ENWL!AO139, NPgN!AO139, NPgY!AO139, WMID!AO139, EMID!AO139, SWALES!AO139, SWEST!AO139, LPN!AO139,SPN!AO139,EPN!AO139,SPD!AO139,SPMW!AO139,SSEH!AO139,SSES!AO139) -> 1 | AP139: =CHOOSE(m_identity,ENWL!AP139, NPgN!AP139, NPgY!AP139, WMID!AP139, EMID!AP139, SWALES!AP139, SWEST!AP139, LPN!AP139,SPN!AP139,EPN!AP139,SPD!AP139,SPMW!AP139,SSEH!AP139,SSES!AP139) -> 1 | AQ139: =CHOOSE(m_identity,ENWL!AQ139, NPgN!AQ139, NPgY!AQ139, WMID!AQ139, EMID!AQ139, SWALES!AQ139, SWEST!AQ139, LPN!AQ139,SPN!AQ139,EPN!AQ139,SPD!AQ139,SPMW!AQ139,SSEH!AQ139,SSES!AQ139) -> 1
E141: =E23 -> Allowed uncertain costs (Specified street work costs) | G141: £m 12/13 prices | AJ141: =AJ23 -> 0.1618825685 | AK141: 0.1683944383 | AL141: 0.1699728898 | AM141: 0.1724491816 | AN141: 0.1749503652 | AO141: 0.1775396876 | AP141: 0.1801276856 | AQ141: 0.182783479
E142: Allocation to load related capex | G142: % | AJ142: =CHOOSE(m_identity,ENWL!AJ142, NPgN!AJ142, NPgY!AJ142, WMID!AJ142, EMID!AJ142, SWALES!AJ142, SWEST!AJ142, LPN!AJ142,SPN!AJ142,EPN!AJ142,SPD!AJ142,SPMW!AJ142,SSEH!AJ142,SSES!AJ142) -> 0 | AK142: =CHOOSE(m_identity,ENWL!AK142, NPgN!AK142, NPgY!AK142, WMID!AK142, EMID!AK142, SWALES!AK142, SWEST!AK142, LPN!AK142,SPN!AK142,EPN!AK142,SPD!AK142,SPMW!AK142,SSEH!AK142,SSES!AK142) -> 0 | AL142: =CHOOSE(m_identity,ENWL!AL142, NPgN!AL142, NPgY!AL142, WMID!AL142, EMID!AL142, SWALES!AL142, SWEST!AL142, LPN!AL142,SPN!AL142,EPN!AL142,SPD!AL142,SPMW!AL142,SSEH!AL142,SSES!AL142) -> 0 | AM142: =CHOOSE(m_identity,ENWL!AM142, NPgN!AM142, NPgY!AM142, WMID!AM142, EMID!AM142, SWALES!AM142, SWEST!AM142, LPN!AM142,SPN!AM142,EPN!AM142,SPD!AM142,SPMW!AM142,SSEH!AM142,SSES!AM142) -> 0 | AN142: =CHOOSE(m_identity,ENWL!AN142, NPgN!AN142, NPgY!AN142, WMID!AN142, EMID!AN142, SWALES!AN142, SWEST!AN142, LPN!AN142,SPN!AN142,EPN!AN142,SPD!AN142,SPMW!AN142,SSEH!AN142,SSES!AN142) -> 0 | AO142: =CHOOSE(m_identity,ENWL!AO142, NPgN!AO142, NPgY!AO142, WMID!AO142, EMID!AO142, SWALES!AO142, SWEST!AO142, LPN!AO142,SPN!AO142,EPN!AO142,SPD!AO142,SPMW!AO142,SSEH!AO142,SSES!AO142) -> 0 | AP142: =CHOOSE(m_identity,ENWL!AP142, NPgN!AP142, NPgY!AP142, WMID!AP142, EMID!AP142, SWALES!AP142, SWEST!AP142, LPN!AP142,SPN!AP142,EPN!AP142,SPD!AP142,SPMW!AP142,SSEH!AP142,SSES!AP142) -> 0 | AQ142: =CHOOSE(m_identity,ENWL!AQ142, NPgN!AQ142, NPgY!AQ142, WMID!AQ142, EMID!AQ142, SWALES!AQ142, SWEST!AQ142, LPN!AQ142,SPN!AQ142,EPN!AQ142,SPD!AQ142,SPMW!AQ142,SSEH!AQ142,SSES!AQ142) -> 0
E143: Allocation to non-load related capex - asset replacement | G143: % | AJ143: =CHOOSE(m_identity,ENWL!AJ143, NPgN!AJ143, NPgY!AJ143, WMID!AJ143, EMID!AJ143, SWALES!AJ143, SWEST!AJ143, LPN!AJ143,SPN!AJ143,EPN!AJ143,SPD!AJ143,SPMW!AJ143,SSEH!AJ143,SSES!AJ143) -> 0.4129558777 | AK143: =CHOOSE(m_identity,ENWL!AK143, NPgN!AK143, NPgY!AK143, WMID!AK143, EMID!AK143, SWALES!AK143, SWEST!AK143, LPN!AK143,SPN!AK143,EPN!AK143,SPD!AK143,SPMW!AK143,SSEH!AK143,SSES!AK143) -> 0.4125306057 | AL143: =CHOOSE(m_identity,ENWL!AL143, NPgN!AL143, NPgY!AL143, WMID!AL143, EMID!AL143, SWALES!AL143, SWEST!AL143, LPN!AL143,SPN!AL143,EPN!AL143,SPD!AL143,SPMW!AL143,SSEH!AL143,SSES!AL143) -> 0.4122837969 | AM143: =CHOOSE(m_identity,ENWL!AM143, NPgN!AM143, NPgY!AM143, WMID!AM143, EMID!AM143, SWALES!AM143, SWEST!AM143, LPN!AM143,SPN!AM143,EPN!AM143,SPD!AM143,SPMW!AM143,SSEH!AM143,SSES!AM143) -> 0.4117575879 | AN143: =CHOOSE(m_identity,ENWL!AN143, NPgN!AN143, NPgY!AN143, WMID!AN143, EMID!AN143, SWALES!AN143, SWEST!AN143, LPN!AN143,SPN!AN143,EPN!AN143,SPD!AN143,SPMW!AN143,SSEH!AN143,SSES!AN143) -> 0.4111777275 | AO143: =CHOOSE(m_identity,ENWL!AO143, NPgN!AO143, NPgY!AO143, WMID!AO143, EMID!AO143, SWALES!AO143, SWEST!AO143, LPN!AO143,SPN!AO143,EPN!AO143,SPD!AO143,SPMW!AO143,SSEH!AO143,SSES!AO143) -> 0.4107493728 | AP143: =CHOOSE(m_identity,ENWL!AP143, NPgN!AP143, NPgY!AP143, WMID!AP143, EMID!AP143, SWALES!AP143, SWEST!AP143, LPN!AP143,SPN!AP143,EPN!AP143,SPD!AP143,SPMW!AP143,SSEH!AP143,SSES!AP143) -> 0.4101492163 | AQ143: =CHOOSE(m_identity,ENWL!AQ143, NPgN!AQ143, NPgY!AQ143, WMID!AQ143, EMID!AQ143, SWALES!AQ143, SWEST!AQ143, LPN!AQ143,SPN!AQ143,EPN!AQ143,SPD!AQ143,SPMW!AQ143,SSEH!AQ143,SSES!AQ143) -> 0.4095873271
E144: Allocation to non-load related capex - other | G144: % | AJ144: =CHOOSE(m_identity,ENWL!AJ144, NPgN!AJ144, NPgY!AJ144, WMID!AJ144, EMID!AJ144, SWALES!AJ144, SWEST!AJ144, LPN!AJ144,SPN!AJ144,EPN!AJ144,SPD!AJ144,SPMW!AJ144,SSEH!AJ144,SSES!AJ144) -> 0 | AK144: =CHOOSE(m_identity,ENWL!AK144, NPgN!AK144, NPgY!AK144, WMID!AK144, EMID!AK144, SWALES!AK144, SWEST!AK144, LPN!AK144,SPN!AK144,EPN!AK144,SPD!AK144,SPMW!AK144,SSEH!AK144,SSES!AK144) -> 0 | AL144: =CHOOSE(m_identity,ENWL!AL144, NPgN!AL144, NPgY!AL144, WMID!AL144, EMID!AL144, SWALES!AL144, SWEST!AL144, LPN!AL144,SPN!AL144,EPN!AL144,SPD!AL144,SPMW!AL144,SSEH!AL144,SSES!AL144) -> 0 | AM144: =CHOOSE(m_identity,ENWL!AM144, NPgN!AM144, NPgY!AM144, WMID!AM144, EMID!AM144, SWALES!AM144, SWEST!AM144, LPN!AM144,SPN!AM144,EPN!AM144,SPD!AM144,SPMW!AM144,SSEH!AM144,SSES!AM144) -> 0 | AN144: =CHOOSE(m_identity,ENWL!AN144, NPgN!AN144, NPgY!AN144, WMID!AN144, EMID!AN144, SWALES!AN144, SWEST!AN144, LPN!AN144,SPN!AN144,EPN!AN144,SPD!AN144,SPMW!AN144,SSEH!AN144,SSES!AN144) -> 0 | AO144: =CHOOSE(m_identity,ENWL!AO144, NPgN!AO144, NPgY!AO144, WMID!AO144, EMID!AO144, SWALES!AO144, SWEST!AO144, LPN!AO144,SPN!AO144,EPN!AO144,SPD!AO144,SPMW!AO144,SSEH!AO144,SSES!AO144) -> 0 | AP144: =CHOOSE(m_identity,ENWL!AP144, NPgN!AP144, NPgY!AP144, WMID!AP144, EMID!AP144, SWALES!AP144, SWEST!AP144, LPN!AP144,SPN!AP144,EPN!AP144,SPD!AP144,SPMW!AP144,SSEH!AP144,SSES!AP144) -> 0 | AQ144: =CHOOSE(m_identity,ENWL!AQ144, NPgN!AQ144, NPgY!AQ144, WMID!AQ144, EMID!AQ144, SWALES!AQ144, SWEST!AQ144, LPN!AQ144,SPN!AQ144,EPN!AQ144,SPD!AQ144,SPMW!AQ144,SSEH!AQ144,SSES!AQ144) -> 0
E145: Allocation to faults | G145: % | AJ145: =CHOOSE(m_identity,ENWL!AJ145, NPgN!AJ145, NPgY!AJ145, WMID!AJ145, EMID!AJ145, SWALES!AJ145, SWEST!AJ145, LPN!AJ145,SPN!AJ145,EPN!AJ145,SPD!AJ145,SPMW!AJ145,SSEH!AJ145,SSES!AJ145) -> 0.5870441223 | AK145: =CHOOSE(m_identity,ENWL!AK145, NPgN!AK145, NPgY!AK145, WMID!AK145, EMID!AK145, SWALES!AK145, SWEST!AK145, LPN!AK145,SPN!AK145,EPN!AK145,SPD!AK145,SPMW!AK145,SSEH!AK145,SSES!AK145) -> 0.5874693943 | AL145: =CHOOSE(m_identity,ENWL!AL145, NPgN!AL145, NPgY!AL145, WMID!AL145, EMID!AL145, SWALES!AL145, SWEST!AL145, LPN!AL145,SPN!AL145,EPN!AL145,SPD!AL145,SPMW!AL145,SSEH!AL145,SSES!AL145) -> 0.5877162031 | AM145: =CHOOSE(m_identity,ENWL!AM145, NPgN!AM145, NPgY!AM145, WMID!AM145, EMID!AM145, SWALES!AM145, SWEST!AM145, LPN!AM145,SPN!AM145,EPN!AM145,SPD!AM145,SPMW!AM145,SSEH!AM145,SSES!AM145) -> 0.5882424121 | AN145: =CHOOSE(m_identity,ENWL!AN145, NPgN!AN145, NPgY!AN145, WMID!AN145, EMID!AN145, SWALES!AN145, SWEST!AN145, LPN!AN145,SPN!AN145,EPN!AN145,SPD!AN145,SPMW!AN145,SSEH!AN145,SSES!AN145) -> 0.5888222725 | AO145: =CHOOSE(m_identity,ENWL!AO145, NPgN!AO145, NPgY!AO145, WMID!AO145, EMID!AO145, SWALES!AO145, SWEST!AO145, LPN!AO145,SPN!AO145,EPN!AO145,SPD!AO145,SPMW!AO145,SSEH!AO145,SSES!AO145) -> 0.5892506272 | AP145: =CHOOSE(m_identity,ENWL!AP145, NPgN!AP145, NPgY!AP145, WMID!AP145, EMID!AP145, SWALES!AP145, SWEST!AP145, LPN!AP145,SPN!AP145,EPN!AP145,SPD!AP145,SPMW!AP145,SSEH!AP145,SSES!AP145) -> 0.5898507837 | AQ145: =CHOOSE(m_identity,ENWL!AQ145, NPgN!AQ145, NPgY!AQ145, WMID!AQ145, EMID!AQ145, SWALES!AQ145, SWEST!AQ145, LPN!AQ145,SPN!AQ145,EPN!AQ145,SPD!AQ145,SPMW!AQ145,SSEH!AQ145,SSES!AQ145) -> 0.5904126729
E146: Allocation to tree cutting | G146: % | AJ146: =CHOOSE(m_identity,ENWL!AJ146, NPgN!AJ146, NPgY!AJ146, WMID!AJ146, EMID!AJ146, SWALES!AJ146, SWEST!AJ146, LPN!AJ146,SPN!AJ146,EPN!AJ146,SPD!AJ146,SPMW!AJ146,SSEH!AJ146,SSES!AJ146) -> 0 | AK146: =CHOOSE(m_identity,ENWL!AK146, NPgN!AK146, NPgY!AK146, WMID!AK146, EMID!AK146, SWALES!AK146, SWEST!AK146, LPN!AK146,SPN!AK146,EPN!AK146,SPD!AK146,SPMW!AK146,SSEH!AK146,SSES!AK146) -> 0 | AL146: =CHOOSE(m_identity,ENWL!AL146, NPgN!AL146, NPgY!AL146, WMID!AL146, EMID!AL146, SWALES!AL146, SWEST!AL146, LPN!AL146,SPN!AL146,EPN!AL146,SPD!AL146,SPMW!AL146,SSEH!AL146,SSES!AL146) -> 0 | AM146: =CHOOSE(m_identity,ENWL!AM146, NPgN!AM146, NPgY!AM146, WMID!AM146, EMID!AM146, SWALES!AM146, SWEST!AM146, LPN!AM146,SPN!AM146,EPN!AM146,SPD!AM146,SPMW!AM146,SSEH!AM146,SSES!AM146) -> 0 | AN146: =CHOOSE(m_identity,ENWL!AN146, NPgN!AN146, NPgY!AN146, WMID!AN146, EMID!AN146, SWALES!AN146, SWEST!AN146, LPN!AN146,SPN!AN146,EPN!AN146,SPD!AN146,SPMW!AN146,SSEH!AN146,SSES!AN146) -> 0 | AO146: =CHOOSE(m_identity,ENWL!AO146, NPgN!AO146, NPgY!AO146, WMID!AO146, EMID!AO146, SWALES!AO146, SWEST!AO146, LPN!AO146,SPN!AO146,EPN!AO146,SPD!AO146,SPMW!AO146,SSEH!AO146,SSES!AO146) -> 0 | AP146: =CHOOSE(m_identity,ENWL!AP146, NPgN!AP146, NPgY!AP146, WMID!AP146, EMID!AP146, SWALES!AP146, SWEST!AP146, LPN!AP146,SPN!AP146,EPN!AP146,SPD!AP146,SPMW!AP146,SSEH!AP146,SSES!AP146) -> 0 | AQ146: =CHOOSE(m_identity,ENWL!AQ146, NPgN!AQ146, NPgY!AQ146, WMID!AQ146, EMID!AQ146, SWALES!AQ146, SWEST!AQ146, LPN!AQ146,SPN!AQ146,EPN!AQ146,SPD!AQ146,SPMW!AQ146,SSEH!AQ146,SSES!AQ146) -> 0
E147: Allocation to controllable opex | G147: % | AJ147: =CHOOSE(m_identity,ENWL!AJ147, NPgN!AJ147, NPgY!AJ147, WMID!AJ147, EMID!AJ147, SWALES!AJ147, SWEST!AJ147, LPN!AJ147,SPN!AJ147,EPN!AJ147,SPD!AJ147,SPMW!AJ147,SSEH!AJ147,SSES!AJ147) -> 0 | AK147: =CHOOSE(m_identity,ENWL!AK147, NPgN!AK147, NPgY!AK147, WMID!AK147, EMID!AK147, SWALES!AK147, SWEST!AK147, LPN!AK147,SPN!AK147,EPN!AK147,SPD!AK147,SPMW!AK147,SSEH!AK147,SSES!AK147) -> 0 | AL147: =CHOOSE(m_identity,ENWL!AL147, NPgN!AL147, NPgY!AL147, WMID!AL147, EMID!AL147, SWALES!AL147, SWEST!AL147, LPN!AL147,SPN!AL147,EPN!AL147,SPD!AL147,SPMW!AL147,SSEH!AL147,SSES!AL147) -> 0 | AM147: =CHOOSE(m_identity,ENWL!AM147, NPgN!AM147, NPgY!AM147, WMID!AM147, EMID!AM147, SWALES!AM147, SWEST!AM147, LPN!AM147,SPN!AM147,EPN!AM147,SPD!AM147,SPMW!AM147,SSEH!AM147,SSES!AM147) -> 0 | AN147: =CHOOSE(m_identity,ENWL!AN147, NPgN!AN147, NPgY!AN147, WMID!AN147, EMID!AN147, SWALES!AN147, SWEST!AN147, LPN!AN147,SPN!AN147,EPN!AN147,SPD!AN147,SPMW!AN147,SSEH!AN147,SSES!AN147) -> 0 | AO147: =CHOOSE(m_identity,ENWL!AO147, NPgN!AO147, NPgY!AO147, WMID!AO147, EMID!AO147, SWALES!AO147, SWEST!AO147, LPN!AO147,SPN!AO147,EPN!AO147,SPD!AO147,SPMW!AO147,SSEH!AO147,SSES!AO147) -> 0 | AP147: =CHOOSE(m_identity,ENWL!AP147, NPgN!AP147, NPgY!AP147, WMID!AP147, EMID!AP147, SWALES!AP147, SWEST!AP147, LPN!AP147,SPN!AP147,EPN!AP147,SPD!AP147,SPMW!AP147,SSEH!AP147,SSES!AP147) -> 0 | AQ147: =CHOOSE(m_identity,ENWL!AQ147, NPgN!AQ147, NPgY!AQ147, WMID!AQ147, EMID!AQ147, SWALES!AQ147, SWEST!AQ147, LPN!AQ147,SPN!AQ147,EPN!AQ147,SPD!AQ147,SPMW!AQ147,SSEH!AQ147,SSES!AQ147) -> 0
E149: =E24 -> Allowed uncertain costs (Load related re-operner) | G149: £m 12/13 prices | AJ149: =AJ24 -> 0 | AK149: =AK24 -> 0 | AL149: 0 | AM149: 0 | AN149: 0 | AO149: 0 | AP149: 0 | AQ149: 0
E150: Allocation to load related capex | G150: % | AJ150: =CHOOSE(m_identity,ENWL!AJ150, NPgN!AJ150, NPgY!AJ150, WMID!AJ150, EMID!AJ150, SWALES!AJ150, SWEST!AJ150, LPN!AJ150,SPN!AJ150,EPN!AJ150,SPD!AJ150,SPMW!AJ150,SSEH!AJ150,SSES!AJ150) -> 1 | AK150: =CHOOSE(m_identity,ENWL!AK150, NPgN!AK150, NPgY!AK150, WMID!AK150, EMID!AK150, SWALES!AK150, SWEST!AK150, LPN!AK150,SPN!AK150,EPN!AK150,SPD!AK150,SPMW!AK150,SSEH!AK150,SSES!AK150) -> 1 | AL150: =CHOOSE(m_identity,ENWL!AL150, NPgN!AL150, NPgY!AL150, WMID!AL150, EMID!AL150, SWALES!AL150, SWEST!AL150, LPN!AL150,SPN!AL150,EPN!AL150,SPD!AL150,SPMW!AL150,SSEH!AL150,SSES!AL150) -> 1 | AM150: =CHOOSE(m_identity,ENWL!AM150, NPgN!AM150, NPgY!AM150, WMID!AM150, EMID!AM150, SWALES!AM150, SWEST!AM150, LPN!AM150,SPN!AM150,EPN!AM150,SPD!AM150,SPMW!AM150,SSEH!AM150,SSES!AM150) -> 1 | AN150: =CHOOSE(m_identity,ENWL!AN150, NPgN!AN150, NPgY!AN150, WMID!AN150, EMID!AN150, SWALES!AN150, SWEST!AN150, LPN!AN150,SPN!AN150,EPN!AN150,SPD!AN150,SPMW!AN150,SSEH!AN150,SSES!AN150) -> 1 | AO150: =CHOOSE(m_identity,ENWL!AO150, NPgN!AO150, NPgY!AO150, WMID!AO150, EMID!AO150, SWALES!AO150, SWEST!AO150, LPN!AO150,SPN!AO150,EPN!AO150,SPD!AO150,SPMW!AO150,SSEH!AO150,SSES!AO150) -> 1 | AP150: =CHOOSE(m_identity,ENWL!AP150, NPgN!AP150, NPgY!AP150, WMID!AP150, EMID!AP150, SWALES!AP150, SWEST!AP150, LPN!AP150,SPN!AP150,EPN!AP150,SPD!AP150,SPMW!AP150,SSEH!AP150,SSES!AP150) -> 1 | AQ150: =CHOOSE(m_identity,ENWL!AQ150, NPgN!AQ150, NPgY!AQ150, WMID!AQ150, EMID!AQ150, SWALES!AQ150, SWEST!AQ150, LPN!AQ150,SPN!AQ150,EPN!AQ150,SPD!AQ150,SPMW!AQ150,SSEH!AQ150,SSES!AQ150) -> 1
E151: Allocation to non-load related capex - asset replacement | G151: % | AJ151: =CHOOSE(m_identity,ENWL!AJ151, NPgN!AJ151, NPgY!AJ151, WMID!AJ151, EMID!AJ151, SWALES!AJ151, SWEST!AJ151, LPN!AJ151,SPN!AJ151,EPN!AJ151,SPD!AJ151,SPMW!AJ151,SSEH!AJ151,SSES!AJ151) -> 0 | AK151: =CHOOSE(m_identity,ENWL!AK151, NPgN!AK151, NPgY!AK151, WMID!AK151, EMID!AK151, SWALES!AK151, SWEST!AK151, LPN!AK151,SPN!AK151,EPN!AK151,SPD!AK151,SPMW!AK151,SSEH!AK151,SSES!AK151) -> 0 | AL151: =CHOOSE(m_identity,ENWL!AL151, NPgN!AL151, NPgY!AL151, WMID!AL151, EMID!AL151, SWALES!AL151, SWEST!AL151, LPN!AL151,SPN!AL151,EPN!AL151,SPD!AL151,SPMW!AL151,SSEH!AL151,SSES!AL151) -> 0 | AM151: =CHOOSE(m_identity,ENWL!AM151, NPgN!AM151, NPgY!AM151, WMID!AM151, EMID!AM151, SWALES!AM151, SWEST!AM151, LPN!AM151,SPN!AM151,EPN!AM151,SPD!AM151,SPMW!AM151,SSEH!AM151,SSES!AM151) -> 0 | AN151: =CHOOSE(m_identity,ENWL!AN151, NPgN!AN151, NPgY!AN151, WMID!AN151, EMID!AN151, SWALES!AN151, SWEST!AN151, LPN!AN151,SPN!AN151,EPN!AN151,SPD!AN151,SPMW!AN151,SSEH!AN151,SSES!AN151) -> 0 | AO151: =CHOOSE(m_identity,ENWL!AO151, NPgN!AO151, NPgY!AO151, WMID!AO151, EMID!AO151, SWALES!AO151, SWEST!AO151, LPN!AO151,SPN!AO151,EPN!AO151,SPD!AO151,SPMW!AO151,SSEH!AO151,SSES!AO151) -> 0 | AP151: =CHOOSE(m_identity,ENWL!AP151, NPgN!AP151, NPgY!AP151, WMID!AP151, EMID!AP151, SWALES!AP151, SWEST!AP151, LPN!AP151,SPN!AP151,EPN!AP151,SPD!AP151,SPMW!AP151,SSEH!AP151,SSES!AP151) -> 0 | AQ151: =CHOOSE(m_identity,ENWL!AQ151, NPgN!AQ151, NPgY!AQ151, WMID!AQ151, EMID!AQ151, SWALES!AQ151, SWEST!AQ151, LPN!AQ151,SPN!AQ151,EPN!AQ151,SPD!AQ151,SPMW!AQ151,SSEH!AQ151,SSES!AQ151) -> 0
E152: Allocation to non-load related capex - other | G152: % | AJ152: =CHOOSE(m_identity,ENWL!AJ152, NPgN!AJ152, NPgY!AJ152, WMID!AJ152, EMID!AJ152, SWALES!AJ152, SWEST!AJ152, LPN!AJ152,SPN!AJ152,EPN!AJ152,SPD!AJ152,SPMW!AJ152,SSEH!AJ152,SSES!AJ152) -> 0 | AK152: =CHOOSE(m_identity,ENWL!AK152, NPgN!AK152, NPgY!AK152, WMID!AK152, EMID!AK152, SWALES!AK152, SWEST!AK152, LPN!AK152,SPN!AK152,EPN!AK152,SPD!AK152,SPMW!AK152,SSEH!AK152,SSES!AK152) -> 0 | AL152: =CHOOSE(m_identity,ENWL!AL152, NPgN!AL152, NPgY!AL152, WMID!AL152, EMID!AL152, SWALES!AL152, SWEST!AL152, LPN!AL152,SPN!AL152,EPN!AL152,SPD!AL152,SPMW!AL152,SSEH!AL152,SSES!AL152) -> 0 | AM152: =CHOOSE(m_identity,ENWL!AM152, NPgN!AM152, NPgY!AM152, WMID!AM152, EMID!AM152, SWALES!AM152, SWEST!AM152, LPN!AM152,SPN!AM152,EPN!AM152,SPD!AM152,SPMW!AM152,SSEH!AM152,SSES!AM152) -> 0 | AN152: =CHOOSE(m_identity,ENWL!AN152, NPgN!AN152, NPgY!AN152, WMID!AN152, EMID!AN152, SWALES!AN152, SWEST!AN152, LPN!AN152,SPN!AN152,EPN!AN152,SPD!AN152,SPMW!AN152,SSEH!AN152,SSES!AN152) -> 0 | AO152: =CHOOSE(m_identity,ENWL!AO152, NPgN!AO152, NPgY!AO152, WMID!AO152, EMID!AO152, SWALES!AO152, SWEST!AO152, LPN!AO152,SPN!AO152,EPN!AO152,SPD!AO152,SPMW!AO152,SSEH!AO152,SSES!AO152) -> 0 | AP152: =CHOOSE(m_identity,ENWL!AP152, NPgN!AP152, NPgY!AP152, WMID!AP152, EMID!AP152, SWALES!AP152, SWEST!AP152, LPN!AP152,SPN!AP152,EPN!AP152,SPD!AP152,SPMW!AP152,SSEH!AP152,SSES!AP152) -> 0 | AQ152: =CHOOSE(m_identity,ENWL!AQ152, NPgN!AQ152, NPgY!AQ152, WMID!AQ152, EMID!AQ152, SWALES!AQ152, SWEST!AQ152, LPN!AQ152,SPN!AQ152,EPN!AQ152,SPD!AQ152,SPMW!AQ152,SSEH!AQ152,SSES!AQ152) -> 0
E153: Allocation to faults | G153: % | AJ153: =CHOOSE(m_identity,ENWL!AJ153, NPgN!AJ153, NPgY!AJ153, WMID!AJ153, EMID!AJ153, SWALES!AJ153, SWEST!AJ153, LPN!AJ153,SPN!AJ153,EPN!AJ153,SPD!AJ153,SPMW!AJ153,SSEH!AJ153,SSES!AJ153) -> 0 | AK153: =CHOOSE(m_identity,ENWL!AK153, NPgN!AK153, NPgY!AK153, WMID!AK153, EMID!AK153, SWALES!AK153, SWEST!AK153, LPN!AK153,SPN!AK153,EPN!AK153,SPD!AK153,SPMW!AK153,SSEH!AK153,SSES!AK153) -> 0 | AL153: =CHOOSE(m_identity,ENWL!AL153, NPgN!AL153, NPgY!AL153, WMID!AL153, EMID!AL153, SWALES!AL153, SWEST!AL153, LPN!AL153,SPN!AL153,EPN!AL153,SPD!AL153,SPMW!AL153,SSEH!AL153,SSES!AL153) -> 0 | AM153: =CHOOSE(m_identity,ENWL!AM153, NPgN!AM153, NPgY!AM153, WMID!AM153, EMID!AM153, SWALES!AM153, SWEST!AM153, LPN!AM153,SPN!AM153,EPN!AM153,SPD!AM153,SPMW!AM153,SSEH!AM153,SSES!AM153) -> 0 | AN153: =CHOOSE(m_identity,ENWL!AN153, NPgN!AN153, NPgY!AN153, WMID!AN153, EMID!AN153, SWALES!AN153, SWEST!AN153, LPN!AN153,SPN!AN153,EPN!AN153,SPD!AN153,SPMW!AN153,SSEH!AN153,SSES!AN153) -> 0 | AO153: =CHOOSE(m_identity,ENWL!AO153, NPgN!AO153, NPgY!AO153, WMID!AO153, EMID!AO153, SWALES!AO153, SWEST!AO153, LPN!AO153,SPN!AO153,EPN!AO153,SPD!AO153,SPMW!AO153,SSEH!AO153,SSES!AO153) -> 0 | AP153: =CHOOSE(m_identity,ENWL!AP153, NPgN!AP153, NPgY!AP153, WMID!AP153, EMID!AP153, SWALES!AP153, SWEST!AP153, LPN!AP153,SPN!AP153,EPN!AP153,SPD!AP153,SPMW!AP153,SSEH!AP153,SSES!AP153) -> 0 | AQ153: =CHOOSE(m_identity,ENWL!AQ153, NPgN!AQ153, NPgY!AQ153, WMID!AQ153, EMID!AQ153, SWALES!AQ153, SWEST!AQ153, LPN!AQ153,SPN!AQ153,EPN!AQ153,SPD!AQ153,SPMW!AQ153,SSEH!AQ153,SSES!AQ153) -> 0
E154: Allocation to tree cutting | G154: % | AJ154: =CHOOSE(m_identity,ENWL!AJ154, NPgN!AJ154, NPgY!AJ154, WMID!AJ154, EMID!AJ154, SWALES!AJ154, SWEST!AJ154, LPN!AJ154,SPN!AJ154,EPN!AJ154,SPD!AJ154,SPMW!AJ154,SSEH!AJ154,SSES!AJ154) -> 0 | AK154: =CHOOSE(m_identity,ENWL!AK154, NPgN!AK154, NPgY!AK154, WMID!AK154, EMID!AK154, SWALES!AK154, SWEST!AK154, LPN!AK154,SPN!AK154,EPN!AK154,SPD!AK154,SPMW!AK154,SSEH!AK154,SSES!AK154) -> 0 | AL154: =CHOOSE(m_identity,ENWL!AL154, NPgN!AL154, NPgY!AL154, WMID!AL154, EMID!AL154, SWALES!AL154, SWEST!AL154, LPN!AL154,SPN!AL154,EPN!AL154,SPD!AL154,SPMW!AL154,SSEH!AL154,SSES!AL154) -> 0 | AM154: =CHOOSE(m_identity,ENWL!AM154, NPgN!AM154, NPgY!AM154, WMID!AM154, EMID!AM154, SWALES!AM154, SWEST!AM154, LPN!AM154,SPN!AM154,EPN!AM154,SPD!AM154,SPMW!AM154,SSEH!AM154,SSES!AM154) -> 0 | AN154: =CHOOSE(m_identity,ENWL!AN154, NPgN!AN154, NPgY!AN154, WMID!AN154, EMID!AN154, SWALES!AN154, SWEST!AN154, LPN!AN154,SPN!AN154,EPN!AN154,SPD!AN154,SPMW!AN154,SSEH!AN154,SSES!AN154) -> 0 | AO154: =CHOOSE(m_identity,ENWL!AO154, NPgN!AO154, NPgY!AO154, WMID!AO154, EMID!AO154, SWALES!AO154, SWEST!AO154, LPN!AO154,SPN!AO154,EPN!AO154,SPD!AO154,SPMW!AO154,SSEH!AO154,SSES!AO154) -> 0 | AP154: =CHOOSE(m_identity,ENWL!AP154, NPgN!AP154, NPgY!AP154, WMID!AP154, EMID!AP154, SWALES!AP154, SWEST!AP154, LPN!AP154,SPN!AP154,EPN!AP154,SPD!AP154,SPMW!AP154,SSEH!AP154,SSES!AP154) -> 0 | AQ154: =CHOOSE(m_identity,ENWL!AQ154, NPgN!AQ154, NPgY!AQ154, WMID!AQ154, EMID!AQ154, SWALES!AQ154, SWEST!AQ154, LPN!AQ154,SPN!AQ154,EPN!AQ154,SPD!AQ154,SPMW!AQ154,SSEH!AQ154,SSES!AQ154) -> 0
E155: Allocation to controllable opex | G155: % | AJ155: =CHOOSE(m_identity,ENWL!AJ155, NPgN!AJ155, NPgY!AJ155, WMID!AJ155, EMID!AJ155, SWALES!AJ155, SWEST!AJ155, LPN!AJ155,SPN!AJ155,EPN!AJ155,SPD!AJ155,SPMW!AJ155,SSEH!AJ155,SSES!AJ155) -> 0 | AK155: =CHOOSE(m_identity,ENWL!AK155, NPgN!AK155, NPgY!AK155, WMID!AK155, EMID!AK155, SWALES!AK155, SWEST!AK155, LPN!AK155,SPN!AK155,EPN!AK155,SPD!AK155,SPMW!AK155,SSEH!AK155,SSES!AK155) -> 0 | AL155: =CHOOSE(m_identity,ENWL!AL155, NPgN!AL155, NPgY!AL155, WMID!AL155, EMID!AL155, SWALES!AL155, SWEST!AL155, LPN!AL155,SPN!AL155,EPN!AL155,SPD!AL155,SPMW!AL155,SSEH!AL155,SSES!AL155) -> 0 | AM155: =CHOOSE(m_identity,ENWL!AM155, NPgN!AM155, NPgY!AM155, WMID!AM155, EMID!AM155, SWALES!AM155, SWEST!AM155, LPN!AM155,SPN!AM155,EPN!AM155,SPD!AM155,SPMW!AM155,SSEH!AM155,SSES!AM155) -> 0 | AN155: =CHOOSE(m_identity,ENWL!AN155, NPgN!AN155, NPgY!AN155, WMID!AN155, EMID!AN155, SWALES!AN155, SWEST!AN155, LPN!AN155,SPN!AN155,EPN!AN155,SPD!AN155,SPMW!AN155,SSEH!AN155,SSES!AN155) -> 0 | AO155: =CHOOSE(m_identity,ENWL!AO155, NPgN!AO155, NPgY!AO155, WMID!AO155, EMID!AO155, SWALES!AO155, SWEST!AO155, LPN!AO155,SPN!AO155,EPN!AO155,SPD!AO155,SPMW!AO155,SSEH!AO155,SSES!AO155) -> 0 | AP155: =CHOOSE(m_identity,ENWL!AP155, NPgN!AP155, NPgY!AP155, WMID!AP155, EMID!AP155, SWALES!AP155, SWEST!AP155, LPN!AP155,SPN!AP155,EPN!AP155,SPD!AP155,SPMW!AP155,SSEH!AP155,SSES!AP155) -> 0 | AQ155: =CHOOSE(m_identity,ENWL!AQ155, NPgN!AQ155, NPgY!AQ155, WMID!AQ155, EMID!AQ155, SWALES!AQ155, SWEST!AQ155, LPN!AQ155,SPN!AQ155,EPN!AQ155,SPD!AQ155,SPMW!AQ155,SSEH!AQ155,SSES!AQ155) -> 0
E157: =E25 -> Spare 1 | G157: £m 12/13 prices | AJ157: =AJ25 -> 0 | AK157: =AK25 -> 0 | AL157: =AL25 -> 0 | AM157: 0 | AN157: =AN25 -> 0 | AO157: 0 | AP157: 0 | AQ157: 0
E158: Allocation to load related capex | G158: % | AJ158: =CHOOSE(m_identity,ENWL!AJ158, NPgN!AJ158, NPgY!AJ158, WMID!AJ158, EMID!AJ158, SWALES!AJ158, SWEST!AJ158, LPN!AJ158,SPN!AJ158,EPN!AJ158,SPD!AJ158,SPMW!AJ158,SSEH!AJ158,SSES!AJ158) -> 0 | AK158: =CHOOSE(m_identity,ENWL!AK158, NPgN!AK158, NPgY!AK158, WMID!AK158, EMID!AK158, SWALES!AK158, SWEST!AK158, LPN!AK158,SPN!AK158,EPN!AK158,SPD!AK158,SPMW!AK158,SSEH!AK158,SSES!AK158) -> 0 | AL158: =CHOOSE(m_identity,ENWL!AL158, NPgN!AL158, NPgY!AL158, WMID!AL158, EMID!AL158, SWALES!AL158, SWEST!AL158, LPN!AL158,SPN!AL158,EPN!AL158,SPD!AL158,SPMW!AL158,SSEH!AL158,SSES!AL158) -> 0 | AM158: =CHOOSE(m_identity,ENWL!AM158, NPgN!AM158, NPgY!AM158, WMID!AM158, EMID!AM158, SWALES!AM158, SWEST!AM158, LPN!AM158,SPN!AM158,EPN!AM158,SPD!AM158,SPMW!AM158,SSEH!AM158,SSES!AM158) -> 0 | AN158: =CHOOSE(m_identity,ENWL!AN158, NPgN!AN158, NPgY!AN158, WMID!AN158, EMID!AN158, SWALES!AN158, SWEST!AN158, LPN!AN158,SPN!AN158,EPN!AN158,SPD!AN158,SPMW!AN158,SSEH!AN158,SSES!AN158) -> 0 | AO158: =CHOOSE(m_identity,ENWL!AO158, NPgN!AO158, NPgY!AO158, WMID!AO158, EMID!AO158, SWALES!AO158, SWEST!AO158, LPN!AO158,SPN!AO158,EPN!AO158,SPD!AO158,SPMW!AO158,SSEH!AO158,SSES!AO158) -> 0 | AP158: =CHOOSE(m_identity,ENWL!AP158, NPgN!AP158, NPgY!AP158, WMID!AP158, EMID!AP158, SWALES!AP158, SWEST!AP158, LPN!AP158,SPN!AP158,EPN!AP158,SPD!AP158,SPMW!AP158,SSEH!AP158,SSES!AP158) -> 0 | AQ158: =CHOOSE(m_identity,ENWL!AQ158, NPgN!AQ158, NPgY!AQ158, WMID!AQ158, EMID!AQ158, SWALES!AQ158, SWEST!AQ158, LPN!AQ158,SPN!AQ158,EPN!AQ158,SPD!AQ158,SPMW!AQ158,SSEH!AQ158,SSES!AQ158) -> 0
E159: Allocation to non-load related capex - asset replacement | G159: % | AJ159: =CHOOSE(m_identity,ENWL!AJ159, NPgN!AJ159, NPgY!AJ159, WMID!AJ159, EMID!AJ159, SWALES!AJ159, SWEST!AJ159, LPN!AJ159,SPN!AJ159,EPN!AJ159,SPD!AJ159,SPMW!AJ159,SSEH!AJ159,SSES!AJ159) -> 0 | AK159: =CHOOSE(m_identity,ENWL!AK159, NPgN!AK159, NPgY!AK159, WMID!AK159, EMID!AK159, SWALES!AK159, SWEST!AK159, LPN!AK159,SPN!AK159,EPN!AK159,SPD!AK159,SPMW!AK159,SSEH!AK159,SSES!AK159) -> 0 | AL159: =CHOOSE(m_identity,ENWL!AL159, NPgN!AL159, NPgY!AL159, WMID!AL159, EMID!AL159, SWALES!AL159, SWEST!AL159, LPN!AL159,SPN!AL159,EPN!AL159,SPD!AL159,SPMW!AL159,SSEH!AL159,SSES!AL159) -> 0 | AM159: =CHOOSE(m_identity,ENWL!AM159, NPgN!AM159, NPgY!AM159, WMID!AM159, EMID!AM159, SWALES!AM159, SWEST!AM159, LPN!AM159,SPN!AM159,EPN!AM159,SPD!AM159,SPMW!AM159,SSEH!AM159,SSES!AM159) -> 0 | AN159: =CHOOSE(m_identity,ENWL!AN159, NPgN!AN159, NPgY!AN159, WMID!AN159, EMID!AN159, SWALES!AN159, SWEST!AN159, LPN!AN159,SPN!AN159,EPN!AN159,SPD!AN159,SPMW!AN159,SSEH!AN159,SSES!AN159) -> 0 | AO159: =CHOOSE(m_identity,ENWL!AO159, NPgN!AO159, NPgY!AO159, WMID!AO159, EMID!AO159, SWALES!AO159, SWEST!AO159, LPN!AO159,SPN!AO159,EPN!AO159,SPD!AO159,SPMW!AO159,SSEH!AO159,SSES!AO159) -> 0 | AP159: =CHOOSE(m_identity,ENWL!AP159, NPgN!AP159, NPgY!AP159, WMID!AP159, EMID!AP159, SWALES!AP159, SWEST!AP159, LPN!AP159,SPN!AP159,EPN!AP159,SPD!AP159,SPMW!AP159,SSEH!AP159,SSES!AP159) -> 0 | AQ159: =CHOOSE(m_identity,ENWL!AQ159, NPgN!AQ159, NPgY!AQ159, WMID!AQ159, EMID!AQ159, SWALES!AQ159, SWEST!AQ159, LPN!AQ159,SPN!AQ159,EPN!AQ159,SPD!AQ159,SPMW!AQ159,SSEH!AQ159,SSES!AQ159) -> 0
E160: Allocation to non-load related capex - other | G160: % | AJ160: =CHOOSE(m_identity,ENWL!AJ160, NPgN!AJ160, NPgY!AJ160, WMID!AJ160, EMID!AJ160, SWALES!AJ160, SWEST!AJ160, LPN!AJ160,SPN!AJ160,EPN!AJ160,SPD!AJ160,SPMW!AJ160,SSEH!AJ160,SSES!AJ160) -> 0 | AK160: =CHOOSE(m_identity,ENWL!AK160, NPgN!AK160, NPgY!AK160, WMID!AK160, EMID!AK160, SWALES!AK160, SWEST!AK160, LPN!AK160,SPN!AK160,EPN!AK160,SPD!AK160,SPMW!AK160,SSEH!AK160,SSES!AK160) -> 0 | AL160: =CHOOSE(m_identity,ENWL!AL160, NPgN!AL160, NPgY!AL160, WMID!AL160, EMID!AL160, SWALES!AL160, SWEST!AL160, LPN!AL160,SPN!AL160,EPN!AL160,SPD!AL160,SPMW!AL160,SSEH!AL160,SSES!AL160) -> 0 | AM160: =CHOOSE(m_identity,ENWL!AM160, NPgN!AM160, NPgY!AM160, WMID!AM160, EMID!AM160, SWALES!AM160, SWEST!AM160, LPN!AM160,SPN!AM160,EPN!AM160,SPD!AM160,SPMW!AM160,SSEH!AM160,SSES!AM160) -> 0 | AN160: =CHOOSE(m_identity,ENWL!AN160, NPgN!AN160, NPgY!AN160, WMID!AN160, EMID!AN160, SWALES!AN160, SWEST!AN160, LPN!AN160,SPN!AN160,EPN!AN160,SPD!AN160,SPMW!AN160,SSEH!AN160,SSES!AN160) -> 0 | AO160: =CHOOSE(m_identity,ENWL!AO160, NPgN!AO160, NPgY!AO160, WMID!AO160, EMID!AO160, SWALES!AO160, SWEST!AO160, LPN!AO160,SPN!AO160,EPN!AO160,SPD!AO160,SPMW!AO160,SSEH!AO160,SSES!AO160) -> 0 | AP160: =CHOOSE(m_identity,ENWL!AP160, NPgN!AP160, NPgY!AP160, WMID!AP160, EMID!AP160, SWALES!AP160, SWEST!AP160, LPN!AP160,SPN!AP160,EPN!AP160,SPD!AP160,SPMW!AP160,SSEH!AP160,SSES!AP160) -> 0 | AQ160: =CHOOSE(m_identity,ENWL!AQ160, NPgN!AQ160, NPgY!AQ160, WMID!AQ160, EMID!AQ160, SWALES!AQ160, SWEST!AQ160, LPN!AQ160,SPN!AQ160,EPN!AQ160,SPD!AQ160,SPMW!AQ160,SSEH!AQ160,SSES!AQ160) -> 0
E161: Allocation to faults | G161: % | AJ161: =CHOOSE(m_identity,ENWL!AJ161, NPgN!AJ161, NPgY!AJ161, WMID!AJ161, EMID!AJ161, SWALES!AJ161, SWEST!AJ161, LPN!AJ161,SPN!AJ161,EPN!AJ161,SPD!AJ161,SPMW!AJ161,SSEH!AJ161,SSES!AJ161) -> 0 | AK161: =CHOOSE(m_identity,ENWL!AK161, NPgN!AK161, NPgY!AK161, WMID!AK161, EMID!AK161, SWALES!AK161, SWEST!AK161, LPN!AK161,SPN!AK161,EPN!AK161,SPD!AK161,SPMW!AK161,SSEH!AK161,SSES!AK161) -> 0 | AL161: =CHOOSE(m_identity,ENWL!AL161, NPgN!AL161, NPgY!AL161, WMID!AL161, EMID!AL161, SWALES!AL161, SWEST!AL161, LPN!AL161,SPN!AL161,EPN!AL161,SPD!AL161,SPMW!AL161,SSEH!AL161,SSES!AL161) -> 0 | AM161: =CHOOSE(m_identity,ENWL!AM161, NPgN!AM161, NPgY!AM161, WMID!AM161, EMID!AM161, SWALES!AM161, SWEST!AM161, LPN!AM161,SPN!AM161,EPN!AM161,SPD!AM161,SPMW!AM161,SSEH!AM161,SSES!AM161) -> 0 | AN161: =CHOOSE(m_identity,ENWL!AN161, NPgN!AN161, NPgY!AN161, WMID!AN161, EMID!AN161, SWALES!AN161, SWEST!AN161, LPN!AN161,SPN!AN161,EPN!AN161,SPD!AN161,SPMW!AN161,SSEH!AN161,SSES!AN161) -> 0 | AO161: =CHOOSE(m_identity,ENWL!AO161, NPgN!AO161, NPgY!AO161, WMID!AO161, EMID!AO161, SWALES!AO161, SWEST!AO161, LPN!AO161,SPN!AO161,EPN!AO161,SPD!AO161,SPMW!AO161,SSEH!AO161,SSES!AO161) -> 0 | AP161: =CHOOSE(m_identity,ENWL!AP161, NPgN!AP161, NPgY!AP161, WMID!AP161, EMID!AP161, SWALES!AP161, SWEST!AP161, LPN!AP161,SPN!AP161,EPN!AP161,SPD!AP161,SPMW!AP161,SSEH!AP161,SSES!AP161) -> 0 | AQ161: =CHOOSE(m_identity,ENWL!AQ161, NPgN!AQ161, NPgY!AQ161, WMID!AQ161, EMID!AQ161, SWALES!AQ161, SWEST!AQ161, LPN!AQ161,SPN!AQ161,EPN!AQ161,SPD!AQ161,SPMW!AQ161,SSEH!AQ161,SSES!AQ161) -> 0
E162: Allocation to tree cutting | G162: % | AJ162: =CHOOSE(m_identity,ENWL!AJ162, NPgN!AJ162, NPgY!AJ162, WMID!AJ162, EMID!AJ162, SWALES!AJ162, SWEST!AJ162, LPN!AJ162,SPN!AJ162,EPN!AJ162,SPD!AJ162,SPMW!AJ162,SSEH!AJ162,SSES!AJ162) -> 0 | AK162: =CHOOSE(m_identity,ENWL!AK162, NPgN!AK162, NPgY!AK162, WMID!AK162, EMID!AK162, SWALES!AK162, SWEST!AK162, LPN!AK162,SPN!AK162,EPN!AK162,SPD!AK162,SPMW!AK162,SSEH!AK162,SSES!AK162) -> 0 | AL162: =CHOOSE(m_identity,ENWL!AL162, NPgN!AL162, NPgY!AL162, WMID!AL162, EMID!AL162, SWALES!AL162, SWEST!AL162, LPN!AL162,SPN!AL162,EPN!AL162,SPD!AL162,SPMW!AL162,SSEH!AL162,SSES!AL162) -> 0 | AM162: =CHOOSE(m_identity,ENWL!AM162, NPgN!AM162, NPgY!AM162, WMID!AM162, EMID!AM162, SWALES!AM162, SWEST!AM162, LPN!AM162,SPN!AM162,EPN!AM162,SPD!AM162,SPMW!AM162,SSEH!AM162,SSES!AM162) -> 0 | AN162: =CHOOSE(m_identity,ENWL!AN162, NPgN!AN162, NPgY!AN162, WMID!AN162, EMID!AN162, SWALES!AN162, SWEST!AN162, LPN!AN162,SPN!AN162,EPN!AN162,SPD!AN162,SPMW!AN162,SSEH!AN162,SSES!AN162) -> 0 | AO162: =CHOOSE(m_identity,ENWL!AO162, NPgN!AO162, NPgY!AO162, WMID!AO162, EMID!AO162, SWALES!AO162, SWEST!AO162, LPN!AO162,SPN!AO162,EPN!AO162,SPD!AO162,SPMW!AO162,SSEH!AO162,SSES!AO162) -> 0 | AP162: =CHOOSE(m_identity,ENWL!AP162, NPgN!AP162, NPgY!AP162, WMID!AP162, EMID!AP162, SWALES!AP162, SWEST!AP162, LPN!AP162,SPN!AP162,EPN!AP162,SPD!AP162,SPMW!AP162,SSEH!AP162,SSES!AP162) -> 0 | AQ162: =CHOOSE(m_identity,ENWL!AQ162, NPgN!AQ162, NPgY!AQ162, WMID!AQ162, EMID!AQ162, SWALES!AQ162, SWEST!AQ162, LPN!AQ162,SPN!AQ162,EPN!AQ162,SPD!AQ162,SPMW!AQ162,SSEH!AQ162,SSES!AQ162) -> 0
E163: Allocation to controllable opex | G163: % | AJ163: =CHOOSE(m_identity,ENWL!AJ163, NPgN!AJ163, NPgY!AJ163, WMID!AJ163, EMID!AJ163, SWALES!AJ163, SWEST!AJ163, LPN!AJ163,SPN!AJ163,EPN!AJ163,SPD!AJ163,SPMW!AJ163,SSEH!AJ163,SSES!AJ163) -> 0 | AK163: =CHOOSE(m_identity,ENWL!AK163, NPgN!AK163, NPgY!AK163, WMID!AK163, EMID!AK163, SWALES!AK163, SWEST!AK163, LPN!AK163,SPN!AK163,EPN!AK163,SPD!AK163,SPMW!AK163,SSEH!AK163,SSES!AK163) -> 0 | AL163: =CHOOSE(m_identity,ENWL!AL163, NPgN!AL163, NPgY!AL163, WMID!AL163, EMID!AL163, SWALES!AL163, SWEST!AL163, LPN!AL163,SPN!AL163,EPN!AL163,SPD!AL163,SPMW!AL163,SSEH!AL163,SSES!AL163) -> 0 | AM163: =CHOOSE(m_identity,ENWL!AM163, NPgN!AM163, NPgY!AM163, WMID!AM163, EMID!AM163, SWALES!AM163, SWEST!AM163, LPN!AM163,SPN!AM163,EPN!AM163,SPD!AM163,SPMW!AM163,SSEH!AM163,SSES!AM163) -> 0 | AN163: =CHOOSE(m_identity,ENWL!AN163, NPgN!AN163, NPgY!AN163, WMID!AN163, EMID!AN163, SWALES!AN163, SWEST!AN163, LPN!AN163,SPN!AN163,EPN!AN163,SPD!AN163,SPMW!AN163,SSEH!AN163,SSES!AN163) -> 0 | AO163: =CHOOSE(m_identity,ENWL!AO163, NPgN!AO163, NPgY!AO163, WMID!AO163, EMID!AO163, SWALES!AO163, SWEST!AO163, LPN!AO163,SPN!AO163,EPN!AO163,SPD!AO163,SPMW!AO163,SSEH!AO163,SSES!AO163) -> 0 | AP163: =CHOOSE(m_identity,ENWL!AP163, NPgN!AP163, NPgY!AP163, WMID!AP163, EMID!AP163, SWALES!AP163, SWEST!AP163, LPN!AP163,SPN!AP163,EPN!AP163,SPD!AP163,SPMW!AP163,SSEH!AP163,SSES!AP163) -> 0 | AQ163: =CHOOSE(m_identity,ENWL!AQ163, NPgN!AQ163, NPgY!AQ163, WMID!AQ163, EMID!AQ163, SWALES!AQ163, SWEST!AQ163, LPN!AQ163,SPN!AQ163,EPN!AQ163,SPD!AQ163,SPMW!AQ163,SSEH!AQ163,SSES!AQ163) -> 0
E165: =E26 -> Spare 2 | G165: £m 12/13 prices | AJ165: =AJ26 -> 0 | AK165: 0 | AL165: 0 | AM165: 0 | AN165: 0 | AO165: 0 | AP165: 0 | AQ165: 0
E166: Allocation to load related capex | G166: % | AJ166: =CHOOSE(m_identity,ENWL!AJ166, NPgN!AJ166, NPgY!AJ166, WMID!AJ166, EMID!AJ166, SWALES!AJ166, SWEST!AJ166, LPN!AJ166,SPN!AJ166,EPN!AJ166,SPD!AJ166,SPMW!AJ166,SSEH!AJ166,SSES!AJ166) -> 0 | AK166: =CHOOSE(m_identity,ENWL!AK166, NPgN!AK166, NPgY!AK166, WMID!AK166, EMID!AK166, SWALES!AK166, SWEST!AK166, LPN!AK166,SPN!AK166,EPN!AK166,SPD!AK166,SPMW!AK166,SSEH!AK166,SSES!AK166) -> 0 | AL166: =CHOOSE(m_identity,ENWL!AL166, NPgN!AL166, NPgY!AL166, WMID!AL166, EMID!AL166, SWALES!AL166, SWEST!AL166, LPN!AL166,SPN!AL166,EPN!AL166,SPD!AL166,SPMW!AL166,SSEH!AL166,SSES!AL166) -> 0 | AM166: =CHOOSE(m_identity,ENWL!AM166, NPgN!AM166, NPgY!AM166, WMID!AM166, EMID!AM166, SWALES!AM166, SWEST!AM166, LPN!AM166,SPN!AM166,EPN!AM166,SPD!AM166,SPMW!AM166,SSEH!AM166,SSES!AM166) -> 0 | AN166: =CHOOSE(m_identity,ENWL!AN166, NPgN!AN166, NPgY!AN166, WMID!AN166, EMID!AN166, SWALES!AN166, SWEST!AN166, LPN!AN166,SPN!AN166,EPN!AN166,SPD!AN166,SPMW!AN166,SSEH!AN166,SSES!AN166) -> 0 | AO166: =CHOOSE(m_identity,ENWL!AO166, NPgN!AO166, NPgY!AO166, WMID!AO166, EMID!AO166, SWALES!AO166, SWEST!AO166, LPN!AO166,SPN!AO166,EPN!AO166,SPD!AO166,SPMW!AO166,SSEH!AO166,SSES!AO166) -> 0 | AP166: =CHOOSE(m_identity,ENWL!AP166, NPgN!AP166, NPgY!AP166, WMID!AP166, EMID!AP166, SWALES!AP166, SWEST!AP166, LPN!AP166,SPN!AP166,EPN!AP166,SPD!AP166,SPMW!AP166,SSEH!AP166,SSES!AP166) -> 0 | AQ166: =CHOOSE(m_identity,ENWL!AQ166, NPgN!AQ166, NPgY!AQ166, WMID!AQ166, EMID!AQ166, SWALES!AQ166, SWEST!AQ166, LPN!AQ166,SPN!AQ166,EPN!AQ166,SPD!AQ166,SPMW!AQ166,SSEH!AQ166,SSES!AQ166) -> 0
E167: Allocation to non-load related capex - asset replacement | G167: % | AJ167: =CHOOSE(m_identity,ENWL!AJ167, NPgN!AJ167, NPgY!AJ167, WMID!AJ167, EMID!AJ167, SWALES!AJ167, SWEST!AJ167, LPN!AJ167,SPN!AJ167,EPN!AJ167,SPD!AJ167,SPMW!AJ167,SSEH!AJ167,SSES!AJ167) -> 0 | AK167: =CHOOSE(m_identity,ENWL!AK167, NPgN!AK167, NPgY!AK167, WMID!AK167, EMID!AK167, SWALES!AK167, SWEST!AK167, LPN!AK167,SPN!AK167,EPN!AK167,SPD!AK167,SPMW!AK167,SSEH!AK167,SSES!AK167) -> 0 | AL167: =CHOOSE(m_identity,ENWL!AL167, NPgN!AL167, NPgY!AL167, WMID!AL167, EMID!AL167, SWALES!AL167, SWEST!AL167, LPN!AL167,SPN!AL167,EPN!AL167,SPD!AL167,SPMW!AL167,SSEH!AL167,SSES!AL167) -> 0 | AM167: =CHOOSE(m_identity,ENWL!AM167, NPgN!AM167, NPgY!AM167, WMID!AM167, EMID!AM167, SWALES!AM167, SWEST!AM167, LPN!AM167,SPN!AM167,EPN!AM167,SPD!AM167,SPMW!AM167,SSEH!AM167,SSES!AM167) -> 0 | AN167: =CHOOSE(m_identity,ENWL!AN167, NPgN!AN167, NPgY!AN167, WMID!AN167, EMID!AN167, SWALES!AN167, SWEST!AN167, LPN!AN167,SPN!AN167,EPN!AN167,SPD!AN167,SPMW!AN167,SSEH!AN167,SSES!AN167) -> 0 | AO167: =CHOOSE(m_identity,ENWL!AO167, NPgN!AO167, NPgY!AO167, WMID!AO167, EMID!AO167, SWALES!AO167, SWEST!AO167, LPN!AO167,SPN!AO167,EPN!AO167,SPD!AO167,SPMW!AO167,SSEH!AO167,SSES!AO167) -> 0 | AP167: =CHOOSE(m_identity,ENWL!AP167, NPgN!AP167, NPgY!AP167, WMID!AP167, EMID!AP167, SWALES!AP167, SWEST!AP167, LPN!AP167,SPN!AP167,EPN!AP167,SPD!AP167,SPMW!AP167,SSEH!AP167,SSES!AP167) -> 0 | AQ167: =CHOOSE(m_identity,ENWL!AQ167, NPgN!AQ167, NPgY!AQ167, WMID!AQ167, EMID!AQ167, SWALES!AQ167, SWEST!AQ167, LPN!AQ167,SPN!AQ167,EPN!AQ167,SPD!AQ167,SPMW!AQ167,SSEH!AQ167,SSES!AQ167) -> 0
E168: Allocation to non-load related capex - other | G168: % | AJ168: =CHOOSE(m_identity,ENWL!AJ168, NPgN!AJ168, NPgY!AJ168, WMID!AJ168, EMID!AJ168, SWALES!AJ168, SWEST!AJ168, LPN!AJ168,SPN!AJ168,EPN!AJ168,SPD!AJ168,SPMW!AJ168,SSEH!AJ168,SSES!AJ168) -> 0 | AK168: =CHOOSE(m_identity,ENWL!AK168, NPgN!AK168, NPgY!AK168, WMID!AK168, EMID!AK168, SWALES!AK168, SWEST!AK168, LPN!AK168,SPN!AK168,EPN!AK168,SPD!AK168,SPMW!AK168,SSEH!AK168,SSES!AK168) -> 0 | AL168: =CHOOSE(m_identity,ENWL!AL168, NPgN!AL168, NPgY!AL168, WMID!AL168, EMID!AL168, SWALES!AL168, SWEST!AL168, LPN!AL168,SPN!AL168,EPN!AL168,SPD!AL168,SPMW!AL168,SSEH!AL168,SSES!AL168) -> 0 | AM168: =CHOOSE(m_identity,ENWL!AM168, NPgN!AM168, NPgY!AM168, WMID!AM168, EMID!AM168, SWALES!AM168, SWEST!AM168, LPN!AM168,SPN!AM168,EPN!AM168,SPD!AM168,SPMW!AM168,SSEH!AM168,SSES!AM168) -> 0 | AN168: =CHOOSE(m_identity,ENWL!AN168, NPgN!AN168, NPgY!AN168, WMID!AN168, EMID!AN168, SWALES!AN168, SWEST!AN168, LPN!AN168,SPN!AN168,EPN!AN168,SPD!AN168,SPMW!AN168,SSEH!AN168,SSES!AN168) -> 0 | AO168: =CHOOSE(m_identity,ENWL!AO168, NPgN!AO168, NPgY!AO168, WMID!AO168, EMID!AO168, SWALES!AO168, SWEST!AO168, LPN!AO168,SPN!AO168,EPN!AO168,SPD!AO168,SPMW!AO168,SSEH!AO168,SSES!AO168) -> 0 | AP168: =CHOOSE(m_identity,ENWL!AP168, NPgN!AP168, NPgY!AP168, WMID!AP168, EMID!AP168, SWALES!AP168, SWEST!AP168, LPN!AP168,SPN!AP168,EPN!AP168,SPD!AP168,SPMW!AP168,SSEH!AP168,SSES!AP168) -> 0 | AQ168: =CHOOSE(m_identity,ENWL!AQ168, NPgN!AQ168, NPgY!AQ168, WMID!AQ168, EMID!AQ168, SWALES!AQ168, SWEST!AQ168, LPN!AQ168,SPN!AQ168,EPN!AQ168,SPD!AQ168,SPMW!AQ168,SSEH!AQ168,SSES!AQ168) -> 0
E169: Allocation to faults | G169: % | AJ169: =CHOOSE(m_identity,ENWL!AJ169, NPgN!AJ169, NPgY!AJ169, WMID!AJ169, EMID!AJ169, SWALES!AJ169, SWEST!AJ169, LPN!AJ169,SPN!AJ169,EPN!AJ169,SPD!AJ169,SPMW!AJ169,SSEH!AJ169,SSES!AJ169) -> 0 | AK169: =CHOOSE(m_identity,ENWL!AK169, NPgN!AK169, NPgY!AK169, WMID!AK169, EMID!AK169, SWALES!AK169, SWEST!AK169, LPN!AK169,SPN!AK169,EPN!AK169,SPD!AK169,SPMW!AK169,SSEH!AK169,SSES!AK169) -> 0 | AL169: =CHOOSE(m_identity,ENWL!AL169, NPgN!AL169, NPgY!AL169, WMID!AL169, EMID!AL169, SWALES!AL169, SWEST!AL169, LPN!AL169,SPN!AL169,EPN!AL169,SPD!AL169,SPMW!AL169,SSEH!AL169,SSES!AL169) -> 0 | AM169: =CHOOSE(m_identity,ENWL!AM169, NPgN!AM169, NPgY!AM169, WMID!AM169, EMID!AM169, SWALES!AM169, SWEST!AM169, LPN!AM169,SPN!AM169,EPN!AM169,SPD!AM169,SPMW!AM169,SSEH!AM169,SSES!AM169) -> 0 | AN169: =CHOOSE(m_identity,ENWL!AN169, NPgN!AN169, NPgY!AN169, WMID!AN169, EMID!AN169, SWALES!AN169, SWEST!AN169, LPN!AN169,SPN!AN169,EPN!AN169,SPD!AN169,SPMW!AN169,SSEH!AN169,SSES!AN169) -> 0 | AO169: =CHOOSE(m_identity,ENWL!AO169, NPgN!AO169, NPgY!AO169, WMID!AO169, EMID!AO169, SWALES!AO169, SWEST!AO169, LPN!AO169,SPN!AO169,EPN!AO169,SPD!AO169,SPMW!AO169,SSEH!AO169,SSES!AO169) -> 0 | AP169: =CHOOSE(m_identity,ENWL!AP169, NPgN!AP169, NPgY!AP169, WMID!AP169, EMID!AP169, SWALES!AP169, SWEST!AP169, LPN!AP169,SPN!AP169,EPN!AP169,SPD!AP169,SPMW!AP169,SSEH!AP169,SSES!AP169) -> 0 | AQ169: =CHOOSE(m_identity,ENWL!AQ169, NPgN!AQ169, NPgY!AQ169, WMID!AQ169, EMID!AQ169, SWALES!AQ169, SWEST!AQ169, LPN!AQ169,SPN!AQ169,EPN!AQ169,SPD!AQ169,SPMW!AQ169,SSEH!AQ169,SSES!AQ169) -> 0
E170: Allocation to tree cutting | G170: % | AJ170: =CHOOSE(m_identity,ENWL!AJ170, NPgN!AJ170, NPgY!AJ170, WMID!AJ170, EMID!AJ170, SWALES!AJ170, SWEST!AJ170, LPN!AJ170,SPN!AJ170,EPN!AJ170,SPD!AJ170,SPMW!AJ170,SSEH!AJ170,SSES!AJ170) -> 0 | AK170: =CHOOSE(m_identity,ENWL!AK170, NPgN!AK170, NPgY!AK170, WMID!AK170, EMID!AK170, SWALES!AK170, SWEST!AK170, LPN!AK170,SPN!AK170,EPN!AK170,SPD!AK170,SPMW!AK170,SSEH!AK170,SSES!AK170) -> 0 | AL170: =CHOOSE(m_identity,ENWL!AL170, NPgN!AL170, NPgY!AL170, WMID!AL170, EMID!AL170, SWALES!AL170, SWEST!AL170, LPN!AL170,SPN!AL170,EPN!AL170,SPD!AL170,SPMW!AL170,SSEH!AL170,SSES!AL170) -> 0 | AM170: =CHOOSE(m_identity,ENWL!AM170, NPgN!AM170, NPgY!AM170, WMID!AM170, EMID!AM170, SWALES!AM170, SWEST!AM170, LPN!AM170,SPN!AM170,EPN!AM170,SPD!AM170,SPMW!AM170,SSEH!AM170,SSES!AM170) -> 0 | AN170: =CHOOSE(m_identity,ENWL!AN170, NPgN!AN170, NPgY!AN170, WMID!AN170, EMID!AN170, SWALES!AN170, SWEST!AN170, LPN!AN170,SPN!AN170,EPN!AN170,SPD!AN170,SPMW!AN170,SSEH!AN170,SSES!AN170) -> 0 | AO170: =CHOOSE(m_identity,ENWL!AO170, NPgN!AO170, NPgY!AO170, WMID!AO170, EMID!AO170, SWALES!AO170, SWEST!AO170, LPN!AO170,SPN!AO170,EPN!AO170,SPD!AO170,SPMW!AO170,SSEH!AO170,SSES!AO170) -> 0 | AP170: =CHOOSE(m_identity,ENWL!AP170, NPgN!AP170, NPgY!AP170, WMID!AP170, EMID!AP170, SWALES!AP170, SWEST!AP170, LPN!AP170,SPN!AP170,EPN!AP170,SPD!AP170,SPMW!AP170,SSEH!AP170,SSES!AP170) -> 0 | AQ170: =CHOOSE(m_identity,ENWL!AQ170, NPgN!AQ170, NPgY!AQ170, WMID!AQ170, EMID!AQ170, SWALES!AQ170, SWEST!AQ170, LPN!AQ170,SPN!AQ170,EPN!AQ170,SPD!AQ170,SPMW!AQ170,SSEH!AQ170,SSES!AQ170) -> 0
E171: Allocation to controllable opex | G171: % | AJ171: =CHOOSE(m_identity,ENWL!AJ171, NPgN!AJ171, NPgY!AJ171, WMID!AJ171, EMID!AJ171, SWALES!AJ171, SWEST!AJ171, LPN!AJ171,SPN!AJ171,EPN!AJ171,SPD!AJ171,SPMW!AJ171,SSEH!AJ171,SSES!AJ171) -> 0 | AK171: =CHOOSE(m_identity,ENWL!AK171, NPgN!AK171, NPgY!AK171, WMID!AK171, EMID!AK171, SWALES!AK171, SWEST!AK171, LPN!AK171,SPN!AK171,EPN!AK171,SPD!AK171,SPMW!AK171,SSEH!AK171,SSES!AK171) -> 0 | AL171: =CHOOSE(m_identity,ENWL!AL171, NPgN!AL171, NPgY!AL171, WMID!AL171, EMID!AL171, SWALES!AL171, SWEST!AL171, LPN!AL171,SPN!AL171,EPN!AL171,SPD!AL171,SPMW!AL171,SSEH!AL171,SSES!AL171) -> 0 | AM171: =CHOOSE(m_identity,ENWL!AM171, NPgN!AM171, NPgY!AM171, WMID!AM171, EMID!AM171, SWALES!AM171, SWEST!AM171, LPN!AM171,SPN!AM171,EPN!AM171,SPD!AM171,SPMW!AM171,SSEH!AM171,SSES!AM171) -> 0 | AN171: =CHOOSE(m_identity,ENWL!AN171, NPgN!AN171, NPgY!AN171, WMID!AN171, EMID!AN171, SWALES!AN171, SWEST!AN171, LPN!AN171,SPN!AN171,EPN!AN171,SPD!AN171,SPMW!AN171,SSEH!AN171,SSES!AN171) -> 0 | AO171: =CHOOSE(m_identity,ENWL!AO171, NPgN!AO171, NPgY!AO171, WMID!AO171, EMID!AO171, SWALES!AO171, SWEST!AO171, LPN!AO171,SPN!AO171,EPN!AO171,SPD!AO171,SPMW!AO171,SSEH!AO171,SSES!AO171) -> 0 | AP171: =CHOOSE(m_identity,ENWL!AP171, NPgN!AP171, NPgY!AP171, WMID!AP171, EMID!AP171, SWALES!AP171, SWEST!AP171, LPN!AP171,SPN!AP171,EPN!AP171,SPD!AP171,SPMW!AP171,SSEH!AP171,SSES!AP171) -> 0 | AQ171: =CHOOSE(m_identity,ENWL!AQ171, NPgN!AQ171, NPgY!AQ171, WMID!AQ171, EMID!AQ171, SWALES!AQ171, SWEST!AQ171, LPN!AQ171,SPN!AQ171,EPN!AQ171,SPD!AQ171,SPMW!AQ171,SSEH!AQ171,SSES!AQ171) -> 0
E173: =E27 -> Spare 3 | G173: £m 12/13 prices | AJ173: =AJ27 -> 0 | AK173: 0 | AL173: 0 | AM173: 0 | AN173: 0 | AO173: 0 | AP173: 0 | AQ173: 0
E174: Allocation to load related capex | G174: % | AJ174: =CHOOSE(m_identity,ENWL!AJ174, NPgN!AJ174, NPgY!AJ174, WMID!AJ174, EMID!AJ174, SWALES!AJ174, SWEST!AJ174, LPN!AJ174,SPN!AJ174,EPN!AJ174,SPD!AJ174,SPMW!AJ174,SSEH!AJ174,SSES!AJ174) -> 0 | AK174: =CHOOSE(m_identity,ENWL!AK174, NPgN!AK174, NPgY!AK174, WMID!AK174, EMID!AK174, SWALES!AK174, SWEST!AK174, LPN!AK174,SPN!AK174,EPN!AK174,SPD!AK174,SPMW!AK174,SSEH!AK174,SSES!AK174) -> 0 | AL174: =CHOOSE(m_identity,ENWL!AL174, NPgN!AL174, NPgY!AL174, WMID!AL174, EMID!AL174, SWALES!AL174, SWEST!AL174, LPN!AL174,SPN!AL174,EPN!AL174,SPD!AL174,SPMW!AL174,SSEH!AL174,SSES!AL174) -> 0 | AM174: =CHOOSE(m_identity,ENWL!AM174, NPgN!AM174, NPgY!AM174, WMID!AM174, EMID!AM174, SWALES!AM174, SWEST!AM174, LPN!AM174,SPN!AM174,EPN!AM174,SPD!AM174,SPMW!AM174,SSEH!AM174,SSES!AM174) -> 0 | AN174: =CHOOSE(m_identity,ENWL!AN174, NPgN!AN174, NPgY!AN174, WMID!AN174, EMID!AN174, SWALES!AN174, SWEST!AN174, LPN!AN174,SPN!AN174,EPN!AN174,SPD!AN174,SPMW!AN174,SSEH!AN174,SSES!AN174) -> 0 | AO174: =CHOOSE(m_identity,ENWL!AO174, NPgN!AO174, NPgY!AO174, WMID!AO174, EMID!AO174, SWALES!AO174, SWEST!AO174, LPN!AO174,SPN!AO174,EPN!AO174,SPD!AO174,SPMW!AO174,SSEH!AO174,SSES!AO174) -> 0 | AP174: =CHOOSE(m_identity,ENWL!AP174, NPgN!AP174, NPgY!AP174, WMID!AP174, EMID!AP174, SWALES!AP174, SWEST!AP174, LPN!AP174,SPN!AP174,EPN!AP174,SPD!AP174,SPMW!AP174,SSEH!AP174,SSES!AP174) -> 0 | AQ174: =CHOOSE(m_identity,ENWL!AQ174, NPgN!AQ174, NPgY!AQ174, WMID!AQ174, EMID!AQ174, SWALES!AQ174, SWEST!AQ174, LPN!AQ174,SPN!AQ174,EPN!AQ174,SPD!AQ174,SPMW!AQ174,SSEH!AQ174,SSES!AQ174) -> 0
E175: Allocation to non-load related capex - asset replacement | G175: % | AJ175: =CHOOSE(m_identity,ENWL!AJ175, NPgN!AJ175, NPgY!AJ175, WMID!AJ175, EMID!AJ175, SWALES!AJ175, SWEST!AJ175, LPN!AJ175,SPN!AJ175,EPN!AJ175,SPD!AJ175,SPMW!AJ175,SSEH!AJ175,SSES!AJ175) -> 0 | AK175: =CHOOSE(m_identity,ENWL!AK175, NPgN!AK175, NPgY!AK175, WMID!AK175, EMID!AK175, SWALES!AK175, SWEST!AK175, LPN!AK175,SPN!AK175,EPN!AK175,SPD!AK175,SPMW!AK175,SSEH!AK175,SSES!AK175) -> 0 | AL175: =CHOOSE(m_identity,ENWL!AL175, NPgN!AL175, NPgY!AL175, WMID!AL175, EMID!AL175, SWALES!AL175, SWEST!AL175, LPN!AL175,SPN!AL175,EPN!AL175,SPD!AL175,SPMW!AL175,SSEH!AL175,SSES!AL175) -> 0 | AM175: =CHOOSE(m_identity,ENWL!AM175, NPgN!AM175, NPgY!AM175, WMID!AM175, EMID!AM175, SWALES!AM175, SWEST!AM175, LPN!AM175,SPN!AM175,EPN!AM175,SPD!AM175,SPMW!AM175,SSEH!AM175,SSES!AM175) -> 0 | AN175: =CHOOSE(m_identity,ENWL!AN175, NPgN!AN175, NPgY!AN175, WMID!AN175, EMID!AN175, SWALES!AN175, SWEST!AN175, LPN!AN175,SPN!AN175,EPN!AN175,SPD!AN175,SPMW!AN175,SSEH!AN175,SSES!AN175) -> 0 | AO175: =CHOOSE(m_identity,ENWL!AO175, NPgN!AO175, NPgY!AO175, WMID!AO175, EMID!AO175, SWALES!AO175, SWEST!AO175, LPN!AO175,SPN!AO175,EPN!AO175,SPD!AO175,SPMW!AO175,SSEH!AO175,SSES!AO175) -> 0 | AP175: =CHOOSE(m_identity,ENWL!AP175, NPgN!AP175, NPgY!AP175, WMID!AP175, EMID!AP175, SWALES!AP175, SWEST!AP175, LPN!AP175,SPN!AP175,EPN!AP175,SPD!AP175,SPMW!AP175,SSEH!AP175,SSES!AP175) -> 0 | AQ175: =CHOOSE(m_identity,ENWL!AQ175, NPgN!AQ175, NPgY!AQ175, WMID!AQ175, EMID!AQ175, SWALES!AQ175, SWEST!AQ175, LPN!AQ175,SPN!AQ175,EPN!AQ175,SPD!AQ175,SPMW!AQ175,SSEH!AQ175,SSES!AQ175) -> 0
E176: Allocation to non-load related capex - other | G176: % | AJ176: =CHOOSE(m_identity,ENWL!AJ176, NPgN!AJ176, NPgY!AJ176, WMID!AJ176, EMID!AJ176, SWALES!AJ176, SWEST!AJ176, LPN!AJ176,SPN!AJ176,EPN!AJ176,SPD!AJ176,SPMW!AJ176,SSEH!AJ176,SSES!AJ176) -> 0 | AK176: =CHOOSE(m_identity,ENWL!AK176, NPgN!AK176, NPgY!AK176, WMID!AK176, EMID!AK176, SWALES!AK176, SWEST!AK176, LPN!AK176,SPN!AK176,EPN!AK176,SPD!AK176,SPMW!AK176,SSEH!AK176,SSES!AK176) -> 0 | AL176: =CHOOSE(m_identity,ENWL!AL176, NPgN!AL176, NPgY!AL176, WMID!AL176, EMID!AL176, SWALES!AL176, SWEST!AL176, LPN!AL176,SPN!AL176,EPN!AL176,SPD!AL176,SPMW!AL176,SSEH!AL176,SSES!AL176) -> 0 | AM176: =CHOOSE(m_identity,ENWL!AM176, NPgN!AM176, NPgY!AM176, WMID!AM176, EMID!AM176, SWALES!AM176, SWEST!AM176, LPN!AM176,SPN!AM176,EPN!AM176,SPD!AM176,SPMW!AM176,SSEH!AM176,SSES!AM176) -> 0 | AN176: =CHOOSE(m_identity,ENWL!AN176, NPgN!AN176, NPgY!AN176, WMID!AN176, EMID!AN176, SWALES!AN176, SWEST!AN176, LPN!AN176,SPN!AN176,EPN!AN176,SPD!AN176,SPMW!AN176,SSEH!AN176,SSES!AN176) -> 0 | AO176: =CHOOSE(m_identity,ENWL!AO176, NPgN!AO176, NPgY!AO176, WMID!AO176, EMID!AO176, SWALES!AO176, SWEST!AO176, LPN!AO176,SPN!AO176,EPN!AO176,SPD!AO176,SPMW!AO176,SSEH!AO176,SSES!AO176) -> 0 | AP176: =CHOOSE(m_identity,ENWL!AP176, NPgN!AP176, NPgY!AP176, WMID!AP176, EMID!AP176, SWALES!AP176, SWEST!AP176, LPN!AP176,SPN!AP176,EPN!AP176,SPD!AP176,SPMW!AP176,SSEH!AP176,SSES!AP176) -> 0 | AQ176: =CHOOSE(m_identity,ENWL!AQ176, NPgN!AQ176, NPgY!AQ176, WMID!AQ176, EMID!AQ176, SWALES!AQ176, SWEST!AQ176, LPN!AQ176,SPN!AQ176,EPN!AQ176,SPD!AQ176,SPMW!AQ176,SSEH!AQ176,SSES!AQ176) -> 0
E177: Allocation to faults | G177: % | AJ177: =CHOOSE(m_identity,ENWL!AJ177, NPgN!AJ177, NPgY!AJ177, WMID!AJ177, EMID!AJ177, SWALES!AJ177, SWEST!AJ177, LPN!AJ177,SPN!AJ177,EPN!AJ177,SPD!AJ177,SPMW!AJ177,SSEH!AJ177,SSES!AJ177) -> 0 | AK177: =CHOOSE(m_identity,ENWL!AK177, NPgN!AK177, NPgY!AK177, WMID!AK177, EMID!AK177, SWALES!AK177, SWEST!AK177, LPN!AK177,SPN!AK177,EPN!AK177,SPD!AK177,SPMW!AK177,SSEH!AK177,SSES!AK177) -> 0 | AL177: =CHOOSE(m_identity,ENWL!AL177, NPgN!AL177, NPgY!AL177, WMID!AL177, EMID!AL177, SWALES!AL177, SWEST!AL177, LPN!AL177,SPN!AL177,EPN!AL177,SPD!AL177,SPMW!AL177,SSEH!AL177,SSES!AL177) -> 0 | AM177: =CHOOSE(m_identity,ENWL!AM177, NPgN!AM177, NPgY!AM177, WMID!AM177, EMID!AM177, SWALES!AM177, SWEST!AM177, LPN!AM177,SPN!AM177,EPN!AM177,SPD!AM177,SPMW!AM177,SSEH!AM177,SSES!AM177) -> 0 | AN177: =CHOOSE(m_identity,ENWL!AN177, NPgN!AN177, NPgY!AN177, WMID!AN177, EMID!AN177, SWALES!AN177, SWEST!AN177, LPN!AN177,SPN!AN177,EPN!AN177,SPD!AN177,SPMW!AN177,SSEH!AN177,SSES!AN177) -> 0 | AO177: =CHOOSE(m_identity,ENWL!AO177, NPgN!AO177, NPgY!AO177, WMID!AO177, EMID!AO177, SWALES!AO177, SWEST!AO177, LPN!AO177,SPN!AO177,EPN!AO177,SPD!AO177,SPMW!AO177,SSEH!AO177,SSES!AO177) -> 0 | AP177: =CHOOSE(m_identity,ENWL!AP177, NPgN!AP177, NPgY!AP177, WMID!AP177, EMID!AP177, SWALES!AP177, SWEST!AP177, LPN!AP177,SPN!AP177,EPN!AP177,SPD!AP177,SPMW!AP177,SSEH!AP177,SSES!AP177) -> 0 | AQ177: =CHOOSE(m_identity,ENWL!AQ177, NPgN!AQ177, NPgY!AQ177, WMID!AQ177, EMID!AQ177, SWALES!AQ177, SWEST!AQ177, LPN!AQ177,SPN!AQ177,EPN!AQ177,SPD!AQ177,SPMW!AQ177,SSEH!AQ177,SSES!AQ177) -> 0
E178: Allocation to tree cutting | G178: % | AJ178: =CHOOSE(m_identity,ENWL!AJ178, NPgN!AJ178, NPgY!AJ178, WMID!AJ178, EMID!AJ178, SWALES!AJ178, SWEST!AJ178, LPN!AJ178,SPN!AJ178,EPN!AJ178,SPD!AJ178,SPMW!AJ178,SSEH!AJ178,SSES!AJ178) -> 0 | AK178: =CHOOSE(m_identity,ENWL!AK178, NPgN!AK178, NPgY!AK178, WMID!AK178, EMID!AK178, SWALES!AK178, SWEST!AK178, LPN!AK178,SPN!AK178,EPN!AK178,SPD!AK178,SPMW!AK178,SSEH!AK178,SSES!AK178) -> 0 | AL178: =CHOOSE(m_identity,ENWL!AL178, NPgN!AL178, NPgY!AL178, WMID!AL178, EMID!AL178, SWALES!AL178, SWEST!AL178, LPN!AL178,SPN!AL178,EPN!AL178,SPD!AL178,SPMW!AL178,SSEH!AL178,SSES!AL178) -> 0 | AM178: =CHOOSE(m_identity,ENWL!AM178, NPgN!AM178, NPgY!AM178, WMID!AM178, EMID!AM178, SWALES!AM178, SWEST!AM178, LPN!AM178,SPN!AM178,EPN!AM178,SPD!AM178,SPMW!AM178,SSEH!AM178,SSES!AM178) -> 0 | AN178: =CHOOSE(m_identity,ENWL!AN178, NPgN!AN178, NPgY!AN178, WMID!AN178, EMID!AN178, SWALES!AN178, SWEST!AN178, LPN!AN178,SPN!AN178,EPN!AN178,SPD!AN178,SPMW!AN178,SSEH!AN178,SSES!AN178) -> 0 | AO178: =CHOOSE(m_identity,ENWL!AO178, NPgN!AO178, NPgY!AO178, WMID!AO178, EMID!AO178, SWALES!AO178, SWEST!AO178, LPN!AO178,SPN!AO178,EPN!AO178,SPD!AO178,SPMW!AO178,SSEH!AO178,SSES!AO178) -> 0 | AP178: =CHOOSE(m_identity,ENWL!AP178, NPgN!AP178, NPgY!AP178, WMID!AP178, EMID!AP178, SWALES!AP178, SWEST!AP178, LPN!AP178,SPN!AP178,EPN!AP178,SPD!AP178,SPMW!AP178,SSEH!AP178,SSES!AP178) -> 0 | AQ178: =CHOOSE(m_identity,ENWL!AQ178, NPgN!AQ178, NPgY!AQ178, WMID!AQ178, EMID!AQ178, SWALES!AQ178, SWEST!AQ178, LPN!AQ178,SPN!AQ178,EPN!AQ178,SPD!AQ178,SPMW!AQ178,SSEH!AQ178,SSES!AQ178) -> 0
E179: Allocation to controllable opex | G179: % | AJ179: =CHOOSE(m_identity,ENWL!AJ179, NPgN!AJ179, NPgY!AJ179, WMID!AJ179, EMID!AJ179, SWALES!AJ179, SWEST!AJ179, LPN!AJ179,SPN!AJ179,EPN!AJ179,SPD!AJ179,SPMW!AJ179,SSEH!AJ179,SSES!AJ179) -> 0 | AK179: =CHOOSE(m_identity,ENWL!AK179, NPgN!AK179, NPgY!AK179, WMID!AK179, EMID!AK179, SWALES!AK179, SWEST!AK179, LPN!AK179,SPN!AK179,EPN!AK179,SPD!AK179,SPMW!AK179,SSEH!AK179,SSES!AK179) -> 0 | AL179: =CHOOSE(m_identity,ENWL!AL179, NPgN!AL179, NPgY!AL179, WMID!AL179, EMID!AL179, SWALES!AL179, SWEST!AL179, LPN!AL179,SPN!AL179,EPN!AL179,SPD!AL179,SPMW!AL179,SSEH!AL179,SSES!AL179) -> 0 | AM179: =CHOOSE(m_identity,ENWL!AM179, NPgN!AM179, NPgY!AM179, WMID!AM179, EMID!AM179, SWALES!AM179, SWEST!AM179, LPN!AM179,SPN!AM179,EPN!AM179,SPD!AM179,SPMW!AM179,SSEH!AM179,SSES!AM179) -> 0 | AN179: =CHOOSE(m_identity,ENWL!AN179, NPgN!AN179, NPgY!AN179, WMID!AN179, EMID!AN179, SWALES!AN179, SWEST!AN179, LPN!AN179,SPN!AN179,EPN!AN179,SPD!AN179,SPMW!AN179,SSEH!AN179,SSES!AN179) -> 0 | AO179: =CHOOSE(m_identity,ENWL!AO179, NPgN!AO179, NPgY!AO179, WMID!AO179, EMID!AO179, SWALES!AO179, SWEST!AO179, LPN!AO179,SPN!AO179,EPN!AO179,SPD!AO179,SPMW!AO179,SSEH!AO179,SSES!AO179) -> 0 | AP179: =CHOOSE(m_identity,ENWL!AP179, NPgN!AP179, NPgY!AP179, WMID!AP179, EMID!AP179, SWALES!AP179, SWEST!AP179, LPN!AP179,SPN!AP179,EPN!AP179,SPD!AP179,SPMW!AP179,SSEH!AP179,SSES!AP179) -> 0 | AQ179: =CHOOSE(m_identity,ENWL!AQ179, NPgN!AQ179, NPgY!AQ179, WMID!AQ179, EMID!AQ179, SWALES!AQ179, SWEST!AQ179, LPN!AQ179,SPN!AQ179,EPN!AQ179,SPD!AQ179,SPMW!AQ179,SSEH!AQ179,SSES!AQ179) -> 0
E181: =E28 -> Allowed innovation roll-out mechanism | G181: £m 12/13 prices | AJ181: =AJ28 -> 0 | AK181: =AK28 -> 0 | AL181: 0 | AM181: 0 | AN181: 0 | AO181: 0 | AP181: 0 | AQ181: 0
E182: Allocation to load related capex | G182: % | AJ182: =CHOOSE(m_identity,ENWL!AJ182, NPgN!AJ182, NPgY!AJ182, WMID!AJ182, EMID!AJ182, SWALES!AJ182, SWEST!AJ182, LPN!AJ182,SPN!AJ182,EPN!AJ182,SPD!AJ182,SPMW!AJ182,SSEH!AJ182,SSES!AJ182) -> 0.25 | AK182: =CHOOSE(m_identity,ENWL!AK182, NPgN!AK182, NPgY!AK182, WMID!AK182, EMID!AK182, SWALES!AK182, SWEST!AK182, LPN!AK182,SPN!AK182,EPN!AK182,SPD!AK182,SPMW!AK182,SSEH!AK182,SSES!AK182) -> 0.25 | AL182: =CHOOSE(m_identity,ENWL!AL182, NPgN!AL182, NPgY!AL182, WMID!AL182, EMID!AL182, SWALES!AL182, SWEST!AL182, LPN!AL182,SPN!AL182,EPN!AL182,SPD!AL182,SPMW!AL182,SSEH!AL182,SSES!AL182) -> 0.25 | AM182: =CHOOSE(m_identity,ENWL!AM182, NPgN!AM182, NPgY!AM182, WMID!AM182, EMID!AM182, SWALES!AM182, SWEST!AM182, LPN!AM182,SPN!AM182,EPN!AM182,SPD!AM182,SPMW!AM182,SSEH!AM182,SSES!AM182) -> 0.25 | AN182: =CHOOSE(m_identity,ENWL!AN182, NPgN!AN182, NPgY!AN182, WMID!AN182, EMID!AN182, SWALES!AN182, SWEST!AN182, LPN!AN182,SPN!AN182,EPN!AN182,SPD!AN182,SPMW!AN182,SSEH!AN182,SSES!AN182) -> 0.25 | AO182: =CHOOSE(m_identity,ENWL!AO182, NPgN!AO182, NPgY!AO182, WMID!AO182, EMID!AO182, SWALES!AO182, SWEST!AO182, LPN!AO182,SPN!AO182,EPN!AO182,SPD!AO182,SPMW!AO182,SSEH!AO182,SSES!AO182) -> 0.25 | AP182: =CHOOSE(m_identity,ENWL!AP182, NPgN!AP182, NPgY!AP182, WMID!AP182, EMID!AP182, SWALES!AP182, SWEST!AP182, LPN!AP182,SPN!AP182,EPN!AP182,SPD!AP182,SPMW!AP182,SSEH!AP182,SSES!AP182) -> 0.25 | AQ182: =CHOOSE(m_identity,ENWL!AQ182, NPgN!AQ182, NPgY!AQ182, WMID!AQ182, EMID!AQ182, SWALES!AQ182, SWEST!AQ182, LPN!AQ182,SPN!AQ182,EPN!AQ182,SPD!AQ182,SPMW!AQ182,SSEH!AQ182,SSES!AQ182) -> 0.25
E183: Allocation to non-load related capex - asset replacement | G183: % | AJ183: =CHOOSE(m_identity,ENWL!AJ183, NPgN!AJ183, NPgY!AJ183, WMID!AJ183, EMID!AJ183, SWALES!AJ183, SWEST!AJ183, LPN!AJ183,SPN!AJ183,EPN!AJ183,SPD!AJ183,SPMW!AJ183,SSEH!AJ183,SSES!AJ183) -> 0 | AK183: =CHOOSE(m_identity,ENWL!AK183, NPgN!AK183, NPgY!AK183, WMID!AK183, EMID!AK183, SWALES!AK183, SWEST!AK183, LPN!AK183,SPN!AK183,EPN!AK183,SPD!AK183,SPMW!AK183,SSEH!AK183,SSES!AK183) -> 0 | AL183: =CHOOSE(m_identity,ENWL!AL183, NPgN!AL183, NPgY!AL183, WMID!AL183, EMID!AL183, SWALES!AL183, SWEST!AL183, LPN!AL183,SPN!AL183,EPN!AL183,SPD!AL183,SPMW!AL183,SSEH!AL183,SSES!AL183) -> 0 | AM183: =CHOOSE(m_identity,ENWL!AM183, NPgN!AM183, NPgY!AM183, WMID!AM183, EMID!AM183, SWALES!AM183, SWEST!AM183, LPN!AM183,SPN!AM183,EPN!AM183,SPD!AM183,SPMW!AM183,SSEH!AM183,SSES!AM183) -> 0 | AN183: =CHOOSE(m_identity,ENWL!AN183, NPgN!AN183, NPgY!AN183, WMID!AN183, EMID!AN183, SWALES!AN183, SWEST!AN183, LPN!AN183,SPN!AN183,EPN!AN183,SPD!AN183,SPMW!AN183,SSEH!AN183,SSES!AN183) -> 0 | AO183: =CHOOSE(m_identity,ENWL!AO183, NPgN!AO183, NPgY!AO183, WMID!AO183, EMID!AO183, SWALES!AO183, SWEST!AO183, LPN!AO183,SPN!AO183,EPN!AO183,SPD!AO183,SPMW!AO183,SSEH!AO183,SSES!AO183) -> 0 | AP183: =CHOOSE(m_identity,ENWL!AP183, NPgN!AP183, NPgY!AP183, WMID!AP183, EMID!AP183, SWALES!AP183, SWEST!AP183, LPN!AP183,SPN!AP183,EPN!AP183,SPD!AP183,SPMW!AP183,SSEH!AP183,SSES!AP183) -> 0 | AQ183: =CHOOSE(m_identity,ENWL!AQ183, NPgN!AQ183, NPgY!AQ183, WMID!AQ183, EMID!AQ183, SWALES!AQ183, SWEST!AQ183, LPN!AQ183,SPN!AQ183,EPN!AQ183,SPD!AQ183,SPMW!AQ183,SSEH!AQ183,SSES!AQ183) -> 0
E184: Allocation to non-load related capex - other | G184: % | AJ184: =CHOOSE(m_identity,ENWL!AJ184, NPgN!AJ184, NPgY!AJ184, WMID!AJ184, EMID!AJ184, SWALES!AJ184, SWEST!AJ184, LPN!AJ184,SPN!AJ184,EPN!AJ184,SPD!AJ184,SPMW!AJ184,SSEH!AJ184,SSES!AJ184) -> 0.75 | AK184: =CHOOSE(m_identity,ENWL!AK184, NPgN!AK184, NPgY!AK184, WMID!AK184, EMID!AK184, SWALES!AK184, SWEST!AK184, LPN!AK184,SPN!AK184,EPN!AK184,SPD!AK184,SPMW!AK184,SSEH!AK184,SSES!AK184) -> 0.75 | AL184: =CHOOSE(m_identity,ENWL!AL184, NPgN!AL184, NPgY!AL184, WMID!AL184, EMID!AL184, SWALES!AL184, SWEST!AL184, LPN!AL184,SPN!AL184,EPN!AL184,SPD!AL184,SPMW!AL184,SSEH!AL184,SSES!AL184) -> 0.75 | AM184: =CHOOSE(m_identity,ENWL!AM184, NPgN!AM184, NPgY!AM184, WMID!AM184, EMID!AM184, SWALES!AM184, SWEST!AM184, LPN!AM184,SPN!AM184,EPN!AM184,SPD!AM184,SPMW!AM184,SSEH!AM184,SSES!AM184) -> 0.75 | AN184: =CHOOSE(m_identity,ENWL!AN184, NPgN!AN184, NPgY!AN184, WMID!AN184, EMID!AN184, SWALES!AN184, SWEST!AN184, LPN!AN184,SPN!AN184,EPN!AN184,SPD!AN184,SPMW!AN184,SSEH!AN184,SSES!AN184) -> 0.75 | AO184: =CHOOSE(m_identity,ENWL!AO184, NPgN!AO184, NPgY!AO184, WMID!AO184, EMID!AO184, SWALES!AO184, SWEST!AO184, LPN!AO184,SPN!AO184,EPN!AO184,SPD!AO184,SPMW!AO184,SSEH!AO184,SSES!AO184) -> 0.75 | AP184: =CHOOSE(m_identity,ENWL!AP184, NPgN!AP184, NPgY!AP184, WMID!AP184, EMID!AP184, SWALES!AP184, SWEST!AP184, LPN!AP184,SPN!AP184,EPN!AP184,SPD!AP184,SPMW!AP184,SSEH!AP184,SSES!AP184) -> 0.75 | AQ184: =CHOOSE(m_identity,ENWL!AQ184, NPgN!AQ184, NPgY!AQ184, WMID!AQ184, EMID!AQ184, SWALES!AQ184, SWEST!AQ184, LPN!AQ184,SPN!AQ184,EPN!AQ184,SPD!AQ184,SPMW!AQ184,SSEH!AQ184,SSES!AQ184) -> 0.75
E185: Allocation to faults | G185: % | AJ185: =CHOOSE(m_identity,ENWL!AJ185, NPgN!AJ185, NPgY!AJ185, WMID!AJ185, EMID!AJ185, SWALES!AJ185, SWEST!AJ185, LPN!AJ185,SPN!AJ185,EPN!AJ185,SPD!AJ185,SPMW!AJ185,SSEH!AJ185,SSES!AJ185) -> 0 | AK185: =CHOOSE(m_identity,ENWL!AK185, NPgN!AK185, NPgY!AK185, WMID!AK185, EMID!AK185, SWALES!AK185, SWEST!AK185, LPN!AK185,SPN!AK185,EPN!AK185,SPD!AK185,SPMW!AK185,SSEH!AK185,SSES!AK185) -> 0 | AL185: =CHOOSE(m_identity,ENWL!AL185, NPgN!AL185, NPgY!AL185, WMID!AL185, EMID!AL185, SWALES!AL185, SWEST!AL185, LPN!AL185,SPN!AL185,EPN!AL185,SPD!AL185,SPMW!AL185,SSEH!AL185,SSES!AL185) -> 0 | AM185: =CHOOSE(m_identity,ENWL!AM185, NPgN!AM185, NPgY!AM185, WMID!AM185, EMID!AM185, SWALES!AM185, SWEST!AM185, LPN!AM185,SPN!AM185,EPN!AM185,SPD!AM185,SPMW!AM185,SSEH!AM185,SSES!AM185) -> 0 | AN185: =CHOOSE(m_identity,ENWL!AN185, NPgN!AN185, NPgY!AN185, WMID!AN185, EMID!AN185, SWALES!AN185, SWEST!AN185, LPN!AN185,SPN!AN185,EPN!AN185,SPD!AN185,SPMW!AN185,SSEH!AN185,SSES!AN185) -> 0 | AO185: =CHOOSE(m_identity,ENWL!AO185, NPgN!AO185, NPgY!AO185, WMID!AO185, EMID!AO185, SWALES!AO185, SWEST!AO185, LPN!AO185,SPN!AO185,EPN!AO185,SPD!AO185,SPMW!AO185,SSEH!AO185,SSES!AO185) -> 0 | AP185: =CHOOSE(m_identity,ENWL!AP185, NPgN!AP185, NPgY!AP185, WMID!AP185, EMID!AP185, SWALES!AP185, SWEST!AP185, LPN!AP185,SPN!AP185,EPN!AP185,SPD!AP185,SPMW!AP185,SSEH!AP185,SSES!AP185) -> 0 | AQ185: =CHOOSE(m_identity,ENWL!AQ185, NPgN!AQ185, NPgY!AQ185, WMID!AQ185, EMID!AQ185, SWALES!AQ185, SWEST!AQ185, LPN!AQ185,SPN!AQ185,EPN!AQ185,SPD!AQ185,SPMW!AQ185,SSEH!AQ185,SSES!AQ185) -> 0
E186: Allocation to tree cutting | G186: % | AJ186: =CHOOSE(m_identity,ENWL!AJ186, NPgN!AJ186, NPgY!AJ186, WMID!AJ186, EMID!AJ186, SWALES!AJ186, SWEST!AJ186, LPN!AJ186,SPN!AJ186,EPN!AJ186,SPD!AJ186,SPMW!AJ186,SSEH!AJ186,SSES!AJ186) -> 0 | AK186: =CHOOSE(m_identity,ENWL!AK186, NPgN!AK186, NPgY!AK186, WMID!AK186, EMID!AK186, SWALES!AK186, SWEST!AK186, LPN!AK186,SPN!AK186,EPN!AK186,SPD!AK186,SPMW!AK186,SSEH!AK186,SSES!AK186) -> 0 | AL186: =CHOOSE(m_identity,ENWL!AL186, NPgN!AL186, NPgY!AL186, WMID!AL186, EMID!AL186, SWALES!AL186, SWEST!AL186, LPN!AL186,SPN!AL186,EPN!AL186,SPD!AL186,SPMW!AL186,SSEH!AL186,SSES!AL186) -> 0 | AM186: =CHOOSE(m_identity,ENWL!AM186, NPgN!AM186, NPgY!AM186, WMID!AM186, EMID!AM186, SWALES!AM186, SWEST!AM186, LPN!AM186,SPN!AM186,EPN!AM186,SPD!AM186,SPMW!AM186,SSEH!AM186,SSES!AM186) -> 0 | AN186: =CHOOSE(m_identity,ENWL!AN186, NPgN!AN186, NPgY!AN186, WMID!AN186, EMID!AN186, SWALES!AN186, SWEST!AN186, LPN!AN186,SPN!AN186,EPN!AN186,SPD!AN186,SPMW!AN186,SSEH!AN186,SSES!AN186) -> 0 | AO186: =CHOOSE(m_identity,ENWL!AO186, NPgN!AO186, NPgY!AO186, WMID!AO186, EMID!AO186, SWALES!AO186, SWEST!AO186, LPN!AO186,SPN!AO186,EPN!AO186,SPD!AO186,SPMW!AO186,SSEH!AO186,SSES!AO186) -> 0 | AP186: =CHOOSE(m_identity,ENWL!AP186, NPgN!AP186, NPgY!AP186, WMID!AP186, EMID!AP186, SWALES!AP186, SWEST!AP186, LPN!AP186,SPN!AP186,EPN!AP186,SPD!AP186,SPMW!AP186,SSEH!AP186,SSES!AP186) -> 0 | AQ186: =CHOOSE(m_identity,ENWL!AQ186, NPgN!AQ186, NPgY!AQ186, WMID!AQ186, EMID!AQ186, SWALES!AQ186, SWEST!AQ186, LPN!AQ186,SPN!AQ186,EPN!AQ186,SPD!AQ186,SPMW!AQ186,SSEH!AQ186,SSES!AQ186) -> 0
E187: Allocation to controllable opex | G187: % | AJ187: =CHOOSE(m_identity,ENWL!AJ187, NPgN!AJ187, NPgY!AJ187, WMID!AJ187, EMID!AJ187, SWALES!AJ187, SWEST!AJ187, LPN!AJ187,SPN!AJ187,EPN!AJ187,SPD!AJ187,SPMW!AJ187,SSEH!AJ187,SSES!AJ187) -> 0 | AK187: =CHOOSE(m_identity,ENWL!AK187, NPgN!AK187, NPgY!AK187, WMID!AK187, EMID!AK187, SWALES!AK187, SWEST!AK187, LPN!AK187,SPN!AK187,EPN!AK187,SPD!AK187,SPMW!AK187,SSEH!AK187,SSES!AK187) -> 0 | AL187: =CHOOSE(m_identity,ENWL!AL187, NPgN!AL187, NPgY!AL187, WMID!AL187, EMID!AL187, SWALES!AL187, SWEST!AL187, LPN!AL187,SPN!AL187,EPN!AL187,SPD!AL187,SPMW!AL187,SSEH!AL187,SSES!AL187) -> 0 | AM187: =CHOOSE(m_identity,ENWL!AM187, NPgN!AM187, NPgY!AM187, WMID!AM187, EMID!AM187, SWALES!AM187, SWEST!AM187, LPN!AM187,SPN!AM187,EPN!AM187,SPD!AM187,SPMW!AM187,SSEH!AM187,SSES!AM187) -> 0 | AN187: =CHOOSE(m_identity,ENWL!AN187, NPgN!AN187, NPgY!AN187, WMID!AN187, EMID!AN187, SWALES!AN187, SWEST!AN187, LPN!AN187,SPN!AN187,EPN!AN187,SPD!AN187,SPMW!AN187,SSEH!AN187,SSES!AN187) -> 0 | AO187: =CHOOSE(m_identity,ENWL!AO187, NPgN!AO187, NPgY!AO187, WMID!AO187, EMID!AO187, SWALES!AO187, SWEST!AO187, LPN!AO187,SPN!AO187,EPN!AO187,SPD!AO187,SPMW!AO187,SSEH!AO187,SSES!AO187) -> 0 | AP187: =CHOOSE(m_identity,ENWL!AP187, NPgN!AP187, NPgY!AP187, WMID!AP187, EMID!AP187, SWALES!AP187, SWEST!AP187, LPN!AP187,SPN!AP187,EPN!AP187,SPD!AP187,SPMW!AP187,SSEH!AP187,SSES!AP187) -> 0 | AQ187: =CHOOSE(m_identity,ENWL!AQ187, NPgN!AQ187, NPgY!AQ187, WMID!AQ187, EMID!AQ187, SWALES!AQ187, SWEST!AQ187, LPN!AQ187,SPN!AQ187,EPN!AQ187,SPD!AQ187,SPMW!AQ187,SSEH!AQ187,SSES!AQ187) -> 0
E189: Variant allowed load related capex | G189: £m 12/13 prices | AJ189: =(AJ$101*AJ102)+(AJ$109*AJ110)+(AJ$117*AJ118)+(AJ$125*AJ126)+(AJ$133*AJ134)+(AJ$141*AJ142)+(AJ$149*AJ150)+(AJ$157*AJ158)+(AJ$165*AJ166)+(AJ$173*AJ174)+(AJ$181*AJ182) -> 0 | AK189: 0 | AL189: 0 | AM189: 0 | AN189: 0 | AO189: 0 | AP189: 0 | AQ189: 0
E190: Variant allowed non-load related capex - asset replacement | G190: £m 12/13 prices | AJ190: 0.06685035814 | AK190: 0.5804095818 | AL190: 0.580290419 | AM190: 0.07100725904 | AN190: 0.0719356936 | AO190: 0.07292431534 | AP190: 0.0738792291 | AQ190: 0.0748657966
E191: Variant allowed non-load related capex - other | G191: £m 12/13 prices | AJ191: =(AJ$101*AJ104)+(AJ$109*AJ112)+(AJ$117*AJ120)+(AJ$125*AJ128)+(AJ$133*AJ136)+(AJ$141*AJ144)+(AJ$149*AJ152)+(AJ$157*AJ160)+(AJ$165*AJ168)+(AJ$173*AJ176)+(AJ$181*AJ184) -> 0.320863282 | AK191: 0.3201234782 | AL191: 0.3207506198 | AM191: 0.3200639505 | AN191: 0.3205412446 | AO191: 0.3210846656 | AP191: 0.3203434811 | AQ191: 0.3210856157
E192: Variant allowed faults | G192: £m 12/13 prices | AJ192: 0.09503221034 | AK192: 0.09892657866 | AL192: 0.09989582146 | AM192: 0.1014419225 | AN192: 0.1030146716 | AO192: 0.1046153723 | AP192: 0.1062484565 | AQ192: 0.1079176824
E193: Variant allowed tree cutting | G193: £m 12/13 prices | AJ193: 0 | AK193: 0 | AL193: 0 | AM193: 0 | AN193: 0 | AO193: 0 | AP193: 0 | AQ193: 0
E194: Variant allowed controllable opex | G194: £m 12/13 prices | AJ194: =(AJ$101*AJ107)+(AJ$109*AJ115)+(AJ$117*AJ123)+(AJ$125*AJ131)+(AJ$133*AJ139)+(AJ$141*AJ147)+(AJ$149*AJ155)+(AJ$157*AJ163)+(AJ$165*AJ171)+(AJ$173*AJ179)+(AJ$181*AJ187) -> 0.05248632041 | AK194: 0.05185836066 | AL194: 0.05056522318 | AM194: 0.04590256723 | AN194: 0.04200092604 | AO194: 0.04373033078 | AP194: 0 | AQ194: 0
D196: Actual
E198: Actual load related capex | G198: £m 12/13 prices | AJ198: =AJ12 -> 0 | AK198: 0 | AL198: 0 | AM198: 0 | AN198: 0 | AO198: 0 | AP198: 0 | AQ198: 0
E199: Actual non-load related capex - asset replacement | G199: £m 12/13 prices | AJ199: 0 | AK199: 0 | AL199: 0 | AM199: 0 | AN199: 0 | AO199: 0 | AP199: 0 | AQ199: 0
E200: Actual non-load related capex - other | G200: £m 12/13 prices | AJ200: =AJ14 -> 0 | AK200: 0 | AL200: 0 | AM200: 0 | AN200: 0 | AO200: 0 | AP200: 0 | AQ200: 0
E201: Actual faults | G201: £m 12/13 prices | AJ201: =AJ15 -> 0 | AK201: 0 | AL201: 0 | AM201: 0 | AN201: 0 | AO201: 0 | AP201: 0 | AQ201: 0
E202: Actual tree cutting | G202: £m 12/13 prices | AJ202: 0 | AK202: 0 | AL202: 0 | AM202: 0 | AN202: 0 | AO202: 0 | AP202: 0 | AQ202: 0
E203: Actual controllable opex | G203: £m 12/13 prices | AJ203: =AJ17 -> 0 | AK203: 0 | AL203: 0 | AM203: 0 | AN203: 0 | AO203: 0 | AP203: 0 | AQ203: 0
C205: Non-totex (all catergorised as 'opex' for tax purposes)
E207: Non-controllable opex (excluding Exit Charges) | G207: £m 12/13 prices | AJ207: =CHOOSE(m_identity,ENWL!AJ207, NPgN!AJ207, NPgY!AJ207, WMID!AJ207, EMID!AJ207, SWALES!AJ207, SWEST!AJ207, LPN!AJ207,SPN!AJ207,EPN!AJ207,SPD!AJ207,SPMW!AJ207,SSEH!AJ207,SSES!AJ207) -> 28.28686248 | AK207: =CHOOSE(m_identity,ENWL!AK207, NPgN!AK207, NPgY!AK207, WMID!AK207, EMID!AK207, SWALES!AK207, SWEST!AK207, LPN!AK207,SPN!AK207,EPN!AK207,SPD!AK207,SPMW!AK207,SSEH!AK207,SSES!AK207) -> 28.35922981 | AL207: =CHOOSE(m_identity,ENWL!AL207, NPgN!AL207, NPgY!AL207, WMID!AL207, EMID!AL207, SWALES!AL207, SWEST!AL207, LPN!AL207,SPN!AL207,EPN!AL207,SPD!AL207,SPMW!AL207,SSEH!AL207,SSES!AL207) -> 31.33718064 | AM207: =CHOOSE(m_identity,ENWL!AM207, NPgN!AM207, NPgY!AM207, WMID!AM207, EMID!AM207, SWALES!AM207, SWEST!AM207, LPN!AM207,SPN!AM207,EPN!AM207,SPD!AM207,SPMW!AM207,SSEH!AM207,SSES!AM207) -> 36.64123119 | AN207: =CHOOSE(m_identity,ENWL!AN207, NPgN!AN207, NPgY!AN207, WMID!AN207, EMID!AN207, SWALES!AN207, SWEST!AN207, LPN!AN207,SPN!AN207,EPN!AN207,SPD!AN207,SPMW!AN207,SSEH!AN207,SSES!AN207) -> 42.87806554 | AO207: =CHOOSE(m_identity,ENWL!AO207, NPgN!AO207, NPgY!AO207, WMID!AO207, EMID!AO207, SWALES!AO207, SWEST!AO207, LPN!AO207,SPN!AO207,EPN!AO207,SPD!AO207,SPMW!AO207,SSEH!AO207,SSES!AO207) -> 43.59335388 | AP207: =CHOOSE(m_identity,ENWL!AP207, NPgN!AP207, NPgY!AP207, WMID!AP207, EMID!AP207, SWALES!AP207, SWEST!AP207, LPN!AP207,SPN!AP207,EPN!AP207,SPD!AP207,SPMW!AP207,SSEH!AP207,SSES!AP207) -> 42.98010851 | AQ207: =CHOOSE(m_identity,ENWL!AQ207, NPgN!AQ207, NPgY!AQ207, WMID!AQ207, EMID!AQ207, SWALES!AQ207, SWEST!AQ207, LPN!AQ207,SPN!AQ207,EPN!AQ207,SPD!AQ207,SPMW!AQ207,SSEH!AQ207,SSES!AQ207) -> 43.64909697
E208: Non-controllable opex (Exit Charges) | G208: £m 12/13 prices | AJ208: =AJ29 -> 12.7409472 | AK208: =AK29 -> 13.01350398 | AL208: 13.1543792 | AM208: 13.1740952 | AN208: 13.5480952 | AO208: 14.1222952 | AP208: 14.1222952 | AQ208: 14.1222952
E209: Non-controllable opex | G209: £m 12/13 prices | AJ209: =SUM(AJ207:AJ208) -> 41.02780968 | AK209: =SUM(AK207:AK208) -> 41.37273379 | AL209: 44.49155985 | AM209: 49.8153264 | AN209: 56.42616075 | AO209: 57.71564909 | AP209: 57.10240371 | AQ209: 57.77139218
B211: Direct allowed revenue terms (DARTs)
E213: =E30 -> Pension scheme established deficit revenue allowances | G213: £m 12/13 prices | AJ213: =AJ30 -> 23.6809903 | AK213: 23.6809903 | AL213: 23.6809903 | AM213: 23.6809903 | AN213: 23.6809903 | AO213: 23.6809903 | AP213: 23.6809903 | AQ213: 23.6809903
E215: Pension true-up from previous price controls | G215: £m 12/13 prices | AJ215: =CHOOSE(m_identity,ENWL!AJ215, NPgN!AJ215, NPgY!AJ215, WMID!AJ215, EMID!AJ215, SWALES!AJ215, SWEST!AJ215, LPN!AJ215,SPN!AJ215,EPN!AJ215,SPD!AJ215,SPMW!AJ215,SSEH!AJ215,SSES!AJ215) -> 0 | AK215: =CHOOSE(m_identity,ENWL!AK215, NPgN!AK215, NPgY!AK215, WMID!AK215, EMID!AK215, SWALES!AK215, SWEST!AK215, LPN!AK215,SPN!AK215,EPN!AK215,SPD!AK215,SPMW!AK215,SSEH!AK215,SSES!AK215) -> 0 | AL215: =CHOOSE(m_identity,ENWL!AL215, NPgN!AL215, NPgY!AL215, WMID!AL215, EMID!AL215, SWALES!AL215, SWEST!AL215, LPN!AL215,SPN!AL215,EPN!AL215,SPD!AL215,SPMW!AL215,SSEH!AL215,SSES!AL215) -> 0 | AM215: =CHOOSE(m_identity,ENWL!AM215, NPgN!AM215, NPgY!AM215, WMID!AM215, EMID!AM215, SWALES!AM215, SWEST!AM215, LPN!AM215,SPN!AM215,EPN!AM215,SPD!AM215,SPMW!AM215,SSEH!AM215,SSES!AM215) -> 0 | AN215: =CHOOSE(m_identity,ENWL!AN215, NPgN!AN215, NPgY!AN215, WMID!AN215, EMID!AN215, SWALES!AN215, SWEST!AN215, LPN!AN215,SPN!AN215,EPN!AN215,SPD!AN215,SPMW!AN215,SSEH!AN215,SSES!AN215) -> 0 | AO215: =CHOOSE(m_identity,ENWL!AO215, NPgN!AO215, NPgY!AO215, WMID!AO215, EMID!AO215, SWALES!AO215, SWEST!AO215, LPN!AO215,SPN!AO215,EPN!AO215,SPD!AO215,SPMW!AO215,SSEH!AO215,SSES!AO215) -> 0 | AP215: =CHOOSE(m_identity,ENWL!AP215, NPgN!AP215, NPgY!AP215, WMID!AP215, EMID!AP215, SWALES!AP215, SWEST!AP215, LPN!AP215,SPN!AP215,EPN!AP215,SPD!AP215,SPMW!AP215,SSEH!AP215,SSES!AP215) -> 0 | AQ215: =CHOOSE(m_identity,ENWL!AQ215, NPgN!AQ215, NPgY!AQ215, WMID!AQ215, EMID!AQ215, SWALES!AQ215, SWEST!AQ215, LPN!AQ215,SPN!AQ215,EPN!AQ215,SPD!AQ215,SPMW!AQ215,SSEH!AQ215,SSES!AQ215) -> 0
E217: Revenue adjustment from previous controls (Base) | G217: £m 12/13 prices | AJ217: =CHOOSE(m_identity,ENWL!AJ217, NPgN!AJ217, NPgY!AJ217, WMID!AJ217, EMID!AJ217, SWALES!AJ217, SWEST!AJ217, LPN!AJ217,SPN!AJ217,EPN!AJ217,SPD!AJ217,SPMW!AJ217,SSEH!AJ217,SSES!AJ217) -> 0.6700793291 | AK217: =CHOOSE(m_identity,ENWL!AK217, NPgN!AK217, NPgY!AK217, WMID!AK217, EMID!AK217, SWALES!AK217, SWEST!AK217, LPN!AK217,SPN!AK217,EPN!AK217,SPD!AK217,SPMW!AK217,SSEH!AK217,SSES!AK217) -> 0.6985107951 | AL217: =CHOOSE(m_identity,ENWL!AL217, NPgN!AL217, NPgY!AL217, WMID!AL217, EMID!AL217, SWALES!AL217, SWEST!AL217, LPN!AL217,SPN!AL217,EPN!AL217,SPD!AL217,SPMW!AL217,SSEH!AL217,SSES!AL217) -> 0.7281486081 | AM217: =CHOOSE(m_identity,ENWL!AM217, NPgN!AM217, NPgY!AM217, WMID!AM217, EMID!AM217, SWALES!AM217, SWEST!AM217, LPN!AM217,SPN!AM217,EPN!AM217,SPD!AM217,SPMW!AM217,SSEH!AM217,SSES!AM217) -> 0.7590439535 | AN217: =CHOOSE(m_identity,ENWL!AN217, NPgN!AN217, NPgY!AN217, WMID!AN217, EMID!AN217, SWALES!AN217, SWEST!AN217, LPN!AN217,SPN!AN217,EPN!AN217,SPD!AN217,SPMW!AN217,SSEH!AN217,SSES!AN217) -> 0.7912501885 | AO217: =CHOOSE(m_identity,ENWL!AO217, NPgN!AO217, NPgY!AO217, WMID!AO217, EMID!AO217, SWALES!AO217, SWEST!AO217, LPN!AO217,SPN!AO217,EPN!AO217,SPD!AO217,SPMW!AO217,SSEH!AO217,SSES!AO217) -> 0.824822934 | AP217: =CHOOSE(m_identity,ENWL!AP217, NPgN!AP217, NPgY!AP217, WMID!AP217, EMID!AP217, SWALES!AP217, SWEST!AP217, LPN!AP217,SPN!AP217,EPN!AP217,SPD!AP217,SPMW!AP217,SSEH!AP217,SSES!AP217) -> 0.8598201711 | AQ217: =CHOOSE(m_identity,ENWL!AQ217, NPgN!AQ217, NPgY!AQ217, WMID!AQ217, EMID!AQ217, SWALES!AQ217, SWEST!AQ217, LPN!AQ217,SPN!AQ217,EPN!AQ217,SPD!AQ217,SPMW!AQ217,SSEH!AQ217,SSES!AQ217) -> 0.8963023409
E218: =E31 -> Legacy price control allowed revenue adjustment | G218: £m 12/13 prices | AJ218: =$AJ$31/8*(1+AJ48)^ROUND((AJ7-$AJ7)/365,1) -> 0 | AK218: 0 | AL218: 0 | AM218: 0 | AN218: 0 | AO218: 0 | AP218: 0 | AQ218: 0
E219: Revenue from previous controls | G219: £m 12/13 prices | AJ219: =AJ217+AJ218 -> 0.6700793291 | AK219: =AK217+AK218 -> 0.6985107951 | AL219: 0.7281486081 | AM219: 0.7590439535 | AN219: 0.7912501885 | AO219: 0.824822934 | AP219: 0.8598201711 | AQ219: 0.8963023409
E221: Legacy Losses Incentive | G221: £m 12/13 prices | H221: CODING HAS BEEN REMOVED SO INPUTS DO NOT FEED INTO THIS ROW
E223: ES7 (Miscellaneous) revenue | G223: £m 12/13 prices | AJ223: =CHOOSE(m_identity,ENWL!AJ223, NPgN!AJ223, NPgY!AJ223, WMID!AJ223, EMID!AJ223, SWALES!AJ223, SWEST!AJ223, LPN!AJ223,SPN!AJ223,EPN!AJ223,SPD!AJ223,SPMW!AJ223,SSEH!AJ223,SSES!AJ223) -> 0 | AK223: =CHOOSE(m_identity,ENWL!AK223, NPgN!AK223, NPgY!AK223, WMID!AK223, EMID!AK223, SWALES!AK223, SWEST!AK223, LPN!AK223,SPN!AK223,EPN!AK223,SPD!AK223,SPMW!AK223,SSEH!AK223,SSES!AK223) -> 0 | AL223: =CHOOSE(m_identity,ENWL!AL223, NPgN!AL223, NPgY!AL223, WMID!AL223, EMID!AL223, SWALES!AL223, SWEST!AL223, LPN!AL223,SPN!AL223,EPN!AL223,SPD!AL223,SPMW!AL223,SSEH!AL223,SSES!AL223) -> 0 | AM223: =CHOOSE(m_identity,ENWL!AM223, NPgN!AM223, NPgY!AM223, WMID!AM223, EMID!AM223, SWALES!AM223, SWEST!AM223, LPN!AM223,SPN!AM223,EPN!AM223,SPD!AM223,SPMW!AM223,SSEH!AM223,SSES!AM223) -> 0 | AN223: =CHOOSE(m_identity,ENWL!AN223, NPgN!AN223, NPgY!AN223, WMID!AN223, EMID!AN223, SWALES!AN223, SWEST!AN223, LPN!AN223,SPN!AN223,EPN!AN223,SPD!AN223,SPMW!AN223,SSEH!AN223,SSES!AN223) -> 0 | AO223: =CHOOSE(m_identity,ENWL!AO223, NPgN!AO223, NPgY!AO223, WMID!AO223, EMID!AO223, SWALES!AO223, SWEST!AO223, LPN!AO223,SPN!AO223,EPN!AO223,SPD!AO223,SPMW!AO223,SSEH!AO223,SSES!AO223) -> 0 | AP223: =CHOOSE(m_identity,ENWL!AP223, NPgN!AP223, NPgY!AP223, WMID!AP223, EMID!AP223, SWALES!AP223, SWEST!AP223, LPN!AP223,SPN!AP223,EPN!AP223,SPD!AP223,SPMW!AP223,SSEH!AP223,SSES!AP223) -> 0 | AQ223: =CHOOSE(m_identity,ENWL!AQ223, NPgN!AQ223, NPgY!AQ223, WMID!AQ223, EMID!AQ223, SWALES!AQ223, SWEST!AQ223, LPN!AQ223,SPN!AQ223,EPN!AQ223,SPD!AQ223,SPMW!AQ223,SSEH!AQ223,SSES!AQ223) -> 0
E224: ES7 (Miscellaneous) assumed costs | G224: £m 12/13 prices | AJ224: =CHOOSE(m_identity,ENWL!AJ224, NPgN!AJ224, NPgY!AJ224, WMID!AJ224, EMID!AJ224, SWALES!AJ224, SWEST!AJ224, LPN!AJ224,SPN!AJ224,EPN!AJ224,SPD!AJ224,SPMW!AJ224,SSEH!AJ224,SSES!AJ224) -> 0 | AK224: =CHOOSE(m_identity,ENWL!AK224, NPgN!AK224, NPgY!AK224, WMID!AK224, EMID!AK224, SWALES!AK224, SWEST!AK224, LPN!AK224,SPN!AK224,EPN!AK224,SPD!AK224,SPMW!AK224,SSEH!AK224,SSES!AK224) -> 0 | AL224: =CHOOSE(m_identity,ENWL!AL224, NPgN!AL224, NPgY!AL224, WMID!AL224, EMID!AL224, SWALES!AL224, SWEST!AL224, LPN!AL224,SPN!AL224,EPN!AL224,SPD!AL224,SPMW!AL224,SSEH!AL224,SSES!AL224) -> 0 | AM224: =CHOOSE(m_identity,ENWL!AM224, NPgN!AM224, NPgY!AM224, WMID!AM224, EMID!AM224, SWALES!AM224, SWEST!AM224, LPN!AM224,SPN!AM224,EPN!AM224,SPD!AM224,SPMW!AM224,SSEH!AM224,SSES!AM224) -> 0 | AN224: =CHOOSE(m_identity,ENWL!AN224, NPgN!AN224, NPgY!AN224, WMID!AN224, EMID!AN224, SWALES!AN224, SWEST!AN224, LPN!AN224,SPN!AN224,EPN!AN224,SPD!AN224,SPMW!AN224,SSEH!AN224,SSES!AN224) -> 0 | AO224: =CHOOSE(m_identity,ENWL!AO224, NPgN!AO224, NPgY!AO224, WMID!AO224, EMID!AO224, SWALES!AO224, SWEST!AO224, LPN!AO224,SPN!AO224,EPN!AO224,SPD!AO224,SPMW!AO224,SSEH!AO224,SSES!AO224) -> 0 | AP224: =CHOOSE(m_identity,ENWL!AP224, NPgN!AP224, NPgY!AP224, WMID!AP224, EMID!AP224, SWALES!AP224, SWEST!AP224, LPN!AP224,SPN!AP224,EPN!AP224,SPD!AP224,SPMW!AP224,SSEH!AP224,SSES!AP224) -> 0 | AQ224: =CHOOSE(m_identity,ENWL!AQ224, NPgN!AQ224, NPgY!AQ224, WMID!AQ224, EMID!AQ224, SWALES!AQ224, SWEST!AQ224, LPN!AQ224,SPN!AQ224,EPN!AQ224,SPD!AQ224,SPMW!AQ224,SSEH!AQ224,SSES!AQ224) -> 0
E225: ES7 (Miscellaneous) net position | G225: £m 12/13 prices | AJ225: =SUM(AJ223, -AJ224) -> 0 | AK225: =SUM(AK223, -AK224) -> 0 | AL225: 0 | AM225: 0 | AN225: 0 | AO225: 0 | AP225: 0 | AQ225: 0
E227: Directly Remunerated Services
E229: Element of connection that is Sole Use funded revenue | G229: £m 12/13 prices | AJ229: =CHOOSE(m_identity,ENWL!AJ229, NPgN!AJ229, NPgY!AJ229, WMID!AJ229, EMID!AJ229, SWALES!AJ229, SWEST!AJ229, LPN!AJ229,SPN!AJ229,EPN!AJ229,SPD!AJ229,SPMW!AJ229,SSEH!AJ229,SSES!AJ229) -> 0.1312823925 | AK229: =CHOOSE(m_identity,ENWL!AK229, NPgN!AK229, NPgY!AK229, WMID!AK229, EMID!AK229, SWALES!AK229, SWEST!AK229, LPN!AK229,SPN!AK229,EPN!AK229,SPD!AK229,SPMW!AK229,SSEH!AK229,SSES!AK229) -> 0.1131834737 | AL229: =CHOOSE(m_identity,ENWL!AL229, NPgN!AL229, NPgY!AL229, WMID!AL229, EMID!AL229, SWALES!AL229, SWEST!AL229, LPN!AL229,SPN!AL229,EPN!AL229,SPD!AL229,SPMW!AL229,SSEH!AL229,SSES!AL229) -> 0.108413227 | AM229: =CHOOSE(m_identity,ENWL!AM229, NPgN!AM229, NPgY!AM229, WMID!AM229, EMID!AM229, SWALES!AM229, SWEST!AM229, LPN!AM229,SPN!AM229,EPN!AM229,SPD!AM229,SPMW!AM229,SSEH!AM229,SSES!AM229) -> 0.08146532364 | AN229: =CHOOSE(m_identity,ENWL!AN229, NPgN!AN229, NPgY!AN229, WMID!AN229, EMID!AN229, SWALES!AN229, SWEST!AN229, LPN!AN229,SPN!AN229,EPN!AN229,SPD!AN229,SPMW!AN229,SSEH!AN229,SSES!AN229) -> 0.04729524663 | AO229: =CHOOSE(m_identity,ENWL!AO229, NPgN!AO229, NPgY!AO229, WMID!AO229, EMID!AO229, SWALES!AO229, SWEST!AO229, LPN!AO229,SPN!AO229,EPN!AO229,SPD!AO229,SPMW!AO229,SSEH!AO229,SSES!AO229) -> 0.02768075607 | AP229: =CHOOSE(m_identity,ENWL!AP229, NPgN!AP229, NPgY!AP229, WMID!AP229, EMID!AP229, SWALES!AP229, SWEST!AP229, LPN!AP229,SPN!AP229,EPN!AP229,SPD!AP229,SPMW!AP229,SSEH!AP229,SSES!AP229) -> -0.004707019208 | AQ229: =CHOOSE(m_identity,ENWL!AQ229, NPgN!AQ229, NPgY!AQ229, WMID!AQ229, EMID!AQ229, SWALES!AQ229, SWEST!AQ229, LPN!AQ229,SPN!AQ229,EPN!AQ229,SPD!AQ229,SPMW!AQ229,SSEH!AQ229,SSES!AQ229) -> -0.04247732229
E230: Element of connection that is Sole Use funded costs | G230: £m 12/13 prices | AJ230: =CHOOSE(m_identity,ENWL!AJ230, NPgN!AJ230, NPgY!AJ230, WMID!AJ230, EMID!AJ230, SWALES!AJ230, SWEST!AJ230, LPN!AJ230,SPN!AJ230,EPN!AJ230,SPD!AJ230,SPMW!AJ230,SSEH!AJ230,SSES!AJ230) -> 0.1312823925 | AK230: =CHOOSE(m_identity,ENWL!AK230, NPgN!AK230, NPgY!AK230, WMID!AK230, EMID!AK230, SWALES!AK230, SWEST!AK230, LPN!AK230,SPN!AK230,EPN!AK230,SPD!AK230,SPMW!AK230,SSEH!AK230,SSES!AK230) -> 0.1131834737 | AL230: =CHOOSE(m_identity,ENWL!AL230, NPgN!AL230, NPgY!AL230, WMID!AL230, EMID!AL230, SWALES!AL230, SWEST!AL230, LPN!AL230,SPN!AL230,EPN!AL230,SPD!AL230,SPMW!AL230,SSEH!AL230,SSES!AL230) -> 0.108413227 | AM230: =CHOOSE(m_identity,ENWL!AM230, NPgN!AM230, NPgY!AM230, WMID!AM230, EMID!AM230, SWALES!AM230, SWEST!AM230, LPN!AM230,SPN!AM230,EPN!AM230,SPD!AM230,SPMW!AM230,SSEH!AM230,SSES!AM230) -> 0.08146532364 | AN230: =CHOOSE(m_identity,ENWL!AN230, NPgN!AN230, NPgY!AN230, WMID!AN230, EMID!AN230, SWALES!AN230, SWEST!AN230, LPN!AN230,SPN!AN230,EPN!AN230,SPD!AN230,SPMW!AN230,SSEH!AN230,SSES!AN230) -> 0.04729524663 | AO230: =CHOOSE(m_identity,ENWL!AO230, NPgN!AO230, NPgY!AO230, WMID!AO230, EMID!AO230, SWALES!AO230, SWEST!AO230, LPN!AO230,SPN!AO230,EPN!AO230,SPD!AO230,SPMW!AO230,SSEH!AO230,SSES!AO230) -> 0.02768075607 | AP230: =CHOOSE(m_identity,ENWL!AP230, NPgN!AP230, NPgY!AP230, WMID!AP230, EMID!AP230, SWALES!AP230, SWEST!AP230, LPN!AP230,SPN!AP230,EPN!AP230,SPD!AP230,SPMW!AP230,SSEH!AP230,SSES!AP230) -> -0.004707019208 | AQ230: =CHOOSE(m_identity,ENWL!AQ230, NPgN!AQ230, NPgY!AQ230, WMID!AQ230, EMID!AQ230, SWALES!AQ230, SWEST!AQ230, LPN!AQ230,SPN!AQ230,EPN!AQ230,SPD!AQ230,SPMW!AQ230,SSEH!AQ230,SSES!AQ230) -> -0.04247732229
E231: Element of connection that is Sole Use funded net position | G231: £m 12/13 prices | AJ231: =SUM(AJ229, -AJ230) -> 0 | AK231: =SUM(AK229, -AK230) -> 0 | AL231: 0 | AM231: 0 | AN231: 0 | AO231: 0 | AP231: 0 | AQ231: 0
E233: Connection projects UMC revenue | G233: £m 12/13 prices | AJ233: =CHOOSE(m_identity,ENWL!AJ233, NPgN!AJ233, NPgY!AJ233, WMID!AJ233, EMID!AJ233, SWALES!AJ233, SWEST!AJ233, LPN!AJ233,SPN!AJ233,EPN!AJ233,SPD!AJ233,SPMW!AJ233,SSEH!AJ233,SSES!AJ233) -> 0.01348206393 | AK233: =CHOOSE(m_identity,ENWL!AK233, NPgN!AK233, NPgY!AK233, WMID!AK233, EMID!AK233, SWALES!AK233, SWEST!AK233, LPN!AK233,SPN!AK233,EPN!AK233,SPD!AK233,SPMW!AK233,SSEH!AK233,SSES!AK233) -> 0.01097905314 | AL233: =CHOOSE(m_identity,ENWL!AL233, NPgN!AL233, NPgY!AL233, WMID!AL233, EMID!AL233, SWALES!AL233, SWEST!AL233, LPN!AL233,SPN!AL233,EPN!AL233,SPD!AL233,SPMW!AL233,SSEH!AL233,SSES!AL233) -> 0.009382972938 | AM233: =CHOOSE(m_identity,ENWL!AM233, NPgN!AM233, NPgY!AM233, WMID!AM233, EMID!AM233, SWALES!AM233, SWEST!AM233, LPN!AM233,SPN!AM233,EPN!AM233,SPD!AM233,SPMW!AM233,SSEH!AM233,SSES!AM233) -> 0.005717340594 | AN233: =CHOOSE(m_identity,ENWL!AN233, NPgN!AN233, NPgY!AN233, WMID!AN233, EMID!AN233, SWALES!AN233, SWEST!AN233, LPN!AN233,SPN!AN233,EPN!AN233,SPD!AN233,SPMW!AN233,SSEH!AN233,SSES!AN233) -> 0.002170606297 | AO233: =CHOOSE(m_identity,ENWL!AO233, NPgN!AO233, NPgY!AO233, WMID!AO233, EMID!AO233, SWALES!AO233, SWEST!AO233, LPN!AO233,SPN!AO233,EPN!AO233,SPD!AO233,SPMW!AO233,SSEH!AO233,SSES!AO233) -> -2.679818797e-05 | AP233: =CHOOSE(m_identity,ENWL!AP233, NPgN!AP233, NPgY!AP233, WMID!AP233, EMID!AP233, SWALES!AP233, SWEST!AP233, LPN!AP233,SPN!AP233,EPN!AP233,SPD!AP233,SPMW!AP233,SSEH!AP233,SSES!AP233) -> -0.004026488646 | AQ233: =CHOOSE(m_identity,ENWL!AQ233, NPgN!AQ233, NPgY!AQ233, WMID!AQ233, EMID!AQ233, SWALES!AQ233, SWEST!AQ233, LPN!AQ233,SPN!AQ233,EPN!AQ233,SPD!AQ233,SPMW!AQ233,SSEH!AQ233,SSES!AQ233) -> -0.008381219567
E234: Connection projects UMC costs | G234: £m 12/13 prices | AJ234: =CHOOSE(m_identity,ENWL!AJ234, NPgN!AJ234, NPgY!AJ234, WMID!AJ234, EMID!AJ234, SWALES!AJ234, SWEST!AJ234, LPN!AJ234,SPN!AJ234,EPN!AJ234,SPD!AJ234,SPMW!AJ234,SSEH!AJ234,SSES!AJ234) -> 0.01348206393 | AK234: =CHOOSE(m_identity,ENWL!AK234, NPgN!AK234, NPgY!AK234, WMID!AK234, EMID!AK234, SWALES!AK234, SWEST!AK234, LPN!AK234,SPN!AK234,EPN!AK234,SPD!AK234,SPMW!AK234,SSEH!AK234,SSES!AK234) -> 0.01097905314 | AL234: =CHOOSE(m_identity,ENWL!AL234, NPgN!AL234, NPgY!AL234, WMID!AL234, EMID!AL234, SWALES!AL234, SWEST!AL234, LPN!AL234,SPN!AL234,EPN!AL234,SPD!AL234,SPMW!AL234,SSEH!AL234,SSES!AL234) -> 0.009382972938 | AM234: =CHOOSE(m_identity,ENWL!AM234, NPgN!AM234, NPgY!AM234, WMID!AM234, EMID!AM234, SWALES!AM234, SWEST!AM234, LPN!AM234,SPN!AM234,EPN!AM234,SPD!AM234,SPMW!AM234,SSEH!AM234,SSES!AM234) -> 0.005717340594 | AN234: =CHOOSE(m_identity,ENWL!AN234, NPgN!AN234, NPgY!AN234, WMID!AN234, EMID!AN234, SWALES!AN234, SWEST!AN234, LPN!AN234,SPN!AN234,EPN!AN234,SPD!AN234,SPMW!AN234,SSEH!AN234,SSES!AN234) -> 0.002170606297 | AO234: =CHOOSE(m_identity,ENWL!AO234, NPgN!AO234, NPgY!AO234, WMID!AO234, EMID!AO234, SWALES!AO234, SWEST!AO234, LPN!AO234,SPN!AO234,EPN!AO234,SPD!AO234,SPMW!AO234,SSEH!AO234,SSES!AO234) -> -2.679818797e-05 | AP234: =CHOOSE(m_identity,ENWL!AP234, NPgN!AP234, NPgY!AP234, WMID!AP234, EMID!AP234, SWALES!AP234, SWEST!AP234, LPN!AP234,SPN!AP234,EPN!AP234,SPD!AP234,SPMW!AP234,SSEH!AP234,SSES!AP234) -> -0.004026488646 | AQ234: =CHOOSE(m_identity,ENWL!AQ234, NPgN!AQ234, NPgY!AQ234, WMID!AQ234, EMID!AQ234, SWALES!AQ234, SWEST!AQ234, LPN!AQ234,SPN!AQ234,EPN!AQ234,SPD!AQ234,SPMW!AQ234,SSEH!AQ234,SSES!AQ234) -> -0.008381219567
E235: Connection projects UMC net position | G235: £m 12/13 prices | AJ235: =SUM(AJ233, -AJ234) -> 0 | AK235: =SUM(AK233, -AK234) -> 0 | AL235: 0 | AM235: 0 | AN235: 0 | AO235: 0 | AP235: 0 | AQ235: 0
E237: Diversionary works under obligation (ES2) revenue | G237: £m 12/13 prices | AJ237: =CHOOSE(m_identity,ENWL!AJ237, NPgN!AJ237, NPgY!AJ237, WMID!AJ237, EMID!AJ237, SWALES!AJ237, SWEST!AJ237, LPN!AJ237,SPN!AJ237,EPN!AJ237,SPD!AJ237,SPMW!AJ237,SSEH!AJ237,SSES!AJ237) -> -3.954421174 | AK237: =CHOOSE(m_identity,ENWL!AK237, NPgN!AK237, NPgY!AK237, WMID!AK237, EMID!AK237, SWALES!AK237, SWEST!AK237, LPN!AK237,SPN!AK237,EPN!AK237,SPD!AK237,SPMW!AK237,SSEH!AK237,SSES!AK237) -> -12.19442117 | AL237: =CHOOSE(m_identity,ENWL!AL237, NPgN!AL237, NPgY!AL237, WMID!AL237, EMID!AL237, SWALES!AL237, SWEST!AL237, LPN!AL237,SPN!AL237,EPN!AL237,SPD!AL237,SPMW!AL237,SSEH!AL237,SSES!AL237) -> -12.19442117 | AM237: =CHOOSE(m_identity,ENWL!AM237, NPgN!AM237, NPgY!AM237, WMID!AM237, EMID!AM237, SWALES!AM237, SWEST!AM237, LPN!AM237,SPN!AM237,EPN!AM237,SPD!AM237,SPMW!AM237,SSEH!AM237,SSES!AM237) -> -12.19442117 | AN237: =CHOOSE(m_identity,ENWL!AN237, NPgN!AN237, NPgY!AN237, WMID!AN237, EMID!AN237, SWALES!AN237, SWEST!AN237, LPN!AN237,SPN!AN237,EPN!AN237,SPD!AN237,SPMW!AN237,SSEH!AN237,SSES!AN237) -> -12.19442117 | AO237: =CHOOSE(m_identity,ENWL!AO237, NPgN!AO237, NPgY!AO237, WMID!AO237, EMID!AO237, SWALES!AO237, SWEST!AO237, LPN!AO237,SPN!AO237,EPN!AO237,SPD!AO237,SPMW!AO237,SSEH!AO237,SSES!AO237) -> -12.19442117 | AP237: =CHOOSE(m_identity,ENWL!AP237, NPgN!AP237, NPgY!AP237, WMID!AP237, EMID!AP237, SWALES!AP237, SWEST!AP237, LPN!AP237,SPN!AP237,EPN!AP237,SPD!AP237,SPMW!AP237,SSEH!AP237,SSES!AP237) -> -12.19442117 | AQ237: =CHOOSE(m_identity,ENWL!AQ237, NPgN!AQ237, NPgY!AQ237, WMID!AQ237, EMID!AQ237, SWALES!AQ237, SWEST!AQ237, LPN!AQ237,SPN!AQ237,EPN!AQ237,SPD!AQ237,SPMW!AQ237,SSEH!AQ237,SSES!AQ237) -> -12.19442117
E238: Diversionary works under obligation (ES2) costs | G238: £m 12/13 prices | AJ238: =CHOOSE(m_identity,ENWL!AJ238, NPgN!AJ238, NPgY!AJ238, WMID!AJ238, EMID!AJ238, SWALES!AJ238, SWEST!AJ238, LPN!AJ238,SPN!AJ238,EPN!AJ238,SPD!AJ238,SPMW!AJ238,SSEH!AJ238,SSES!AJ238) -> 0 | AK238: =CHOOSE(m_identity,ENWL!AK238, NPgN!AK238, NPgY!AK238, WMID!AK238, EMID!AK238, SWALES!AK238, SWEST!AK238, LPN!AK238,SPN!AK238,EPN!AK238,SPD!AK238,SPMW!AK238,SSEH!AK238,SSES!AK238) -> 0 | AL238: =CHOOSE(m_identity,ENWL!AL238, NPgN!AL238, NPgY!AL238, WMID!AL238, EMID!AL238, SWALES!AL238, SWEST!AL238, LPN!AL238,SPN!AL238,EPN!AL238,SPD!AL238,SPMW!AL238,SSEH!AL238,SSES!AL238) -> 0 | AM238: =CHOOSE(m_identity,ENWL!AM238, NPgN!AM238, NPgY!AM238, WMID!AM238, EMID!AM238, SWALES!AM238, SWEST!AM238, LPN!AM238,SPN!AM238,EPN!AM238,SPD!AM238,SPMW!AM238,SSEH!AM238,SSES!AM238) -> 0 | AN238: =CHOOSE(m_identity,ENWL!AN238, NPgN!AN238, NPgY!AN238, WMID!AN238, EMID!AN238, SWALES!AN238, SWEST!AN238, LPN!AN238,SPN!AN238,EPN!AN238,SPD!AN238,SPMW!AN238,SSEH!AN238,SSES!AN238) -> 0 | AO238: =CHOOSE(m_identity,ENWL!AO238, NPgN!AO238, NPgY!AO238, WMID!AO238, EMID!AO238, SWALES!AO238, SWEST!AO238, LPN!AO238,SPN!AO238,EPN!AO238,SPD!AO238,SPMW!AO238,SSEH!AO238,SSES!AO238) -> 0 | AP238: =CHOOSE(m_identity,ENWL!AP238, NPgN!AP238, NPgY!AP238, WMID!AP238, EMID!AP238, SWALES!AP238, SWEST!AP238, LPN!AP238,SPN!AP238,EPN!AP238,SPD!AP238,SPMW!AP238,SSEH!AP238,SSES!AP238) -> 0 | AQ238: =CHOOSE(m_identity,ENWL!AQ238, NPgN!AQ238, NPgY!AQ238, WMID!AQ238, EMID!AQ238, SWALES!AQ238, SWEST!AQ238, LPN!AQ238,SPN!AQ238,EPN!AQ238,SPD!AQ238,SPMW!AQ238,SSEH!AQ238,SSES!AQ238) -> 0
E239: Diversionary works under obligation (ES2) net position | G239: £m 12/13 prices | AJ239: =SUM(AJ237, -AJ238) -> -3.954421174 | AK239: =SUM(AK237, -AK238) -> -12.19442117 | AL239: -12.19442117 | AM239: -12.19442117 | AN239: -12.19442117 | AO239: -12.19442117 | AP239: -12.19442117 | AQ239: -12.19442117
E241: Work required by any alteration premises (ES3) revenue | G241: £m 12/13 prices | AJ241: =CHOOSE(m_identity,ENWL!AJ241, NPgN!AJ241, NPgY!AJ241, WMID!AJ241, EMID!AJ241, SWALES!AJ241, SWEST!AJ241, LPN!AJ241,SPN!AJ241,EPN!AJ241,SPD!AJ241,SPMW!AJ241,SSEH!AJ241,SSES!AJ241) -> -2.533397228 | AK241: =CHOOSE(m_identity,ENWL!AK241, NPgN!AK241, NPgY!AK241, WMID!AK241, EMID!AK241, SWALES!AK241, SWEST!AK241, LPN!AK241,SPN!AK241,EPN!AK241,SPD!AK241,SPMW!AK241,SSEH!AK241,SSES!AK241) -> -2.533397228 | AL241: =CHOOSE(m_identity,ENWL!AL241, NPgN!AL241, NPgY!AL241, WMID!AL241, EMID!AL241, SWALES!AL241, SWEST!AL241, LPN!AL241,SPN!AL241,EPN!AL241,SPD!AL241,SPMW!AL241,SSEH!AL241,SSES!AL241) -> -2.533397228 | AM241: =CHOOSE(m_identity,ENWL!AM241, NPgN!AM241, NPgY!AM241, WMID!AM241, EMID!AM241, SWALES!AM241, SWEST!AM241, LPN!AM241,SPN!AM241,EPN!AM241,SPD!AM241,SPMW!AM241,SSEH!AM241,SSES!AM241) -> -2.533397228 | AN241: =CHOOSE(m_identity,ENWL!AN241, NPgN!AN241, NPgY!AN241, WMID!AN241, EMID!AN241, SWALES!AN241, SWEST!AN241, LPN!AN241,SPN!AN241,EPN!AN241,SPD!AN241,SPMW!AN241,SSEH!AN241,SSES!AN241) -> -2.533397228 | AO241: =CHOOSE(m_identity,ENWL!AO241, NPgN!AO241, NPgY!AO241, WMID!AO241, EMID!AO241, SWALES!AO241, SWEST!AO241, LPN!AO241,SPN!AO241,EPN!AO241,SPD!AO241,SPMW!AO241,SSEH!AO241,SSES!AO241) -> -2.533397228 | AP241: =CHOOSE(m_identity,ENWL!AP241, NPgN!AP241, NPgY!AP241, WMID!AP241, EMID!AP241, SWALES!AP241, SWEST!AP241, LPN!AP241,SPN!AP241,EPN!AP241,SPD!AP241,SPMW!AP241,SSEH!AP241,SSES!AP241) -> -2.533397228 | AQ241: =CHOOSE(m_identity,ENWL!AQ241, NPgN!AQ241, NPgY!AQ241, WMID!AQ241, EMID!AQ241, SWALES!AQ241, SWEST!AQ241, LPN!AQ241,SPN!AQ241,EPN!AQ241,SPD!AQ241,SPMW!AQ241,SSEH!AQ241,SSES!AQ241) -> -2.533397228
E242: Work required by any alteration premises (ES3) costs | G242: £m 12/13 prices | AJ242: =CHOOSE(m_identity,ENWL!AJ242, NPgN!AJ242, NPgY!AJ242, WMID!AJ242, EMID!AJ242, SWALES!AJ242, SWEST!AJ242, LPN!AJ242,SPN!AJ242,EPN!AJ242,SPD!AJ242,SPMW!AJ242,SSEH!AJ242,SSES!AJ242) -> 0 | AK242: =CHOOSE(m_identity,ENWL!AK242, NPgN!AK242, NPgY!AK242, WMID!AK242, EMID!AK242, SWALES!AK242, SWEST!AK242, LPN!AK242,SPN!AK242,EPN!AK242,SPD!AK242,SPMW!AK242,SSEH!AK242,SSES!AK242) -> 0 | AL242: =CHOOSE(m_identity,ENWL!AL242, NPgN!AL242, NPgY!AL242, WMID!AL242, EMID!AL242, SWALES!AL242, SWEST!AL242, LPN!AL242,SPN!AL242,EPN!AL242,SPD!AL242,SPMW!AL242,SSEH!AL242,SSES!AL242) -> 0 | AM242: =CHOOSE(m_identity,ENWL!AM242, NPgN!AM242, NPgY!AM242, WMID!AM242, EMID!AM242, SWALES!AM242, SWEST!AM242, LPN!AM242,SPN!AM242,EPN!AM242,SPD!AM242,SPMW!AM242,SSEH!AM242,SSES!AM242) -> 0 | AN242: =CHOOSE(m_identity,ENWL!AN242, NPgN!AN242, NPgY!AN242, WMID!AN242, EMID!AN242, SWALES!AN242, SWEST!AN242, LPN!AN242,SPN!AN242,EPN!AN242,SPD!AN242,SPMW!AN242,SSEH!AN242,SSES!AN242) -> 0 | AO242: =CHOOSE(m_identity,ENWL!AO242, NPgN!AO242, NPgY!AO242, WMID!AO242, EMID!AO242, SWALES!AO242, SWEST!AO242, LPN!AO242,SPN!AO242,EPN!AO242,SPD!AO242,SPMW!AO242,SSEH!AO242,SSES!AO242) -> 0 | AP242: =CHOOSE(m_identity,ENWL!AP242, NPgN!AP242, NPgY!AP242, WMID!AP242, EMID!AP242, SWALES!AP242, SWEST!AP242, LPN!AP242,SPN!AP242,EPN!AP242,SPD!AP242,SPMW!AP242,SSEH!AP242,SSES!AP242) -> 0 | AQ242: =CHOOSE(m_identity,ENWL!AQ242, NPgN!AQ242, NPgY!AQ242, WMID!AQ242, EMID!AQ242, SWALES!AQ242, SWEST!AQ242, LPN!AQ242,SPN!AQ242,EPN!AQ242,SPD!AQ242,SPMW!AQ242,SSEH!AQ242,SSES!AQ242) -> 0
E243: Work required by any alteration premises (ES3) net position | G243: £m 12/13 prices | AJ243: =SUM(AJ241, -AJ242) -> -2.533397228 | AK243: =SUM(AK241, -AK242) -> -2.533397228 | AL243: -2.533397228 | AM243: -2.533397228 | AN243: -2.533397228 | AO243: -2.533397228 | AP243: -2.533397228 | AQ243: -2.533397228
E245: Top up standby and enhanced system security (ES4) revenue | G245: £m 12/13 prices | AJ245: =CHOOSE(m_identity,ENWL!AJ245, NPgN!AJ245, NPgY!AJ245, WMID!AJ245, EMID!AJ245, SWALES!AJ245, SWEST!AJ245, LPN!AJ245,SPN!AJ245,EPN!AJ245,SPD!AJ245,SPMW!AJ245,SSEH!AJ245,SSES!AJ245) -> 0 | AK245: =CHOOSE(m_identity,ENWL!AK245, NPgN!AK245, NPgY!AK245, WMID!AK245, EMID!AK245, SWALES!AK245, SWEST!AK245, LPN!AK245,SPN!AK245,EPN!AK245,SPD!AK245,SPMW!AK245,SSEH!AK245,SSES!AK245) -> 0 | AL245: =CHOOSE(m_identity,ENWL!AL245, NPgN!AL245, NPgY!AL245, WMID!AL245, EMID!AL245, SWALES!AL245, SWEST!AL245, LPN!AL245,SPN!AL245,EPN!AL245,SPD!AL245,SPMW!AL245,SSEH!AL245,SSES!AL245) -> 0 | AM245: =CHOOSE(m_identity,ENWL!AM245, NPgN!AM245, NPgY!AM245, WMID!AM245, EMID!AM245, SWALES!AM245, SWEST!AM245, LPN!AM245,SPN!AM245,EPN!AM245,SPD!AM245,SPMW!AM245,SSEH!AM245,SSES!AM245) -> 0 | AN245: =CHOOSE(m_identity,ENWL!AN245, NPgN!AN245, NPgY!AN245, WMID!AN245, EMID!AN245, SWALES!AN245, SWEST!AN245, LPN!AN245,SPN!AN245,EPN!AN245,SPD!AN245,SPMW!AN245,SSEH!AN245,SSES!AN245) -> 0 | AO245: =CHOOSE(m_identity,ENWL!AO245, NPgN!AO245, NPgY!AO245, WMID!AO245, EMID!AO245, SWALES!AO245, SWEST!AO245, LPN!AO245,SPN!AO245,EPN!AO245,SPD!AO245,SPMW!AO245,SSEH!AO245,SSES!AO245) -> 0 | AP245: =CHOOSE(m_identity,ENWL!AP245, NPgN!AP245, NPgY!AP245, WMID!AP245, EMID!AP245, SWALES!AP245, SWEST!AP245, LPN!AP245,SPN!AP245,EPN!AP245,SPD!AP245,SPMW!AP245,SSEH!AP245,SSES!AP245) -> 0 | AQ245: =CHOOSE(m_identity,ENWL!AQ245, NPgN!AQ245, NPgY!AQ245, WMID!AQ245, EMID!AQ245, SWALES!AQ245, SWEST!AQ245, LPN!AQ245,SPN!AQ245,EPN!AQ245,SPD!AQ245,SPMW!AQ245,SSEH!AQ245,SSES!AQ245) -> 0
E246: Top up standby and enhanced system security (ES4) costs | G246: £m 12/13 prices | AJ246: =CHOOSE(m_identity,ENWL!AJ246, NPgN!AJ246, NPgY!AJ246, WMID!AJ246, EMID!AJ246, SWALES!AJ246, SWEST!AJ246, LPN!AJ246,SPN!AJ246,EPN!AJ246,SPD!AJ246,SPMW!AJ246,SSEH!AJ246,SSES!AJ246) -> 2.259042895 | AK246: =CHOOSE(m_identity,ENWL!AK246, NPgN!AK246, NPgY!AK246, WMID!AK246, EMID!AK246, SWALES!AK246, SWEST!AK246, LPN!AK246,SPN!AK246,EPN!AK246,SPD!AK246,SPMW!AK246,SSEH!AK246,SSES!AK246) -> 2.233271365 | AL246: =CHOOSE(m_identity,ENWL!AL246, NPgN!AL246, NPgY!AL246, WMID!AL246, EMID!AL246, SWALES!AL246, SWEST!AL246, LPN!AL246,SPN!AL246,EPN!AL246,SPD!AL246,SPMW!AL246,SSEH!AL246,SSES!AL246) -> 2.070459639 | AM246: =CHOOSE(m_identity,ENWL!AM246, NPgN!AM246, NPgY!AM246, WMID!AM246, EMID!AM246, SWALES!AM246, SWEST!AM246, LPN!AM246,SPN!AM246,EPN!AM246,SPD!AM246,SPMW!AM246,SSEH!AM246,SSES!AM246) -> 2.108619927 | AN246: =CHOOSE(m_identity,ENWL!AN246, NPgN!AN246, NPgY!AN246, WMID!AN246, EMID!AN246, SWALES!AN246, SWEST!AN246, LPN!AN246,SPN!AN246,EPN!AN246,SPD!AN246,SPMW!AN246,SSEH!AN246,SSES!AN246) -> 2.12677596 | AO246: =CHOOSE(m_identity,ENWL!AO246, NPgN!AO246, NPgY!AO246, WMID!AO246, EMID!AO246, SWALES!AO246, SWEST!AO246, LPN!AO246,SPN!AO246,EPN!AO246,SPD!AO246,SPMW!AO246,SSEH!AO246,SSES!AO246) -> 2.138329265 | AP246: =CHOOSE(m_identity,ENWL!AP246, NPgN!AP246, NPgY!AP246, WMID!AP246, EMID!AP246, SWALES!AP246, SWEST!AP246, LPN!AP246,SPN!AP246,EPN!AP246,SPD!AP246,SPMW!AP246,SSEH!AP246,SSES!AP246) -> 2.104590085 | AQ246: =CHOOSE(m_identity,ENWL!AQ246, NPgN!AQ246, NPgY!AQ246, WMID!AQ246, EMID!AQ246, SWALES!AQ246, SWEST!AQ246, LPN!AQ246,SPN!AQ246,EPN!AQ246,SPD!AQ246,SPMW!AQ246,SSEH!AQ246,SSES!AQ246) -> 1.978768576
E247: Top up standby and enhanced system security (ES4) net position | G247: £m 12/13 prices | AJ247: =SUM(AJ245, -AJ246) -> -2.259042895 | AK247: =SUM(AK245, -AK246) -> -2.233271365 | AL247: -2.070459639 | AM247: -2.108619927 | AN247: -2.12677596 | AO247: -2.138329265 | AP247: -2.104590085 | AQ247: -1.978768576
E249: Revenue protection services (ES5) revenue | G249: £m 12/13 prices | AJ249: =CHOOSE(m_identity,ENWL!AJ249, NPgN!AJ249, NPgY!AJ249, WMID!AJ249, EMID!AJ249, SWALES!AJ249, SWEST!AJ249, LPN!AJ249,SPN!AJ249,EPN!AJ249,SPD!AJ249,SPMW!AJ249,SSEH!AJ249,SSES!AJ249) -> -0.86560593 | AK249: =CHOOSE(m_identity,ENWL!AK249, NPgN!AK249, NPgY!AK249, WMID!AK249, EMID!AK249, SWALES!AK249, SWEST!AK249, LPN!AK249,SPN!AK249,EPN!AK249,SPD!AK249,SPMW!AK249,SSEH!AK249,SSES!AK249) -> -0.86560593 | AL249: =CHOOSE(m_identity,ENWL!AL249, NPgN!AL249, NPgY!AL249, WMID!AL249, EMID!AL249, SWALES!AL249, SWEST!AL249, LPN!AL249,SPN!AL249,EPN!AL249,SPD!AL249,SPMW!AL249,SSEH!AL249,SSES!AL249) -> -0.86560593 | AM249: =CHOOSE(m_identity,ENWL!AM249, NPgN!AM249, NPgY!AM249, WMID!AM249, EMID!AM249, SWALES!AM249, SWEST!AM249, LPN!AM249,SPN!AM249,EPN!AM249,SPD!AM249,SPMW!AM249,SSEH!AM249,SSES!AM249) -> -0.86560593 | AN249: =CHOOSE(m_identity,ENWL!AN249, NPgN!AN249, NPgY!AN249, WMID!AN249, EMID!AN249, SWALES!AN249, SWEST!AN249, LPN!AN249,SPN!AN249,EPN!AN249,SPD!AN249,SPMW!AN249,SSEH!AN249,SSES!AN249) -> -0.86560593 | AO249: =CHOOSE(m_identity,ENWL!AO249, NPgN!AO249, NPgY!AO249, WMID!AO249, EMID!AO249, SWALES!AO249, SWEST!AO249, LPN!AO249,SPN!AO249,EPN!AO249,SPD!AO249,SPMW!AO249,SSEH!AO249,SSES!AO249) -> -0.86560593 | AP249: =CHOOSE(m_identity,ENWL!AP249, NPgN!AP249, NPgY!AP249, WMID!AP249, EMID!AP249, SWALES!AP249, SWEST!AP249, LPN!AP249,SPN!AP249,EPN!AP249,SPD!AP249,SPMW!AP249,SSEH!AP249,SSES!AP249) -> -0.86560593 | AQ249: =CHOOSE(m_identity,ENWL!AQ249, NPgN!AQ249, NPgY!AQ249, WMID!AQ249, EMID!AQ249, SWALES!AQ249, SWEST!AQ249, LPN!AQ249,SPN!AQ249,EPN!AQ249,SPD!AQ249,SPMW!AQ249,SSEH!AQ249,SSES!AQ249) -> -0.86560593
E250: Revenue protection services (ES5) costs | G250: £m 12/13 prices | AJ250: =CHOOSE(m_identity,ENWL!AJ250, NPgN!AJ250, NPgY!AJ250, WMID!AJ250, EMID!AJ250, SWALES!AJ250, SWEST!AJ250, LPN!AJ250,SPN!AJ250,EPN!AJ250,SPD!AJ250,SPMW!AJ250,SSEH!AJ250,SSES!AJ250) -> 0 | AK250: =CHOOSE(m_identity,ENWL!AK250, NPgN!AK250, NPgY!AK250, WMID!AK250, EMID!AK250, SWALES!AK250, SWEST!AK250, LPN!AK250,SPN!AK250,EPN!AK250,SPD!AK250,SPMW!AK250,SSEH!AK250,SSES!AK250) -> 0 | AL250: =CHOOSE(m_identity,ENWL!AL250, NPgN!AL250, NPgY!AL250, WMID!AL250, EMID!AL250, SWALES!AL250, SWEST!AL250, LPN!AL250,SPN!AL250,EPN!AL250,SPD!AL250,SPMW!AL250,SSEH!AL250,SSES!AL250) -> 0 | AM250: =CHOOSE(m_identity,ENWL!AM250, NPgN!AM250, NPgY!AM250, WMID!AM250, EMID!AM250, SWALES!AM250, SWEST!AM250, LPN!AM250,SPN!AM250,EPN!AM250,SPD!AM250,SPMW!AM250,SSEH!AM250,SSES!AM250) -> 0 | AN250: =CHOOSE(m_identity,ENWL!AN250, NPgN!AN250, NPgY!AN250, WMID!AN250, EMID!AN250, SWALES!AN250, SWEST!AN250, LPN!AN250,SPN!AN250,EPN!AN250,SPD!AN250,SPMW!AN250,SSEH!AN250,SSES!AN250) -> 0 | AO250: =CHOOSE(m_identity,ENWL!AO250, NPgN!AO250, NPgY!AO250, WMID!AO250, EMID!AO250, SWALES!AO250, SWEST!AO250, LPN!AO250,SPN!AO250,EPN!AO250,SPD!AO250,SPMW!AO250,SSEH!AO250,SSES!AO250) -> 0 | AP250: =CHOOSE(m_identity,ENWL!AP250, NPgN!AP250, NPgY!AP250, WMID!AP250, EMID!AP250, SWALES!AP250, SWEST!AP250, LPN!AP250,SPN!AP250,EPN!AP250,SPD!AP250,SPMW!AP250,SSEH!AP250,SSES!AP250) -> 0 | AQ250: =CHOOSE(m_identity,ENWL!AQ250, NPgN!AQ250, NPgY!AQ250, WMID!AQ250, EMID!AQ250, SWALES!AQ250, SWEST!AQ250, LPN!AQ250,SPN!AQ250,EPN!AQ250,SPD!AQ250,SPMW!AQ250,SSEH!AQ250,SSES!AQ250) -> 0
E251: Revenue protection services (ES5) net position | G251: £m 12/13 prices | AJ251: =SUM(AJ249, -AJ250) -> -0.86560593 | AK251: =SUM(AK249, -AK250) -> -0.86560593 | AL251: -0.86560593 | AM251: -0.86560593 | AN251: -0.86560593 | AO251: -0.86560593 | AP251: -0.86560593 | AQ251: -0.86560593
E253: Metering services (non legacy) (ES6) revenue | G253: £m 12/13 prices | AJ253: =CHOOSE(m_identity,ENWL!AJ253, NPgN!AJ253, NPgY!AJ253, WMID!AJ253, EMID!AJ253, SWALES!AJ253, SWEST!AJ253, LPN!AJ253,SPN!AJ253,EPN!AJ253,SPD!AJ253,SPMW!AJ253,SSEH!AJ253,SSES!AJ253) -> 0 | AK253: =CHOOSE(m_identity,ENWL!AK253, NPgN!AK253, NPgY!AK253, WMID!AK253, EMID!AK253, SWALES!AK253, SWEST!AK253, LPN!AK253,SPN!AK253,EPN!AK253,SPD!AK253,SPMW!AK253,SSEH!AK253,SSES!AK253) -> 0 | AL253: =CHOOSE(m_identity,ENWL!AL253, NPgN!AL253, NPgY!AL253, WMID!AL253, EMID!AL253, SWALES!AL253, SWEST!AL253, LPN!AL253,SPN!AL253,EPN!AL253,SPD!AL253,SPMW!AL253,SSEH!AL253,SSES!AL253) -> 0 | AM253: =CHOOSE(m_identity,ENWL!AM253, NPgN!AM253, NPgY!AM253, WMID!AM253, EMID!AM253, SWALES!AM253, SWEST!AM253, LPN!AM253,SPN!AM253,EPN!AM253,SPD!AM253,SPMW!AM253,SSEH!AM253,SSES!AM253) -> 0 | AN253: =CHOOSE(m_identity,ENWL!AN253, NPgN!AN253, NPgY!AN253, WMID!AN253, EMID!AN253, SWALES!AN253, SWEST!AN253, LPN!AN253,SPN!AN253,EPN!AN253,SPD!AN253,SPMW!AN253,SSEH!AN253,SSES!AN253) -> 0 | AO253: =CHOOSE(m_identity,ENWL!AO253, NPgN!AO253, NPgY!AO253, WMID!AO253, EMID!AO253, SWALES!AO253, SWEST!AO253, LPN!AO253,SPN!AO253,EPN!AO253,SPD!AO253,SPMW!AO253,SSEH!AO253,SSES!AO253) -> 0 | AP253: =CHOOSE(m_identity,ENWL!AP253, NPgN!AP253, NPgY!AP253, WMID!AP253, EMID!AP253, SWALES!AP253, SWEST!AP253, LPN!AP253,SPN!AP253,EPN!AP253,SPD!AP253,SPMW!AP253,SSEH!AP253,SSES!AP253) -> 0 | AQ253: =CHOOSE(m_identity,ENWL!AQ253, NPgN!AQ253, NPgY!AQ253, WMID!AQ253, EMID!AQ253, SWALES!AQ253, SWEST!AQ253, LPN!AQ253,SPN!AQ253,EPN!AQ253,SPD!AQ253,SPMW!AQ253,SSEH!AQ253,SSES!AQ253) -> 0
E254: Metering services (non legacy) (ES6) costs | G254: £m 12/13 prices | AJ254: =CHOOSE(m_identity,ENWL!AJ254, NPgN!AJ254, NPgY!AJ254, WMID!AJ254, EMID!AJ254, SWALES!AJ254, SWEST!AJ254, LPN!AJ254,SPN!AJ254,EPN!AJ254,SPD!AJ254,SPMW!AJ254,SSEH!AJ254,SSES!AJ254) -> 0 | AK254: =CHOOSE(m_identity,ENWL!AK254, NPgN!AK254, NPgY!AK254, WMID!AK254, EMID!AK254, SWALES!AK254, SWEST!AK254, LPN!AK254,SPN!AK254,EPN!AK254,SPD!AK254,SPMW!AK254,SSEH!AK254,SSES!AK254) -> 0 | AL254: =CHOOSE(m_identity,ENWL!AL254, NPgN!AL254, NPgY!AL254, WMID!AL254, EMID!AL254, SWALES!AL254, SWEST!AL254, LPN!AL254,SPN!AL254,EPN!AL254,SPD!AL254,SPMW!AL254,SSEH!AL254,SSES!AL254) -> 0 | AM254: =CHOOSE(m_identity,ENWL!AM254, NPgN!AM254, NPgY!AM254, WMID!AM254, EMID!AM254, SWALES!AM254, SWEST!AM254, LPN!AM254,SPN!AM254,EPN!AM254,SPD!AM254,SPMW!AM254,SSEH!AM254,SSES!AM254) -> 0 | AN254: =CHOOSE(m_identity,ENWL!AN254, NPgN!AN254, NPgY!AN254, WMID!AN254, EMID!AN254, SWALES!AN254, SWEST!AN254, LPN!AN254,SPN!AN254,EPN!AN254,SPD!AN254,SPMW!AN254,SSEH!AN254,SSES!AN254) -> 0 | AO254: =CHOOSE(m_identity,ENWL!AO254, NPgN!AO254, NPgY!AO254, WMID!AO254, EMID!AO254, SWALES!AO254, SWEST!AO254, LPN!AO254,SPN!AO254,EPN!AO254,SPD!AO254,SPMW!AO254,SSEH!AO254,SSES!AO254) -> 0 | AP254: =CHOOSE(m_identity,ENWL!AP254, NPgN!AP254, NPgY!AP254, WMID!AP254, EMID!AP254, SWALES!AP254, SWEST!AP254, LPN!AP254,SPN!AP254,EPN!AP254,SPD!AP254,SPMW!AP254,SSEH!AP254,SSES!AP254) -> 0 | AQ254: =CHOOSE(m_identity,ENWL!AQ254, NPgN!AQ254, NPgY!AQ254, WMID!AQ254, EMID!AQ254, SWALES!AQ254, SWEST!AQ254, LPN!AQ254,SPN!AQ254,EPN!AQ254,SPD!AQ254,SPMW!AQ254,SSEH!AQ254,SSES!AQ254) -> 0
E255: Metering services (non legacy) (ES6) net position | G255: £m 12/13 prices | AJ255: =SUM(AJ253, -AJ254) -> 0 | AK255: =SUM(AK253, -AK254) -> 0 | AL255: 0 | AM255: 0 | AN255: 0 | AO255: 0 | AP255: 0 | AQ255: 0
E257: Metering services (legacy) revenue | G257: £m 12/13 prices | AJ257: =CHOOSE(m_identity,ENWL!AJ257, NPgN!AJ257, NPgY!AJ257, WMID!AJ257, EMID!AJ257, SWALES!AJ257, SWEST!AJ257, LPN!AJ257,SPN!AJ257,EPN!AJ257,SPD!AJ257,SPMW!AJ257,SSEH!AJ257,SSES!AJ257) -> -2.1 | AK257: =CHOOSE(m_identity,ENWL!AK257, NPgN!AK257, NPgY!AK257, WMID!AK257, EMID!AK257, SWALES!AK257, SWEST!AK257, LPN!AK257,SPN!AK257,EPN!AK257,SPD!AK257,SPMW!AK257,SSEH!AK257,SSES!AK257) -> -1.9 | AL257: =CHOOSE(m_identity,ENWL!AL257, NPgN!AL257, NPgY!AL257, WMID!AL257, EMID!AL257, SWALES!AL257, SWEST!AL257, LPN!AL257,SPN!AL257,EPN!AL257,SPD!AL257,SPMW!AL257,SSEH!AL257,SSES!AL257) -> -1.4 | AM257: =CHOOSE(m_identity,ENWL!AM257, NPgN!AM257, NPgY!AM257, WMID!AM257, EMID!AM257, SWALES!AM257, SWEST!AM257, LPN!AM257,SPN!AM257,EPN!AM257,SPD!AM257,SPMW!AM257,SSEH!AM257,SSES!AM257) -> -0.8 | AN257: =CHOOSE(m_identity,ENWL!AN257, NPgN!AN257, NPgY!AN257, WMID!AN257, EMID!AN257, SWALES!AN257, SWEST!AN257, LPN!AN257,SPN!AN257,EPN!AN257,SPD!AN257,SPMW!AN257,SSEH!AN257,SSES!AN257) -> -0.3 | AO257: =CHOOSE(m_identity,ENWL!AO257, NPgN!AO257, NPgY!AO257, WMID!AO257, EMID!AO257, SWALES!AO257, SWEST!AO257, LPN!AO257,SPN!AO257,EPN!AO257,SPD!AO257,SPMW!AO257,SSEH!AO257,SSES!AO257) -> 0 | AP257: =CHOOSE(m_identity,ENWL!AP257, NPgN!AP257, NPgY!AP257, WMID!AP257, EMID!AP257, SWALES!AP257, SWEST!AP257, LPN!AP257,SPN!AP257,EPN!AP257,SPD!AP257,SPMW!AP257,SSEH!AP257,SSES!AP257) -> 0 | AQ257: =CHOOSE(m_identity,ENWL!AQ257, NPgN!AQ257, NPgY!AQ257, WMID!AQ257, EMID!AQ257, SWALES!AQ257, SWEST!AQ257, LPN!AQ257,SPN!AQ257,EPN!AQ257,SPD!AQ257,SPMW!AQ257,SSEH!AQ257,SSES!AQ257) -> 0
E258: Metering services (legacy) costs | G258: £m 12/13 prices | AJ258: =CHOOSE(m_identity,ENWL!AJ258, NPgN!AJ258, NPgY!AJ258, WMID!AJ258, EMID!AJ258, SWALES!AJ258, SWEST!AJ258, LPN!AJ258,SPN!AJ258,EPN!AJ258,SPD!AJ258,SPMW!AJ258,SSEH!AJ258,SSES!AJ258) -> 0.001477075632 | AK258: =CHOOSE(m_identity,ENWL!AK258, NPgN!AK258, NPgY!AK258, WMID!AK258, EMID!AK258, SWALES!AK258, SWEST!AK258, LPN!AK258,SPN!AK258,EPN!AK258,SPD!AK258,SPMW!AK258,SSEH!AK258,SSES!AK258) -> 0.00145795395 | AL258: =CHOOSE(m_identity,ENWL!AL258, NPgN!AL258, NPgY!AL258, WMID!AL258, EMID!AL258, SWALES!AL258, SWEST!AL258, LPN!AL258,SPN!AL258,EPN!AL258,SPD!AL258,SPMW!AL258,SSEH!AL258,SSES!AL258) -> 0.001437401113 | AM258: =CHOOSE(m_identity,ENWL!AM258, NPgN!AM258, NPgY!AM258, WMID!AM258, EMID!AM258, SWALES!AM258, SWEST!AM258, LPN!AM258,SPN!AM258,EPN!AM258,SPD!AM258,SPMW!AM258,SSEH!AM258,SSES!AM258) -> 0.001398056287 | AN258: =CHOOSE(m_identity,ENWL!AN258, NPgN!AN258, NPgY!AN258, WMID!AN258, EMID!AN258, SWALES!AN258, SWEST!AN258, LPN!AN258,SPN!AN258,EPN!AN258,SPD!AN258,SPMW!AN258,SSEH!AN258,SSES!AN258) -> 0.001371584847 | AO258: =CHOOSE(m_identity,ENWL!AO258, NPgN!AO258, NPgY!AO258, WMID!AO258, EMID!AO258, SWALES!AO258, SWEST!AO258, LPN!AO258,SPN!AO258,EPN!AO258,SPD!AO258,SPMW!AO258,SSEH!AO258,SSES!AO258) -> 0.001365038196 | AP258: =CHOOSE(m_identity,ENWL!AP258, NPgN!AP258, NPgY!AP258, WMID!AP258, EMID!AP258, SWALES!AP258, SWEST!AP258, LPN!AP258,SPN!AP258,EPN!AP258,SPD!AP258,SPMW!AP258,SSEH!AP258,SSES!AP258) -> 0.00133859172 | AQ258: =CHOOSE(m_identity,ENWL!AQ258, NPgN!AQ258, NPgY!AQ258, WMID!AQ258, EMID!AQ258, SWALES!AQ258, SWEST!AQ258, LPN!AQ258,SPN!AQ258,EPN!AQ258,SPD!AQ258,SPMW!AQ258,SSEH!AQ258,SSES!AQ258) -> 0.001305673668
E259: Metering services (legacy) net position | G259: £m 12/13 prices | AJ259: =SUM(AJ257, -AJ258) -> -2.101477076 | AK259: =SUM(AK257, -AK258) -> -1.901457954 | AL259: -1.401437401 | AM259: -0.8013980563 | AN259: -0.3013715848 | AO259: -0.001365038196 | AP259: -0.00133859172 | AQ259: -0.001305673668
E261: Metering services associated with the SM roll out revenue | G261: £m 12/13 prices | AJ261: =CHOOSE(m_identity,ENWL!AJ261, NPgN!AJ261, NPgY!AJ261, WMID!AJ261, EMID!AJ261, SWALES!AJ261, SWEST!AJ261, LPN!AJ261,SPN!AJ261,EPN!AJ261,SPD!AJ261,SPMW!AJ261,SSEH!AJ261,SSES!AJ261) -> -0.1 | AK261: =CHOOSE(m_identity,ENWL!AK261, NPgN!AK261, NPgY!AK261, WMID!AK261, EMID!AK261, SWALES!AK261, SWEST!AK261, LPN!AK261,SPN!AK261,EPN!AK261,SPD!AK261,SPMW!AK261,SSEH!AK261,SSES!AK261) -> -0.16 | AL261: =CHOOSE(m_identity,ENWL!AL261, NPgN!AL261, NPgY!AL261, WMID!AL261, EMID!AL261, SWALES!AL261, SWEST!AL261, LPN!AL261,SPN!AL261,EPN!AL261,SPD!AL261,SPMW!AL261,SSEH!AL261,SSES!AL261) -> -0.24 | AM261: =CHOOSE(m_identity,ENWL!AM261, NPgN!AM261, NPgY!AM261, WMID!AM261, EMID!AM261, SWALES!AM261, SWEST!AM261, LPN!AM261,SPN!AM261,EPN!AM261,SPD!AM261,SPMW!AM261,SSEH!AM261,SSES!AM261) -> -0.28 | AN261: =CHOOSE(m_identity,ENWL!AN261, NPgN!AN261, NPgY!AN261, WMID!AN261, EMID!AN261, SWALES!AN261, SWEST!AN261, LPN!AN261,SPN!AN261,EPN!AN261,SPD!AN261,SPMW!AN261,SSEH!AN261,SSES!AN261) -> -0.26 | AO261: =CHOOSE(m_identity,ENWL!AO261, NPgN!AO261, NPgY!AO261, WMID!AO261, EMID!AO261, SWALES!AO261, SWEST!AO261, LPN!AO261,SPN!AO261,EPN!AO261,SPD!AO261,SPMW!AO261,SSEH!AO261,SSES!AO261) -> -0.18 | AP261: =CHOOSE(m_identity,ENWL!AP261, NPgN!AP261, NPgY!AP261, WMID!AP261, EMID!AP261, SWALES!AP261, SWEST!AP261, LPN!AP261,SPN!AP261,EPN!AP261,SPD!AP261,SPMW!AP261,SSEH!AP261,SSES!AP261) -> 0 | AQ261: =CHOOSE(m_identity,ENWL!AQ261, NPgN!AQ261, NPgY!AQ261, WMID!AQ261, EMID!AQ261, SWALES!AQ261, SWEST!AQ261, LPN!AQ261,SPN!AQ261,EPN!AQ261,SPD!AQ261,SPMW!AQ261,SSEH!AQ261,SSES!AQ261) -> 0
E262: Metering services associated with the SM roll out costs | G262: £m 12/13 prices | AJ262: =CHOOSE(m_identity,ENWL!AJ262, NPgN!AJ262, NPgY!AJ262, WMID!AJ262, EMID!AJ262, SWALES!AJ262, SWEST!AJ262, LPN!AJ262,SPN!AJ262,EPN!AJ262,SPD!AJ262,SPMW!AJ262,SSEH!AJ262,SSES!AJ262) -> 0 | AK262: =CHOOSE(m_identity,ENWL!AK262, NPgN!AK262, NPgY!AK262, WMID!AK262, EMID!AK262, SWALES!AK262, SWEST!AK262, LPN!AK262,SPN!AK262,EPN!AK262,SPD!AK262,SPMW!AK262,SSEH!AK262,SSES!AK262) -> 0 | AL262: =CHOOSE(m_identity,ENWL!AL262, NPgN!AL262, NPgY!AL262, WMID!AL262, EMID!AL262, SWALES!AL262, SWEST!AL262, LPN!AL262,SPN!AL262,EPN!AL262,SPD!AL262,SPMW!AL262,SSEH!AL262,SSES!AL262) -> 0 | AM262: =CHOOSE(m_identity,ENWL!AM262, NPgN!AM262, NPgY!AM262, WMID!AM262, EMID!AM262, SWALES!AM262, SWEST!AM262, LPN!AM262,SPN!AM262,EPN!AM262,SPD!AM262,SPMW!AM262,SSEH!AM262,SSES!AM262) -> 0 | AN262: =CHOOSE(m_identity,ENWL!AN262, NPgN!AN262, NPgY!AN262, WMID!AN262, EMID!AN262, SWALES!AN262, SWEST!AN262, LPN!AN262,SPN!AN262,EPN!AN262,SPD!AN262,SPMW!AN262,SSEH!AN262,SSES!AN262) -> 0 | AO262: =CHOOSE(m_identity,ENWL!AO262, NPgN!AO262, NPgY!AO262, WMID!AO262, EMID!AO262, SWALES!AO262, SWEST!AO262, LPN!AO262,SPN!AO262,EPN!AO262,SPD!AO262,SPMW!AO262,SSEH!AO262,SSES!AO262) -> 0 | AP262: =CHOOSE(m_identity,ENWL!AP262, NPgN!AP262, NPgY!AP262, WMID!AP262, EMID!AP262, SWALES!AP262, SWEST!AP262, LPN!AP262,SPN!AP262,EPN!AP262,SPD!AP262,SPMW!AP262,SSEH!AP262,SSES!AP262) -> 0 | AQ262: =CHOOSE(m_identity,ENWL!AQ262, NPgN!AQ262, NPgY!AQ262, WMID!AQ262, EMID!AQ262, SWALES!AQ262, SWEST!AQ262, LPN!AQ262,SPN!AQ262,EPN!AQ262,SPD!AQ262,SPMW!AQ262,SSEH!AQ262,SSES!AQ262) -> 0
... 114 more rows

Sheet Totex
A1: Totex
B2: =UserInterface!G24 -> WMID | AJ2: Done
E6: Parameter | G6: Units | I6: Constant | AJ6: Annual values
E7: PCFM year ending | I7: =UserInterface!$G$17 -> 2016-03-31 | K7: 1991-03-31 | L7: 1992-03-31 | M7: 1993-03-31 | N7: 1994-03-31 | O7: 1995-03-31 | P7: 1996-03-31 | Q7: 1997-03-31 | R7: 1998-03-31 | S7: 1999-03-31 | T7: 2000-03-31 | U7: 2001-03-31 | V7: 2002-03-31 | W7: 2003-03-31 | X7: 2004-03-31 | Y7: 2005-03-31 | Z7: 2006-03-31 | AA7: 2007-03-31 | AB7: 2008-03-31 | AC7: 2009-03-31 | AD7: 2010-03-31 | AE7: 2011-03-31 | AF7: 2012-03-31 | AG7: 2013-03-31 | AH7: 2014-03-31 | AI7: 2015-03-31 | AJ7: 2016-03-31 | AK7: 2017-03-31 | AL7: 2018-03-31 | AM7: 2019-03-31 | AN7: 2020-03-31 | AO7: 2021-03-31 | AP7: 2022-03-31 | AQ7: 2023-03-31
B9: Totex
C11: Allowed totex aggregated by sub-category
C12: Note: Totex is the sum of a number of cost categories, with all totex allowances falling under one (or more) of them. They have significance in the model as each sub-category can have its own set of tax pool allocation rules.
D14: Non-variant allowances
D15: Note: These values are set at final proposals and are not updated during the price control
E17: Non-variant allowed load related capex | G17: £m 12/13 prices | AJ17: =Input!AJ92 -> 23.71268111 | AK17: =Input!AK92 -> 24.59347416 | AL17: =Input!AL92 -> 23.42171412 | AM17: =Input!AM92 -> 27.80700791 | AN17: =Input!AN92 -> 30.13310652 | AO17: =Input!AO92 -> 27.21590715 | AP17: =Input!AP92 -> 31.09474006 | AQ17: =Input!AQ92 -> 35.25645358
E18: Non-variant allowed non-load related capex - asset replacement | G18: £m 12/13 prices | AJ18: =Input!AJ93 -> 83.53929294 | AK18: =Input!AK93 -> 84.46241391 | AL18: =Input!AL93 -> 83.94047358 | AM18: =Input!AM93 -> 85.91453151 | AN18: =Input!AN93 -> 86.54305461 | AO18: =Input!AO93 -> 92.15177176 | AP18: =Input!AP93 -> 89.14723446 | AQ18: =Input!AQ93 -> 89.23218433
E19: Non-variant allowed non-load related capex - other | G19: £m 12/13 prices | AJ19: =Input!AJ94 -> 21.68148982 | AK19: =Input!AK94 -> 20.08061088 | AL19: =Input!AL94 -> 14.22760511 | AM19: =Input!AM94 -> 11.69184928 | AN19: =Input!AN94 -> 15.63776959 | AO19: =Input!AO94 -> 17.62446823 | AP19: =Input!AP94 -> 15.20179974 | AQ19: =Input!AQ94 -> 13.05759517
E20: Non-variant allowed faults | G20: £m 12/13 prices | AJ20: =Input!AJ95 -> 29.71318465 | AK20: =Input!AK95 -> 29.63068285 | AL20: =Input!AL95 -> 29.43749658 | AM20: =Input!AM95 -> 29.37244065 | AN20: =Input!AN95 -> 29.30538206 | AO20: =Input!AO95 -> 29.35637984 | AP20: =Input!AP95 -> 29.45798439 | AQ20: =Input!AQ95 -> 29.54920905
E21: Non-variant allowed tree cutting | G21: £m 12/13 prices | AJ21: =Input!AJ96 -> 8.182874203 | AK21: =Input!AK96 -> 8.208633247 | AL21: =Input!AL96 -> 8.214779005 | AM21: =Input!AM96 -> 8.271194363 | AN21: =Input!AN96 -> 8.328176381 | AO21: =Input!AO96 -> 8.386134308 | AP21: =Input!AP96 -> 8.442115151 | AQ21: =Input!AQ96 -> 8.50201016
E22: Non-variant allowed controllable opex | G22: £m 12/13 prices | AJ22: =Input!AJ97 -> 93.43526801 | AK22: =Input!AK97 -> 93.63700866 | AL22: =Input!AL97 -> 93.87545379 | AM22: =Input!AM97 -> 94.5195288 | AN22: =Input!AN97 -> 95.46805764 | AO22: =Input!AO97 -> 95.48345901 | AP22: =Input!AP97 -> 94.50106399 | AQ22: =Input!AQ97 -> 94.99225791
D24: Variant
D25: Note: Licence conditions may allow for non-baseline allowances to be granted. These are added to the baseline to generate the allowed sub-categories and thereby the overall allowed totex.
E27: Variant allowed load related capex | G27: =Input!G189 -> £m 12/13 prices | AJ27: =Input!AJ189 -> 0 | AK27: =Input!AK189 -> 0 | AL27: =Input!AL189 -> 0 | AM27: =Input!AM189 -> 0 | AN27: =Input!AN189 -> 0 | AO27: =Input!AO189 -> 0 | AP27: =Input!AP189 -> 0 | AQ27: =Input!AQ189 -> 0
E28: Variant allowed non-load related capex - asset replacement | G28: =Input!G190 -> £m 12/13 prices | AJ28: =Input!AJ190 -> 0.06685035814 | AK28: =Input!AK190 -> 0.5804095818 | AL28: =Input!AL190 -> 0.580290419 | AM28: =Input!AM190 -> 0.07100725904 | AN28: =Input!AN190 -> 0.0719356936 | AO28: =Input!AO190 -> 0.07292431534 | AP28: =Input!AP190 -> 0.0738792291 | AQ28: =Input!AQ190 -> 0.0748657966
E29: Variant allowed non-load related capex - other | G29: =Input!G191 -> £m 12/13 prices | AJ29: =Input!AJ191 -> 0.320863282 | AK29: =Input!AK191 -> 0.3201234782 | AL29: =Input!AL191 -> 0.3207506198 | AM29: =Input!AM191 -> 0.3200639505 | AN29: =Input!AN191 -> 0.3205412446 | AO29: =Input!AO191 -> 0.3210846656 | AP29: =Input!AP191 -> 0.3203434811 | AQ29: =Input!AQ191 -> 0.3210856157
E30: Variant allowed faults | G30: =Input!G192 -> £m 12/13 prices | AJ30: =Input!AJ192 -> 0.09503221034 | AK30: =Input!AK192 -> 0.09892657866 | AL30: =Input!AL192 -> 0.09989582146 | AM30: =Input!AM192 -> 0.1014419225 | AN30: =Input!AN192 -> 0.1030146716 | AO30: =Input!AO192 -> 0.1046153723 | AP30: =Input!AP192 -> 0.1062484565 | AQ30: =Input!AQ192 -> 0.1079176824
E31: Variant allowed tree cutting | G31: =Input!G193 -> £m 12/13 prices | AJ31: =Input!AJ193 -> 0 | AK31: =Input!AK193 -> 0 | AL31: =Input!AL193 -> 0 | AM31: =Input!AM193 -> 0 | AN31: =Input!AN193 -> 0 | AO31: =Input!AO193 -> 0 | AP31: =Input!AP193 -> 0 | AQ31: =Input!AQ193 -> 0
E32: Variant allowed controllable opex | G32: =Input!G194 -> £m 12/13 prices | AJ32: =Input!AJ194 -> 0.05248632041 | AK32: =Input!AK194 -> 0.05185836066 | AL32: =Input!AL194 -> 0.05056522318 | AM32: =Input!AM194 -> 0.04590256723 | AN32: =Input!AN194 -> 0.04200092604 | AO32: =Input!AO194 -> 0.04373033078 | AP32: =Input!AP194 -> 0 | AQ32: =Input!AQ194 -> 0
D34: Allowance
D35: Note: "Allowed totex" is exported to be used in the TIM calculation. The allowed totex sub-categories are used below to create forecast actuals for the tax calculation and the TIM calculation when actuals are not yet available.
E37: Allowed load related capex | G37: £m 12/13 prices | AJ37: =AJ17 + AJ27 -> 23.71268111 | AK37: 24.59347416 | AL37: 23.42171412 | AM37: 27.80700791 | AN37: 30.13310652 | AO37: 27.21590715 | AP37: 31.09474006 | AQ37: 35.25645358
E38: Allowed non-load related capex - asset replacement | G38: £m 12/13 prices | AJ38: 83.6061433 | AK38: 85.04282349 | AL38: 84.52076399 | AM38: 85.98553877 | AN38: 86.6149903 | AO38: 92.22469607 | AP38: 89.22111369 | AQ38: 89.30705012
E39: Allowed non-load related capex - other | G39: £m 12/13 prices | AJ39: 22.00235311 | AK39: 20.40073436 | AL39: 14.54835573 | AM39: 12.01191323 | AN39: 15.95831083 | AO39: 17.94555289 | AP39: 15.52214322 | AQ39: 13.37868078
E40: Allowed faults | G40: £m 12/13 prices | AJ40: 29.80821686 | AK40: 29.72960943 | AL40: 29.5373924 | AM40: 29.47388258 | AN40: 29.40839673 | AO40: 29.46099521 | AP40: 29.56423284 | AQ40: 29.65712674
E41: Allowed tree cutting | G41: £m 12/13 prices | AJ41: 8.182874203 | AK41: 8.208633247 | AL41: 8.214779005 | AM41: 8.271194363 | AN41: 8.328176381 | AO41: 8.386134308 | AP41: 8.442115151 | AQ41: 8.50201016
E42: Allowed controllable opex | G42: £m 12/13 prices | AJ42: 93.48775433 | AK42: 93.68886702 | AL42: 93.92601901 | AM42: 94.56543136 | AN42: 95.51005856 | AO42: 95.52718934 | AP42: 94.50106399 | AQ42: 94.99225791
E43: Allowed totex | G43: £m 12/13 prices | AJ43: =SUM(AJ37:AJ42) -> 260.8000229 | AK43: 261.6641417 | AL43: 254.1690243 | AM43: 258.1149682 | AN43: 265.9530393 | AO43: 270.760475 | AP43: 268.3454089 | AQ43: 271.0935793
C45: Actual totex
D47: Source of actuals
D48: Note: The model assumes that there is a time lag from year t until actual expenditure data becomes available for the model. After the lag, actual expenditure inputs are used. Up to that point the model generates a forecast actual expenditure.
D49: When required in the model, forecasts assume that actuals are equal to their corresponding allowance.
D50: In a year where actual totex is assumed to be available, values must be inputted to the model as it will not generate a forecast and the empty input cell will be read as an actual spend of zero.
E52: Years from t until normal reporting of actual costs | G52: years | I52: =Input!I59 -> 2
E53: Input actuals used | G53: text | AJ53: =YEAR($I$7) >= YEAR(AJ$7) + $I52 -> FALSE | AK53: FALSE | AL53: FALSE | AM53: FALSE | AN53: FALSE | AO53: FALSE | AP53: FALSE | AQ53: FALSE
E54: Forecast actuals generated from allowances | G54: text | AJ54: =YEAR($I$7) < YEAR(AJ$7) + $I52 -> TRUE | AK54: TRUE | AL54: TRUE | AM54: TRUE | AN54: TRUE | AO54: TRUE | AP54: TRUE | AQ54: TRUE
D56: Actual totex from cost reporting processes and final proposals
E58: Actual load related capex | G58: £m 12/13 prices | AJ58: =IF(AJ$53, Input!AJ198, 0) -> 0 | AK58: =IF(AK$53, Input!AK198, 0) -> 0 | AL58: =IF(AL$53, Input!AL198, 0) -> 0 | AM58: =IF(AM$53, Input!AM198, 0) -> 0 | AN58: =IF(AN$53, Input!AN198, 0) -> 0 | AO58: =IF(AO$53, Input!AO198, 0) -> 0 | AP58: =IF(AP$53, Input!AP198, 0) -> 0 | AQ58: =IF(AQ$53, Input!AQ198, 0) -> 0
E59: Actual non-load related capex - asset replacement | G59: £m 12/13 prices | AJ59: =IF(AJ$53, Input!AJ199, 0) -> 0 | AK59: =IF(AK$53, Input!AK199, 0) -> 0 | AL59: =IF(AL$53, Input!AL199, 0) -> 0 | AM59: =IF(AM$53, Input!AM199, 0) -> 0 | AN59: =IF(AN$53, Input!AN199, 0) -> 0 | AO59: =IF(AO$53, Input!AO199, 0) -> 0 | AP59: =IF(AP$53, Input!AP199, 0) -> 0 | AQ59: =IF(AQ$53, Input!AQ199, 0) -> 0
E60: Actual non-load related capex - other | G60: £m 12/13 prices | AJ60: =IF(AJ$53, Input!AJ200, 0) -> 0 | AK60: =IF(AK$53, Input!AK200, 0) -> 0 | AL60: =IF(AL$53, Input!AL200, 0) -> 0 | AM60: =IF(AM$53, Input!AM200, 0) -> 0 | AN60: =IF(AN$53, Input!AN200, 0) -> 0 | AO60: =IF(AO$53, Input!AO200, 0) -> 0 | AP60: =IF(AP$53, Input!AP200, 0) -> 0 | AQ60: =IF(AQ$53, Input!AQ200, 0) -> 0
E61: Actual faults | G61: £m 12/13 prices | AJ61: =IF(AJ$53, Input!AJ201, 0) -> 0 | AK61: =IF(AK$53, Input!AK201, 0) -> 0 | AL61: =IF(AL$53, Input!AL201, 0) -> 0 | AM61: =IF(AM$53, Input!AM201, 0) -> 0 | AN61: =IF(AN$53, Input!AN201, 0) -> 0 | AO61: =IF(AO$53, Input!AO201, 0) -> 0 | AP61: =IF(AP$53, Input!AP201, 0) -> 0 | AQ61: =IF(AQ$53, Input!AQ201, 0) -> 0
E62: Actual tree cutting | G62: £m 12/13 prices | AJ62: =IF(AJ$53, Input!AJ202, 0) -> 0 | AK62: =IF(AK$53, Input!AK202, 0) -> 0 | AL62: =IF(AL$53, Input!AL202, 0) -> 0 | AM62: =IF(AM$53, Input!AM202, 0) -> 0 | AN62: =IF(AN$53, Input!AN202, 0) -> 0 | AO62: =IF(AO$53, Input!AO202, 0) -> 0 | AP62: =IF(AP$53, Input!AP202, 0) -> 0 | AQ62: =IF(AQ$53, Input!AQ202, 0) -> 0
E63: Actual controllable opex | G63: £m 12/13 prices | AJ63: =IF(AJ$53, Input!AJ203, 0) -> 0 | AK63: =IF(AK$53, Input!AK203, 0) -> 0 | AL63: =IF(AL$53, Input!AL203, 0) -> 0 | AM63: =IF(AM$53, Input!AM203, 0) -> 0 | AN63: =IF(AN$53, Input!AN203, 0) -> 0 | AO63: =IF(AO$53, Input!AO203, 0) -> 0 | AP63: =IF(AP$53, Input!AP203, 0) -> 0 | AQ63: =IF(AQ$53, Input!AQ203, 0) -> 0
D66: Forecast totex from new allowances
E68: Forecast actual load related capex | G68: £m 12/13 prices | AJ68: =IF(AJ$54, AJ37, 0) -> 23.71268111 | AK68: 24.59347416 | AL68: 23.42171412 | AM68: 27.80700791 | AN68: 30.13310652 | AO68: 27.21590715 | AP68: 31.09474006 | AQ68: 35.25645358
E69: Forecast actual non-load related capex - asset replacement | G69: £m 12/13 prices | AJ69: 83.6061433 | AK69: 85.04282349 | AL69: 84.52076399 | AM69: 85.98553877 | AN69: 86.6149903 | AO69: 92.22469607 | AP69: 89.22111369 | AQ69: 89.30705012
E70: Forecast actual non-load related capex - other | G70: £m 12/13 prices | AJ70: 22.00235311 | AK70: 20.40073436 | AL70: 14.54835573 | AM70: 12.01191323 | AN70: 15.95831083 | AO70: 17.94555289 | AP70: 15.52214322 | AQ70: 13.37868078
E71: Forecast actual faults | G71: £m 12/13 prices | AJ71: 29.80821686 | AK71: 29.72960943 | AL71: 29.5373924 | AM71: 29.47388258 | AN71: 29.40839673 | AO71: 29.46099521 | AP71: 29.56423284 | AQ71: 29.65712674
E72: Forecast actual tree cutting | G72: £m 12/13 prices | AJ72: 8.182874203 | AK72: 8.208633247 | AL72: 8.214779005 | AM72: 8.271194363 | AN72: 8.328176381 | AO72: 8.386134308 | AP72: 8.442115151 | AQ72: 8.50201016
E73: Forecast actual controllable opex | G73: £m 12/13 prices | AJ73: =IF(AJ$54, AJ42, 0) -> 93.48775433 | AK73: 93.68886702 | AL73: 93.92601901 | AM73: 94.56543136 | AN73: 95.51005856 | AO73: 95.52718934 | AP73: 94.50106399 | AQ73: 94.99225791
D75: Totex applied
D76: Note: Actuals are exported both to identify performance against the allowance and to generate writing down allowances used in the tax calculation.
E78: Actual load related capex | G78: £m 12/13 prices | AJ78: =AJ58 + AJ68 -> 23.71268111 | AK78: 24.59347416 | AL78: 23.42171412 | AM78: 27.80700791 | AN78: 30.13310652 | AO78: 27.21590715 | AP78: 31.09474006 | AQ78: 35.25645358
E79: Actual non-load related capex - asset replacement | G79: £m 12/13 prices | AJ79: 83.6061433 | AK79: 85.04282349 | AL79: 84.52076399 | AM79: 85.98553877 | AN79: 86.6149903 | AO79: 92.22469607 | AP79: 89.22111369 | AQ79: 89.30705012
E80: Actual non-load related capex - other | G80: £m 12/13 prices | AJ80: 22.00235311 | AK80: 20.40073436 | AL80: 14.54835573 | AM80: 12.01191323 | AN80: 15.95831083 | AO80: 17.94555289 | AP80: 15.52214322 | AQ80: 13.37868078
E81: Actual faults | G81: £m 12/13 prices | AJ81: =AJ61 + AJ71 -> 29.80821686 | AK81: 29.72960943 | AL81: 29.5373924 | AM81: 29.47388258 | AN81: 29.40839673 | AO81: 29.46099521 | AP81: 29.56423284 | AQ81: 29.65712674
E82: Actual tree cutting | G82: £m 12/13 prices | AJ82: 8.182874203 | AK82: 8.208633247 | AL82: 8.214779005 | AM82: 8.271194363 | AN82: 8.328176381 | AO82: 8.386134308 | AP82: 8.442115151 | AQ82: 8.50201016
E83: Actual controllable opex | G83: £m 12/13 prices | AJ83: 93.48775433 | AK83: 93.68886702 | AL83: 93.92601901 | AM83: 94.56543136 | AN83: 95.51005856 | AO83: 95.52718934 | AP83: 94.50106399 | AQ83: 94.99225791
E84: Actual totex | G84: £m 12/13 prices | AJ84: =SUM(AJ78:AJ83) -> 260.8000229 | AK84: 261.6641417 | AL84: 254.1690243 | AM84: 258.1149682 | AN84: 265.9530393 | AO84: 270.760475 | AP84: 268.3454089 | AQ84: 271.0935793
B86: End of sheet
AJ88: =(Totex!AJ84 - Totex!AJ83 - Totex!AJ80) -> 145.3099155

Sheet TIM
A1: Totex Incentive Mechanism (TIM)
B2: =UserInterface!G24 -> WMID | AJ2: Done
E6: Parameter | G6: Units | I6: Constant | AJ6: Annual values
E7: PCFM year ending | I7: =UserInterface!$G$17 -> 2016-03-31 | K7: 1991-03-31 | L7: 1992-03-31 | M7: 1993-03-31 | N7: 1994-03-31 | O7: 1995-03-31 | P7: 1996-03-31 | Q7: 1997-03-31 | R7: 1998-03-31 | S7: 1999-03-31 | T7: 2000-03-31 | U7: 2001-03-31 | V7: 2002-03-31 | W7: 2003-03-31 | X7: 2004-03-31 | Y7: 2005-03-31 | Z7: 2006-03-31 | AA7: 2007-03-31 | AB7: 2008-03-31 | AC7: 2009-03-31 | AD7: 2010-03-31 | AE7: 2011-03-31 | AF7: 2012-03-31 | AG7: 2013-03-31 | AH7: 2014-03-31 | AI7: 2015-03-31 | AJ7: 2016-03-31 | AK7: 2017-03-31 | AL7: 2018-03-31 | AM7: 2019-03-31 | AN7: 2020-03-31 | AO7: 2021-03-31 | AP7: 2022-03-31 | AQ7: 2023-03-31
B9: Efficiency incentive
C11: Incentive strength
E13: Incentive strength | G13: % | I13: =Input!I65 -> 0.7
C15: Additional income
E17: Ofgem view | G17: % | I17: =Input!I67 -> 0.75
E18: Operator view | G18: % | I18: =Input!I68 -> 0.25
E20: Ofgem view of group price control totex | G20: £m 12/13 prices | I20: =Input!I73 -> 7063.291031
E22: Additional income % | G22: % | I22: =Input!I63 -> 0.025
E24: Additional income at group level | G24: £m 12/13 prices | I24: =I20*I22 -> 176.5822758
E26: Forecast licensee totex | G26: £m 12/13 prices | I26: =Input!I70*Input!$I$67+Input!I71*Input!$I$68 -> 2109.226016
E27: Forecast group totex | G27: £m 12/13 prices | I27: =Input!I73*I17 + Input!I74*I18 -> 7063.291031
E28: Percentage of group totex at licensee level | G28: % | I28: =I26 / I27 -> 0.2986180247
B30: Efficiency incentive
C32: Post-TIM overspend (underspend)
C33: Note: Totex overspend (underspend) is identified and subject to the "efficiency incentive rate."
D35: Totex
E37: Actual totex | G37: £m 12/13 prices | AJ37: =Totex!AJ84 -> 260.8000229 | AK37: =Totex!AK84 -> 261.6641417 | AL37: =Totex!AL84 -> 254.1690243 | AM37: =Totex!AM84 -> 258.1149682 | AN37: =Totex!AN84 -> 265.9530393 | AO37: =Totex!AO84 -> 270.760475 | AP37: =Totex!AP84 -> 268.3454089 | AQ37: =Totex!AQ84 -> 271.0935793
E38: Less allowed totex | G38: £m 12/13 prices | AJ38: =-Totex!AJ43 -> -260.8000229 | AK38: =-Totex!AK43 -> -261.6641417 | AL38: =-Totex!AL43 -> -254.1690243 | AM38: =-Totex!AM43 -> -258.1149682 | AN38: =-Totex!AN43 -> -265.9530393 | AO38: =-Totex!AO43 -> -270.760475 | AP38: =-Totex!AP43 -> -268.3454089 | AQ38: =-Totex!AQ43 -> -271.0935793
E39: Pre-TIM totex overspend (underspend) | G39: £m 12/13 prices | AJ39: =SUM(AJ37:AJ38) -> 0 | AK39: 0 | AL39: 0 | AM39: 0 | AN39: 0 | AO39: 0 | AP39: 0 | AQ39: 0
E41: Funding Adjustment Rate (often referred to as 'sharing factor') | G41: % | AJ41: =(1 - $I$13) -> 0.3 | AK41: =(1 - $I$13) -> 0.3 | AL41: 0.3 | AM41: 0.3 | AN41: 0.3 | AO41: 0.3 | AP41: 0.3 | AQ41: 0.3
E43: Post-TIM totex overspend (underspend) | G43: £m 12/13 prices | AJ43: =AJ$41 * AJ39 -> 0 | AK43: =AK$41 * AK39 -> 0 | AL43: =AL$41 * AL39 -> 0 | AM43: 0 | AN43: 0 | AO43: 0 | AP43: 0 | AQ43: 0
C45: Post-TIM totex
C46: Note: "Post-TIM overspend (underspend)" is added to the allowed totex value to give the Post-TIM totex allowance to be split into fast and slow money.
D48: Totex excluding 'non-load related capex - other'
E50: Allowed totex | G50: £m 12/13 prices | AJ50: =-AJ38 -> 260.8000229 | AK50: =-AK38 -> 261.6641417 | AL50: 254.1690243 | AM50: 258.1149682 | AN50: 265.9530393 | AO50: 270.760475 | AP50: 268.3454089 | AQ50: 271.0935793
E51: Post-TIM totex overspend (underspend) | G51: £m 12/13 prices | AJ51: =AJ43 -> 0 | AK51: 0 | AL51: 0 | AM51: 0 | AN51: 0 | AO51: 0 | AP51: 0 | AQ51: 0
E52: Post-TIM totex | G52: £m 12/13 prices | AJ52: =SUM(AJ50:AJ51) -> 260.8000229 | AK52: 261.6641417 | AL52: 254.1690243 | AM52: 258.1149682 | AN52: 265.9530393 | AO52: 270.760475 | AP52: 268.3454089 | AQ52: 271.0935793
B54: Capitalisation
B55: Note: Post-TIM totex are allocated into "fast" and "slow" elements based on a pre-set percentage split:
B56: - "fast money " is exported to the "Revenue" sheet where it is included as an element of "recalculated base revenue;" and
B57: - "slow money " is exported to the "Depn" sheet where it is added to RAV. Slow money is recovered over the life of the RAV through regulatory depreciation and return allowances.
C59: Separate capitalisation
D61: Totex excluding 'non-load related capex - other'
E63: Post-TIM totex | G63: £m 12/13 prices | AJ63: =AJ52 -> 260.8000229 | AK63: 261.6641417 | AL63: 254.1690243 | AM63: 258.1149682 | AN63: 265.9530393 | AO63: 270.760475 | AP63: 268.3454089 | AQ63: 271.0935793
E64: Capitalised share of totex | G64: % | AJ64: =Input!AJ61 -> 0.8 | AK64: =Input!AK61 -> 0.8 | AL64: =Input!AL61 -> 0.8 | AM64: =Input!AM61 -> 0.8 | AN64: =Input!AN61 -> 0.8 | AO64: =Input!AO61 -> 0.8 | AP64: =Input!AP61 -> 0.8 | AQ64: =Input!AQ61 -> 0.8
E65: Totex fast pot expenditure | G65: £m 12/13 prices | AJ65: =AJ63-AJ66 -> 52.16000458 | AK65: 52.33282834 | AL65: 50.83380485 | AM65: 51.62299364 | AN65: 53.19060787 | AO65: 54.15209499 | AP65: 53.66908179 | AQ65: 54.21871586
E66: Totex slow pot expenditure | G66: £m 12/13 prices | AJ66: =AJ63 * AJ64 -> 208.6400183 | AK66: =AK63 * AK64 -> 209.3313134 | AL66: 203.3352194 | AM66: 206.4919746 | AN66: 212.7624315 | AO66: 216.60838 | AP66: 214.6763272 | AQ66: 216.8748634
C68: Totex
E70: Fast pot expenditure | G70: £m 12/13 prices | AJ70: =AJ65 -> 52.16000458 | AK70: =AK65 -> 52.33282834 | AL70: 50.83380485 | AM70: 51.62299364 | AN70: 53.19060787 | AO70: 54.15209499 | AP70: 53.66908179 | AQ70: 54.21871586
E72: Slow pot expenditure | G72: £m 12/13 prices | AJ72: =AJ66 -> 208.6400183 | AK72: =AK66 -> 209.3313134 | AL72: 203.3352194 | AM72: 206.4919746 | AN72: 212.7624315 | AO72: 216.60838 | AP72: 214.6763272 | AQ72: 216.8748634
B74: Additional income
B75: Note: The additional income lump sum is recovered across the price control and is matched to the profile of allowed totex set at final proposals.
E77: Additional income | G77: £m 12/13 prices | I77: =I24*I28 -> 52.73065039
E79: Original allowed totex (set at final proposals) | G79: £m 12/13 prices | AJ79: =SUM(Input!AJ92:AJ97) -> 260.2647907 | AK79: =SUM(Input!AK92:AK97) -> 260.6128237 | AL79: =SUM(Input!AL92:AL97) -> 253.1175222 | AM79: =SUM(Input!AM92:AM97) -> 257.5765525 | AN79: =SUM(Input!AN92:AN97) -> 265.4155468 | AO79: =SUM(Input!AO92:AO97) -> 270.2181203 | AP79: =SUM(Input!AP92:AP97) -> 267.8449378 | AQ79: =SUM(Input!AQ92:AQ97) -> 270.5897102
E80: Total allowed totex in price control (set at final proposals) | G80: £m 12/13 prices | I80: =SUM($AJ79:$AQ79) -> 2105.640004
E82: Share of additional income allowed in year | G82: % | AJ82: =AJ79 / $I80 -> 0.1236036503 | AK82: 0.1237689364 | AL82: 0.1202093053 | AM82: 0.1223269657 | AN82: 0.1260498216 | AO82: 0.1283306357 | AP82: 0.1272035758 | AQ82: 0.1285071093
E84: Additional income | G84: £m 12/13 prices | AJ84: =$I77 * AJ82 -> 6.517700871 | AK84: =$I77 * AK82 -> 6.526416513 | AL84: 6.338714853 | AM84: 6.45038046 | AN84: 6.646689072 | AO84: 6.766957885 | AP84: 6.707527281 | AQ84: 6.776263454
B86: End of sheet

Sheet DARTs
A1: Direct Allowed Revenue Terms (DARTs)
B2: =UserInterface!G24 -> WMID | AJ2: Done
E6: Parameter | G6: Units | I6: Constant | AJ6: Annual values
E7: PCFM year ending | I7: =UserInterface!$G$17 -> 2016-03-31 | K7: 1991-03-31 | L7: 1992-03-31 | M7: 1993-03-31 | N7: 1994-03-31 | O7: 1995-03-31 | P7: 1996-03-31 | Q7: 1997-03-31 | R7: 1998-03-31 | S7: 1999-03-31 | T7: 2000-03-31 | U7: 2001-03-31 | V7: 2002-03-31 | W7: 2003-03-31 | X7: 2004-03-31 | Y7: 2005-03-31 | Z7: 2006-03-31 | AA7: 2007-03-31 | AB7: 2008-03-31 | AC7: 2009-03-31 | AD7: 2010-03-31 | AE7: 2011-03-31 | AF7: 2012-03-31 | AG7: 2013-03-31 | AH7: 2014-03-31 | AI7: 2015-03-31 | AJ7: 2016-03-31 | AK7: 2017-03-31 | AL7: 2018-03-31 | AM7: 2019-03-31 | AN7: 2020-03-31 | AO7: 2021-03-31 | AP7: 2022-03-31 | AQ7: 2023-03-31
B9: Direct Allowed Revenue Terms (DARTs)
B10: Note: DARTs are allowances with minimal processing required in the model as they flow directly from input to revenue.
B11: They do however have different indirect impacts on equity issuance and tax. They are grouped here by their treatment type to aid common treatment of DARTs through the rest of the model.
B12: "Post-tax" allowances can be included in the tax calculation but "Pre-tax" allowances cannot.
B13: "Passthrough-style" allowances are treated as an equal revenue and cost. Therefore they have no net cash flow impact. "Revenue" allowances are just set as a revenue amount with any costs relating to them are dealt with elsewhere.
C15: Base Revenue
D17: No impact on net debt, No Tax Allowance given, no tax paid (as underlying assumption is costs equal income)
E19: Established pension deficit repair | G19: £m 12/13 prices | AJ19: =Input!AJ213 -> 23.6809903 | AK19: =Input!AK213 -> 23.6809903 | AL19: =Input!AL213 -> 23.6809903 | AM19: =Input!AM213 -> 23.6809903 | AN19: =Input!AN213 -> 23.6809903 | AO19: =Input!AO213 -> 23.6809903 | AP19: =Input!AP213 -> 23.6809903 | AQ19: =Input!AQ213 -> 23.6809903
E20: Base Revenue DARTs with no impact on net debt or tax | G20: £m 12/13 prices | AJ20: =SUM(AJ19:AJ19) -> 23.6809903 | AK20: 23.6809903 | AL20: 23.6809903 | AM20: 23.6809903 | AN20: 23.6809903 | AO20: 23.6809903 | AP20: 23.6809903 | AQ20: 23.6809903
D22: Impact net debt, Tax Allowance given (and so tax paid on income)
E24: Pension true-up from previous price controls | G24: £m 12/13 prices | AJ24: =Input!AJ215 -> 0 | AK24: =Input!AK215 -> 0 | AL24: =Input!AL215 -> 0 | AM24: =Input!AM215 -> 0 | AN24: =Input!AN215 -> 0 | AO24: =Input!AO215 -> 0 | AP24: =Input!AP215 -> 0 | AQ24: =Input!AQ215 -> 0
E25: Base Revenue DARTs impacting both net debt and tax | G25: £m 12/13 prices | AJ25: =SUM(AJ24:AJ24) -> 0 | AK25: 0 | AL25: 0 | AM25: 0 | AN25: 0 | AO25: 0 | AP25: 0 | AQ25: 0
D27: Impact net debt, No Tax Allowance given, Tax Paid on net income
E29: Revenue from previous controls | G29: £m 12/13 prices | AJ29: =Input!AJ219 -> 0.6700793291 | AK29: =Input!AK219 -> 0.6985107951 | AL29: =Input!AL219 -> 0.7281486081 | AM29: =Input!AM219 -> 0.7590439535 | AN29: =Input!AN219 -> 0.7912501885 | AO29: =Input!AO219 -> 0.824822934 | AP29: =Input!AP219 -> 0.8598201711 | AQ29: =Input!AQ219 -> 0.8963023409
E30: Base Revenue DARTs impacting net debt but not tax | G30: £m 12/13 prices | AJ30: =SUM(AJ29:AJ29) -> 0.6700793291 | AK30: 0.6985107951 | AL30: 0.7281486081 | AM30: 0.7590439535 | AN30: 0.7912501885 | AO30: 0.824822934 | AP30: 0.8598201711 | AQ30: 0.8963023409
D32: Impact net debt, Tax Allowance given (and so tax paid on income)
E34: Initial Profile Adjustment | G34: £m 12/13 prices | AJ34: =Input!AJ409 -> 0 | AK34: =Input!AK409 -> 0 | AL34: =Input!AL409 -> 0 | AM34: =Input!AM409 -> 0 | AN34: =Input!AN409 -> 0 | AO34: =Input!AO409 -> 0 | AP34: =Input!AP409 -> 0 | AQ34: =Input!AQ409 -> 0
E35: Base Revenue DARTs impacting both net debt and tax | G35: £m 12/13 prices | AJ35: =SUM(AJ34:AJ34) -> 0 | AK35: 0 | AL35: 0 | AM35: 0 | AN35: 0 | AO35: 0 | AP35: 0 | AQ35: 0
D37: No impact on net debt, No Tax Allowance given, no tax paid
E39: Time Value of Money Profile Adjustment | G39: £m 12/13 prices | AJ39: =Input!AJ410 -> 0 | AK39: =Input!AK410 -> 0 | AL39: =Input!AL410 -> 0 | AM39: =Input!AM410 -> 0 | AN39: =Input!AN410 -> 0 | AO39: =Input!AO410 -> 0 | AP39: =Input!AP410 -> 0 | AQ39: =Input!AQ410 -> 0
E40: Time Value of Money Profile Increment | G40: £m 12/13 prices | AJ40: =Input!AJ411 -> 0 | AK40: =Input!AK411 -> 0 | AL40: =Input!AL411 -> 0 | AM40: =Input!AM411 -> 0 | AN40: =Input!AN411 -> 0 | AO40: =Input!AO411 -> 0 | AP40: =Input!AP411 -> 0 | AQ40: =Input!AQ411 -> 0
E41: Base Revenue DARTs with no impact on net debt or tax | G41: £m 12/13 prices | AJ41: =SUM(AJ39:AJ40) -> 0 | AK41: =SUM(AK39:AK40) -> 0 | AL41: 0 | AM41: 0 | AN41: 0 | AO41: 0 | AP41: 0 | AQ41: 0
C43: ES7 (Miscellaneous)
D45: No impact on debt, No Tax Allowance given, Tax Paid on net income
E47: =Input!E223 -> ES7 (Miscellaneous) revenue | G47: £m 12/13 prices | AJ47: =Input!AJ223 -> 0 | AK47: =Input!AK223 -> 0 | AL47: =Input!AL223 -> 0 | AM47: =Input!AM223 -> 0 | AN47: =Input!AN223 -> 0 | AO47: =Input!AO223 -> 0 | AP47: =Input!AP223 -> 0 | AQ47: =Input!AQ223 -> 0
E48: =Input!E224 -> ES7 (Miscellaneous) assumed costs | G48: £m 12/13 prices | AJ48: =Input!AJ224 -> 0 | AK48: =Input!AK224 -> 0 | AL48: =Input!AL224 -> 0 | AM48: =Input!AM224 -> 0 | AN48: =Input!AN224 -> 0 | AO48: =Input!AO224 -> 0 | AP48: =Input!AP224 -> 0 | AQ48: =Input!AQ224 -> 0
E49: =Input!E225 -> ES7 (Miscellaneous) net position | G49: £m 12/13 prices | AJ49: =Input!AJ225 -> 0 | AK49: =Input!AK225 -> 0 | AL49: =Input!AL225 -> 0 | AM49: =Input!AM225 -> 0 | AN49: =Input!AN225 -> 0 | AO49: =Input!AO225 -> 0 | AP49: =Input!AP225 -> 0 | AQ49: =Input!AQ225 -> 0
C51: =Input!E227 -> Directly Remunerated Services
D53: Impact net debt, No Tax Allowance given, Tax Paid on net income
E55: =Input!E281 -> Overall net income of Directly Remunerated Services | G55: £m 12/13 prices | AJ55: =Input!AJ281 -> -14.50851098 | AK55: =Input!AK281 -> -22.54667744 | AL55: =Input!AL281 -> -21.90852532 | AM55: =Input!AM281 -> -21.38770387 | AN55: =Input!AN281 -> -20.88061805 | AO55: =Input!AO281 -> -20.50284089 | AP55: =Input!AP281 -> -20.2662119 | AQ55: =Input!AQ281 -> -20.09845002
C57: Legacy losses incentive
D59: Impact net debt, No Tax Allowance given, Tax Paid on net income
E61: Legacy losses incentive | G61: £m 12/13 prices | AJ61: =Input!AJ221 -> 0 | AK61: =Input!AK221 -> 0 | AL61: =Input!AL221 -> 0 | AM61: =Input!AM221 -> 0 | AN61: =Input!AN221 -> 0 | AO61: =Input!AO221 -> 0 | AP61: =Input!AP221 -> 0 | AQ61: =Input!AQ221 -> 0
C63: DART groups
C64: MG TO UPDATE NOTES for this section
E69: Base revenue DARTs | G69: £m 12/13 prices | AJ69: =AJ20 + AJ25 + AJ30 +AJ35 + AJ41 - AJ48 -> 24.35106963 | AK69: =AK20 + AK25 + AK30 +AK35 + AK41 - AK48 -> 24.3795011 | AL69: 24.40913891 | AM69: 24.44003426 | AN69: 24.47224049 | AO69: 24.50581324 | AP69: 24.54081047 | AQ69: 24.57729264
E71: Non Base Revenue DARTs | G71: £m 12/13 prices | AJ71: =AJ47+AJ55+AJ61 -> -14.50851098 | AK71: =AK47+AK55+AK61 -> -22.54667744 | AL71: -21.90852532 | AM71: -21.38770387 | AN71: -20.88061805 | AO71: -20.50284089 | AP71: -20.2662119 | AQ71: -20.09845002
E73: Net impact of DARTs on core net debt | G73: £m 12/13 prices | AJ73: =-AJ20-AJ41+AJ48+AJ49+AJ55+AJ61 -> -38.18950128 | AK73: =-AK20-AK41+AK48+AK49+AK55+AK61 -> -46.22766775 | AL73: -45.58951563 | AM73: -45.06869417 | AN73: -44.56160835 | AO73: -44.18383119 | AP73: -43.94720221 | AQ73: -43.77944032
E75: Net DART impact on core tax calculation | G75: £m 12/13 prices | AJ75: =- AJ20 - AJ41 - AJ30 + AJ48 -> -24.35106963 | AK75: =- AK20 - AK41 - AK30 + AK48 -> -24.3795011 | AL75: -24.40913891 | AM75: -24.44003426 | AN75: -24.47224049 | AO75: -24.50581324 | AP75: -24.54081047 | AQ75: -24.57729264
B77: End of sheet

Sheet Depn
A1: Regulatory Depreciation
B2: =UserInterface!G24 -> WMID | AJ2: Done
E6: Parameter | G6: Units | I6: Constant | AJ6: Annual values
E7: PCFM year ending | I7: =UserInterface!$G$17 -> 2016-03-31 | K7: 1991-03-31 | L7: 1992-03-31 | M7: 1993-03-31 | N7: 1994-03-31 | O7: 1995-03-31 | P7: 1996-03-31 | Q7: 1997-03-31 | R7: 1998-03-31 | S7: 1999-03-31 | T7: 2000-03-31 | U7: 2001-03-31 | V7: 2002-03-31 | W7: 2003-03-31 | X7: 2004-03-31 | Y7: 2005-03-31 | Z7: 2006-03-31 | AA7: 2007-03-31 | AB7: 2008-03-31 | AC7: 2009-03-31 | AD7: 2010-03-31 | AE7: 2011-03-31 | AF7: 2012-03-31 | AG7: 2013-03-31 | AH7: 2014-03-31 | AI7: 2015-03-31 | AJ7: 2016-03-31 | AK7: 2017-03-31 | AL7: 2018-03-31 | AM7: 2019-03-31 | AN7: 2020-03-31 | AO7: 2021-03-31 | AP7: 2022-03-31 | AQ7: 2023-03-31
B9: Regulatory depreciation
C11: Net RAV additions (after disposals)
C12: Note: Additions to RAV are combined before feeding into the depreciation calculations. Disposals are treated as negative additions. Pre-RIIO values are used to build up the post-vesting RAV from vesting.
C13: Logged-up and security costs are retrospectively added to RAV to provide the updated opening RAV and align depreciation with expenditure.
E15: Slow money | G15: £m 12/13 prices | AJ15: =TIM!AJ72 -> 208.6400183 | AK15: =TIM!AK72 -> 209.3313134 | AL15: =TIM!AL72 -> 203.3352194 | AM15: =TIM!AM72 -> 206.4919746 | AN15: =TIM!AN72 -> 212.7624315 | AO15: =TIM!AO72 -> 216.60838 | AP15: =TIM!AP72 -> 214.6763272 | AQ15: =TIM!AQ72 -> 216.8748634
E16: Net adjustments | G16: £m 12/13 prices | AJ16: =SUM(Input!AJ301:AJ302) -> 0 | AK16: =SUM(Input!AK301:AK302) -> 0 | AL16: =SUM(Input!AL301:AL302) -> 0 | AM16: =SUM(Input!AM301:AM302) -> 0 | AN16: =SUM(Input!AN301:AN302) -> 0 | AO16: =SUM(Input!AO301:AO302) -> 0 | AP16: =SUM(Input!AP301:AP302) -> 0 | AQ16: =SUM(Input!AQ301:AQ302) -> 0
E17: Pre-RIIO net RAV additions (after disposals) | G17: £m 12/13 prices | J17: > | K17: =Input!K299+Input!K300 -> 29.42724983 | L17: =Input!L299+Input!L300 -> 103.5346172 | M17: =Input!M299+Input!M300 -> 104.1508947 | N17: =Input!N299+Input!N300 -> 106.9241434 | O17: =Input!O299+Input!O300 -> 121.0985255 | P17: =Input!P299+Input!P300 -> 107.5404208 | Q17: =Input!Q299+Input!Q300 -> 124.1799129 | R17: =Input!R299+Input!R300 -> 105.8456578 | S17: =Input!S299+Input!S300 -> 112.0591827 | T17: =Input!T299+Input!T300 -> 100.3416011 | U17: =Input!U299+Input!U300 -> 101.7199198 | V17: =Input!V299+Input!V300 -> 122.9460277 | W17: =Input!W299+Input!W300 -> 114.8139474 | X17: =Input!X299+Input!X300 -> 134.6232087 | Y17: =Input!Y299+Input!Y300 -> 113.3667231 | Z17: =Input!Z299+Input!Z300 -> 174.2173304 | AA17: =Input!AA299+Input!AA300 -> 165.1388027 | AB17: =Input!AB299+Input!AB300 -> 172.1942436 | AC17: =Input!AC299+Input!AC300 -> 188.8745946 | AD17: =Input!AD299+Input!AD300 -> 179.7530971 | AE17: =Input!AE299+Input!AE300 -> 185.1127579 | AF17: =Input!AF299+Input!AF300 -> 221.2586118 | AG17: =Input!AG299+Input!AG300 -> 201.9095219 | AH17: =Input!AH299+Input!AH300 -> 233.1114684 | AI17: =Input!AI299+Input!AI300 -> 221.3924803
E18: Net RAV additions (after disposals) | G18: £m 12/13 prices | J18: > | K18: =SUM(K15:K17) -> 29.42724983 | L18: =SUM(L15:L17) -> 103.5346172 | M18: 104.1508947 | N18: 106.9241434 | O18: 121.0985255 | P18: 107.5404208 | Q18: 124.1799129 | R18: 105.8456578 | S18: 112.0591827 | T18: 100.3416011 | U18: 101.7199198 | V18: 122.9460277 | W18: 114.8139474 | X18: 134.6232087 | Y18: 113.3667231 | Z18: 174.2173304 | AA18: 165.1388027 | AB18: 172.1942436 | AC18: 188.8745946 | AD18: 179.7530971 | AE18: 185.1127579 | AF18: 221.2586118 | AG18: 201.9095219 | AH18: 233.1114684 | AI18: 221.3924803 | AJ18: 208.6400183 | AK18: 209.3313134 | AL18: 203.3352194 | AM18: 206.4919746 | AN18: 212.7624315 | AO18: 216.60838 | AP18: 214.6763272 | AQ18: 216.8748634
C20: Net depreciation additions (after disposals)
C21: Note:
E23: Pre-RIIO transfers to depreciation | G23: £m 12/13 prices | J23: > | K23: =Input!K303 -> 0 | L23: =Input!L303 -> 0 | M23: =Input!M303 -> 0 | N23: =Input!N303 -> 0 | O23: =Input!O303 -> 0 | P23: =Input!P303 -> 0 | Q23: =Input!Q303 -> 0 | R23: =Input!R303 -> 0 | S23: =Input!S303 -> 0 | T23: =Input!T303 -> 0 | U23: =Input!U303 -> 0 | V23: =Input!V303 -> 0 | W23: =Input!W303 -> 0 | X23: =Input!X303 -> 0 | Y23: =Input!Y303 -> 0 | Z23: =Input!Z303 -> 0 | AA23: =Input!AA303 -> 0 | AB23: =Input!AB303 -> 0 | AC23: =Input!AC303 -> 0 | AD23: =Input!AD303 -> 0 | AE23: =Input!AE303 -> 0 | AF23: =Input!AF303 -> 0 | AG23: =Input!AG303 -> 0 | AH23: =Input!AH303 -> 0 | AI23: =Input!AI303 -> 0
C25: Pre-vesting depreciation
C26: Note: The following depreciation factor is used to depreciate the pre-vesting balance on the "Return&RAV" sheet.
E28: Vesting year | G28: year ending | I28: =Input!I298 -> 1991-03-31
E29: Pre-vesting asset life | G29: years | I29: =Input!I287 -> 15
E30: Pre vesting asset depn in first year (mths) | G30: months | I30: =Input!I288 -> 3.5
C32: Accelerated post-vesting depreciation
C33: Note: Accelerated depreciation calculations provide the allowed depreciation after full depreciation of pre-vesting assets, but are also used to establish the "RAV differential" generated before that point.
D35: Depreciation parameters
E37: Post-vesting asset life | G37: years | J37: > | K37: =Input!K296 -> 20 | L37: =Input!L296 -> 20 | M37: =Input!M296 -> 20 | N37: =Input!N296 -> 20 | O37: =Input!O296 -> 20 | P37: =Input!P296 -> 20 | Q37: =Input!Q296 -> 20 | R37: =Input!R296 -> 20 | S37: =Input!S296 -> 20 | T37: =Input!T296 -> 20 | U37: =Input!U296 -> 20 | V37: =Input!V296 -> 20 | W37: =Input!W296 -> 20 | X37: =Input!X296 -> 20 | Y37: =Input!Y296 -> 20 | Z37: =Input!Z296 -> 20 | AA37: =Input!AA296 -> 20 | AB37: =Input!AB296 -> 20 | AC37: =Input!AC296 -> 20 | AD37: =Input!AD296 -> 20 | AE37: =Input!AE296 -> 20 | AF37: =Input!AF296 -> 20 | AG37: =Input!AG296 -> 20 | AH37: =Input!AH296 -> 20 | AI37: =Input!AI296 -> 20 | AJ37: =Input!AJ296 -> 23.125 | AK37: =Input!AK296 -> 26.25 | AL37: =Input!AL296 -> 29.375 | AM37: =Input!AM296 -> 32.5 | AN37: =Input!AN296 -> 35.625 | AO37: =Input!AO296 -> 38.75 | AP37: =Input!AP296 -> 41.875 | AQ37: =Input!AQ296 -> 45
E38: Accelerated post-vesting depreciation applied | G38: text | J38: > | L38: =YEAR(L$7) >= YEAR($I$28) + IF($I$30=12,$I$29,$I$29+1) -> FALSE | M38: FALSE | N38: FALSE | O38: FALSE | P38: FALSE | Q38: FALSE | R38: FALSE | S38: FALSE | T38: FALSE | U38: FALSE | V38: FALSE | W38: FALSE | X38: FALSE | Y38: =YEAR(Y$7) >= YEAR($I$28) + IF($I$30=12,$I$29,$I$29+1) -> FALSE | Z38: =YEAR(Z$7) >= YEAR($I$28) + IF($I$30=12,$I$29,$I$29+1) -> FALSE | AA38: =YEAR(AA$7) >= YEAR($I$28) + IF($I$30=12,$I$29,$I$29+1) -> TRUE | AB38: =YEAR(AB$7) >= YEAR($I$28) + IF($I$30=12,$I$29,$I$29+1) -> TRUE | AC38: TRUE | AD38: TRUE | AE38: TRUE | AF38: TRUE | AG38: TRUE | AH38: TRUE | AI38: TRUE | AJ38: TRUE | AK38: TRUE | AL38: TRUE | AM38: TRUE | AN38: TRUE | AO38: TRUE | AP38: TRUE | AQ38: TRUE
D40: Depreciation schedule
E42: Accelerated depreciation of additions from year ending | I42: Net additions
E43: 1991-03-31 | G43: £m 12/13 prices | I43: =I88 -> 29.42724983 | J43: > | L43: =$I43/$K$37 -> 1.471362491 | M43: =IF($I43 >0, MIN(L43,$I43-SUM($L43:L43)), MAX(L43,$I43-SUM($L43:L43))) -> 1.471362491 | N43: =IF($I43 >0, MIN(M43,$I43-SUM($L43:M43)), MAX(M43,$I43-SUM($L43:M43))) -> 1.471362491 | O43: =IF($I43 >0, MIN(N43,$I43-SUM($L43:N43)), MAX(N43,$I43-SUM($L43:N43))) -> 1.471362491 | P43: =IF($I43 >0, MIN(O43,$I43-SUM($L43:O43)), MAX(O43,$I43-SUM($L43:O43))) -> 1.471362491 | Q43: =IF($I43 >0, MIN(P43,$I43-SUM($L43:P43)), MAX(P43,$I43-SUM($L43:P43))) -> 1.471362491 | R43: =IF($I43 >0, MIN(Q43,$I43-SUM($L43:Q43)), MAX(Q43,$I43-SUM($L43:Q43))) -> 1.471362491 | S43: =IF($I43 >0, MIN(R43,$I43-SUM($L43:R43)), MAX(R43,$I43-SUM($L43:R43))) -> 1.471362491 | T43: =IF($I43 >0, MIN(S43,$I43-SUM($L43:S43)), MAX(S43,$I43-SUM($L43:S43))) -> 1.471362491 | U43: =IF($I43 >0, MIN(T43,$I43-SUM($L43:T43)), MAX(T43,$I43-SUM($L43:T43))) -> 1.471362491 | V43: =IF($I43 >0, MIN(U43,$I43-SUM($L43:U43)), MAX(U43,$I43-SUM($L43:U43))) -> 1.471362491 | W43: =IF($I43 >0, MIN(V43,$I43-SUM($L43:V43)), MAX(V43,$I43-SUM($L43:V43))) -> 1.471362491 | X43: =IF($I43 >0, MIN(W43,$I43-SUM($L43:W43)), MAX(W43,$I43-SUM($L43:W43))) -> 1.471362491 | Y43: =IF($I43 >0, MIN(X43,$I43-SUM($L43:X43)), MAX(X43,$I43-SUM($L43:X43))) -> 1.471362491 | Z43: =IF($I43 >0, MIN(Y43,$I43-SUM($L43:Y43)), MAX(Y43,$I43-SUM($L43:Y43))) -> 1.471362491 | AA43: =IF($I43 >0, MIN(Z43,$I43-SUM($L43:Z43)), MAX(Z43,$I43-SUM($L43:Z43))) -> 1.471362491 | AB43: =IF($I43 >0, MIN(AA43,$I43-SUM($L43:AA43)), MAX(AA43,$I43-SUM($L43:AA43))) -> 1.471362491 | AC43: =IF($I43 >0, MIN(AB43,$I43-SUM($L43:AB43)), MAX(AB43,$I43-SUM($L43:AB43))) -> 1.471362491 | AD43: =IF($I43 >0, MIN(AC43,$I43-SUM($L43:AC43)), MAX(AC43,$I43-SUM($L43:AC43))) -> 1.471362491 | AE43: =IF($I43 >0, MIN(AD43,$I43-SUM($L43:AD43)), MAX(AD43,$I43-SUM($L43:AD43))) -> 1.471362491 | AF43: =IF($I43 >0, MIN(AE43,$I43-SUM($L43:AE43)), MAX(AE43,$I43-SUM($L43:AE43))) -> 1.065814104e-14 | AG43: =IF($I43 >0, MIN(AF43,$I43-SUM($L43:AF43)), MAX(AF43,$I43-SUM($L43:AF43))) -> 0 | AH43: =IF($I43 >0, MIN(AG43,$I43-SUM($L43:AG43)), MAX(AG43,$I43-SUM($L43:AG43))) -> 0 | AI43: =IF($I43 >0, MIN(AH43,$I43-SUM($L43:AH43)), MAX(AH43,$I43-SUM($L43:AH43))) -> 0 | AJ43: =IF($I43 >0, MIN(AI43,$I43-SUM($L43:AI43)), MAX(AI43,$I43-SUM($L43:AI43))) -> 0 | AK43: =IF($I43 >0, MIN(AJ43,$I43-SUM($L43:AJ43)), MAX(AJ43,$I43-SUM($L43:AJ43))) -> 0 | AL43: =IF($I43 >0, MIN(AK43,$I43-SUM($L43:AK43)), MAX(AK43,$I43-SUM($L43:AK43))) -> 0 | AM43: =IF($I43 >0, MIN(AL43,$I43-SUM($L43:AL43)), MAX(AL43,$I43-SUM($L43:AL43))) -> 0 | AN43: =IF($I43 >0, MIN(AM43,$I43-SUM($L43:AM43)), MAX(AM43,$I43-SUM($L43:AM43))) -> 0 | AO43: =IF($I43 >0, MIN(AN43,$I43-SUM($L43:AN43)), MAX(AN43,$I43-SUM($L43:AN43))) -> 0 | AP43: =IF($I43 >0, MIN(AO43,$I43-SUM($L43:AO43)), MAX(AO43,$I43-SUM($L43:AO43))) -> 0 | AQ43: =IF($I43 >0, MIN(AP43,$I43-SUM($L43:AP43)), MAX(AP43,$I43-SUM($L43:AP43))) -> 0
E44: 1992-03-31 | G44: £m 12/13 prices | I44: =I89 -> 103.5346172 | J44: > | M44: =$I44/L$37 -> 5.17673086 | N44: =IF($I44 >0, MIN(M44,$I44-SUM($L44:M44)), MAX(M44,$I44-SUM($L44:M44))) -> 5.17673086 | O44: =IF($I44 >0, MIN(N44,$I44-SUM($L44:N44)), MAX(N44,$I44-SUM($L44:N44))) -> 5.17673086 | P44: =IF($I44 >0, MIN(O44,$I44-SUM($L44:O44)), MAX(O44,$I44-SUM($L44:O44))) -> 5.17673086 | Q44: =IF($I44 >0, MIN(P44,$I44-SUM($L44:P44)), MAX(P44,$I44-SUM($L44:P44))) -> 5.17673086 | R44: =IF($I44 >0, MIN(Q44,$I44-SUM($L44:Q44)), MAX(Q44,$I44-SUM($L44:Q44))) -> 5.17673086 | S44: =IF($I44 >0, MIN(R44,$I44-SUM($L44:R44)), MAX(R44,$I44-SUM($L44:R44))) -> 5.17673086 | T44: =IF($I44 >0, MIN(S44,$I44-SUM($L44:S44)), MAX(S44,$I44-SUM($L44:S44))) -> 5.17673086 | U44: =IF($I44 >0, MIN(T44,$I44-SUM($L44:T44)), MAX(T44,$I44-SUM($L44:T44))) -> 5.17673086 | V44: =IF($I44 >0, MIN(U44,$I44-SUM($L44:U44)), MAX(U44,$I44-SUM($L44:U44))) -> 5.17673086 | W44: =IF($I44 >0, MIN(V44,$I44-SUM($L44:V44)), MAX(V44,$I44-SUM($L44:V44))) -> 5.17673086 | X44: =IF($I44 >0, MIN(W44,$I44-SUM($L44:W44)), MAX(W44,$I44-SUM($L44:W44))) -> 5.17673086 | Y44: =IF($I44 >0, MIN(X44,$I44-SUM($L44:X44)), MAX(X44,$I44-SUM($L44:X44))) -> 5.17673086 | Z44: =IF($I44 >0, MIN(Y44,$I44-SUM($L44:Y44)), MAX(Y44,$I44-SUM($L44:Y44))) -> 5.17673086 | AA44: =IF($I44 >0, MIN(Z44,$I44-SUM($L44:Z44)), MAX(Z44,$I44-SUM($L44:Z44))) -> 5.17673086 | AB44: =IF($I44 >0, MIN(AA44,$I44-SUM($L44:AA44)), MAX(AA44,$I44-SUM($L44:AA44))) -> 5.17673086 | AC44: =IF($I44 >0, MIN(AB44,$I44-SUM($L44:AB44)), MAX(AB44,$I44-SUM($L44:AB44))) -> 5.17673086 | AD44: =IF($I44 >0, MIN(AC44,$I44-SUM($L44:AC44)), MAX(AC44,$I44-SUM($L44:AC44))) -> 5.17673086 | AE44: =IF($I44 >0, MIN(AD44,$I44-SUM($L44:AD44)), MAX(AD44,$I44-SUM($L44:AD44))) -> 5.17673086 | AF44: =IF($I44 >0, MIN(AE44,$I44-SUM($L44:AE44)), MAX(AE44,$I44-SUM($L44:AE44))) -> 5.17673086 | AG44: =IF($I44 >0, MIN(AF44,$I44-SUM($L44:AF44)), MAX(AF44,$I44-SUM($L44:AF44))) -> 2.842170943e-14 | AH44: =IF($I44 >0, MIN(AG44,$I44-SUM($L44:AG44)), MAX(AG44,$I44-SUM($L44:AG44))) -> 0 | AI44: =IF($I44 >0, MIN(AH44,$I44-SUM($L44:AH44)), MAX(AH44,$I44-SUM($L44:AH44))) -> 0 | AJ44: =IF($I44 >0, MIN(AI44,$I44-SUM($L44:AI44)), MAX(AI44,$I44-SUM($L44:AI44))) -> 0 | AK44: =IF($I44 >0, MIN(AJ44,$I44-SUM($L44:AJ44)), MAX(AJ44,$I44-SUM($L44:AJ44))) -> 0 | AL44: =IF($I44 >0, MIN(AK44,$I44-SUM($L44:AK44)), MAX(AK44,$I44-SUM($L44:AK44))) -> 0 | AM44: =IF($I44 >0, MIN(AL44,$I44-SUM($L44:AL44)), MAX(AL44,$I44-SUM($L44:AL44))) -> 0 | AN44: =IF($I44 >0, MIN(AM44,$I44-SUM($L44:AM44)), MAX(AM44,$I44-SUM($L44:AM44))) -> 0 | AO44: =IF($I44 >0, MIN(AN44,$I44-SUM($L44:AN44)), MAX(AN44,$I44-SUM($L44:AN44))) -> 0 | AP44: =IF($I44 >0, MIN(AO44,$I44-SUM($L44:AO44)), MAX(AO44,$I44-SUM($L44:AO44))) -> 0 | AQ44: =IF($I44 >0, MIN(AP44,$I44-SUM($L44:AP44)), MAX(AP44,$I44-SUM($L44:AP44))) -> 0
E45: 1993-03-31 | G45: £m 12/13 prices | I45: 104.1508947 | J45: > | N45: =$I45/M$37 -> 5.207544734 | O45: =IF($I45 >0, MIN(N45,$I45-SUM($L45:N45)), MAX(N45,$I45-SUM($L45:N45))) -> 5.207544734 | P45: =IF($I45 >0, MIN(O45,$I45-SUM($L45:O45)), MAX(O45,$I45-SUM($L45:O45))) -> 5.207544734 | Q45: =IF($I45 >0, MIN(P45,$I45-SUM($L45:P45)), MAX(P45,$I45-SUM($L45:P45))) -> 5.207544734 | R45: =IF($I45 >0, MIN(Q45,$I45-SUM($L45:Q45)), MAX(Q45,$I45-SUM($L45:Q45))) -> 5.207544734 | S45: =IF($I45 >0, MIN(R45,$I45-SUM($L45:R45)), MAX(R45,$I45-SUM($L45:R45))) -> 5.207544734 | T45: =IF($I45 >0, MIN(S45,$I45-SUM($L45:S45)), MAX(S45,$I45-SUM($L45:S45))) -> 5.207544734 | U45: =IF($I45 >0, MIN(T45,$I45-SUM($L45:T45)), MAX(T45,$I45-SUM($L45:T45))) -> 5.207544734 | V45: =IF($I45 >0, MIN(U45,$I45-SUM($L45:U45)), MAX(U45,$I45-SUM($L45:U45))) -> 5.207544734 | W45: =IF($I45 >0, MIN(V45,$I45-SUM($L45:V45)), MAX(V45,$I45-SUM($L45:V45))) -> 5.207544734 | X45: =IF($I45 >0, MIN(W45,$I45-SUM($L45:W45)), MAX(W45,$I45-SUM($L45:W45))) -> 5.207544734 | Y45: =IF($I45 >0, MIN(X45,$I45-SUM($L45:X45)), MAX(X45,$I45-SUM($L45:X45))) -> 5.207544734 | Z45: =IF($I45 >0, MIN(Y45,$I45-SUM($L45:Y45)), MAX(Y45,$I45-SUM($L45:Y45))) -> 5.207544734 | AA45: =IF($I45 >0, MIN(Z45,$I45-SUM($L45:Z45)), MAX(Z45,$I45-SUM($L45:Z45))) -> 5.207544734 | AB45: =IF($I45 >0, MIN(AA45,$I45-SUM($L45:AA45)), MAX(AA45,$I45-SUM($L45:AA45))) -> 5.207544734 | AC45: =IF($I45 >0, MIN(AB45,$I45-SUM($L45:AB45)), MAX(AB45,$I45-SUM($L45:AB45))) -> 5.207544734 | AD45: =IF($I45 >0, MIN(AC45,$I45-SUM($L45:AC45)), MAX(AC45,$I45-SUM($L45:AC45))) -> 5.207544734 | AE45: =IF($I45 >0, MIN(AD45,$I45-SUM($L45:AD45)), MAX(AD45,$I45-SUM($L45:AD45))) -> 5.207544734 | AF45: =IF($I45 >0, MIN(AE45,$I45-SUM($L45:AE45)), MAX(AE45,$I45-SUM($L45:AE45))) -> 5.207544734 | AG45: =IF($I45 >0, MIN(AF45,$I45-SUM($L45:AF45)), MAX(AF45,$I45-SUM($L45:AF45))) -> 5.207544734 | AH45: =IF($I45 >0, MIN(AG45,$I45-SUM($L45:AG45)), MAX(AG45,$I45-SUM($L45:AG45))) -> 0 | AI45: =IF($I45 >0, MIN(AH45,$I45-SUM($L45:AH45)), MAX(AH45,$I45-SUM($L45:AH45))) -> 0 | AJ45: =IF($I45 >0, MIN(AI45,$I45-SUM($L45:AI45)), MAX(AI45,$I45-SUM($L45:AI45))) -> 0 | AK45: =IF($I45 >0, MIN(AJ45,$I45-SUM($L45:AJ45)), MAX(AJ45,$I45-SUM($L45:AJ45))) -> 0 | AL45: =IF($I45 >0, MIN(AK45,$I45-SUM($L45:AK45)), MAX(AK45,$I45-SUM($L45:AK45))) -> 0 | AM45: =IF($I45 >0, MIN(AL45,$I45-SUM($L45:AL45)), MAX(AL45,$I45-SUM($L45:AL45))) -> 0 | AN45: =IF($I45 >0, MIN(AM45,$I45-SUM($L45:AM45)), MAX(AM45,$I45-SUM($L45:AM45))) -> 0 | AO45: =IF($I45 >0, MIN(AN45,$I45-SUM($L45:AN45)), MAX(AN45,$I45-SUM($L45:AN45))) -> 0 | AP45: =IF($I45 >0, MIN(AO45,$I45-SUM($L45:AO45)), MAX(AO45,$I45-SUM($L45:AO45))) -> 0 | AQ45: =IF($I45 >0, MIN(AP45,$I45-SUM($L45:AP45)), MAX(AP45,$I45-SUM($L45:AP45))) -> 0 | AR45: =IF($I45 >0, MIN(AQ45,$I45-SUM($L45:AQ45)), MAX(AQ45,$I45-SUM($L45:AQ45))) -> 0
E46: 1994-03-31 | G46: £m 12/13 prices | I46: 106.9241434 | J46: > | O46: =$I46/N$37 -> 5.346207168 | P46: =IF($I46 >0, MIN(O46,$I46-SUM($L46:O46)), MAX(O46,$I46-SUM($L46:O46))) -> 5.346207168 | Q46: =IF($I46 >0, MIN(P46,$I46-SUM($L46:P46)), MAX(P46,$I46-SUM($L46:P46))) -> 5.346207168 | R46: =IF($I46 >0, MIN(Q46,$I46-SUM($L46:Q46)), MAX(Q46,$I46-SUM($L46:Q46))) -> 5.346207168 | S46: =IF($I46 >0, MIN(R46,$I46-SUM($L46:R46)), MAX(R46,$I46-SUM($L46:R46))) -> 5.346207168 | T46: =IF($I46 >0, MIN(S46,$I46-SUM($L46:S46)), MAX(S46,$I46-SUM($L46:S46))) -> 5.346207168 | U46: =IF($I46 >0, MIN(T46,$I46-SUM($L46:T46)), MAX(T46,$I46-SUM($L46:T46))) -> 5.346207168 | V46: =IF($I46 >0, MIN(U46,$I46-SUM($L46:U46)), MAX(U46,$I46-SUM($L46:U46))) -> 5.346207168 | W46: =IF($I46 >0, MIN(V46,$I46-SUM($L46:V46)), MAX(V46,$I46-SUM($L46:V46))) -> 5.346207168 | X46: =IF($I46 >0, MIN(W46,$I46-SUM($L46:W46)), MAX(W46,$I46-SUM($L46:W46))) -> 5.346207168 | Y46: =IF($I46 >0, MIN(X46,$I46-SUM($L46:X46)), MAX(X46,$I46-SUM($L46:X46))) -> 5.346207168 | Z46: =IF($I46 >0, MIN(Y46,$I46-SUM($L46:Y46)), MAX(Y46,$I46-SUM($L46:Y46))) -> 5.346207168 | AA46: =IF($I46 >0, MIN(Z46,$I46-SUM($L46:Z46)), MAX(Z46,$I46-SUM($L46:Z46))) -> 5.346207168 | AB46: =IF($I46 >0, MIN(AA46,$I46-SUM($L46:AA46)), MAX(AA46,$I46-SUM($L46:AA46))) -> 5.346207168 | AC46: =IF($I46 >0, MIN(AB46,$I46-SUM($L46:AB46)), MAX(AB46,$I46-SUM($L46:AB46))) -> 5.346207168 | AD46: =IF($I46 >0, MIN(AC46,$I46-SUM($L46:AC46)), MAX(AC46,$I46-SUM($L46:AC46))) -> 5.346207168 | AE46: =IF($I46 >0, MIN(AD46,$I46-SUM($L46:AD46)), MAX(AD46,$I46-SUM($L46:AD46))) -> 5.346207168 | AF46: =IF($I46 >0, MIN(AE46,$I46-SUM($L46:AE46)), MAX(AE46,$I46-SUM($L46:AE46))) -> 5.346207168 | AG46: =IF($I46 >0, MIN(AF46,$I46-SUM($L46:AF46)), MAX(AF46,$I46-SUM($L46:AF46))) -> 5.346207168 | AH46: =IF($I46 >0, MIN(AG46,$I46-SUM($L46:AG46)), MAX(AG46,$I46-SUM($L46:AG46))) -> 5.346207168 | AI46: =IF($I46 >0, MIN(AH46,$I46-SUM($L46:AH46)), MAX(AH46,$I46-SUM($L46:AH46))) -> 0 | AJ46: =IF($I46 >0, MIN(AI46,$I46-SUM($L46:AI46)), MAX(AI46,$I46-SUM($L46:AI46))) -> 0 | AK46: =IF($I46 >0, MIN(AJ46,$I46-SUM($L46:AJ46)), MAX(AJ46,$I46-SUM($L46:AJ46))) -> 0 | AL46: =IF($I46 >0, MIN(AK46,$I46-SUM($L46:AK46)), MAX(AK46,$I46-SUM($L46:AK46))) -> 0 | AM46: =IF($I46 >0, MIN(AL46,$I46-SUM($L46:AL46)), MAX(AL46,$I46-SUM($L46:AL46))) -> 0 | AN46: =IF($I46 >0, MIN(AM46,$I46-SUM($L46:AM46)), MAX(AM46,$I46-SUM($L46:AM46))) -> 0 | AO46: =IF($I46 >0, MIN(AN46,$I46-SUM($L46:AN46)), MAX(AN46,$I46-SUM($L46:AN46))) -> 0 | AP46: =IF($I46 >0, MIN(AO46,$I46-SUM($L46:AO46)), MAX(AO46,$I46-SUM($L46:AO46))) -> 0 | AQ46: =IF($I46 >0, MIN(AP46,$I46-SUM($L46:AP46)), MAX(AP46,$I46-SUM($L46:AP46))) -> 0 | AR46: =IF($I46 >0, MIN(AQ46,$I46-SUM($L46:AQ46)), MAX(AQ46,$I46-SUM($L46:AQ46))) -> 0
E47: 1995-03-31 | G47: £m 12/13 prices | I47: 121.0985255 | J47: > | P47: =$I47/O$37 -> 6.054926274 | Q47: =IF($I47 >0, MIN(P47,$I47-SUM($L47:P47)), MAX(P47,$I47-SUM($L47:P47))) -> 6.054926274 | R47: =IF($I47 >0, MIN(Q47,$I47-SUM($L47:Q47)), MAX(Q47,$I47-SUM($L47:Q47))) -> 6.054926274 | S47: =IF($I47 >0, MIN(R47,$I47-SUM($L47:R47)), MAX(R47,$I47-SUM($L47:R47))) -> 6.054926274 | T47: =IF($I47 >0, MIN(S47,$I47-SUM($L47:S47)), MAX(S47,$I47-SUM($L47:S47))) -> 6.054926274 | U47: =IF($I47 >0, MIN(T47,$I47-SUM($L47:T47)), MAX(T47,$I47-SUM($L47:T47))) -> 6.054926274 | V47: =IF($I47 >0, MIN(U47,$I47-SUM($L47:U47)), MAX(U47,$I47-SUM($L47:U47))) -> 6.054926274 | W47: =IF($I47 >0, MIN(V47,$I47-SUM($L47:V47)), MAX(V47,$I47-SUM($L47:V47))) -> 6.054926274 | X47: =IF($I47 >0, MIN(W47,$I47-SUM($L47:W47)), MAX(W47,$I47-SUM($L47:W47))) -> 6.054926274 | Y47: =IF($I47 >0, MIN(X47,$I47-SUM($L47:X47)), MAX(X47,$I47-SUM($L47:X47))) -> 6.054926274 | Z47: =IF($I47 >0, MIN(Y47,$I47-SUM($L47:Y47)), MAX(Y47,$I47-SUM($L47:Y47))) -> 6.054926274 | AA47: =IF($I47 >0, MIN(Z47,$I47-SUM($L47:Z47)), MAX(Z47,$I47-SUM($L47:Z47))) -> 6.054926274 | AB47: =IF($I47 >0, MIN(AA47,$I47-SUM($L47:AA47)), MAX(AA47,$I47-SUM($L47:AA47))) -> 6.054926274 | AC47: =IF($I47 >0, MIN(AB47,$I47-SUM($L47:AB47)), MAX(AB47,$I47-SUM($L47:AB47))) -> 6.054926274 | AD47: =IF($I47 >0, MIN(AC47,$I47-SUM($L47:AC47)), MAX(AC47,$I47-SUM($L47:AC47))) -> 6.054926274 | AE47: =IF($I47 >0, MIN(AD47,$I47-SUM($L47:AD47)), MAX(AD47,$I47-SUM($L47:AD47))) -> 6.054926274 | AF47: =IF($I47 >0, MIN(AE47,$I47-SUM($L47:AE47)), MAX(AE47,$I47-SUM($L47:AE47))) -> 6.054926274 | AG47: =IF($I47 >0, MIN(AF47,$I47-SUM($L47:AF47)), MAX(AF47,$I47-SUM($L47:AF47))) -> 6.054926274 | AH47: =IF($I47 >0, MIN(AG47,$I47-SUM($L47:AG47)), MAX(AG47,$I47-SUM($L47:AG47))) -> 6.054926274 | AI47: =IF($I47 >0, MIN(AH47,$I47-SUM($L47:AH47)), MAX(AH47,$I47-SUM($L47:AH47))) -> 6.054926274 | AJ47: =IF($I47 >0, MIN(AI47,$I47-SUM($L47:AI47)), MAX(AI47,$I47-SUM($L47:AI47))) -> 0 | AK47: =IF($I47 >0, MIN(AJ47,$I47-SUM($L47:AJ47)), MAX(AJ47,$I47-SUM($L47:AJ47))) -> 0 | AL47: =IF($I47 >0, MIN(AK47,$I47-SUM($L47:AK47)), MAX(AK47,$I47-SUM($L47:AK47))) -> 0 | AM47: =IF($I47 >0, MIN(AL47,$I47-SUM($L47:AL47)), MAX(AL47,$I47-SUM($L47:AL47))) -> 0 | AN47: =IF($I47 >0, MIN(AM47,$I47-SUM($L47:AM47)), MAX(AM47,$I47-SUM($L47:AM47))) -> 0 | AO47: =IF($I47 >0, MIN(AN47,$I47-SUM($L47:AN47)), MAX(AN47,$I47-SUM($L47:AN47))) -> 0 | AP47: =IF($I47 >0, MIN(AO47,$I47-SUM($L47:AO47)), MAX(AO47,$I47-SUM($L47:AO47))) -> 0 | AQ47: =IF($I47 >0, MIN(AP47,$I47-SUM($L47:AP47)), MAX(AP47,$I47-SUM($L47:AP47))) -> 0 | AR47: =IF($I47 >0, MIN(AQ47,$I47-SUM($L47:AQ47)), MAX(AQ47,$I47-SUM($L47:AQ47))) -> 0
E48: 1996-03-31 | G48: £m 12/13 prices | I48: 107.5404208 | J48: > | Q48: =$I48/P$37 -> 5.377021042 | R48: =IF($I48 >0, MIN(Q48,$I48-SUM($L48:Q48)), MAX(Q48,$I48-SUM($L48:Q48))) -> 5.377021042 | S48: =IF($I48 >0, MIN(R48,$I48-SUM($L48:R48)), MAX(R48,$I48-SUM($L48:R48))) -> 5.377021042 | T48: =IF($I48 >0, MIN(S48,$I48-SUM($L48:S48)), MAX(S48,$I48-SUM($L48:S48))) -> 5.377021042 | U48: =IF($I48 >0, MIN(T48,$I48-SUM($L48:T48)), MAX(T48,$I48-SUM($L48:T48))) -> 5.377021042 | V48: =IF($I48 >0, MIN(U48,$I48-SUM($L48:U48)), MAX(U48,$I48-SUM($L48:U48))) -> 5.377021042 | W48: =IF($I48 >0, MIN(V48,$I48-SUM($L48:V48)), MAX(V48,$I48-SUM($L48:V48))) -> 5.377021042 | X48: =IF($I48 >0, MIN(W48,$I48-SUM($L48:W48)), MAX(W48,$I48-SUM($L48:W48))) -> 5.377021042 | Y48: =IF($I48 >0, MIN(X48,$I48-SUM($L48:X48)), MAX(X48,$I48-SUM($L48:X48))) -> 5.377021042 | Z48: =IF($I48 >0, MIN(Y48,$I48-SUM($L48:Y48)), MAX(Y48,$I48-SUM($L48:Y48))) -> 5.377021042 | AA48: =IF($I48 >0, MIN(Z48,$I48-SUM($L48:Z48)), MAX(Z48,$I48-SUM($L48:Z48))) -> 5.377021042 | AB48: =IF($I48 >0, MIN(AA48,$I48-SUM($L48:AA48)), MAX(AA48,$I48-SUM($L48:AA48))) -> 5.377021042 | AC48: =IF($I48 >0, MIN(AB48,$I48-SUM($L48:AB48)), MAX(AB48,$I48-SUM($L48:AB48))) -> 5.377021042 | AD48: =IF($I48 >0, MIN(AC48,$I48-SUM($L48:AC48)), MAX(AC48,$I48-SUM($L48:AC48))) -> 5.377021042 | AE48: =IF($I48 >0, MIN(AD48,$I48-SUM($L48:AD48)), MAX(AD48,$I48-SUM($L48:AD48))) -> 5.377021042 | AF48: =IF($I48 >0, MIN(AE48,$I48-SUM($L48:AE48)), MAX(AE48,$I48-SUM($L48:AE48))) -> 5.377021042 | AG48: =IF($I48 >0, MIN(AF48,$I48-SUM($L48:AF48)), MAX(AF48,$I48-SUM($L48:AF48))) -> 5.377021042 | AH48: =IF($I48 >0, MIN(AG48,$I48-SUM($L48:AG48)), MAX(AG48,$I48-SUM($L48:AG48))) -> 5.377021042 | AI48: =IF($I48 >0, MIN(AH48,$I48-SUM($L48:AH48)), MAX(AH48,$I48-SUM($L48:AH48))) -> 5.377021042 | AJ48: =IF($I48 >0, MIN(AI48,$I48-SUM($L48:AI48)), MAX(AI48,$I48-SUM($L48:AI48))) -> 5.377021042 | AK48: =IF($I48 >0, MIN(AJ48,$I48-SUM($L48:AJ48)), MAX(AJ48,$I48-SUM($L48:AJ48))) -> 0 | AL48: =IF($I48 >0, MIN(AK48,$I48-SUM($L48:AK48)), MAX(AK48,$I48-SUM($L48:AK48))) -> 0 | AM48: =IF($I48 >0, MIN(AL48,$I48-SUM($L48:AL48)), MAX(AL48,$I48-SUM($L48:AL48))) -> 0 | AN48: =IF($I48 >0, MIN(AM48,$I48-SUM($L48:AM48)), MAX(AM48,$I48-SUM($L48:AM48))) -> 0 | AO48: =IF($I48 >0, MIN(AN48,$I48-SUM($L48:AN48)), MAX(AN48,$I48-SUM($L48:AN48))) -> 0 | AP48: =IF($I48 >0, MIN(AO48,$I48-SUM($L48:AO48)), MAX(AO48,$I48-SUM($L48:AO48))) -> 0 | AQ48: =IF($I48 >0, MIN(AP48,$I48-SUM($L48:AP48)), MAX(AP48,$I48-SUM($L48:AP48))) -> 0 | AR48: =IF($I48 >0, MIN(AQ48,$I48-SUM($L48:AQ48)), MAX(AQ48,$I48-SUM($L48:AQ48))) -> 0
E49: 1997-03-31 | G49: £m 12/13 prices | I49: 124.1799129 | J49: > | R49: =$I49/Q$37 -> 6.208995645 | S49: =IF($I49 >0, MIN(R49,$I49-SUM($L49:R49)), MAX(R49,$I49-SUM($L49:R49))) -> 6.208995645 | T49: =IF($I49 >0, MIN(S49,$I49-SUM($L49:S49)), MAX(S49,$I49-SUM($L49:S49))) -> 6.208995645 | U49: =IF($I49 >0, MIN(T49,$I49-SUM($L49:T49)), MAX(T49,$I49-SUM($L49:T49))) -> 6.208995645 | V49: =IF($I49 >0, MIN(U49,$I49-SUM($L49:U49)), MAX(U49,$I49-SUM($L49:U49))) -> 6.208995645 | W49: =IF($I49 >0, MIN(V49,$I49-SUM($L49:V49)), MAX(V49,$I49-SUM($L49:V49))) -> 6.208995645 | X49: =IF($I49 >0, MIN(W49,$I49-SUM($L49:W49)), MAX(W49,$I49-SUM($L49:W49))) -> 6.208995645 | Y49: =IF($I49 >0, MIN(X49,$I49-SUM($L49:X49)), MAX(X49,$I49-SUM($L49:X49))) -> 6.208995645 | Z49: =IF($I49 >0, MIN(Y49,$I49-SUM($L49:Y49)), MAX(Y49,$I49-SUM($L49:Y49))) -> 6.208995645 | AA49: =IF($I49 >0, MIN(Z49,$I49-SUM($L49:Z49)), MAX(Z49,$I49-SUM($L49:Z49))) -> 6.208995645 | AB49: =IF($I49 >0, MIN(AA49,$I49-SUM($L49:AA49)), MAX(AA49,$I49-SUM($L49:AA49))) -> 6.208995645 | AC49: =IF($I49 >0, MIN(AB49,$I49-SUM($L49:AB49)), MAX(AB49,$I49-SUM($L49:AB49))) -> 6.208995645 | AD49: =IF($I49 >0, MIN(AC49,$I49-SUM($L49:AC49)), MAX(AC49,$I49-SUM($L49:AC49))) -> 6.208995645 | AE49: =IF($I49 >0, MIN(AD49,$I49-SUM($L49:AD49)), MAX(AD49,$I49-SUM($L49:AD49))) -> 6.208995645 | AF49: =IF($I49 >0, MIN(AE49,$I49-SUM($L49:AE49)), MAX(AE49,$I49-SUM($L49:AE49))) -> 6.208995645 | AG49: =IF($I49 >0, MIN(AF49,$I49-SUM($L49:AF49)), MAX(AF49,$I49-SUM($L49:AF49))) -> 6.208995645 | AH49: =IF($I49 >0, MIN(AG49,$I49-SUM($L49:AG49)), MAX(AG49,$I49-SUM($L49:AG49))) -> 6.208995645 | AI49: =IF($I49 >0, MIN(AH49,$I49-SUM($L49:AH49)), MAX(AH49,$I49-SUM($L49:AH49))) -> 6.208995645 | AJ49: =IF($I49 >0, MIN(AI49,$I49-SUM($L49:AI49)), MAX(AI49,$I49-SUM($L49:AI49))) -> 6.208995645 | AK49: =IF($I49 >0, MIN(AJ49,$I49-SUM($L49:AJ49)), MAX(AJ49,$I49-SUM($L49:AJ49))) -> 6.208995645 | AL49: =IF($I49 >0, MIN(AK49,$I49-SUM($L49:AK49)), MAX(AK49,$I49-SUM($L49:AK49))) -> 0 | AM49: =IF($I49 >0, MIN(AL49,$I49-SUM($L49:AL49)), MAX(AL49,$I49-SUM($L49:AL49))) -> 0 | AN49: =IF($I49 >0, MIN(AM49,$I49-SUM($L49:AM49)), MAX(AM49,$I49-SUM($L49:AM49))) -> 0 | AO49: =IF($I49 >0, MIN(AN49,$I49-SUM($L49:AN49)), MAX(AN49,$I49-SUM($L49:AN49))) -> 0 | AP49: =IF($I49 >0, MIN(AO49,$I49-SUM($L49:AO49)), MAX(AO49,$I49-SUM($L49:AO49))) -> 0 | AQ49: =IF($I49 >0, MIN(AP49,$I49-SUM($L49:AP49)), MAX(AP49,$I49-SUM($L49:AP49))) -> 0 | AR49: =IF($I49 >0, MIN(AQ49,$I49-SUM($L49:AQ49)), MAX(AQ49,$I49-SUM($L49:AQ49))) -> 0
E50: 1998-03-31 | G50: £m 12/13 prices | I50: 105.8456578 | J50: > | S50: =$I50/R$37 -> 5.292282888 | T50: =IF($I50 >0, MIN(S50,$I50-SUM($L50:S50)), MAX(S50,$I50-SUM($L50:S50))) -> 5.292282888 | U50: =IF($I50 >0, MIN(T50,$I50-SUM($L50:T50)), MAX(T50,$I50-SUM($L50:T50))) -> 5.292282888 | V50: =IF($I50 >0, MIN(U50,$I50-SUM($L50:U50)), MAX(U50,$I50-SUM($L50:U50))) -> 5.292282888 | W50: =IF($I50 >0, MIN(V50,$I50-SUM($L50:V50)), MAX(V50,$I50-SUM($L50:V50))) -> 5.292282888 | X50: =IF($I50 >0, MIN(W50,$I50-SUM($L50:W50)), MAX(W50,$I50-SUM($L50:W50))) -> 5.292282888 | Y50: =IF($I50 >0, MIN(X50,$I50-SUM($L50:X50)), MAX(X50,$I50-SUM($L50:X50))) -> 5.292282888 | Z50: =IF($I50 >0, MIN(Y50,$I50-SUM($L50:Y50)), MAX(Y50,$I50-SUM($L50:Y50))) -> 5.292282888 | AA50: =IF($I50 >0, MIN(Z50,$I50-SUM($L50:Z50)), MAX(Z50,$I50-SUM($L50:Z50))) -> 5.292282888 | AB50: =IF($I50 >0, MIN(AA50,$I50-SUM($L50:AA50)), MAX(AA50,$I50-SUM($L50:AA50))) -> 5.292282888 | AC50: =IF($I50 >0, MIN(AB50,$I50-SUM($L50:AB50)), MAX(AB50,$I50-SUM($L50:AB50))) -> 5.292282888 | AD50: =IF($I50 >0, MIN(AC50,$I50-SUM($L50:AC50)), MAX(AC50,$I50-SUM($L50:AC50))) -> 5.292282888 | AE50: =IF($I50 >0, MIN(AD50,$I50-SUM($L50:AD50)), MAX(AD50,$I50-SUM($L50:AD50))) -> 5.292282888 | AF50: =IF($I50 >0, MIN(AE50,$I50-SUM($L50:AE50)), MAX(AE50,$I50-SUM($L50:AE50))) -> 5.292282888 | AG50: =IF($I50 >0, MIN(AF50,$I50-SUM($L50:AF50)), MAX(AF50,$I50-SUM($L50:AF50))) -> 5.292282888 | AH50: =IF($I50 >0, MIN(AG50,$I50-SUM($L50:AG50)), MAX(AG50,$I50-SUM($L50:AG50))) -> 5.292282888 | AI50: =IF($I50 >0, MIN(AH50,$I50-SUM($L50:AH50)), MAX(AH50,$I50-SUM($L50:AH50))) -> 5.292282888 | AJ50: =IF($I50 >0, MIN(AI50,$I50-SUM($L50:AI50)), MAX(AI50,$I50-SUM($L50:AI50))) -> 5.292282888 | AK50: =IF($I50 >0, MIN(AJ50,$I50-SUM($L50:AJ50)), MAX(AJ50,$I50-SUM($L50:AJ50))) -> 5.292282888 | AL50: =IF($I50 >0, MIN(AK50,$I50-SUM($L50:AK50)), MAX(AK50,$I50-SUM($L50:AK50))) -> 5.292282888 | AM50: =IF($I50 >0, MIN(AL50,$I50-SUM($L50:AL50)), MAX(AL50,$I50-SUM($L50:AL50))) -> 4.263256415e-14 | AN50: =IF($I50 >0, MIN(AM50,$I50-SUM($L50:AM50)), MAX(AM50,$I50-SUM($L50:AM50))) -> 0 | AO50: =IF($I50 >0, MIN(AN50,$I50-SUM($L50:AN50)), MAX(AN50,$I50-SUM($L50:AN50))) -> 0 | AP50: =IF($I50 >0, MIN(AO50,$I50-SUM($L50:AO50)), MAX(AO50,$I50-SUM($L50:AO50))) -> 0 | AQ50: =IF($I50 >0, MIN(AP50,$I50-SUM($L50:AP50)), MAX(AP50,$I50-SUM($L50:AP50))) -> 0 | AR50: =IF($I50 >0, MIN(AQ50,$I50-SUM($L50:AQ50)), MAX(AQ50,$I50-SUM($L50:AQ50))) -> 0
E51: 1999-03-31 | G51: £m 12/13 prices | I51: 112.0591827 | J51: > | T51: =$I51/S$37 -> 5.602959137 | U51: =IF($I51 >0, MIN(T51,$I51-SUM($L51:T51)), MAX(T51,$I51-SUM($L51:T51))) -> 5.602959137 | V51: =IF($I51 >0, MIN(U51,$I51-SUM($L51:U51)), MAX(U51,$I51-SUM($L51:U51))) -> 5.602959137 | W51: =IF($I51 >0, MIN(V51,$I51-SUM($L51:V51)), MAX(V51,$I51-SUM($L51:V51))) -> 5.602959137 | X51: =IF($I51 >0, MIN(W51,$I51-SUM($L51:W51)), MAX(W51,$I51-SUM($L51:W51))) -> 5.602959137 | Y51: =IF($I51 >0, MIN(X51,$I51-SUM($L51:X51)), MAX(X51,$I51-SUM($L51:X51))) -> 5.602959137 | Z51: =IF($I51 >0, MIN(Y51,$I51-SUM($L51:Y51)), MAX(Y51,$I51-SUM($L51:Y51))) -> 5.602959137 | AA51: =IF($I51 >0, MIN(Z51,$I51-SUM($L51:Z51)), MAX(Z51,$I51-SUM($L51:Z51))) -> 5.602959137 | AB51: =IF($I51 >0, MIN(AA51,$I51-SUM($L51:AA51)), MAX(AA51,$I51-SUM($L51:AA51))) -> 5.602959137 | AC51: =IF($I51 >0, MIN(AB51,$I51-SUM($L51:AB51)), MAX(AB51,$I51-SUM($L51:AB51))) -> 5.602959137 | AD51: =IF($I51 >0, MIN(AC51,$I51-SUM($L51:AC51)), MAX(AC51,$I51-SUM($L51:AC51))) -> 5.602959137 | AE51: =IF($I51 >0, MIN(AD51,$I51-SUM($L51:AD51)), MAX(AD51,$I51-SUM($L51:AD51))) -> 5.602959137 | AF51: =IF($I51 >0, MIN(AE51,$I51-SUM($L51:AE51)), MAX(AE51,$I51-SUM($L51:AE51))) -> 5.602959137 | AG51: =IF($I51 >0, MIN(AF51,$I51-SUM($L51:AF51)), MAX(AF51,$I51-SUM($L51:AF51))) -> 5.602959137 | AH51: =IF($I51 >0, MIN(AG51,$I51-SUM($L51:AG51)), MAX(AG51,$I51-SUM($L51:AG51))) -> 5.602959137 | AI51: =IF($I51 >0, MIN(AH51,$I51-SUM($L51:AH51)), MAX(AH51,$I51-SUM($L51:AH51))) -> 5.602959137 | AJ51: =IF($I51 >0, MIN(AI51,$I51-SUM($L51:AI51)), MAX(AI51,$I51-SUM($L51:AI51))) -> 5.602959137 | AK51: =IF($I51 >0, MIN(AJ51,$I51-SUM($L51:AJ51)), MAX(AJ51,$I51-SUM($L51:AJ51))) -> 5.602959137 | AL51: =IF($I51 >0, MIN(AK51,$I51-SUM($L51:AK51)), MAX(AK51,$I51-SUM($L51:AK51))) -> 5.602959137 | AM51: =IF($I51 >0, MIN(AL51,$I51-SUM($L51:AL51)), MAX(AL51,$I51-SUM($L51:AL51))) -> 5.602959137 | AN51: =IF($I51 >0, MIN(AM51,$I51-SUM($L51:AM51)), MAX(AM51,$I51-SUM($L51:AM51))) -> 0 | AO51: =IF($I51 >0, MIN(AN51,$I51-SUM($L51:AN51)), MAX(AN51,$I51-SUM($L51:AN51))) -> 0 | AP51: =IF($I51 >0, MIN(AO51,$I51-SUM($L51:AO51)), MAX(AO51,$I51-SUM($L51:AO51))) -> 0 | AQ51: =IF($I51 >0, MIN(AP51,$I51-SUM($L51:AP51)), MAX(AP51,$I51-SUM($L51:AP51))) -> 0 | AR51: =IF($I51 >0, MIN(AQ51,$I51-SUM($L51:AQ51)), MAX(AQ51,$I51-SUM($L51:AQ51))) -> 0
E52: 2000-03-31 | G52: £m 12/13 prices | I52: 100.3416011 | J52: > | U52: =$I52/T$37 -> 5.017080054 | V52: =IF($I52 >0, MIN(U52,$I52-SUM($L52:U52)), MAX(U52,$I52-SUM($L52:U52))) -> 5.017080054 | W52: =IF($I52 >0, MIN(V52,$I52-SUM($L52:V52)), MAX(V52,$I52-SUM($L52:V52))) -> 5.017080054 | X52: =IF($I52 >0, MIN(W52,$I52-SUM($L52:W52)), MAX(W52,$I52-SUM($L52:W52))) -> 5.017080054 | Y52: =IF($I52 >0, MIN(X52,$I52-SUM($L52:X52)), MAX(X52,$I52-SUM($L52:X52))) -> 5.017080054 | Z52: =IF($I52 >0, MIN(Y52,$I52-SUM($L52:Y52)), MAX(Y52,$I52-SUM($L52:Y52))) -> 5.017080054 | AA52: =IF($I52 >0, MIN(Z52,$I52-SUM($L52:Z52)), MAX(Z52,$I52-SUM($L52:Z52))) -> 5.017080054 | AB52: =IF($I52 >0, MIN(AA52,$I52-SUM($L52:AA52)), MAX(AA52,$I52-SUM($L52:AA52))) -> 5.017080054 | AC52: =IF($I52 >0, MIN(AB52,$I52-SUM($L52:AB52)), MAX(AB52,$I52-SUM($L52:AB52))) -> 5.017080054 | AD52: =IF($I52 >0, MIN(AC52,$I52-SUM($L52:AC52)), MAX(AC52,$I52-SUM($L52:AC52))) -> 5.017080054 | AE52: =IF($I52 >0, MIN(AD52,$I52-SUM($L52:AD52)), MAX(AD52,$I52-SUM($L52:AD52))) -> 5.017080054 | AF52: =IF($I52 >0, MIN(AE52,$I52-SUM($L52:AE52)), MAX(AE52,$I52-SUM($L52:AE52))) -> 5.017080054 | AG52: =IF($I52 >0, MIN(AF52,$I52-SUM($L52:AF52)), MAX(AF52,$I52-SUM($L52:AF52))) -> 5.017080054 | AH52: =IF($I52 >0, MIN(AG52,$I52-SUM($L52:AG52)), MAX(AG52,$I52-SUM($L52:AG52))) -> 5.017080054 | AI52: =IF($I52 >0, MIN(AH52,$I52-SUM($L52:AH52)), MAX(AH52,$I52-SUM($L52:AH52))) -> 5.017080054 | AJ52: =IF($I52 >0, MIN(AI52,$I52-SUM($L52:AI52)), MAX(AI52,$I52-SUM($L52:AI52))) -> 5.017080054 | AK52: =IF($I52 >0, MIN(AJ52,$I52-SUM($L52:AJ52)), MAX(AJ52,$I52-SUM($L52:AJ52))) -> 5.017080054 | AL52: =IF($I52 >0, MIN(AK52,$I52-SUM($L52:AK52)), MAX(AK52,$I52-SUM($L52:AK52))) -> 5.017080054 | AM52: =IF($I52 >0, MIN(AL52,$I52-SUM($L52:AL52)), MAX(AL52,$I52-SUM($L52:AL52))) -> 5.017080054 | AN52: =IF($I52 >0, MIN(AM52,$I52-SUM($L52:AM52)), MAX(AM52,$I52-SUM($L52:AM52))) -> 5.017080054 | AO52: =IF($I52 >0, MIN(AN52,$I52-SUM($L52:AN52)), MAX(AN52,$I52-SUM($L52:AN52))) -> 2.842170943e-14 | AP52: =IF($I52 >0, MIN(AO52,$I52-SUM($L52:AO52)), MAX(AO52,$I52-SUM($L52:AO52))) -> 0 | AQ52: =IF($I52 >0, MIN(AP52,$I52-SUM($L52:AP52)), MAX(AP52,$I52-SUM($L52:AP52))) -> 0 | AR52: =IF($I52 >0, MIN(AQ52,$I52-SUM($L52:AQ52)), MAX(AQ52,$I52-SUM($L52:AQ52))) -> 0
E53: 2001-03-31 | G53: £m 12/13 prices | I53: 101.7199198 | J53: > | V53: =$I53/U$37 -> 5.085995989 | W53: =IF($I53 >0, MIN(V53,$I53-SUM($L53:V53)), MAX(V53,$I53-SUM($L53:V53))) -> 5.085995989 | X53: =IF($I53 >0, MIN(W53,$I53-SUM($L53:W53)), MAX(W53,$I53-SUM($L53:W53))) -> 5.085995989 | Y53: =IF($I53 >0, MIN(X53,$I53-SUM($L53:X53)), MAX(X53,$I53-SUM($L53:X53))) -> 5.085995989 | Z53: =IF($I53 >0, MIN(Y53,$I53-SUM($L53:Y53)), MAX(Y53,$I53-SUM($L53:Y53))) -> 5.085995989 | AA53: =IF($I53 >0, MIN(Z53,$I53-SUM($L53:Z53)), MAX(Z53,$I53-SUM($L53:Z53))) -> 5.085995989 | AB53: =IF($I53 >0, MIN(AA53,$I53-SUM($L53:AA53)), MAX(AA53,$I53-SUM($L53:AA53))) -> 5.085995989 | AC53: =IF($I53 >0, MIN(AB53,$I53-SUM($L53:AB53)), MAX(AB53,$I53-SUM($L53:AB53))) -> 5.085995989 | AD53: =IF($I53 >0, MIN(AC53,$I53-SUM($L53:AC53)), MAX(AC53,$I53-SUM($L53:AC53))) -> 5.085995989 | AE53: =IF($I53 >0, MIN(AD53,$I53-SUM($L53:AD53)), MAX(AD53,$I53-SUM($L53:AD53))) -> 5.085995989 | AF53: =IF($I53 >0, MIN(AE53,$I53-SUM($L53:AE53)), MAX(AE53,$I53-SUM($L53:AE53))) -> 5.085995989 | AG53: =IF($I53 >0, MIN(AF53,$I53-SUM($L53:AF53)), MAX(AF53,$I53-SUM($L53:AF53))) -> 5.085995989 | AH53: =IF($I53 >0, MIN(AG53,$I53-SUM($L53:AG53)), MAX(AG53,$I53-SUM($L53:AG53))) -> 5.085995989 | AI53: =IF($I53 >0, MIN(AH53,$I53-SUM($L53:AH53)), MAX(AH53,$I53-SUM($L53:AH53))) -> 5.085995989 | AJ53: =IF($I53 >0, MIN(AI53,$I53-SUM($L53:AI53)), MAX(AI53,$I53-SUM($L53:AI53))) -> 5.085995989 | AK53: =IF($I53 >0, MIN(AJ53,$I53-SUM($L53:AJ53)), MAX(AJ53,$I53-SUM($L53:AJ53))) -> 5.085995989 | AL53: =IF($I53 >0, MIN(AK53,$I53-SUM($L53:AK53)), MAX(AK53,$I53-SUM($L53:AK53))) -> 5.085995989 | AM53: =IF($I53 >0, MIN(AL53,$I53-SUM($L53:AL53)), MAX(AL53,$I53-SUM($L53:AL53))) -> 5.085995989 | AN53: =IF($I53 >0, MIN(AM53,$I53-SUM($L53:AM53)), MAX(AM53,$I53-SUM($L53:AM53))) -> 5.085995989 | AO53: =IF($I53 >0, MIN(AN53,$I53-SUM($L53:AN53)), MAX(AN53,$I53-SUM($L53:AN53))) -> 5.085995989 | AP53: =IF($I53 >0, MIN(AO53,$I53-SUM($L53:AO53)), MAX(AO53,$I53-SUM($L53:AO53))) -> 0 | AQ53: =IF($I53 >0, MIN(AP53,$I53-SUM($L53:AP53)), MAX(AP53,$I53-SUM($L53:AP53))) -> 0 | AR53: =IF($I53 >0, MIN(AQ53,$I53-SUM($L53:AQ53)), MAX(AQ53,$I53-SUM($L53:AQ53))) -> 0
